Workbook

Sheet FERC_IS1
A1: %,LACTUALS,SBAL | B1: %,ATF,FACCOUNT | C1: %,ATT,FDESCR,UDESCR | F1: %,LACTUALS,SPER | G1: %,LACTUALS,SPER-1YR | H1: %,C | I1: %,C | K1: %,LACTUALS,SYTD | L1: %,LACTUALS,SYTD-1YR | M1: %,C | N1: %,C | Q1: %,LACTUALS,SQTR | R1: %,LACTUALS,SQTR-1YR | S1: %,C | T1: %,C | V1: %,LACTUALS,SROLLING12 | W1: %,LACTUALS,SROLNG12-1Y | X1: %,C | Y1: %,C | AA1: %,LACTUALS,SPER12-2Y | AC1: %,LACTUALS,SPER1-1YR | AD1: %,LACTUALS,SPER2-1YR | AE1: %,LACTUALS,SPER3-1YR | AF1: %,LACTUALS,SPER4-1YR | AG1: %,LACTUALS,SPER5-1YR | AH1: %,LACTUALS,SPER6-1YR | AI1: %,LACTUALS,SPER7-1YR | AJ1: %,LACTUALS,SPER8-1YR | AK1: %,LACTUALS,SPER9-1YR | AL1: %,LACTUALS,SPER10-1YR | AM1: %,LACTUALS,SPER11-1YR | AN1: %,LACTUALS,SPER12-YR | AP1: %,LACTUALS,SPER1 | AQ1: %,LACTUALS,SPER2 | AR1: %,LACTUALS,SPER3 | AS1: %,LACTUALS,SPER4 | AT1: %,LACTUALS,SPER5
C2: =IF($C$706="Error",$C$711,IF($C$712="Error",$C$708&" - "&$C$707,IF($C$712 = $C$711, "BU"& $C$712&" -" & $C$706,$C$712&" - "&$C$711))) -> Kentucky Power Corp Consol | G2: =+C2 -> Kentucky Power Corp Consol | L2: =+G2 -> Kentucky Power Corp Consol | R2: =+L2 -> Kentucky Power Corp Consol | W2: =+R2 -> Kentucky Power Corp Consol | AA2: =+C2 -> Kentucky Power Corp Consol | AP2: =+C2 -> Kentucky Power Corp Consol
C3: =TEXT(+$C$696,"MMMM YYYY") -> May 2026 | G3: =+"As of: "& TEXT(+$C$696,"MMM YYYY") -> As of: May 2026 | L3: =+G3 -> As of: May 2026 | R3: =+L3 -> As of: May 2026 | W3: =+R3 -> As of: May 2026 | AA3: =+G3 -> As of: May 2026
B4: ="Run Date: "& TEXT(NvsEndTime,"MM/DD/YYYY hh:mm AM/PM;@") -> Run Date: 06/11/2026 07:10 AM | AP4: =+AA4 -> 0
B5: =IF(C709<>"Error",C709,"") -> GLR6283P | C5: ="Rpt ID: "& C704& " Layout: "&C705 -> Rpt ID: FERC_IS1 Layout: FERC_IS1 | F5: ONE MONTH ENDED | H5: Variance | K5: YEAR TO DATE | M5: Variance | Q5: THREE MONTHS ENDED | S5: Variance | V5: TWELVE MONTHS ENDED | X5: Variance
B6: =IF(C706="Error",""&C712,IF(C712= "Error","" & C708,"" &C712)) -> KYP_CORP_CONSOL | C6: =IF($C$706="Error",NvsTreeASD & " Acct: GL_FERC_ACCT BU: "&+$C$713,IF(C712="Error",NvsTreeASD & " Acct: GL_FERC_ACCT BU: "&+$C$708,NvsTreeASD & " Acct: GL_FERC_ACCT BU: "&+$C$712)) -> V2099-01-01 Acct: GL_FERC_ACCT BU: GL_PRPT_CONS | F6: =TEXT($C$696,"YYYY") -> 2026 | G6: =+F6-1 -> 2025 | H6: $ | I6: % | K6: =TEXT($C$696,"YYYY") -> 2026 | L6: =+K6-1 -> 2025 | M6: $ | N6: % | O6: Explanation | Q6: =TEXT($C$696,"YYYY") -> 2026 | R6: =+Q6-1 -> 2025 | S6: $ | T6: % | V6: =TEXT($C$696,"YYYY") -> 2026 | W6: =+V6-1 -> 2025 | X6: $ | Y6: % | AA6: ="Dec "&TEXT($C$696,"YYYY") - 2 -> Dec 2024 | AC6: ="Jan "&TEXT($C$696,"YYYY")-1 -> Jan 2025 | AD6: ="Feb "&TEXT($C$696,"YYYY") - 1 -> Feb 2025 | AE6: ="Mar "&TEXT($C$696,"YYYY") - 1 -> Mar 2025 | AF6: ="Apr "&TEXT($C$696,"YYYY") - 1 -> Apr 2025 | AG6: ="May "&TEXT($C$696,"YYYY") - 1 -> May 2025 | AH6: ="Jun "&TEXT($C$696,"YYYY") - 1 -> Jun 2025 | AI6: ="Jul "&TEXT($C$696,"YYYY") - 1 -> Jul 2025 | AJ6: ="Aug "&TEXT($C$696,"YYYY") - 1 -> Aug 2025 | AK6: ="Sep "&TEXT($C$696,"YYYY") - 1 -> Sep 2025 | AL6: ="Oct "&TEXT($C$696,"YYYY") - 1 -> Oct 2025 | AM6: ="Nov "&TEXT($C$696,"YYYY") - 1 -> Nov 2025 | AN6: ="Dec "&TEXT($C$696,"YYYY") - 1 -> Dec 2025 | AP6: ="Jan "&TEXT($C$696,"YYYY") -> Jan 2026 | AQ6: ="Feb "&TEXT($C$696,"YYYY") -> Feb 2026 | AR6: ="Mar "&TEXT($C$696,"YYYY") -> Mar 2026 | AS6: ="Apr "&TEXT($C$696,"YYYY") -> Apr 2026 | AT6: ="May "&TEXT($C$696,"YYYY") -> May 2026
B7: FERC Form | C7: INCOME STATEMENT
B9: Line 1 | C9: Utility Operating Income
A11: %,V4400001 | B11: 4400001 | C11: Residential Sales-W/Space Htg | F11: 12216287.05 | G11: 7731231.34 | H11: =+F11-G11 -> 4485055.71 | I11: =IF(G11<0,IF(H11=0,0,IF(OR(G11=0,F11=0),"N.M.",IF(ABS(H11/G11)>=10,"N.M.",H11/(-G11)))),IF(H11=0,0,IF(OR(G11=0,F11=0),"N.M.",IF(ABS(H11/G11)>=10,"N.M.",H11/G11)))) -> 0.580121783 | K11: 74378148.72 | L11: 71704894.49 | Q11: 35834772.87 | R11: 33121412.19 | V11: 159523113.6 | W11: 153257081.5 | X11: =+V11-W11 -> 6266032.081 | Y11: =IF(W11<0,IF(X11=0,0,IF(OR(W11=0,V11=0),"N.M.",IF(ABS(X11/W11)>=10,"N.M.",X11/(-W11)))),IF(X11=0,0,IF(OR(W11=0,V11=0),"N.M.",IF(ABS(X11/W11)>=10,"N.M.",X11/W11)))) -> 0.04088575888 | AA11: 18551170.45 | AC11: 21899121.56 | AD11: 16684360.74 | AE11: 14995212.24 | AF11: 10394968.61 | AG11: 7731231.34 | AH11: 10518841.64 | AI11: 12905113.72 | AJ11: 11599370.53 | AK11: 8472583.75 | AL11: 9871189.17 | AM11: 12490967.45 | AN11: 19286898.62 | AP11: 19918023.67 | AQ11: 18625352.19 | AR11: 13331740.11 | AS11: 10286745.71 | AT11: 12216287.05
A12: %,V4400002 | B12: 4400002 | C12: Residential Sales-W/O Space Ht | F12: 6712241.166 | G12: 3968953.45 | H12: =+F12-G12 -> 2743287.716 | I12: =IF(G12<0,IF(H12=0,0,IF(OR(G12=0,F12=0),"N.M.",IF(ABS(H12/G12)>=10,"N.M.",H12/(-G12)))),IF(H12=0,0,IF(OR(G12=0,F12=0),"N.M.",IF(ABS(H12/G12)>=10,"N.M.",H12/G12)))) -> 0.6911866694 | K12: 31632103.87 | L12: 28302018.71 | Q12: 17730528.29 | R12: 14641836.51 | V12: 74986489.17 | W12: 67434194.45 | X12: =+V12-W12 -> 7552294.724 | Y12: =IF(W12<0,IF(X12=0,0,IF(OR(W12=0,V12=0),"N.M.",IF(ABS(X12/W12)>=10,"N.M.",X12/(-W12)))),IF(X12=0,0,IF(OR(W12=0,V12=0),"N.M.",IF(ABS(X12/W12)>=10,"N.M.",X12/W12)))) -> 0.1119950314 | AA12: 6080220.07 | AC12: 7798813.73 | AD12: 5861368.47 | AE12: 5866308.67 | AF12: 4806574.39 | AG12: 3968953.45 | AH12: 5838656.28 | AI12: 7940424.53 | AJ12: 6607786.695 | AK12: 4750570.07 | AL12: 5193758.17 | AM12: 5035844.717 | AN12: 7987344.84 | AP12: 6963240.391 | AQ12: 6938335.191 | AR12: 5759012.45 | AS12: 5259274.674 | AT12: 6712241.166
A13: %,V4400005 | B13: 4400005 | C13: Residential Fuel Rev | F13: 5763924.38 | G13: 3153512.74 | H13: =+F13-G13 -> 2610411.64 | I13: =IF(G13<0,IF(H13=0,0,IF(OR(G13=0,F13=0),"N.M.",IF(ABS(H13/G13)>=10,"N.M.",H13/(-G13)))),IF(H13=0,0,IF(OR(G13=0,F13=0),"N.M.",IF(ABS(H13/G13)>=10,"N.M.",H13/G13)))) -> 0.8277790056 | K13: 35927995.01 | L13: 30986504.96 | Q13: 16634961.21 | R13: 13461190.46 | V13: 84503796.36 | W13: 69494343.98 | X13: =+V13-W13 -> 15009452.38 | Y13: =IF(W13<0,IF(X13=0,0,IF(OR(W13=0,V13=0),"N.M.",IF(ABS(X13/W13)>=10,"N.M.",X13/(-W13)))),IF(X13=0,0,IF(OR(W13=0,V13=0),"N.M.",IF(ABS(X13/W13)>=10,"N.M.",X13/W13)))) -> 0.2159809205 | AA13: 7956303.42 | AC13: 11449951.72 | AD13: 6075362.78 | AE13: 7122520.27 | AF13: 3185157.45 | AG13: 3153512.74 | AH13: 12113659.34 | AI13: 8097863.13 | AJ13: 7131606.14 | AK13: 4108160.79 | AL13: 4270224.06 | AM13: 5723763.91 | AN13: 7130523.98 | AP13: 9779560.66 | AQ13: 9513473.14 | AR13: 6770953.61 | AS13: 4100083.22 | AT13: 5763924.38
A14: %,R,FACCOUNT,TGL_FERC_ACCT,XDYYNNY01,N4400 | C14: Residential Sales | F14: 24692452.6 | G14: 14853697.53 | H14: =+F14-G14 -> 9838755.066 | I14: =IF(G14<0,IF(H14=0,0,IF(OR(G14=0,F14=0),"N.M.",IF(ABS(H14/G14)>=10,"N.M.",H14/(-G14)))),IF(H14=0,0,IF(OR(G14=0,F14=0),"N.M.",IF(ABS(H14/G14)>=10,"N.M.",H14/G14)))) -> 0.662377502 | K14: 141938247.6 | L14: 130993418.2 | Q14: 70200262.37 | R14: 61224439.16 | V14: 319013399.1 | W14: 290185620 | X14: =+V14-W14 -> 28827779.18 | Y14: =IF(W14<0,IF(X14=0,0,IF(OR(W14=0,V14=0),"N.M.",IF(ABS(X14/W14)>=10,"N.M.",X14/(-W14)))),IF(X14=0,0,IF(OR(W14=0,V14=0),"N.M.",IF(ABS(X14/W14)>=10,"N.M.",X14/W14)))) -> 0.09934254906 | AA14: 32587693.94 | AC14: 41147887.01 | AD14: 28621091.99 | AE14: 27984041.18 | AF14: 18386700.45 | AG14: 14853697.53 | AH14: 28471157.26 | AI14: 28943401.38 | AJ14: 25338763.37 | AK14: 17331314.61 | AL14: 19335171.4 | AM14: 23250576.07 | AN14: 34404767.44 | AP14: 36660824.72 | AQ14: 35077160.52 | AR14: 25861706.17 | AS14: 19646103.6 | AT14: 24692452.6
A16: %,V4420001 | B16: 4420001 | C16: Commercial Sales | F16: 9741222.406 | G16: 6724174.25 | H16: =+F16-G16 -> 3017048.156 | I16: =IF(G16<0,IF(H16=0,0,IF(OR(G16=0,F16=0),"N.M.",IF(ABS(H16/G16)>=10,"N.M.",H16/(-G16)))),IF(H16=0,0,IF(OR(G16=0,F16=0),"N.M.",IF(ABS(H16/G16)>=10,"N.M.",H16/G16)))) -> 0.4486867895 | K16: 41927209.52 | L16: 41115238.2 | Q16: 26081966.21 | R16: 23058507.84 | V16: 101591219.4 | W16: 100812504.8 | X16: =+V16-W16 -> 778714.661 | Y16: =IF(W16<0,IF(X16=0,0,IF(OR(W16=0,V16=0),"N.M.",IF(ABS(X16/W16)>=10,"N.M.",X16/(-W16)))),IF(X16=0,0,IF(OR(W16=0,V16=0),"N.M.",IF(ABS(X16/W16)>=10,"N.M.",X16/W16)))) -> 0.007724385609 | AA16: 9983320.76 | AC16: 9756331.98 | AD16: 8300398.38 | AE16: 8698149.74 | AF16: 7636183.85 | AG16: 6724174.25 | AH16: 8621358.89 | AI16: 8896994.41 | AJ16: 8200358.925 | AK16: 7178826.69 | AL16: 8866081.53 | AM16: 7681838.358 | AN16: 10218551.1 | AP16: 8562474.459 | AQ16: 7282768.849 | AR16: 7639085.446 | AS16: 8701658.36 | AT16: 9741222.406
A17: %,V4420002 | B17: 4420002 | C17: Industrial Sales (Excl Mines) | F17: 9628142.168 | G17: 6842201.07 | H17: 2785941.098 | I17: 0.4071703052 | K17: 36057846.08 | L17: 32610380.22 | Q17: 22053184.99 | R17: 20598152.7 | V17: 69397331.64 | W17: 78934764.49 | X17: -9537432.851 | Y17: -0.1208267727 | AA17: 7319084.09 | AC17: 5985417.87 | AD17: 6026809.65 | AE17: 7316102.71 | AF17: 6439848.92 | AG17: 6842201.07 | AH17: 2312197.92 | AI17: 6195767.86 | AJ17: 5372986.274 | AK17: 4824240.96 | AL17: 6684660.79 | AM17: 4458868.872 | AN17: 3490762.88 | AP17: 9533923.41 | AQ17: 4470737.686 | AR17: 7294706.712 | AS17: 5130336.107 | AT17: 9628142.168
A18: %,V4420004 | B18: 4420004 | C18: Ind Sales-NonAffil(Incl Mines) | F18: 1098147.344 | G18: 1131525.36 | H18: -33378.016 | I18: -0.02949824828 | K18: 5565530.702 | L18: 6958388.99 | Q18: 3399875.242 | R18: 4008822.73 | V18: 13530223.17 | W18: 16829833.15 | X18: -3299609.984 | Y18: -0.1960572012 | AA18: 1331746.31 | AC18: 1548190.26 | AD18: 1401376 | AE18: 1465250.36 | AF18: 1412047.01 | AG18: 1131525.36 | AH18: 1112011.19 | AI18: 1039373.23 | AJ18: 1160625.513 | AK18: 1120136.81 | AL18: 1290874.68 | AM18: 1027786.731 | AN18: 1213884.31 | AP18: 1335955.737 | AQ18: 829699.723 | AR18: 1147943.66 | AS18: 1153784.238 | AT18: 1098147.344
A19: %,V4420006 | B19: 4420006 | C19: Sales to Pub Auth - Schools | F19: 1552798.015 | G19: 1136607.26 | H19: 416190.755 | I19: 0.3661693618 | K19: 6889542.135 | L19: 6958924.05 | Q19: 4179745.191 | R19: 3942034.54 | V19: 16284752.34 | W19: 16116280.93 | X19: 168471.413 | Y19: 0.01045349195 | AA19: 1424105.15 | AC19: 1608928.86 | AD19: 1407960.65 | AE19: 1507545.47 | AF19: 1297881.81 | AG19: 1136607.26 | AH19: 1463355.15 | AI19: 1052794.29 | AJ19: 1264744.116 | AK19: 1284043.61 | AL19: 1461433.71 | AM19: 1287909.375 | AN19: 1580929.957 | AP19: 1483779.899 | AQ19: 1226017.045 | AR19: 1307994.084 | AS19: 1318953.092 | AT19: 1552798.015
A20: %,V4420007 | B20: 4420007 | C20: Sales to Pub Auth - Ex Schools | F20: 1969405.22 | G20: 1332337.03 | H20: 637068.19 | I20: 0.4781584356 | K20: 8500604.891 | L20: 8151240.64 | Q20: 5330802.226 | R20: 4649115.01 | V20: 20180769.74 | W20: 20095318.36 | X20: 85451.377 | Y20: 0.004252302724 | AA20: 2087668.21 | AC20: 1955065.23 | AD20: 1547060.4 | AE20: 1738135.35 | AF20: 1578642.63 | AG20: 1332337.03 | AH20: 1945278.57 | AI20: 1543791.29 | AJ20: 1545420.074 | AK20: 1344232.94 | AL20: 1744257.49 | AM20: 1608562.127 | AN20: 1948622.355 | AP20: 1818088.408 | AQ20: 1351714.257 | AR20: 1621330.149 | AS20: 1740066.857 | AT20: 1969405.22
A21: %,V4420013 | B21: 4420013 | C21: Commercial Fuel Rev | F21: 5627019.79 | G21: 3670709.4 | H21: 1956310.39 | I21: 0.5329515842 | K21: 25310233.1 | L21: 20906286.87 | Q21: 15237466.14 | R21: 11745311.04 | V21: 63089077.93 | W21: 52365225.33 | X21: 10723852.6 | Y21: 0.2047895819 | AA21: 4554313.04 | AC21: 5862942.98 | AD21: 3298032.85 | AE21: 4842141.86 | AF21: 3232459.78 | AG21: 3670709.4 | AH21: 9559013.53 | AI21: 5979493.24 | AJ21: 5382681.54 | AK21: 4019913.93 | AL21: 4136817.01 | AM21: 4800937.7 | AN21: 3899987.88 | AP21: 5694959.73 | AQ21: 4377807.23 | AR21: 5129806.2 | AS21: 4480640.15 | AT21: 5627019.79
A22: %,V4420016 | B22: 4420016 | C22: Industrial Fuel Rev | F22: 8583384.15 | G22: 6534812.22 | H22: 2048571.93 | I22: 0.3134859673 | K22: 30659622.41 | L22: 29506551.17 | Q22: 22662122.59 | R22: 17642747.57 | V22: 82209515.03 | W22: 73174017.56 | X22: 9035497.47 | Y22: 0.123479587 | AA22: 6156036.22 | AC22: 6561407.22 | AD22: 5302396.38 | AE22: 5793588.24 | AF22: 5314347.11 | AG22: 6534812.22 | AH22: 12406794.84 | AI22: 6821319.9 | AJ22: 6975137.68 | AK22: 6526079.14 | AL22: 4454003.08 | AM22: 7013721.08 | AN22: 7352836.9 | AP22: 3016302.06 | AQ22: 4981197.76 | AR22: 7110720.74 | AS22: 6968017.7 | AT22: 8583384.15
A23: %,R,FACCOUNT,TGL_FERC_ACCT,XDYYNNY01,N4420 | C23: Commercial Sales | F23: 38200119.09 | G23: 27372366.59 | H23: 10827752.5 | I23: 0.3955723911 | K23: 154910588.8 | L23: 146207010.1 | Q23: 98945162.59 | R23: 85644691.43 | V23: 366282889.3 | W23: 358327944.6 | X23: 7954944.686 | Y23: 0.02220017949 | AA23: 32856273.78 | AC23: 33278284.4 | AD23: 27284034.31 | AE23: 31360913.73 | AF23: 26911411.11 | AG23: 27372366.59 | AH23: 37420010.09 | AI23: 31529534.22 | AJ23: 29901954.12 | AK23: 26297474.08 | AL23: 28638128.29 | AM23: 27879624.24 | AN23: 29705575.38 | AP23: 31445483.7 | AQ23: 24519942.55 | AR23: 31251586.99 | AS23: 29493456.5 | AT23: 38200119.09
A25: %,V4440000 | B25: 4440000 | C25: Public Street/Highway Lighting | F25: 174565.391 | G25: 151371.38 | H25: =+F25-G25 -> 23194.011 | I25: =IF(G25<0,IF(H25=0,0,IF(OR(G25=0,F25=0),"N.M.",IF(ABS(H25/G25)>=10,"N.M.",H25/(-G25)))),IF(H25=0,0,IF(OR(G25=0,F25=0),"N.M.",IF(ABS(H25/G25)>=10,"N.M.",H25/G25)))) -> 0.1532258674 | K25: 939602.04 | L25: 778852.04 | Q25: 502718.603 | R25: 459152.13 | V25: 1872469.516 | W25: 1833522.56 | X25: =+V25-W25 -> 38946.956 | Y25: =IF(W25<0,IF(X25=0,0,IF(OR(W25=0,V25=0),"N.M.",IF(ABS(X25/W25)>=10,"N.M.",X25/(-W25)))),IF(X25=0,0,IF(OR(W25=0,V25=0),"N.M.",IF(ABS(X25/W25)>=10,"N.M.",X25/W25)))) -> 0.02124160174 | AA25: 153504.45 | AC25: 158477.95 | AD25: 161221.96 | AE25: 151538.38 | AF25: 156242.37 | AG25: 151371.38 | AH25: 144242.97 | AI25: 151057.82 | AJ25: 151856.169 | AK25: 150194.75 | AL25: 154153.05 | AM25: 158430.905 | AN25: 22931.812 | AP25: 287750.999 | AQ25: 149132.438 | AR25: 158808.031 | AS25: 169345.181 | AT25: 174565.391
A26: %,V4440002 | B26: 4440002 | C26: Public St & Hwy Light Fuel Rev | F26: 25773.85 | G26: 22593.3 | H26: =+F26-G26 -> 3180.55 | I26: =IF(G26<0,IF(H26=0,0,IF(OR(G26=0,F26=0),"N.M.",IF(ABS(H26/G26)>=10,"N.M.",H26/(-G26)))),IF(H26=0,0,IF(OR(G26=0,F26=0),"N.M.",IF(ABS(H26/G26)>=10,"N.M.",H26/G26)))) -> 0.1407740348 | K26: 169435.46 | L26: 129715.18 | Q26: 88376.9 | R26: 71763.52 | V26: 356720.61 | W26: 319256.87 | X26: =+V26-W26 -> 37463.74 | Y26: =IF(W26<0,IF(X26=0,0,IF(OR(W26=0,V26=0),"N.M.",IF(ABS(X26/W26)>=10,"N.M.",X26/(-W26)))),IF(X26=0,0,IF(OR(W26=0,V26=0),"N.M.",IF(ABS(X26/W26)>=10,"N.M.",X26/W26)))) -> 0.1173466995 | AA26: 34491.81 | AC26: 36592.55 | AD26: 21359.11 | AE26: 31209.55 | AF26: 17960.67 | AG26: 22593.3 | AH26: 43292.14 | AI26: 23661.31 | AJ26: 28446.05 | AK26: 28992.25 | AL26: 23033.25 | AM26: 37177.3 | AN26: 2682.85 | AP26: 54869.27 | AQ26: 26189.29 | AR26: 35578.01 | AS26: 27025.04 | AT26: 25773.85
A27: %,R,FACCOUNT,TGL_FERC_ACCT,XDYYNNY01,N4440,N4450,N4460,N4480 | C27: Public Streets and Highway Lighting | F27: 200339.241 | G27: 173964.68 | H27: =+F27-G27 -> 26374.561 | I27: =IF(G27<0,IF(H27=0,0,IF(OR(G27=0,F27=0),"N.M.",IF(ABS(H27/G27)>=10,"N.M.",H27/(-G27)))),IF(H27=0,0,IF(OR(G27=0,F27=0),"N.M.",IF(ABS(H27/G27)>=10,"N.M.",H27/G27)))) -> 0.1516087116 | K27: 1109037.5 | L27: 908567.22 | Q27: 591095.503 | R27: 530915.65 | V27: 2229190.126 | W27: 2152779.43 | X27: =+V27-W27 -> 76410.696 | Y27: =IF(W27<0,IF(X27=0,0,IF(OR(W27=0,V27=0),"N.M.",IF(ABS(X27/W27)>=10,"N.M.",X27/(-W27)))),IF(X27=0,0,IF(OR(W27=0,V27=0),"N.M.",IF(ABS(X27/W27)>=10,"N.M.",X27/W27)))) -> 0.03549397348 | AA27: 187996.26 | AC27: 195070.5 | AD27: 182581.07 | AE27: 182747.93 | AF27: 174203.04 | AG27: 173964.68 | AH27: 187535.11 | AI27: 174719.13 | AJ27: 180302.219 | AK27: 179187 | AL27: 177186.3 | AM27: 195608.205 | AN27: 25614.662 | AP27: 342620.269 | AQ27: 175321.728 | AR27: 194386.041 | AS27: 196370.221 | AT27: 200339.241
A29: %,V4470006 | B29: 4470006 | C29: Sales for Resale-Bookout Sales | F29: 0 | G29: 0 | H29: =+F29-G29 -> 0 | I29: =IF(G29<0,IF(H29=0,0,IF(OR(G29=0,F29=0),"N.M.",IF(ABS(H29/G29)>=10,"N.M.",H29/(-G29)))),IF(H29=0,0,IF(OR(G29=0,F29=0),"N.M.",IF(ABS(H29/G29)>=10,"N.M.",H29/G29)))) -> 0 | K29: 0 | L29: 0 | Q29: 0 | R29: 0 | V29: 0.2 | W29: 0 | X29: =+V29-W29 -> 0.2 | Y29: =IF(W29<0,IF(X29=0,0,IF(OR(W29=0,V29=0),"N.M.",IF(ABS(X29/W29)>=10,"N.M.",X29/(-W29)))),IF(X29=0,0,IF(OR(W29=0,V29=0),"N.M.",IF(ABS(X29/W29)>=10,"N.M.",X29/W29)))) -> N.M. | AA29: 0 | AC29: 0 | AD29: 0 | AE29: 0 | AF29: 0 | AG29: 0 | AH29: 0 | AI29: 0 | AJ29: 0 | AK29: 0 | AL29: 0 | AM29: 0 | AN29: 0.2 | AP29: 0 | AQ29: 0 | AR29: 0 | AS29: 0 | AT29: 0
A30: %,V4470010 | B30: 4470010 | C30: Sales for Resale-Bookout Purch | F30: 0 | G30: 0 | H30: 0 | I30: 0 | K30: -12.02 | L30: 0 | Q30: 0 | R30: 0 | V30: 34.63 | W30: 0 | X30: 34.63 | Y30: N.M. | AA30: 0 | AC30: 0 | AD30: 0 | AE30: 0 | AF30: 0 | AG30: 0 | AH30: 0 | AI30: 0 | AJ30: 0 | AK30: 0 | AL30: 0 | AM30: 0 | AN30: 46.65 | AP30: -24.2 | AQ30: 12.18 | AR30: 0 | AS30: 0 | AT30: 0
A31: %,V4470027 | B31: 4470027 | C31: Whsal/Muni/Pb Ath Fuel Rev | F31: 10166.21 | G31: 290721.96 | H31: -280555.75 | I31: -0.965031159 | K31: 10166.21 | L31: 1515111.43 | Q31: 10166.21 | R31: 874454.25 | V31: 56623.44 | W31: 2956196.36 | X31: -2899572.92 | Y31: -0.9808458461 | AA31: 302675.32 | AC31: 377771.11 | AD31: 262886.07 | AE31: 281774.76 | AF31: 301957.53 | AG31: 290721.96 | AH31: 3490.5 | AI31: 42966.73 | AJ31: 0 | AK31: 0 | AL31: 0 | AM31: 0 | AN31: 0 | AP31: 0 | AQ31: 0 | AR31: 0 | AS31: 0 | AT31: 10166.21
A32: %,V4470033 | B32: 4470033 | C32: Whsal/Muni/Pub Auth Base Rev | F32: 31333.83 | G32: 516121.55 | H32: -484787.72 | I32: -0.9392898243 | K32: 31333.83 | L32: 1324922.26 | Q32: 31333.83 | R32: 846098.96 | V32: 31466.26 | W32: 2569858.89 | X32: -2538392.63 | Y32: -0.9877556468 | AA32: 208511.64 | AC32: 270507.72 | AD32: 208315.58 | AE32: 176363.15 | AF32: 153614.26 | AG32: 516121.55 | AH32: 132.43 | AI32: 0 | AJ32: 0 | AK32: 0 | AL32: 0 | AM32: 0 | AN32: 0 | AP32: 0 | AQ32: 0 | AR32: 0 | AS32: 0 | AT32: 31333.83
A33: %,V4470074 | B33: 4470074 | C33: Sale for Resale-Aff-Trnf Price | F33: 0 | G33: 0 | H33: 0 | I33: 0 | K33: 0 | L33: 0 | Q33: 0 | R33: 0 | V33: 0 | W33: 0 | X33: 0 | Y33: 0 | AA33: 0 | AC33: 0 | AD33: 0 | AE33: 0 | AF33: 0 | AG33: 0 | AH33: 0 | AI33: 0 | AJ33: 0 | AK33: 0 | AL33: 0 | AM33: 0 | AN33: 0 | AP33: 0 | AQ33: 0 | AR33: 0 | AS33: 0 | AT33: 0
A34: %,V4470082 | B34: 4470082 | C34: Financial Electric Realized | F34: -231.28 | G34: -158.6 | H34: -72.68 | I34: -0.458259773 | K34: -876.93 | L34: -2026.4 | Q34: -499.75 | R34: -869.39 | V34: -2555.88 | W34: -6097.61 | X34: 3541.73 | Y34: 0.5808390501 | AA34: -338.99 | AC34: -200.53 | AD34: -956.48 | AE34: -211.94 | AF34: -498.85 | AG34: -158.6 | AH34: -220.65 | AI34: -297.09 | AJ34: -207.38 | AK34: -294.09 | AL34: -290.98 | AM34: -228.38 | AN34: -140.38 | AP34: -245.62 | AQ34: -131.56 | AR34: 0 | AS34: -268.47 | AT34: -231.28
A35: %,V4470089 | B35: 4470089 | C35: PJM Energy Sales Margin | F35: -103955.4 | G35: 81981.73 | H35: -185937.13 | I35: -2.268031304 | K35: 1170435.64 | L35: 343834.37 | Q35: -712188.98 | R35: -48533.37 | V35: 3266637.89 | W35: 256959.65 | X35: 3009678.24 | Y35: N.M. | AA35: -163952.38 | AC35: 215057.19 | AD35: 177310.55 | AE35: -104566.51 | AF35: -25948.59 | AG35: 81981.73 | AH35: 1140661.57 | AI35: -593030.27 | AJ35: 260906.18 | AK35: 72820.4 | AL35: 150746.48 | AM35: 916866.79 | AN35: 147231.1 | AP35: 1754682.79 | AQ35: 127941.83 | AR35: -544999.55 | AS35: -63234.03 | AT35: -103955.4
A36: %,V4470098 | B36: 4470098 | C36: PJM Oper.Reserve Rev-OSS | F36: 1120.06 | G36: -8662.52 | H36: 9782.58 | I36: 1.129299557 | K36: -442095.53 | L36: -34578.02 | Q36: -23483.41 | R36: -18712.77 | V36: -506626.19 | W36: -79130.04 | X36: -427496.15 | Y36: -5.402450827 | AA36: -5128.19 | AC36: -6943.64 | AD36: -8921.61 | AE36: -3947.07 | AF36: -6103.18 | AG36: -8662.52 | AH36: 1589.11 | AI36: -14240.69 | AJ36: -14683.02 | AK36: -7762.45 | AL36: -4685.51 | AM36: -4575.42 | AN36: -20172.68 | AP36: -52401.2 | AQ36: -366210.92 | AR36: -22611.53 | AS36: -1991.94 | AT36: 1120.06
A37: %,V4470099 | B37: 4470099 | C37: Capacity Cr. Net Sales | F37: 0 | G37: -10445.76 | H37: 10445.76 | I37: N.M. | K37: 0 | L37: -50880.99 | Q37: 0 | R37: -31000.32 | V37: 0 | W37: -122922.11 | X37: 122922.11 | Y37: N.M. | AA37: -10782.72 | AC37: -10445.79 | AD37: -9434.88 | AE37: -10445.76 | AF37: -10108.8 | AG37: -10445.76 | AH37: 0 | AI37: 0 | AJ37: 0 | AK37: 0 | AL37: 0 | AM37: 0 | AN37: 0 | AP37: 0 | AQ37: 0 | AR37: 0 | AS37: 0 | AT37: 0
A38: %,V4470100 | B38: 4470100 | C38: PJM FTR Revenue-OSS | F38: 10414.83 | G38: 30678.54 | H38: -20263.71 | I38: -0.6605174171 | K38: 311993.29 | L38: 77726.02 | Q38: 40845.44 | R38: 40914.07 | V38: 455215.64 | W38: 265086.08 | X38: 190129.56 | Y38: 0.7172370575 | AA38: 34721.73 | AC38: 24879.79 | AD38: 11932.16 | AE38: 202.03 | AF38: 10033.5 | AG38: 30678.54 | AH38: -26837.99 | AI38: 5023.71 | AJ38: -18991.87 | AK38: 13000.11 | AL38: 13167.68 | AM38: 140115.16 | AN38: 17745.55 | AP38: 164249.99 | AQ38: 106897.86 | AR38: 3523.93 | AS38: 26906.68 | AT38: 10414.83
A39: %,V4470103 | B39: 4470103 | C39: PJM Energy Sales Cost | F39: 1056974.28 | G39: 879855.67 | H39: 177118.61 | I39: 0.2013041639 | K39: 11813250.43 | L39: 4942738.64 | Q39: 3513262.67 | R39: 2890377.72 | V39: 34562397.23 | W39: 16811411.03 | X39: 17750986.2 | Y39: 1.055889132 | AA39: 1350615.96 | AC39: 1294412.92 | AD39: 757948 | AE39: 928576.47 | AF39: 1081945.58 | AG39: 879855.67 | AH39: 4740913.12 | AI39: 2877833.29 | AJ39: 2304763.97 | AK39: 1187201.28 | AL39: 2962191.55 | AM39: 6336301.06 | AN39: 2339942.53 | AP39: 5242579.21 | AQ39: 3057408.55 | AR39: 1388080.63 | AS39: 1068207.76 | AT39: 1056974.28
A40: %,V4470115 | B40: 4470115 | C40: PJM Meter Corrections-OSS | F40: 5501.18 | G40: 12.76 | H40: 5488.42 | I40: N.M. | K40: 3185.09 | L40: -9956.93 | Q40: 5558.58 | R40: -9387.5 | V40: -271060.34 | W40: 37825.29 | X40: -308885.63 | Y40: -8.166113994 | AA40: -533.96 | AC40: -925.65 | AD40: 356.22 | AE40: -9292.75 | AF40: -107.51 | AG40: 12.76 | AH40: 6201.32 | AI40: -248051.39 | AJ40: 3102.43 | AK40: -20912.7 | AL40: -5647.24 | AM40: -3391.35 | AN40: -5546.5 | AP40: -1208.24 | AQ40: -1165.25 | AR40: 31.6 | AS40: 25.8 | AT40: 5501.18
A41: %,V4470116 | B41: 4470116 | C41: PJM Meter Corrections-LSE | F41: -27783.77 | G41: 249.32 | H41: -28033.09 | I41: N.M. | K41: 74084.47 | L41: -166064 | Q41: 78910.19 | R41: -170856.81 | V41: -1358248.48 | W41: 264533.87 | X41: -1622782.35 | Y41: -6.134497446 | AA41: -12638.19 | AC41: -17119.72 | AD41: 21912.53 | AE41: -153176 | AF41: -17930.13 | AG41: 249.32 | AH41: -672953.05 | AI41: -1339418.95 | AJ41: 834884.08 | AK41: -168695.96 | AL41: -65059.98 | AM41: 2239.27 | AN41: -23328.36 | AP41: -28572.16 | AQ41: 23746.44 | AR41: -17595.5 | AS41: 124289.46 | AT41: -27783.77
A42: %,V4470126 | B42: 4470126 | C42: PJM Incremental Imp Cong-OSS | F42: -36105.02 | G42: -3811.11 | H42: -32293.91 | I42: -8.47362317 | K42: -400324.87 | L42: -46315.81 | Q42: 14646.77 | R42: -11064.13 | V42: -1002021.9 | W42: -342789.3 | X42: -659232.6 | Y42: -1.923142292 | AA42: -15805.07 | AC42: -13135.32 | AD42: -22116.36 | AE42: -7024.68 | AF42: -228.34 | AG42: -3811.11 | AH42: -272561.5 | AI42: -52487.18 | AJ42: -18041.02 | AK42: -28080.53 | AL42: -42945.85 | AM42: 12576.61 | AN42: -200157.56 | AP42: -285591.19 | AQ42: -129380.45 | AR42: 25018.68 | AS42: 25733.11 | AT42: -36105.02
A43: %,V4470150 | B43: 4470150 | C43: Transm. Rev.-Dedic. Whlsl/Muni | F43: -3815 | G43: -3175.94 | H43: -639.06 | I43: -0.2012191666 | K43: -19074 | L43: -10140.28 | Q43: -11445 | R43: -4222.15 | V43: -65814.71 | W43: 138820.29 | X43: -204635 | Y43: -1.474100076 | AA43: 50521.33 | AC43: -2477.4 | AD43: -3440.73 | AE43: 110.89 | AF43: -1157.1 | AG43: -3175.94 | AH43: 390.14 | AI43: -8329 | AJ43: -5429.75 | AK43: -8262 | AL43: -8313 | AM43: -8311 | AN43: -8486.1 | AP43: -3814 | AQ43: -3815 | AR43: -3814 | AS43: -3816 | AT43: -3815
A44: %,V4470175 | B44: 4470175 | C44: OSS Sharing Reclass - Retail | F44: -791342.91 | G44: 502089.86 | H44: -1293432.77 | I44: -2.576098171 | K44: 1202308.98 | L44: 2672803.65 | Q44: 71628.87 | R44: 1456313.64 | V44: 3977412.34 | W44: 5468028.88 | X44: -1490616.54 | Y44: -0.2726058279 | AA44: 205508.11 | AC44: -599338.58 | AD44: 1815828.59 | AE44: 395082.68 | AF44: 559141.1 | AG44: 502089.86 | AH44: 928453.77 | AI44: -503833.15 | AJ44: 485975.18 | AK44: 197510.04 | AL44: 205864.92 | AM44: 1618461.4 | AN44: -157328.8 | AP44: 1618883.31 | AQ44: -488203.2 | AR44: 313392.31 | AS44: 549579.47 | AT44: -791342.91
A45: %,V4470176 | B45: 4470176 | C45: OSS Sharing Reclass-Reduction | F45: 791342.91 | G45: -502089.86 | H45: 1293432.77 | I45: 2.576098171 | K45: -1202308.98 | L45: -2672803.65 | Q45: -71628.87 | R45: -1456313.64 | V45: -3977412.34 | W45: -5468028.88 | X45: 1490616.54 | Y45: 0.2726058279 | AA45: -205508.11 | AC45: 599338.58 | AD45: -1815828.59 | AE45: -395082.68 | AF45: -559141.1 | AG45: -502089.86 | AH45: -928453.77 | AI45: 503833.15 | AJ45: -485975.18 | AK45: -197510.04 | AL45: -205864.92 | AM45: -1618461.4 | AN45: 157328.8 | AP45: -1618883.31 | AQ45: 488203.2 | AR45: -313392.31 | AS45: -549579.47 | AT45: 791342.91
A46: %,V4470206 | B46: 4470206 | C46: PJM Trans loss credits-OSS | F46: 4545.76 | G46: 2024.79 | H46: 2520.97 | I46: 1.245052573 | K46: 135231.43 | L46: 48298.83 | Q46: 33331.34 | R46: 15931.01 | V46: 297923.66 | W46: 117696 | X46: 180227.66 | Y46: 1.53129809 | AA46: 16454.41 | AC46: 10543.07 | AD46: 21824.75 | AE46: 10767.14 | AF46: 3139.08 | AG46: 2024.79 | AH46: 39713.92 | AI46: 16496.54 | AJ46: 1483.34 | AK46: 13170.7 | AL46: 21409.43 | AM46: 50808.03 | AN46: 19610.27 | AP46: 47967.06 | AQ46: 53933.03 | AR46: 16786.45 | AS46: 11999.13 | AT46: 4545.76
A47: %,V4470209 | B47: 4470209 | C47: PJM transm loss charges-OSS | F47: -8249.15 | G47: -2680.15 | H47: -5569 | I47: -2.077868776 | K47: -262463.96 | L47: -74932.67 | Q47: -62901.99 | R47: -24829.14 | V47: -621794.64 | W47: -242451.92 | X47: -379342.72 | Y47: -1.564610088 | AA47: -29652.64 | AC47: -18613.39 | AD47: -31490.14 | AE47: -16648.45 | AF47: -5500.54 | AG47: -2680.15 | AH47: -88606.82 | AI47: -59176.36 | AJ47: -3677.22 | AK47: -47243.9 | AL47: -18092.59 | AM47: -107406.04 | AN47: -35127.75 | AP47: -111221.21 | AQ47: -88340.76 | AR47: -37097.85 | AS47: -17554.99 | AT47: -8249.15
A48: %,V4470220 | B48: 4470220 | C48: PJM Regulation - OSS | F48: -664211.33 | G48: 410211.49 | H48: -1074422.82 | I48: -2.619192407 | K48: 589325.7 | L48: 2397691.23 | Q48: 726145.02 | R48: 1537917.99 | V48: 2108633.99 | W48: 5548370.01 | X48: -3439736.02 | Y48: -0.6199543314 | AA48: 372449.64 | AC48: 627126.58 | AD48: 232646.66 | AE48: 541674.88 | AF48: 586031.62 | AG48: 410211.49 | AH48: 114346.43 | AI48: 389802.64 | AJ48: 273252.59 | AK48: 193400.45 | AL48: 63996.65 | AM48: 569814.29 | AN48: -85304.76 | AP48: 71085.45 | AQ48: -207904.77 | AR48: 836034.15 | AS48: 554322.2 | AT48: -664211.33
A49: %,V4470221 | B49: 4470221 | C49: PJM Spinning Reserve - OSS | F49: -1638.78 | G49: 7290.19 | H49: -8928.97 | I49: -1.224792495 | K49: 101295.23 | L49: 49348.15 | Q49: 49425.9 | R49: 18798.23 | V49: 255167.38 | W49: 95031.45 | X49: 160135.93 | Y49: 1.685083517 | AA49: 9679.91 | AC49: 8819.03 | AD49: 21730.89 | AE49: -1858.28 | AF49: 13366.32 | AG49: 7290.19 | AH49: 15059.88 | AI49: 52051.47 | AJ49: 3497.27 | AK49: 9133.65 | AL49: 27213.73 | AM49: 43826.34 | AN49: 3089.81 | AP49: 34288.27 | AQ49: 17581.06 | AR49: 36062.84 | AS49: 15001.84 | AT49: -1638.78
A50: %,R,FACCOUNT,TGL_FERC_ACCT,XDYYNNY01,N4470 | C50: Sales for Resale | F50: 274066.42 | G50: 2190213.92 | H50: -1916147.5 | I50: -0.8748677389 | K50: 13115454.01 | L50: 10304775.83 | Q50: 3693106.82 | R50: 5905016.65 | V50: 37205978.18 | W50: 28268397.94 | X50: 8937580.24 | Y50: 0.3161686155 | AA50: 2106797.8 | AC50: 2759255.97 | AD50: 1640503.21 | AE50: 1632297.88 | AF50: 2082504.85 | AG50: 2190213.92 | AH50: 5001318.41 | AI50: 1069143.45 | AJ50: 3620859.6 | AK50: 1207474.96 | AL50: 3093690.37 | AM50: 7948635.36 | AN50: 2149402.02 | AP50: 6831774.95 | AQ50: 2590572.24 | AR50: 1679419.85 | AS50: 1739620.55 | AT50: 274066.42
C51: Sales of Electricity | F51: =+F50+F27+#REF!+F23 ->  | G51: =+G50+G27+#REF!+G23 ->  | K51: =+K50+K27+#REF!+K23 ->  | L51: =+L50+L27+#REF!+L23 ->  | M51: =+K51-L51 ->  | N51: =IF(L51<0,IF(M51=0,0,IF(OR(L51=0,K51=0),"N.M.",IF(ABS(M51/L51)>=10,"N.M.",M51/(-L51)))),IF(M51=0,0,IF(OR(L51=0,K51=0),"N.M.",IF(ABS(M51/L51)>=10,"N.M.",M51/L51)))) ->  | Q51: =+Q50+Q27+#REF!+Q23 ->  | R51: =+R50+R27+#REF!+R23 ->  | S51: =+Q51-R51 ->  | T51: =IF(R51<0,IF(S51=0,0,IF(OR(R51=0,Q51=0),"N.M.",IF(ABS(S51/R51)>=10,"N.M.",S51/(-R51)))),IF(S51=0,0,IF(OR(R51=0,Q51=0),"N.M.",IF(ABS(S51/R51)>=10,"N.M.",S51/R51)))) ->  | V51: =+V50+V27+#REF!+V23 ->  | W51: =+W50+W27+#REF!+W23 ->  | AA51: =+AA50+AA27+#REF!+AA23 ->  | AC51: =+AC50+AC27+#REF!+AC23 ->  | AD51: =+AD50+AD27+#REF!+AD23 ->  | AE51: =+AE50+AE27+#REF!+AE23 ->  | AF51: =+AF50+AF27+#REF!+AF23 ->  | AG51: =+AG50+AG27+#REF!+AG23 ->  | AH51: =+AH50+AH27+#REF!+AH23 ->  | AI51: =+AI50+AI27+#REF!+AI23 ->  | AJ51: =+AJ50+AJ27+#REF!+AJ23 ->  | AK51: =+AK50+AK27+#REF!+AK23 ->  | AL51: =+AL50+AL27+#REF!+AL23 ->  | AM51: =+AM50+AM27+#REF!+AM23 ->  | AN51: =+AN50+AN27+#REF!+AN23 ->  | AP51: =+AP50+AP27+#REF!+AP23 ->  | AQ51: =+AQ50+AQ27+#REF!+AQ23 ->  | AR51: =+AR50+AR27+#REF!+AR23 ->  | AS51: =+AS50+AS27+#REF!+AS23 ->  | AT51: =+AT50+AT27+#REF!+AT23 -> 
A52: %,V4491002 | B52: 4491002 | C52: Non-Tran Prov Rate Ref Whlsale | F52: 0 | G52: 0 | H52: 0 | I52: 0 | K52: 0 | L52: 0 | M52: 0 | N52: 0 | Q52: 0 | R52: 39976 | S52: -39976 | T52: N.M. | V52: 0 | W52: -736767 | X52: 736767 | Y52: N.M. | AA52: -700994 | AC52: -15607 | AD52: -24369 | AE52: 39976 | AF52: 0 | AG52: 0 | AH52: 0 | AI52: 0 | AJ52: 0 | AK52: 0 | AL52: 0 | AM52: 0 | AN52: 0 | AP52: 0 | AQ52: 0 | AR52: 0 | AS52: 0 | AT52: 0
A53: %,V4491003 | B53: 4491003 | C53: Non-Tran Prov Rate Ref Retail | F53: 0 | G53: 0 | H53: 0 | I53: 0 | K53: 0 | L53: 0 | M53: 0 | N53: 0 | Q53: 0 | R53: 9038 | S53: -9038 | T53: N.M. | V53: 0 | W53: -162154 | X53: 162154 | Y53: N.M. | AA53: -154733 | AC53: -3541 | AD53: -5497 | AE53: 9038 | AF53: 0 | AG53: 0 | AH53: 0 | AI53: 0 | AJ53: 0 | AK53: 0 | AL53: 0 | AM53: 0 | AN53: 0 | AP53: 0 | AQ53: 0 | AR53: 0 | AS53: 0 | AT53: 0
A54: %,V4491004 | B54: 4491004 | C54: Prov Rate Refund - Affiliated | F54: 0 | G54: 0 | H54: 0 | I54: 0 | K54: 0 | L54: 0 | M54: 0 | N54: 0 | Q54: 0 | R54: 267377 | S54: -267377 | T54: N.M. | V54: 0 | W54: -4879026 | X54: 4879026 | Y54: N.M. | AA54: -4662950 | AC54: -104520 | AD54: -162857 | AE54: 267377 | AF54: 0 | AG54: 0 | AH54: 0 | AI54: 0 | AJ54: 0 | AK54: 0 | AL54: 0 | AM54: 0 | AN54: 0 | AP54: 0 | AQ54: 0 | AR54: 0 | AS54: 0 | AT54: 0
A55: %,V4491005 | B55: 4491005 | C55: Tran Prov Trans Ref NonAffil | F55: -114 | G55: -20302 | H55: 20188 | I55: 0.9943847897 | K55: -573 | L55: -100696 | M55: 100123 | N55: 0.9943096051 | Q55: -343 | R55: -100696 | S55: 100353 | T55: 0.9965937078 | V55: -117597 | W55: -100696 | X55: -16901 | Y55: -0.1678418209 | AA55: 0 | AC55: 0 | AD55: 0 | AE55: -60327 | AF55: -20067 | AG55: -20302 | AH55: 625314 | AI55: -101 | AJ55: -101 | AK55: -866 | AL55: -107 | AM55: -107 | AN55: -741056 | AP55: -116 | AQ55: -114 | AR55: -114 | AS55: -115 | AT55: -114
A56: %,V4491006 | B56: 4491006 | C56: Tran Prov Trans Ref Frml Rate | F56: -30 | G56: -4589 | H56: 4559 | I56: 0.993462628 | K56: -145 | L56: -22767 | M56: 22622 | N56: 0.9936311328 | Q56: -88 | R56: -22767 | S56: 22679 | T56: 0.9961347564 | V56: -53872 | W56: -22767 | X56: -31105 | Y56: -1.366231827 | AA56: 0 | AC56: 0 | AD56: 0 | AE56: -13643 | AF56: -4535 | AG56: -4589 | AH56: 124062 | AI56: -25 | AJ56: -25 | AK56: -219 | AL56: -27 | AM56: -27 | AN56: -177466 | AP56: -28 | AQ56: -29 | AR56: -30 | AS56: -28 | AT56: -30
A57: %,V4491007 | B57: 4491007 | C57: Trans Prov Trans Refunds Affil | F57: -853 | G57: -135775 | H57: 134922 | I57: 0.9937175474 | K57: -4264 | L57: -673486 | M57: 669222 | N57: 0.9936687622 | Q57: -2560 | R57: -673486 | S57: 670926 | T57: 0.9961988816 | V57: -1849660 | W57: -673486 | X57: -1176174 | Y57: -1.746397104 | AA57: 0 | AC57: 0 | AD57: 0 | AE57: -403513 | AF57: -134198 | AG57: -135775 | AH57: 3623431 | AI57: -750 | AJ57: -750 | AK57: -6444 | AL57: -797 | AM57: -793 | AN57: -5459293 | AP57: -853 | AQ57: -851 | AR57: -856 | AS57: -851 | AT57: -853
A58: %,R,FACCOUNT,TGL_FERC_ACCT,XDYYNNY01,N449 | C58: Less Rate Refund Provision | F58: -997 | G58: -160666 | H58: 159669 | I58: 0.9937945801 | K58: -4982 | L58: -796949 | M58: 791967 | N58: 0.9937486589 | Q58: -2991 | R58: -480558 | S58: 477567 | T58: 0.9937759854 | V58: -2021129 | W58: -6574896 | X58: 4553767 | Y58: 0.6925990921 | AA58: -5518677 | AC58: -123668 | AD58: -192723 | AE58: -161092 | AF58: -158800 | AG58: -160666 | AH58: 4372807 | AI58: -876 | AJ58: -876 | AK58: -7529 | AL58: -931 | AM58: -927 | AN58: -6377815 | AP58: -997 | AQ58: -994 | AR58: -1000 | AS58: -994 | AT58: -997
A60: %,V4500000 | B60: 4500000 | C60: Forfeited Discounts | F60: 110719.08 | G60: 119621.94 | H60: =+F60-G60 -> -8902.86 | I60: =IF(G60<0,IF(H60=0,0,IF(OR(G60=0,F60=0),"N.M.",IF(ABS(H60/G60)>=10,"N.M.",H60/(-G60)))),IF(H60=0,0,IF(OR(G60=0,F60=0),"N.M.",IF(ABS(H60/G60)>=10,"N.M.",H60/G60)))) -> -0.07442497589 | K60: 597885.67 | L60: 556339.63 | M60: =+K60-L60 -> 41546.04 | N60: =IF(L60<0,IF(M60=0,0,IF(OR(L60=0,K60=0),"N.M.",IF(ABS(M60/L60)>=10,"N.M.",M60/(-L60)))),IF(M60=0,0,IF(OR(L60=0,K60=0),"N.M.",IF(ABS(M60/L60)>=10,"N.M.",M60/L60)))) -> 0.07467747714 | Q60: 333697.11 | R60: 332600.96 | S60: =+Q60-R60 -> 1096.15 | T60: =IF(R60<0,IF(S60=0,0,IF(OR(R60=0,Q60=0),"N.M.",IF(ABS(S60/R60)>=10,"N.M.",S60/(-R60)))),IF(S60=0,0,IF(OR(R60=0,Q60=0),"N.M.",IF(ABS(S60/R60)>=10,"N.M.",S60/R60)))) -> 0.003295691029 | V60: 1496437.69 | W60: 1035101.73 | X60: =+V60-W60 -> 461335.96 | Y60: =IF(W60<0,IF(X60=0,0,IF(OR(W60=0,V60=0),"N.M.",IF(ABS(X60/W60)>=10,"N.M.",X60/(-W60)))),IF(X60=0,0,IF(OR(W60=0,V60=0),"N.M.",IF(ABS(X60/W60)>=10,"N.M.",X60/W60)))) -> 0.4456914201 | AA60: 77402.33 | AC60: 118690.44 | AD60: 105048.23 | AE60: 110399.91 | AF60: 102579.11 | AG60: 119621.94 | AH60: 124423.59 | AI60: 131497.47 | AJ60: 149009.76 | AK60: 99721.87 | AL60: 143924.36 | AM60: 68553.24 | AN60: 181421.73 | AP60: 137774.02 | AQ60: 126414.54 | AR60: 105364.87 | AS60: 117613.16 | AT60: 110719.08
A61: %,V4510001 | B61: 4510001 | C61: Misc Service Rev - Nonaffil | F61: 15009.79 | G61: 11573.02 | H61: 3436.77 | I61: 0.2969639731 | K61: 67452.68 | L61: 38868.61 | M61: 28584.07 | N61: 0.7354024237 | Q61: 52345.04 | R61: 30192.55 | S61: 22152.49 | T61: 0.7337071562 | V61: 103634.36 | W61: 98240.16 | X61: 5394.2 | Y61: 0.05490829819 | AA61: 9229.44 | AC61: 6667.37 | AD61: 2008.69 | AE61: 13707.79 | AF61: 4911.74 | AG61: 11573.02 | AH61: 9475.14 | AI61: 12751.5 | AJ61: 10697.33 | AK61: -1673.42 | AL61: 7727.85 | AM61: -4947.64 | AN61: 2150.92 | AP61: 8015.08 | AQ61: 7092.56 | AR61: 18702.82 | AS61: 18632.43 | AT61: 15009.79
A62: %,V4540001 | B62: 4540001 | C62: Rent From Elect Property - Af | F62: 62056.77 | G62: 148748.575 | H62: -86691.805 | I62: -0.5828076336 | K62: 535030.08 | L62: 781937.555 | M62: -246907.475 | N62: -0.3157636737 | Q62: 232171.059 | R62: 446301.235 | S62: -214130.176 | T62: -0.479788446 | V62: 1587264.355 | W62: 1523157.01 | X62: 64107.345 | Y62: 0.04208846795 | AA62: 129786.675 | AC62: 186737.245 | AD62: 148899.075 | AE62: 148812.865 | AF62: 148739.795 | AG62: 148748.575 | AH62: 121231.235 | AI62: 117095.985 | AJ62: 226451.425 | AK62: 148076.755 | AL62: 149022.995 | AM62: 145198.985 | AN62: 145156.895 | AP62: 132135.779 | AQ62: 170723.242 | AR62: 93186.932 | AS62: 76927.357 | AT62: 62056.77
A63: %,V4540002 | B63: 4540002 | C63: Rent From Elect Property-NAC | F63: 187866.88 | G63: 175 | H63: 187691.88 | I63: N.M. | K63: 925680.27 | L63: 1004341.95 | M63: -78661.68 | N63: -0.07832161148 | Q63: 583347.79 | R63: 792838.56 | S63: -209490.77 | T63: -0.2642287857 | V63: 2194883.67 | W63: 2512040.27 | X63: -317156.6 | Y63: -0.1262545843 | AA63: 186246.39 | AC63: 211328.39 | AD63: 175 | AE63: 493669.1 | AF63: 298994.46 | AG63: 175 | AH63: 261124.27 | AI63: 175 | AJ63: 375839.37 | AK63: 161760.34 | AL63: 176972.26 | AM63: 156931.32 | AN63: 136400.84 | AP63: 159439.61 | AQ63: 182892.87 | AR63: 195736.17 | AS63: 199744.74 | AT63: 187866.88
A64: %,V4540004 | B64: 4540004 | C64: Rent From Elect Prop-ABD-Nonaf | F64: 0 | G64: 0 | H64: 0 | I64: 0 | K64: 0 | L64: 0 | M64: 0 | N64: 0 | Q64: 0 | R64: 0 | S64: 0 | T64: 0 | V64: -8941.71 | W64: 18000 | X64: -26941.71 | Y64: -1.496761667 | AA64: 0 | AC64: 0 | AD64: 0 | AE64: 0 | AF64: 0 | AG64: 0 | AH64: 0 | AI64: -8941.71 | AJ64: 0 | AK64: 0 | AL64: 0 | AM64: 0 | AN64: 0 | AP64: 0 | AQ64: 0 | AR64: 0 | AS64: 0 | AT64: 0
A65: %,V4540005 | B65: 4540005 | C65: Rent from Elec Prop-Pole Attch | F65: 435079.85 | G65: 395084.32 | H65: 39995.53 | I65: 0.1012328963 | K65: 2178263.95 | L65: 1973913.37 | M65: 204350.58 | N65: 0.1035256071 | Q65: 1305038.25 | R65: 1185264.14 | S65: 119774.11 | T65: 0.1010526734 | V65: 5840038.88 | W65: 5147622.4 | X65: 692416.48 | Y65: 0.134511902 | AA65: 418284.44 | AC65: 395186.98 | AD65: 393462.25 | AE65: 395095.5 | AF65: 395084.32 | AG65: 395084.32 | AH65: 819804.66 | AI65: 473887.79 | AJ65: 473759.75 | AK65: 473043.44 | AL65: 473759.75 | AM65: 473759.75 | AN65: 473759.79 | AP65: 435069.32 | AQ65: 438156.38 | AR65: 434878.55 | AS65: 435079.85 | AT65: 435079.85
A66: %,V4560001 | B66: 4560001 | C66: Oth Elect Rev - Affiliated | F66: 24072.88 | G66: 0 | H66: 24072.88 | I66: N.M. | K66: 120364.4 | L66: 0 | M66: 120364.4 | N66: N.M. | Q66: 72218.64 | R66: 0 | S66: 72218.64 | T66: N.M. | V66: 279245.41 | W66: 0 | X66: 279245.41 | Y66: N.M. | AA66: 0 | AC66: 0 | AD66: 0 | AE66: 0 | AF66: 0 | AG66: 0 | AH66: 14443.73 | AI66: 24072.88 | AJ66: 24072.88 | AK66: 24072.88 | AL66: 24072.88 | AM66: 24072.88 | AN66: 24072.88 | AP66: 24072.88 | AQ66: 24072.88 | AR66: 24072.88 | AS66: 24072.88 | AT66: 24072.88
A67: %,V4560007 | B67: 4560007 | C67: Oth Elect Rev - DSM Program | F67: 110625.02 | G67: 114648.56 | H67: -4023.54 | I67: -0.0350945533 | K67: 799290.66 | L67: 430275.84 | M67: 369014.82 | N67: 0.8576238443 | Q67: 407691.45 | R67: 360564.25 | S67: 47127.2 | T67: 0.1307040285 | V67: 1761587.58 | W67: 573592.78 | X67: 1187994.8 | Y67: 2.071146711 | AA67: 26218.95 | AC67: 35556.09 | AD67: 34155.5 | AE67: 119647.75 | AF67: 126267.94 | AG67: 114648.56 | AH67: 120168.05 | AI67: 161639.16 | AJ67: 160297.7 | AK67: 135960.73 | AL67: 115032.11 | AM67: 117476.85 | AN67: 151722.32 | AP67: 180769.57 | AQ67: 210829.64 | AR67: 164366.01 | AS67: 132700.42 | AT67: 110625.02
A68: %,V4560012 | B68: 4560012 | C68: Oth Elect Rev - Nonaffiliated | F68: 0 | G68: 0 | H68: 0 | I68: 0 | K68: 0 | L68: 0 | M68: 0 | N68: 0 | Q68: 0 | R68: 0 | S68: 0 | T68: 0 | V68: 100000 | W68: 0 | X68: 100000 | Y68: N.M. | AA68: 0 | AC68: 0 | AD68: 0 | AE68: 0 | AF68: 0 | AG68: 0 | AH68: 0 | AI68: 0 | AJ68: 0 | AK68: 0 | AL68: 100000 | AM68: 0 | AN68: 0 | AP68: 0 | AQ68: 0 | AR68: 0 | AS68: 0 | AT68: 0
A69: %,V4560015 | B69: 4560015 | C69: Other Electric Revenues - ABD | F69: 43040.75 | G69: 36018.98 | H69: 7021.77 | I69: 0.1949463866 | K69: 137475.91 | L69: 188863.88 | M69: -51387.97 | N69: -0.2720899835 | Q69: 67846.87 | R69: 89149.13 | S69: -21302.26 | T69: -0.2389508456 | V69: 434143.21 | W69: 503261.14 | X69: -69117.93 | Y69: -0.1373400895 | AA69: 58780.02 | AC69: 61700.75 | AD69: 38014 | AE69: 42933.51 | AF69: 10196.64 | AG69: 36018.98 | AH69: 16488.22 | AI69: 24375.43 | AJ69: 88451.69 | AK69: 39920.57 | AL69: 16020.2 | AM69: 23745.53 | AN69: 87665.66 | AP69: 23788.56 | AQ69: 45840.48 | AR69: 15705.18 | AS69: 9100.94 | AT69: 43040.75
A70: %,V4560041 | B70: 4560041 | C70: Miscellaneous Revenue-NonAffil | F70: 0 | G70: 0 | H70: 0 | I70: 0 | K70: 376.75 | L70: 0 | M70: 376.75 | N70: N.M. | Q70: 235.75 | R70: 0 | S70: 235.75 | T70: N.M. | V70: 2601.14 | W70: 0 | X70: 2601.14 | Y70: N.M. | AA70: 0 | AC70: 0 | AD70: 0 | AE70: 0 | AF70: 0 | AG70: 0 | AH70: 1881.94 | AI70: 242.45 | AJ70: 0 | AK70: 0 | AL70: 100 | AM70: 0 | AN70: 0 | AP70: 141 | AQ70: 0 | AR70: 235.75 | AS70: 0 | AT70: 0
A71: %,V4560043 | B71: 4560043 | C71: Oth Elec Rv-Trn-Aff-Trnf Price | F71: 0 | G71: 0 | H71: 0 | I71: 0 | K71: 0 | L71: 0 | M71: 0 | N71: 0 | Q71: 0 | R71: 0 | S71: 0 | T71: 0 | V71: 0 | W71: 0 | X71: 0 | Y71: 0 | AA71: 0 | AC71: 0 | AD71: 0 | AE71: 0 | AF71: 0 | AG71: 0 | AH71: 0 | AI71: 0 | AJ71: 0 | AK71: 0 | AL71: 0 | AM71: 0 | AN71: 0 | AP71: 0 | AQ71: 0 | AR71: 0 | AS71: 0 | AT71: 0
A72: %,V4560180 | B72: 4560180 | C72: Amort of Defer Equity Inc | F72: 39503.52 | G72: 0 | H72: 39503.52 | I72: N.M. | K72: 194378.54 | L72: 0 | M72: 194378.54 | N72: N.M. | Q72: 118510.56 | R72: 0 | S72: 118510.56 | T72: N.M. | V72: 421982.48 | W72: 0 | X72: 421982.48 | Y72: N.M. | AA72: 0 | AC72: 0 | AD72: 0 | AE72: 0 | AF72: 0 | AG72: 0 | AH72: 0 | AI72: 37933.99 | AJ72: 37933.99 | AK72: 37933.99 | AL72: 37933.99 | AM72: 37933.99 | AN72: 37933.99 | AP72: 37933.99 | AQ72: 37933.99 | AR72: 39503.52 | AS72: 39503.52 | AT72: 39503.52
A73: %,V4561005 | B73: 4561005 | C73: PJM Point to Point Trans Svc | F73: 201344.23 | G73: 177108.09 | H73: 24236.14 | I73: 0.1368437772 | K73: 1263244.31 | L73: 1057593.25 | M73: 205651.06 | N73: 0.1944519408 | Q73: 640252.63 | R73: 527855.9 | S73: 112396.73 | T73: 0.212930707 | V73: 2787913.33 | W73: 2197348.27 | X73: 590565.06 | Y73: 0.2687626118 | AA73: 190746.49 | AC73: 338806.06 | AD73: 190931.29 | AE73: 125614.5 | AF73: 225133.31 | AG73: 177108.09 | AH73: -22977.47 | AI73: 488031.28 | AJ73: 234203.96 | AK73: 202344.45 | AL73: 221770.7 | AM73: 179532.01 | AN73: 221764.09 | AP73: 353014.03 | AQ73: 269977.65 | AR73: 208134.28 | AS73: 230774.12 | AT73: 201344.23
A74: %,V4561006 | B74: 4561006 | C74: PJM Trans Owner Admin Rev | F74: 7943.11 | G74: 7045.6 | H74: 897.51 | I74: 0.1273858862 | K74: 51482.98 | L74: 39182.17 | M74: 12300.81 | N74: 0.3139389676 | Q74: 26977.97 | R74: 21211.75 | S74: 5766.22 | T74: 0.2718408429 | V74: 106896.6 | W74: 90622.96 | X74: 16273.64 | Y74: 0.1795752423 | AA74: 7817.02 | AC74: 9761.51 | AD74: 8208.91 | AE74: 7694.76 | AF74: 6471.39 | AG74: 7045.6 | AH74: 8103.53 | AI74: 8408.83 | AJ74: 10925.78 | AK74: 8386.91 | AL74: 5324 | AM74: 5864.08 | AN74: 8400.49 | AP74: 13571.79 | AQ74: 10933.22 | AR74: 10076.41 | AS74: 8958.45 | AT74: 7943.11
A75: %,V4561007 | B75: 4561007 | C75: PJM Network Integ Trans Svc | F75: 986315.63 | G75: 1013080.51 | H75: -26764.88 | I75: -0.02641930206 | K75: 4807854.34 | L75: 4935790.9 | M75: -127936.56 | N75: -0.02592017421 | Q75: 2929440.66 | R75: 3002576.54 | S75: -73135.88 | T75: -0.02435770713 | V75: 11876832.69 | W75: 11396681.94 | X75: 480150.75 | Y75: 0.04213074933 | AA75: 922837.26 | AC75: 1016242.7 | AD75: 916971.66 | AE75: 1008675.17 | AF75: 980820.86 | AG75: 1013080.51 | AH75: 990773.91 | AI75: 1024240.15 | AJ75: 1024058.98 | AK75: 990797.71 | AL75: 1024149.55 | AM75: 990785.76 | AN75: 1024172.29 | AP75: 987378.39 | AQ75: 891035.29 | AR75: 987803.5 | AS75: 955321.53 | AT75: 986315.63
A76: %,V4561019 | B76: 4561019 | C76: Oth Elec Rev Trans Non Affil | F76: 3616.5 | G76: 3448.5 | H76: 168 | I76: 0.04871683341 | K76: 22876.5 | L76: 23850 | M76: -973.5 | N76: -0.04081761006 | Q76: 10986 | R76: 11481 | S76: -495 | T76: -0.04311471126 | V76: 54306 | W76: 54393 | X76: -87 | Y76: -0.00159947052 | AA76: 5500.5 | AC76: 7192.5 | AD76: 5176.5 | AE76: 4389 | AF76: 3643.5 | AG76: 3448.5 | AH76: 4519.5 | AI76: 5172 | AJ76: 4468.5 | AK76: 3537 | AL76: 3639 | AM76: 4299 | AN76: 5794.5 | AP76: 6615 | AQ76: 5275.5 | AR76: 3952.5 | AS76: 3417 | AT76: 3616.5
A77: %,V4561027 | B77: 4561027 | C77: PJM Transm Dist/Meter - NonAff | F77: 6492 | G77: 0 | H77: 6492 | I77: N.M. | K77: 32460 | L77: 0 | M77: 32460 | N77: N.M. | Q77: 19476 | R77: 0 | S77: 19476 | T77: N.M. | V77: 77904 | W77: 0 | X77: 77904 | Y77: N.M. | AA77: 0 | AC77: 0 | AD77: 0 | AE77: 0 | AF77: 0 | AG77: 0 | AH77: 0 | AI77: 6492 | AJ77: 12984 | AK77: 6492 | AL77: 6492 | AM77: 6492 | AN77: 6492 | AP77: 6492 | AQ77: 6492 | AR77: 6492 | AS77: 6492 | AT77: 6492
A78: %,V4561028 | B78: 4561028 | C78: PJM Pow Fac Cre Rev Whsl Cu-NA | F78: 0 | G78: 399.95 | H78: -399.95 | I78: N.M. | K78: 0 | L78: 843.86 | M78: -843.86 | N78: N.M. | Q78: 0 | R78: 790.67 | S78: -790.67 | T78: N.M. | V78: 111.83 | W78: 4488.69 | X78: -4376.86 | Y78: -0.9750862724 | AA78: 117.26 | AC78: 21.93 | AD78: 31.26 | AE78: -18.3 | AF78: 409.02 | AG78: 399.95 | AH78: 111.83 | AI78: 0 | AJ78: 0 | AK78: 0 | AL78: 0 | AM78: 0 | AN78: 0 | AP78: 0 | AQ78: 0 | AR78: 0 | AS78: 0 | AT78: 0
A79: %,V4561029 | B79: 4561029 | C79: PJM NITS Revenue Whsl Cus-NAff | F79: 220346.49 | G79: 256289.95 | H79: -35943.46 | I79: -0.1402452964 | K79: 1073051.53 | L79: 1247348.98 | M79: -174297.45 | N79: -0.1397343108 | Q79: 653869.24 | R79: 759117.95 | S79: -105248.71 | T79: -0.1386460563 | V79: 2765731.69 | W79: 2695171.34 | X79: 70560.35 | Y79: 0.02618028359 | AA79: 209524.06 | AC79: 256640.43 | AD79: 231590.6 | AE79: 254888 | AF79: 247940 | AG79: 256289.95 | AH79: 237243.05 | AI79: 245232.76 | AJ79: 245238.46 | AK79: 237248.76 | AL79: 245235.61 | AM79: 237245.91 | AN79: 245235.61 | AP79: 220346.49 | AQ79: 198835.8 | AR79: 220346.49 | AS79: 213176.26 | AT79: 220346.49
A80: %,V4561030 | B80: 4561030 | C80: PJM TO Serv Rev Whls Cus-NAff | F80: 953.6 | G80: 531.68 | H80: 421.92 | I80: 0.7935600361 | K80: 4993.45 | L80: 2833.29 | M80: 2160.16 | N80: 0.7624210723 | Q80: 2861.55 | R80: 1628.63 | S80: 1232.92 | T80: 0.7570289139 | V80: 9021.55 | W80: 8323.37 | X80: 698.18 | Y80: 0.08388188919 | AA80: 807.31 | AC80: 647.03 | AD80: 557.63 | AE80: 563.34 | AF80: 533.61 | AG80: 531.68 | AH80: 570.03 | AI80: 654.49 | AJ80: 592.44 | AK80: 533.72 | AL80: 523.76 | AM80: 537.39 | AN80: 616.27 | AP80: 1125.24 | AQ80: 1006.66 | AR80: 975.83 | AS80: 932.12 | AT80: 953.6
A81: %,V4561033 | B81: 4561033 | C81: PJM NITS Revenue - Affiliated | F81: 7192860.55 | G81: 7544086.16 | H81: -351225.61 | I81: -0.04655641552 | K81: 35023410.87 | L81: 36711476.52 | M81: -1688065.65 | N81: -0.04598196014 | Q81: 21341933.96 | R81: 22343324.62 | S81: -1001390.66 | T81: -0.04481833733 | V81: 87095244.65 | W81: 79811742.22 | X81: 7283502.43 | Y81: 0.09125853198 | AA81: 6237327.7 | AC81: 7552626.05 | AD81: 6815525.85 | AE81: 7501683.07 | AF81: 7297555.39 | AG81: 7544086.16 | AH81: 7298299.27 | AI81: 7544086.16 | AJ81: 7544261.62 | AK81: 7298474.72 | AL81: 7544173.89 | AM81: 7298386.99 | AN81: 7544151.13 | AP81: 7191797.79 | AQ81: 6489679.12 | AR81: 7191372.68 | AS81: 6957700.73 | AT81: 7192860.55
A82: %,V4561034 | B82: 4561034 | C82: PJM TO Adm. Serv Rev - Aff | F82: 30504.77 | G82: 14568.46 | H82: 15936.31 | I82: 1.093891187 | K82: 160568.69 | L82: 79942.55 | M82: 80626.14 | N82: 1.008551016 | Q82: 90659.96 | R82: 44478.22 | S82: 46181.74 | T82: 1.038300094 | V82: 282553.76 | W82: 229104.27 | X82: 53449.49 | Y82: 0.2332976596 | AA82: 22919.84 | AC82: 19433.2 | AD82: 16031.13 | AE82: 15576.67 | AF82: 14333.09 | AG82: 14568.46 | AH82: 17174.5 | AI82: 19212.59 | AJ82: 18120.42 | AK82: 15845.23 | AL82: 15869.93 | AM82: 16456.01 | AN82: 19306.39 | AP82: 36971.14 | AQ82: 32937.59 | AR82: 31252.67 | AS82: 28902.52 | AT82: 30504.77
A83: %,V4561035 | B83: 4561035 | C83: PJM Affiliated Trans NITS Cost | F83: -5299008.26 | G83: -4909722.83 | H83: -389285.43 | I83: -0.07928867748 | K83: -25805307.33 | L83: -23895349.17 | M83: -1909958.16 | N83: -0.0799301214 | Q83: -15724591.29 | R83: -14542352.5 | S83: -1182238.79 | T83: -0.08129625451 | V83: -59694492.57 | W83: -59422359.11 | X83: -272133.46 | Y83: -0.004579647528 | AA83: -5141351.21 | AC83: -4916437.05 | AD83: -4436559.62 | AE83: -4882865.98 | AF83: -4749763.69 | AG83: -4909722.83 | AH83: -4749763.69 | AI83: -4909722.83 | AJ83: -4909837.02 | AK83: -4749877.89 | AL83: -4909779.93 | AM83: -4750220.69 | AN83: -4909983.19 | AP83: -5299008.26 | AQ83: -4781707.78 | AR83: -5299008.26 | AS83: -5126574.77 | AT83: -5299008.26
A84: %,V4561036 | B84: 4561036 | C84: PJM Affiliated Trans TO Cost | F84: -9521.78 | G84: -6746.27 | H84: -2775.51 | I84: -0.411414011 | K84: -54533.2 | L84: -41535.96 | M84: -12997.24 | N84: -0.312915363 | Q84: -28583.79 | R84: -21776.48 | S84: -6807.31 | T84: -0.3125991896 | V84: -110053.91 | W84: -137135.82 | X84: 27081.91 | Y84: 0.1974823937 | AA84: -15781.37 | AC84: -11216.7 | AD84: -8542.78 | AE84: -7998.52 | AF84: -7031.69 | AG84: -6746.27 | AH84: -7968.23 | AI84: -9072.99 | AJ84: -8058.55 | AK84: -6737.24 | AL84: -6626.47 | AM84: -7602.9 | AN84: -9454.33 | AP84: -13943.2 | AQ84: -12006.21 | AR84: -10053.29 | AS84: -9008.72 | AT84: -9521.78
A85: %,V4561045 | B85: 4561045 | C85: PJM Non-Aff Gen IPP Rev | F85: 1728 | G85: 1994 | H85: -266 | I85: -0.1334002006 | K85: 8639.98 | L85: 9970 | M85: -1330.02 | N85: -0.1334022066 | Q85: 5183.98 | R85: 5982 | S85: -798.02 | T85: -0.133403544 | V85: 21001.98 | W85: 21934 | X85: -932.02 | Y85: -0.04249202152 | AA85: 1994 | AC85: 1994 | AD85: 1994 | AE85: 1994 | AF85: 1994 | AG85: 1994 | AH85: 1994 | AI85: 1728 | AJ85: 1728 | AK85: 1728.01 | AL85: 1728 | AM85: 1727.99 | AN85: 1728 | AP85: 1728 | AQ85: 1728 | AR85: 1727.99 | AS85: 1727.99 | AT85: 1728
A86: %,V4561058 | B86: 4561058 | C86: NonAffil PJM Trans Enhncmt Rev | F86: 137599.26 | G86: 157672.63 | H86: -20073.37 | I86: -0.1273104279 | K86: 688079.14 | L86: 788460.83 | M86: -100381.69 | N86: -0.1273134773 | Q86: 410718.46 | R86: 473052.74 | S86: -62334.28 | T86: -0.1317702546 | V86: 1793197.35 | W86: 1790717.82 | X86: 2479.53 | Y86: 0.00138465702 | AA86: 143179.57 | AC86: 157704.9 | AD86: 157703.19 | AE86: 157693.48 | AF86: 157686.63 | AG86: 157672.63 | AH86: 157873.97 | AI86: 157873.97 | AJ86: 157873.97 | AK86: 157873.97 | AL86: 157873.97 | AM86: 157873.97 | AN86: 157874.39 | AP86: 138680 | AQ86: 138680.68 | AR86: 137624.95 | AS86: 135494.25 | AT86: 137599.26
A87: %,V4561059 | B87: 4561059 | C87: Affil PJM Trans Enhancmnt Rev | F87: 124194.33 | G87: 137371.08 | H87: -13176.75 | I87: -0.09592084447 | K87: 620888.86 | L87: 686757.68 | M87: -65868.82 | N87: -0.09591275339 | Q87: 374599.14 | R87: 412078.39 | S87: -37479.25 | T87: -0.09095174828 | V87: 1582486 | W87: 1598483.32 | X87: -15997.32 | Y87: -0.01000781165 | AA87: 130246.52 | AC87: 137338.77 | AD87: 137340.52 | AE87: 137350.23 | AF87: 137357.08 | AG87: 137371.08 | AH87: 137371.08 | AI87: 137371.08 | AJ87: 137371.08 | AK87: 137371.08 | AL87: 137371.08 | AM87: 137371.08 | AN87: 137370.66 | AP87: 123145.24 | AQ87: 123144.48 | AR87: 124168.64 | AS87: 126236.17 | AT87: 124194.33
A88: %,V4561060 | B88: 4561060 | C88: Affil PJM Trans Enhancmnt Cost | F88: -91494.44 | G88: -89401.67 | H88: -2092.77 | I88: -0.02340862313 | K88: -457472.2 | L88: -447008.35 | M88: -10463.85 | N88: -0.02340862313 | Q88: -276002.24 | R88: -268205.01 | S88: -7797.23 | T88: -0.02907190287 | V88: -1083294.99 | W88: -1198532.41 | X88: 115237.42 | Y88: 0.09614877248 | AA88: -107360.58 | AC88: -89401.67 | AD88: -89401.67 | AE88: -89401.67 | AF88: -89401.67 | AG88: -89401.67 | AH88: -89401.67 | AI88: -89401.67 | AJ88: -89401.67 | AK88: -89401.67 | AL88: -89401.67 | AM88: -89409.07 | AN88: -89405.37 | AP88: -90734.98 | AQ88: -90734.98 | AR88: -91494.44 | AS88: -93013.36 | AT88: -91494.44
A89: %,V4561061 | B89: 4561061 | C89: NAff PJM RTEP Rev for Whsl-FR | F89: 3804.58 | G89: 4666.81 | H89: -862.23 | I89: -0.1847578967 | K89: 19022.9 | L89: 23334.05 | M89: -4311.15 | N89: -0.1847578967 | Q89: 11476.9 | R89: 14000.43 | S89: -2523.53 | T89: -0.1802466067 | V89: 50281.19 | W89: 53960.71 | X89: -3679.52 | Y89: -0.06818887298 | AA89: 4375.24 | AC89: 4666.81 | AD89: 4666.81 | AE89: 4666.81 | AF89: 4666.81 | AG89: 4666.81 | AH89: 4465.47 | AI89: 4465.47 | AJ89: 4465.47 | AK89: 4465.47 | AL89: 4465.47 | AM89: 4465.47 | AN89: 4465.47 | AP89: 3773 | AQ89: 3773 | AR89: 3804.58 | AS89: 3867.74 | AT89: 3804.58
A90: %,V4561062 | B90: 4561062 | C90: PROVISION RTO Tran Cost Affi | F90: -107157 | G90: 133368 | H90: -240525 | I90: -1.803468598 | K90: -858630 | L90: 665580 | M90: -1524210 | N90: -2.290047778 | Q90: -673071 | R90: 397613 | S90: -1070684 | T90: -2.69277916 | V90: -1585297 | W90: 1960917 | X90: -3546214 | Y90: -1.808446762 | AA90: 1065652 | AC90: 138615 | AD90: 129352 | AE90: 131320 | AF90: 132925 | AG90: 133368 | AH90: -1469769 | AI90: 32474 | AJ90: 95918 | AK90: 84626 | AL90: 94426 | AM90: 94423 | AN90: 341235 | AP90: -78400 | AQ90: -107159 | AR90: -458757 | AS90: -107157 | AT90: -107157
A91: %,V4561063 | B91: 4561063 | C91: PROVISION RTO Tran Rev Aff | F91: 492376 | G91: -27389 | H91: 519765 | I91: N.M. | K91: 3125576 | L91: -136945 | M91: 3262521 | N91: N.M. | Q91: 2140825 | R91: -82167 | S91: 2222992 | T91: N.M. | V91: 3736975 | W91: 2129704 | X91: 1607271 | Y91: 0.7546922014 | AA91: 226375 | AC91: -27389 | AD91: -27389 | AE91: -27389 | AF91: -27389 | AG91: -27389 | AH91: 689219 | AI91: -21015 | AJ91: -21015 | AK91: 15188 | AL91: -16993 | AM91: -16992 | AN91: -16993 | AP91: 492376 | AQ91: 492375 | AR91: 1156073 | AS91: 492376 | AT91: 492376
A92: %,V4561064 | B92: 4561064 | C92: PROVISION RTO Tran Rv Frml Rts | F92: 16729 | G92: -920 | H92: 17649 | I92: N.M. | K92: 83645 | L92: -4600 | M92: 88245 | N92: N.M. | Q92: 50186 | R92: -2760 | S92: 52946 | T92: N.M. | V92: 104751 | W92: 71610 | X92: 33141 | Y92: 0.4627984918 | AA92: 7642 | AC92: -920 | AD92: -920 | AE92: -920 | AF92: -920 | AG92: -920 | AH92: 23428 | AI92: -661 | AJ92: -660 | AK92: 569 | AL92: -522 | AM92: -524 | AN92: -524 | AP92: 16729 | AQ92: 16730 | AR92: 16729 | AS92: 16728 | AT92: 16729
A93: %,V4561065 | B93: 4561065 | C93: PROVISION RTO Tran Rev NonAff | F93: 66170 | G93: -4115 | H93: 70285 | I93: N.M. | K93: 442302 | L93: -20575 | M93: 462877 | N93: N.M. | Q93: 309962 | R93: -12345 | S93: 322307 | T93: N.M. | V93: 510690 | W93: 313718 | X93: 196972 | Y93: 0.6278632402 | AA93: 31918 | AC93: -4115 | AD93: -4115 | AE93: -4115 | AF93: -4115 | AG93: -4115 | AH93: 92190 | AI93: -5048 | AJ93: -5049 | AK93: -182 | AL93: -4508 | AM93: -4508 | AN93: -4507 | AP93: 66170 | AQ93: 66170 | AR93: 177621 | AS93: 66171 | AT93: 66170
A94: %,V4561075 | B94: 4561075 | C94: PJM-Nonaff Power Factor Credit | F94: 411.96 | G94: 0 | H94: 411.96 | I94: N.M. | K94: 1549.73 | L94: 0 | M94: 1549.73 | N94: N.M. | Q94: 1116.19 | R94: 0 | S94: 1116.19 | T94: N.M. | V94: 5444.72 | W94: 0 | X94: 5444.72 | Y94: N.M. | AA94: 0 | AC94: 0 | AD94: 0 | AE94: 0 | AF94: 0 | AG94: 0 | AH94: 421.26 | AI94: 1393.48 | AJ94: 620.05 | AK94: 802.89 | AL94: 349.98 | AM94: 236.4 | AN94: 70.93 | AP94: 196.13 | AQ94: 237.41 | AR94: 287.89 | AS94: 416.34 | AT94: 411.96
A95: %,R,FACCOUNT,TGL_FERC_ACCT,XDYYNNY01,NOTHER_OPER_REVENUES | C95: Other Operating Revenues | F95: 5014183.07 | G95: 5239207.045 | H95: -225023.975 | I95: -0.04295000619 | K95: 25809902.46 | L95: 26701491.43 | M95: -891588.975 | N95: -0.03339098032 | Q95: 15491379.84 | R95: 16322496.68 | S95: -831116.836 | T95: -0.05091848708 | V95: 64601081.93 | W95: 55081909.06 | X95: 9519172.875 | Y95: 0.1728184995 | AA95: 4850434.855 | AC95: 5608078.735 | AD95: 4770916.025 | AE95: 5663666.985 | AF95: 5419622.645 | AG95: 5239207.045 | AH95: 4812919.175 | AI95: 5616644.715 | AJ95: 6005323.385 | AK95: 5438903.275 | AL95: 5680128.265 | AM95: 5309165.305 | AN95: 5928095.355 | AP95: 5317162.609 | AQ95: 5001360.012 | AR95: 5510883.102 | AS95: 4966313.667 | AT95: 5014183.07
B96: Line 2 | C96: Operating Revenues (400) | F96: =+F14+F23+F27+F50+F58+F95 -> 68380163.42 | G96: =+G14+G23+G27+G50+G58+G95 -> 49668783.77 | H96: 18711379.66 | I96: 0.3767231294 | K96: =+K14+K23+K27+K50+K58+K95 -> 336878248.4 | L96: =+L14+L23+L27+L50+L58+L95 -> 314318313.8 | M96: 22559934.63 | N96: 0.07177416537 | Q96: =+Q14+Q23+Q27+Q50+Q58+Q95 -> 188918016.1 | R96: =+R14+R23+R27+R50+R58+R95 -> 169147001.6 | S96: 19771014.55 | T96: 0.1168865801 | V96: =+V14+V23+V27+V50+V58+V95 -> 787311409.6 | W96: =+W14+W23+W27+W50+W58+W95 -> 727441755 | X96: 59869654.68 | Y96: 0.08230164721 | AA96: =+AA14+AA23+AA27+AA50+AA58+AA95 -> 67070519.64 | AC96: =+AC14+AC23+AC27+AC50+AC58+AC95 -> 82864908.61 | AD96: 62306403.6 | AE96: 66662575.7 | AF96: 52815642.09 | AG96: 49668783.77 | AH96: 80265747.05 | AI96: 67332566.89 | AJ96: 65046326.7 | AK96: 50446824.92 | AL96: 56923373.62 | AM96: 64582682.18 | AN96: 65835639.85 | AP96: =+AP14+AP23+AP27+AP50+AP58+AP95 -> 80596869.25 | AQ96: 67363363.05 | AR96: 64496982.15 | AS96: 56040870.55 | AT96: 68380163.42
B97: Line 3 | C97: Operating Expenses
A99: %,V5010000 | B99: 5010000 | C99: Fuel | F99: 575988.92 | G99: 536336.11 | H99: =+F99-G99 -> 39652.81 | I99: =IF(G99<0,IF(H99=0,0,IF(OR(G99=0,F99=0),"N.M.",IF(ABS(H99/G99)>=10,"N.M.",H99/(-G99)))),IF(H99=0,0,IF(OR(G99=0,F99=0),"N.M.",IF(ABS(H99/G99)>=10,"N.M.",H99/G99)))) -> 0.07393276205 | K99: 2607777.01 | L99: 3660843.31 | M99: =+K99-L99 -> -1053066.3 | N99: =IF(L99<0,IF(M99=0,0,IF(OR(L99=0,K99=0),"N.M.",IF(ABS(M99/L99)>=10,"N.M.",M99/(-L99)))),IF(M99=0,0,IF(OR(L99=0,K99=0),"N.M.",IF(ABS(M99/L99)>=10,"N.M.",M99/L99)))) -> -0.2876567531 | Q99: 1575859.19 | R99: 2350285.85 | S99: =+Q99-R99 -> -774426.66 | T99: =IF(R99<0,IF(S99=0,0,IF(OR(R99=0,Q99=0),"N.M.",IF(ABS(S99/R99)>=10,"N.M.",S99/(-R99)))),IF(S99=0,0,IF(OR(R99=0,Q99=0),"N.M.",IF(ABS(S99/R99)>=10,"N.M.",S99/R99)))) -> -0.3295031794 | V99: 6697399.21 | W99: 7396104.18 | X99: =+V99-W99 -> -698704.97 | Y99: =IF(W99<0,IF(X99=0,0,IF(OR(W99=0,V99=0),"N.M.",IF(ABS(X99/W99)>=10,"N.M.",X99/(-W99)))),IF(X99=0,0,IF(OR(W99=0,V99=0),"N.M.",IF(ABS(X99/W99)>=10,"N.M.",X99/W99)))) -> -0.09446932507 | AA99: 468044.21 | AC99: 618298.26 | AD99: 692259.2 | AE99: 1391713.84 | AF99: 422235.9 | AG99: 536336.11 | AH99: 438840.56 | AI99: 671120.34 | AJ99: 615530.47 | AK99: 667204.1 | AL99: 534269.35 | AM99: 469001.09 | AN99: 693656.29 | AP99: 355395.69 | AQ99: 676522.13 | AR99: 410094.74 | AS99: 589775.53 | AT99: 575988.92
A100: %,V5010001 | B100: 5010001 | C100: Fuel Consumed | F100: 2925839.84 | G100: 1362557.52 | H100: 1563282.32 | I100: 1.147314735 | K100: 26040656.82 | L100: 23523786.85 | M100: 2516869.97 | N100: 0.1069925512 | Q100: 9366272.94 | R100: 7768972.06 | S100: 1597300.88 | T100: 0.2056000289 | V100: 76826609.91 | W100: 78036523.32 | X100: -1209913.41 | Y100: -0.01550445046 | AA100: 10015105.62 | AC100: 12290393.29 | AD100: 3464421.5 | AE100: 1240119.13 | AF100: 5166295.41 | AG100: 1362557.52 | AH100: 5465171.12 | AI100: 9639698.94 | AJ100: 7211243.8 | AK100: 2473641.01 | AL100: 9776000.93 | AM100: 8735699.02 | AN100: 7484498.27 | AP100: 9351907.34 | AQ100: 7322476.54 | AR100: 2917030.66 | AS100: 3523402.44 | AT100: 2925839.84
A101: %,V5010003 | B101: 5010003 | C101: Fuel - Procure Unload & Handle | F101: 181712.27 | G101: 80402.99 | H101: 101309.28 | I101: 1.260018813 | K101: 1403986.5 | L101: 1248281.58 | M101: 155704.92 | N101: 0.1247354143 | Q101: 550038.69 | R101: 454628.36 | S101: 95410.33 | T101: 0.2098644484 | V101: 4227337.05 | W101: 3772133.28 | X101: 455203.77 | Y101: 0.1206754206 | AA101: 482065.47 | AC101: 617385.32 | AD101: 176267.9 | AE101: 64924.42 | AF101: 309300.95 | AG101: 80402.99 | AH101: 500918.55 | AI101: 519917.36 | AJ101: 387404.5 | AK101: 132593.12 | AL101: 464300.85 | AM101: 429668.03 | AN101: 388548.14 | AP101: 475199.31 | AQ101: 378748.5 | AR101: 163794.85 | AS101: 204531.57 | AT101: 181712.27
A102: %,V5010005 | B102: 5010005 | C102: Fuel - Deferred | F102: 8714577 | G102: 4417871.505 | H102: 4296705.495 | I102: 0.9725736681 | K102: 424366.602 | L102: 4895937.22 | M102: -4471570.618 | N102: -0.9133227035 | Q102: 18735354.49 | R102: 7267788.389 | S102: 11467566.1 | T102: 1.577861859 | V102: 665576.215 | W102: -1066415.02 | X102: 1731991.235 | Y102: 1.624124944 | AA102: -1673812.24 | AC102: -5123318.9 | AD102: 2751467.731 | AE102: 1805156.56 | AF102: 1044760.324 | AG102: 4417871.505 | AH102: -3340582.92 | AI102: -1315935.06 | AJ102: 6623129 | AK102: 802175.391 | AL102: -4067343.391 | AM102: 2201282 | AN102: -661515.407 | AP102: -18012455.37 | AQ102: -298532.515 | AR102: 8418308.386 | AS102: 1602469.104 | AT102: 8714577
A103: %,V5010012 | B103: 5010012 | C103: Ash Sales Proceeds | F103: 596.77 | G103: 1777.24 | H103: -1180.47 | I103: -0.6642153001 | K103: 2818.07 | L103: 3755.22 | M103: -937.15 | N103: -0.2495592801 | Q103: 1468.84 | R103: 679.75 | S103: 789.09 | T103: 1.160853255 | V103: 6337.79 | W103: 16131.1 | X103: -9793.31 | Y103: -0.6071073888 | AA103: 1236.31 | AC103: 992.95 | AD103: 2082.52 | AE103: 259.49 | AF103: -1356.98 | AG103: 1777.24 | AH103: -1796.76 | AI103: 1061.09 | AJ103: 489.78 | AK103: 719.77 | AL103: 880.4 | AM103: 916.08 | AN103: 1249.36 | AP103: 951.45 | AQ103: 397.78 | AR103: 447.26 | AS103: 424.81 | AT103: 596.77
A104: %,V5010013 | B104: 5010013 | C104: Fuel Survey Activity | F104: 0 | G104: 0 | H104: 0 | I104: 0 | K104: 0 | L104: 0 | M104: 0 | N104: 0 | Q104: 0 | R104: 0 | S104: 0 | T104: 0 | V104: 3906533.13 | W104: 0 | X104: 3906533.13 | Y104: N.M. | AA104: 0 | AC104: 0 | AD104: 0 | AE104: 0 | AF104: 0 | AG104: 0 | AH104: 4136038.43 | AI104: 0 | AJ104: 0 | AK104: 0 | AL104: 0 | AM104: -229505.3 | AN104: 0 | AP104: 0 | AQ104: 0 | AR104: 0 | AS104: 0 | AT104: 0
A105: %,V5010019 | B105: 5010019 | C105: Fuel Oil Consumed | F105: 1049252.52 | G105: 160652.59 | H105: 888599.93 | I105: 5.531189569 | K105: 2178850.16 | L105: 1363298.14 | M105: 815552.02 | N105: 0.5982198582 | Q105: 1638256.05 | R105: 924231.05 | S105: 714025 | T105: 0.7725611469 | V105: 4953880.1 | W105: 3622215.17 | X105: 1331664.93 | Y105: 0.3676382731 | AA105: 159819.37 | AC105: 170057.37 | AD105: 269009.72 | AE105: 666930.93 | AF105: 96647.53 | AG105: 160652.59 | AH105: 1026257.44 | AI105: 310596.72 | AJ105: 229206.49 | AK105: 191928.15 | AL105: 299158.57 | AM105: 295059.16 | AN105: 422823.41 | AP105: 340798.73 | AQ105: 199795.38 | AR105: 299075.07 | AS105: 289928.46 | AT105: 1049252.52
A106: %,V5010020 | B106: 5010020 | C106: Nat Gas Consumed Steam | F106: 2065142.61 | G106: 2453953.33 | H106: -388810.72 | I106: -0.1584425895 | K106: 23911990.28 | L106: 17323341.94 | M106: 6588648.34 | N106: 0.3803335617 | Q106: 7809497.78 | R106: 7502596.7 | S106: 306901.08 | T106: 0.04090598126 | V106: 45464844.27 | W106: 30564445.2 | X106: 14900399.07 | Y106: 0.4875075917 | AA106: 3177051.68 | AC106: 4815547.63 | AD106: 5005197.61 | AE106: 3092259.22 | AF106: 1956384.15 | AG106: 2453953.33 | AH106: 3625585.34 | AI106: 4467847.34 | AJ106: 3920242.98 | AK106: 1578750.06 | AL106: 10346.29 | AM106: 3365399.16 | AN106: 4584682.82 | AP106: 7261725.14 | AQ106: 8840767.36 | AR106: 4327789.61 | AS106: 1416565.56 | AT106: 2065142.61
A107: %,V5010021 | B107: 5010021 | C107: Transp Gas Consumed Steam | F107: 14646.32 | G107: 40535.42 | H107: -25889.1 | I107: -0.6386784693 | K107: 242956.13 | L107: 194033.35 | M107: 48922.78 | N107: 0.2521359344 | Q107: 124316.77 | R107: 126960.03 | S107: -2643.26 | T107: -0.02081962331 | V107: 549695.07 | W107: 322229.29 | X107: 227465.78 | Y107: 0.7059127989 | AA107: -40356.87 | AC107: 27014.1 | AD107: 40059.22 | AE107: 41972.07 | AF107: 44452.54 | AG107: 40535.42 | AH107: 86157.96 | AI107: 34941.63 | AJ107: 55139.12 | AK107: 69469.33 | AL107: 105032.69 | AM107: -75991.46 | AN107: 31989.67 | AP107: 70462.15 | AQ107: 48177.21 | AR107: 58494.25 | AS107: 51176.2 | AT107: 14646.32
A108: %,V5010027 | B108: 5010027 | C108: Gypsum handling/disposal costs | F108: 110742.75 | G108: 52426.61 | H108: 58316.14 | I108: 1.112338562 | K108: 673203.84 | L108: 526352.04 | M108: 146851.8 | N108: 0.2789992037 | Q108: 445612.25 | R108: 311362.32 | S108: 134249.93 | T108: 0.4311694813 | V108: 1539199.45 | W108: 1446384.37 | X108: 92815.08 | Y108: 0.06417041135 | AA108: 127705.35 | AC108: 65968.69 | AD108: 149021.03 | AE108: 152673.25 | AF108: 106262.46 | AG108: 52426.61 | AH108: 119621.95 | AI108: 123628.91 | AJ108: 175772.97 | AK108: 91408.13 | AL108: 136617.8 | AM108: 102005.9 | AN108: 116939.95 | AP108: 79813.95 | AQ108: 147777.64 | AR108: 200094.77 | AS108: 134774.73 | AT108: 110742.75
A109: %,V5010028 | B109: 5010028 | C109: Gypsum Sales Proceeds | F109: -44766.07 | G109: -96967.84 | H109: 52201.77 | I109: 0.5383410624 | K109: -472063.58 | L109: -551663.96 | M109: 79600.38 | N109: 0.144291427 | Q109: -312582.9 | R109: -188873.59 | S109: -123709.31 | T109: -0.6549846911 | V109: -1142841.79 | W109: -1239079.84 | X109: 96238.05 | Y109: 0.07766896603 | AA109: -90075.39 | AC109: -242087.17 | AD109: -120703.2 | AE109: -36655.22 | AF109: -55250.53 | AG109: -96967.84 | AH109: -57542.76 | AI109: -90539.53 | AJ109: -126577.74 | AK109: -116907.68 | AL109: -100916.97 | AM109: 0 | AN109: -178293.53 | AP109: -85142.33 | AQ109: -74338.35 | AR109: -198568.98 | AS109: -69247.85 | AT109: -44766.07
A110: %,V5010033 | B110: 5010033 | C110: Coal Procurement Sales Net-NA | F110: 0 | G110: 0 | H110: 0 | I110: 0 | K110: 281689.3 | L110: 0 | M110: 281689.3 | N110: N.M. | Q110: 281689.3 | R110: 0 | S110: 281689.3 | T110: N.M. | V110: 281689.3 | W110: 0 | X110: 281689.3 | Y110: N.M. | AA110: 0 | AC110: 0 | AD110: 0 | AE110: 0 | AF110: 0 | AG110: 0 | AH110: 0 | AI110: 0 | AJ110: 0 | AK110: 0 | AL110: 0 | AM110: 0 | AN110: 0 | AP110: 0 | AQ110: 0 | AR110: 131387.16 | AS110: 150302.14 | AT110: 0
A111: %,V5010034 | B111: 5010034 | C111: Gas Transp Res Fees-Steam | F111: 503359.2 | G111: 455968.8 | H111: 47390.4 | I111: 0.103933427 | K111: 2461826.88 | L111: 2609308.08 | M111: -147481.2 | N111: -0.05652119086 | Q111: 1496666.88 | R111: 1545919.2 | S111: -49252.32 | T111: -0.03185956937 | V111: 5955724.86 | W111: 6236172.2 | X111: -280447.34 | Y111: -0.04497107056 | AA111: 461278.8 | AC111: 554413.68 | AD111: 508975.2 | AE111: 552175.2 | AF111: 537775.2 | AG111: 455968.8 | AH111: 487940.4 | AI111: 503208 | AJ111: 503204.39 | AK111: 488804.4 | AL111: 503208 | AM111: 488804.4 | AN111: 518728.39 | AP111: 504504 | AQ111: 460656 | AR111: 503856 | AS111: 489451.68 | AT111: 503359.2
A112: %,V5010040 | B112: 5010040 | C112: Gas Procuremnt Sales Net | F112: -27144.89 | G112: 4182.54 | H112: -31327.43 | I112: -7.490049109 | K112: 123130.22 | L112: 237983.72 | M112: -114853.5 | N112: -0.4826107433 | Q112: 123130.38 | R112: -57286.739 | S112: 180417.119 | T112: 3.149369682 | V112: 509438.4 | W112: 1872076.34 | X112: -1362637.94 | Y112: -0.7278751998 | AA112: 0.21 | AC112: 122978.916 | AD112: 172291.543 | AE112: 158017.731 | AF112: -219487.01 | AG112: 4182.54 | AH112: -0.045 | AI112: 0.075 | AJ112: -0.11 | AK112: 109220.12 | AL112: 312992.9 | AM112: -35903.75 | AN112: -1.01 | AP112: 0.02 | AQ112: -0.18 | AR112: 0.29 | AS112: 150274.98 | AT112: -27144.89
A113: %,FACCOUNT,TGL_FERC_ACCT,XDYYNNY01,N5010 | C113: Fuel Expense | F113: 16069947.24 | G113: 9469696.815 | H113: 6600250.425 | I113: 0.6969864563 | K113: 59881188.23 | L113: 55035257.49 | M113: 4845930.742 | N113: 0.08805138675 | Q113: 41835580.66 | R113: 28007263.38 | S113: 13828317.28 | T113: 0.4937403949 | V113: 150441423 | W113: 130978919.6 | X113: 19462503.37 | Y113: 0.1485926395 | AA113: 13088062.52 | AC113: 13917644.14 | AD113: 13110349.97 | AE113: 9129546.621 | AF113: 9408019.944 | AG113: 9469696.815 | AH113: 12486609.27 | AI113: 14865545.81 | AJ113: 19594785.65 | AK113: 6489005.901 | AL113: 7974547.419 | AM113: 15746434.33 | AN113: 13403306.35 | AP113: 343160.077 | AQ113: 17702447.5 | AR113: 17231804.07 | AS113: 8533829.354 | AT113: 16069947.24
A115: %,V5000000 | B115: 5000000 | C115: Oper Supervision & Engineering | F115: 388952.38 | G115: 304828.88 | H115: =+F115-G115 -> 84123.5 | I115: =IF(G115<0,IF(H115=0,0,IF(OR(G115=0,F115=0),"N.M.",IF(ABS(H115/G115)>=10,"N.M.",H115/(-G115)))),IF(H115=0,0,IF(OR(G115=0,F115=0),"N.M.",IF(ABS(H115/G115)>=10,"N.M.",H115/G115)))) -> 0.2759695866 | K115: 1916639.39 | L115: 1611238.89 | M115: =+K115-L115 -> 305400.5 | N115: =IF(L115<0,IF(M115=0,0,IF(OR(L115=0,K115=0),"N.M.",IF(ABS(M115/L115)>=10,"N.M.",M115/(-L115)))),IF(M115=0,0,IF(OR(L115=0,K115=0),"N.M.",IF(ABS(M115/L115)>=10,"N.M.",M115/L115)))) -> 0.1895438981 | Q115: 1143954.19 | R115: 930623.43 | S115: =+Q115-R115 -> 213330.76 | T115: =IF(R115<0,IF(S115=0,0,IF(OR(R115=0,Q115=0),"N.M.",IF(ABS(S115/R115)>=10,"N.M.",S115/(-R115)))),IF(S115=0,0,IF(OR(R115=0,Q115=0),"N.M.",IF(ABS(S115/R115)>=10,"N.M.",S115/R115)))) -> 0.2292342457 | V115: 4808473.09 | W115: 4075249.41 | X115: =+V115-W115 -> 733223.68 | Y115: =IF(W115<0,IF(X115=0,0,IF(OR(W115=0,V115=0),"N.M.",IF(ABS(X115/W115)>=10,"N.M.",X115/(-W115)))),IF(X115=0,0,IF(OR(W115=0,V115=0),"N.M.",IF(ABS(X115/W115)>=10,"N.M.",X115/W115)))) -> 0.1799211794 | AA115: 327253.38 | AC115: 336540.33 | AD115: 344075.13 | AE115: 306873.26 | AF115: 318921.29 | AG115: 304828.88 | AH115: 340471.02 | AI115: 441077.5 | AJ115: 405316.32 | AK115: 374330.16 | AL115: 366881.03 | AM115: 428464.07 | AN115: 535293.6 | AP115: 375740.17 | AQ115: 396945.03 | AR115: 418873.13 | AS115: 336128.68 | AT115: 388952.38
A116: %,V5000002 | B116: 5000002 | C116: Dresden Oper Supervision & Eng | F116: 0 | G116: 0 | H116: 0 | I116: 0 | K116: 0 | L116: 0 | M116: 0 | N116: 0 | Q116: 0 | R116: 0 | S116: 0 | T116: 0 | V116: -33.12 | W116: 0 | X116: -33.12 | Y116: N.M. | AA116: 0 | AC116: 0 | AD116: 0 | AE116: 0 | AF116: 0 | AG116: 0 | AH116: 0 | AI116: 0 | AJ116: 0 | AK116: 0 | AL116: 0 | AM116: 41.08 | AN116: -74.2 | AP116: 0 | AQ116: 0 | AR116: 0 | AS116: 0 | AT116: 0
A117: %,V5000003 | B117: 5000003 | C117: Cnstr Srchrge Op Sup & Eng Exp | F117: 0 | G117: 0 | H117: 0 | I117: 0 | K117: 0 | L117: 0 | M117: 0 | N117: 0 | Q117: 0 | R117: 0 | S117: 0 | T117: 0 | V117: 64.34 | W117: 0 | X117: 64.34 | Y117: N.M. | AA117: 0 | AC117: 0 | AD117: 0 | AE117: 0 | AF117: 0 | AG117: 0 | AH117: 0 | AI117: 0 | AJ117: 64.34 | AK117: 0 | AL117: 0 | AM117: 0 | AN117: 0 | AP117: 0 | AQ117: 0 | AR117: 0 | AS117: 0 | AT117: 0
A118: %,V5020000 | B118: 5020000 | C118: Steam Expenses | F118: 160829.83 | G118: 147448.07 | H118: 13381.76 | I118: 0.09075574879 | K118: 837911.26 | L118: 826504 | M118: 11407.26 | N118: 0.01380182068 | Q118: 496704.97 | R118: 463640.7 | S118: 33064.27 | T118: 0.07131442516 | V118: 2027844.59 | W118: 1661652.77 | X118: 366191.82 | Y118: 0.2203780637 | AA118: 102563.19 | AC118: 263752.04 | AD118: 99111.26 | AE118: 132712.56 | AF118: 183480.07 | AG118: 147448.07 | AH118: 161081.79 | AI118: 202681.56 | AJ118: 163552.9 | AK118: 154617.86 | AL118: 168965.39 | AM118: 104244.74 | AN118: 234789.09 | AP118: 150342.07 | AQ118: 190864.22 | AR118: 192558.46 | AS118: 143316.68 | AT118: 160829.83
A119: %,V5020002 | B119: 5020002 | C119: Urea Expense | F119: 631.06 | G119: 1813.2 | H119: -1182.14 | I119: -0.6519633797 | K119: 350585.89 | L119: 308078.47 | M119: 42507.42 | N119: 0.1379759514 | Q119: 105467.88 | R119: 88396.22 | S119: 17071.66 | T119: 0.1931265839 | V119: 956997 | W119: 1080273.36 | X119: -123276.36 | Y119: -0.1141158938 | AA119: 158103.85 | AC119: 178812.53 | AD119: 40869.72 | AE119: 13553.71 | AF119: 73029.31 | AG119: 1813.2 | AH119: 82902.21 | AI119: 89646.41 | AJ119: 88624.99 | AK119: 22135.35 | AL119: 137585.53 | AM119: 82892.35 | AN119: 102624.27 | AP119: 140342.57 | AQ119: 104775.44 | AR119: 51668.6 | AS119: 53168.22 | AT119: 631.06
A120: %,V5020004 | B120: 5020004 | C120: Lime-Related Expenses | F120: 110417.97 | G120: 56715.14 | H120: 53702.83 | I120: 0.9468870217 | K120: 906134.63 | L120: 688300.93 | M120: 217833.7 | N120: 0.3164803221 | Q120: 341973.12 | R120: 286584.03 | S120: 55389.09 | T120: 0.1932734703 | V120: 2627867 | W120: 2386199.04 | X120: 241667.96 | Y120: 0.1012773687 | AA120: 320071.87 | AC120: 293674.01 | AD120: 108042.89 | AE120: 28337.16 | AF120: 201531.73 | AG120: 56715.14 | AH120: 92368.08 | AI120: 379391.47 | AJ120: 285011.39 | AK120: 73936.82 | AL120: 358832.84 | AM120: 260340.62 | AN120: 271851.15 | AP120: 321910.22 | AQ120: 242251.29 | AR120: 118623.55 | AS120: 112931.6 | AT120: 110417.97
A121: %,V5050000 | B121: 5050000 | C121: Electric Expenses | F121: 1459.57 | G121: 6537.93 | H121: -5078.36 | I121: -0.7767534984 | K121: 31033.54 | L121: 25928.75 | M121: 5104.79 | N121: 0.1968775973 | Q121: 23748.31 | R121: 24918.3 | S121: -1169.99 | T121: -0.04695304254 | V121: 80148.18 | W121: 58098.22 | X121: 22049.96 | Y121: 0.3795290114 | AA121: -773.37 | AC121: 1444.38 | AD121: -433.93 | AE121: 1801.63 | AF121: 16578.74 | AG121: 6537.93 | AH121: 13658.29 | AI121: 6851.37 | AJ121: 12544.92 | AK121: 4144.83 | AL121: 4963.2 | AM121: 4182.45 | AN121: 2769.58 | AP121: 6141.83 | AQ121: 1143.4 | AR121: 7427.9 | AS121: 14860.84 | AT121: 1459.57
A122: %,V5060000 | B122: 5060000 | C122: Misc Steam Power Expenses | F122: 433600.52 | G122: 455065.62 | H122: -21465.1 | I122: -0.04716924122 | K122: 2452662.36 | L122: 1981030.696 | M122: 471631.664 | N122: 0.2380738799 | Q122: 1388114.16 | R122: 1210833.81 | S122: 177280.35 | T122: 0.1464117937 | V122: 5481303.09 | W122: 6024638.346 | X122: -543335.256 | Y122: -0.09018553891 | AA122: 444638.68 | AC122: 417841.51 | AD122: 352355.376 | AE122: 381726.44 | AF122: 374041.75 | AG122: 455065.62 | AH122: 412492.9 | AI122: 448311.9 | AJ122: 264385.36 | AK122: 343775.758 | AL122: 402701.312 | AM122: 443736.08 | AN122: 713237.42 | AP122: 477295.08 | AQ122: 587253.12 | AR122: 516232.62 | AS122: 438281.02 | AT122: 433600.52
A123: %,V5060002 | B123: 5060002 | C123: Misc Steam Power Exp-Assoc | F123: 4030.2 | G123: 3472.2 | H123: 558 | I123: 0.1607050285 | K123: 23594.22 | L123: 22518.63 | M123: 1075.59 | N123: 0.04776445103 | Q123: 13895.74 | R123: 12389.24 | S123: 1506.5 | T123: 0.1215974507 | V123: 49074.9 | W123: 53008.49 | X123: -3933.59 | Y123: -0.07420679216 | AA123: 5032.84 | AC123: 4967.41 | AD123: 5161.98 | AE123: 4254.84 | AF123: 4662.2 | AG123: 3472.2 | AH123: 3074.38 | AI123: 4032.86 | AJ123: 3702.6 | AK123: 3908.36 | AL123: 3162.2 | AM123: 3688.78 | AN123: 3911.5 | AP123: 4902.78 | AQ123: 4795.7 | AR123: 5178.06 | AS123: 4687.48 | AT123: 4030.2
A124: %,V5060011 | B124: 5060011 | C124: BSRR O/U Recovery-Oper Costs | F124: 1962.94 | G124: 0 | H124: 1962.94 | I124: N.M. | K124: 8120.08 | L124: 0 | M124: 8120.08 | N124: N.M. | Q124: 8120.08 | R124: 0 | S124: 8120.08 | T124: N.M. | V124: 8120.08 | W124: -1.1 | X124: 8121.18 | Y124: N.M. | AA124: 0 | AC124: 0 | AD124: 0 | AE124: 0 | AF124: 0 | AG124: 0 | AH124: 0 | AI124: 0 | AJ124: 0 | AK124: 0 | AL124: 0 | AM124: 0 | AN124: 0 | AP124: 0 | AQ124: 0 | AR124: 0 | AS124: 6157.14 | AT124: 1962.94
A125: %,V5070006 | B125: 5070006 | C125: Rents - Associated | F125: 127.56 | G125: 193.17 | H125: -65.61 | I125: -0.3396490138 | K125: 637.79 | L125: 965.85 | M125: -328.06 | N125: -0.3396593674 | Q125: 383.71 | R125: 579.51 | S125: -195.8 | T125: -0.3378716502 | V125: 1989.98 | W125: 965.85 | X125: 1024.13 | Y125: 1.060340633 | AA125: 0 | AC125: 193.17 | AD125: 193.17 | AE125: 193.17 | AF125: 193.17 | AG125: 193.17 | AH125: 193.17 | AI125: 193.17 | AJ125: 193.17 | AK125: 193.17 | AL125: 193.17 | AM125: 193.17 | AN125: 193.17 | AP125: 122.25 | AQ125: 131.83 | AR125: 128.59 | AS125: 127.56 | AT125: 127.56
A126: %,V5090000 | B126: 5090000 | C126: Allow Consum Title IV SO2 | F126: 1061.8 | G126: 339.9 | H126: 721.9 | I126: 2.123859959 | K126: 5913.02 | L126: 6539.09 | M126: -626.07 | N126: -0.09574267979 | Q126: 3149.98 | R126: 1510.67 | S126: 1639.31 | T126: 1.085154269 | V126: 16072.33 | W126: 36775.01 | X126: -20702.68 | Y126: -0.5629551154 | AA126: 3197.64 | AC126: 2913.47 | AD126: 2114.95 | AE126: 226.6 | AF126: 944.17 | AG126: 339.9 | AH126: 1321.84 | AI126: 2266.02 | AJ126: 1548.45 | AK126: 566.51 | AL126: 1737.28 | AM126: 1586.21 | AN126: 1133 | AP126: 1805.04 | AQ126: 958 | AR126: 530.89 | AS126: 1557.29 | AT126: 1061.8
A127: %,V5090001 | B127: 5090001 | C127: Allowance Consumption - NOx | F127: -15134.66 | G127: 0 | H127: -15134.66 | I127: N.M. | K127: -15134.66 | L127: 0 | M127: -15134.66 | N127: N.M. | Q127: -15134.66 | R127: 0 | S127: -15134.66 | T127: N.M. | V127: -172277.52 | W127: 42857.15 | X127: -215134.67 | Y127: -5.01980813 | AA127: 0 | AC127: 0 | AD127: 0 | AE127: 0 | AF127: 0 | AG127: 0 | AH127: 0 | AI127: 0 | AJ127: 0 | AK127: -157142.86 | AL127: 0 | AM127: 0 | AN127: 0 | AP127: 0 | AQ127: 0 | AR127: 0 | AS127: 0 | AT127: -15134.66
A128: %,V5090009 | B128: 5090009 | C128: Allow Consumpt CSAPR SO2 | F128: 5.21 | G128: 1.66 | H128: 3.55 | I128: 2.138554217 | K128: 29 | L128: 31.94 | M128: -2.94 | N128: -0.09204758923 | Q128: 15.45 | R128: 7.39 | S128: 8.06 | T128: 1.090663058 | V128: 78.08 | W128: 176.85 | X128: -98.77 | Y128: -0.5584959005 | AA128: 15.32 | AC128: 14.22 | AD128: 10.33 | AE128: 1.11 | AF128: 4.62 | AG128: 1.66 | AH128: 6.46 | AI128: 10.93 | AJ128: 7.46 | AK128: 2.73 | AL128: 8.38 | AM128: 7.65 | AN128: 5.47 | AP128: 8.86 | AQ128: 4.69 | AR128: 2.6 | AS128: 7.64 | AT128: 5.21
A129: %,FACCOUNT,TGL_FERC_ACCT,XDYYNNY01,N500-509_EXC_501 | C129: Steam Power Operations | F129: 1087944.38 | G129: 976415.77 | H129: 111528.61 | I129: 0.1142224587 | K129: 6518126.52 | L129: 5471137.246 | M129: 1046989.274 | N129: 0.1913659312 | Q129: 3510392.93 | R129: 3019483.3 | S129: 490909.63 | T129: 0.162580674 | V129: 15885722.02 | W129: 15419893.4 | X129: 465828.624 | Y129: 0.03020958784 | AA129: 1360103.4 | AC129: 1500153.07 | AD129: 951500.876 | AE129: 869680.48 | AF129: 1173387.05 | AG129: 976415.77 | AH129: 1107570.14 | AI129: 1574463.19 | AJ129: 1224951.9 | AK129: 820468.688 | AL129: 1445030.332 | AM129: 1329377.2 | AN129: 1865734.05 | AP129: 1478610.87 | AQ129: 1529122.72 | AR129: 1311224.4 | AS129: 1111224.15 | AT129: 1087944.38
A131: %,FACCOUNT,TGL_FERC_ACCT,XDYYNNY01,N517-525 | C131: Nuclear Power Operations | F131: 0 | G131: 0 | H131: =+F131-G131 -> 0 | I131: =IF(G131<0,IF(H131=0,0,IF(OR(G131=0,F131=0),"N.M.",IF(ABS(H131/G131)>=10,"N.M.",H131/(-G131)))),IF(H131=0,0,IF(OR(G131=0,F131=0),"N.M.",IF(ABS(H131/G131)>=10,"N.M.",H131/G131)))) -> 0 | K131: 0 | L131: 0 | M131: =+K131-L131 -> 0 | N131: =IF(L131<0,IF(M131=0,0,IF(OR(L131=0,K131=0),"N.M.",IF(ABS(M131/L131)>=10,"N.M.",M131/(-L131)))),IF(M131=0,0,IF(OR(L131=0,K131=0),"N.M.",IF(ABS(M131/L131)>=10,"N.M.",M131/L131)))) -> 0 | Q131: 0 | R131: 0 | S131: =+Q131-R131 -> 0 | T131: =IF(R131<0,IF(S131=0,0,IF(OR(R131=0,Q131=0),"N.M.",IF(ABS(S131/R131)>=10,"N.M.",S131/(-R131)))),IF(S131=0,0,IF(OR(R131=0,Q131=0),"N.M.",IF(ABS(S131/R131)>=10,"N.M.",S131/R131)))) -> 0 | V131: 0 | W131: 0 | X131: =+V131-W131 -> 0 | Y131: =IF(W131<0,IF(X131=0,0,IF(OR(W131=0,V131=0),"N.M.",IF(ABS(X131/W131)>=10,"N.M.",X131/(-W131)))),IF(X131=0,0,IF(OR(W131=0,V131=0),"N.M.",IF(ABS(X131/W131)>=10,"N.M.",X131/W131)))) -> 0 | AA131: 0 | AC131: 0 | AD131: 0 | AE131: 0 | AF131: 0 | AG131: 0 | AH131: 0 | AI131: 0 | AJ131: 0 | AK131: 0 | AL131: 0 | AM131: 0 | AN131: 0 | AP131: 0 | AQ131: 0 | AR131: 0 | AS131: 0 | AT131: 0
A133: %,FACCOUNT,TGL_FERC_ACCT,XDYYNNY01,N535-540 | C133: Hydraulic Power Operations | F133: 0 | G133: 0 | H133: =+F133-G133 -> 0 | I133: =IF(G133<0,IF(H133=0,0,IF(OR(G133=0,F133=0),"N.M.",IF(ABS(H133/G133)>=10,"N.M.",H133/(-G133)))),IF(H133=0,0,IF(OR(G133=0,F133=0),"N.M.",IF(ABS(H133/G133)>=10,"N.M.",H133/G133)))) -> 0 | K133: 0 | L133: 0 | M133: =+K133-L133 -> 0 | N133: =IF(L133<0,IF(M133=0,0,IF(OR(L133=0,K133=0),"N.M.",IF(ABS(M133/L133)>=10,"N.M.",M133/(-L133)))),IF(M133=0,0,IF(OR(L133=0,K133=0),"N.M.",IF(ABS(M133/L133)>=10,"N.M.",M133/L133)))) -> 0 | Q133: 0 | R133: 0 | S133: =+Q133-R133 -> 0 | T133: =IF(R133<0,IF(S133=0,0,IF(OR(R133=0,Q133=0),"N.M.",IF(ABS(S133/R133)>=10,"N.M.",S133/(-R133)))),IF(S133=0,0,IF(OR(R133=0,Q133=0),"N.M.",IF(ABS(S133/R133)>=10,"N.M.",S133/R133)))) -> 0 | V133: 0 | W133: 0 | X133: =+V133-W133 -> 0 | Y133: =IF(W133<0,IF(X133=0,0,IF(OR(W133=0,V133=0),"N.M.",IF(ABS(X133/W133)>=10,"N.M.",X133/(-W133)))),IF(X133=0,0,IF(OR(W133=0,V133=0),"N.M.",IF(ABS(X133/W133)>=10,"N.M.",X133/W133)))) -> 0 | AA133: 0 | AC133: 0 | AD133: 0 | AE133: 0 | AF133: 0 | AG133: 0 | AH133: 0 | AI133: 0 | AJ133: 0 | AK133: 0 | AL133: 0 | AM133: 0 | AN133: 0 | AP133: 0 | AQ133: 0 | AR133: 0 | AS133: 0 | AT133: 0
A135: %,V5490000 | B135: 5490000 | C135: Misc Other Pwer Generation Exp | F135: 0 | G135: 0 | H135: =+F135-G135 -> 0 | I135: =IF(G135<0,IF(H135=0,0,IF(OR(G135=0,F135=0),"N.M.",IF(ABS(H135/G135)>=10,"N.M.",H135/(-G135)))),IF(H135=0,0,IF(OR(G135=0,F135=0),"N.M.",IF(ABS(H135/G135)>=10,"N.M.",H135/G135)))) -> 0 | K135: 0 | L135: 0 | M135: =+K135-L135 -> 0 | N135: =IF(L135<0,IF(M135=0,0,IF(OR(L135=0,K135=0),"N.M.",IF(ABS(M135/L135)>=10,"N.M.",M135/(-L135)))),IF(M135=0,0,IF(OR(L135=0,K135=0),"N.M.",IF(ABS(M135/L135)>=10,"N.M.",M135/L135)))) -> 0 | Q135: 0 | R135: 0 | S135: =+Q135-R135 -> 0 | T135: =IF(R135<0,IF(S135=0,0,IF(OR(R135=0,Q135=0),"N.M.",IF(ABS(S135/R135)>=10,"N.M.",S135/(-R135)))),IF(S135=0,0,IF(OR(R135=0,Q135=0),"N.M.",IF(ABS(S135/R135)>=10,"N.M.",S135/R135)))) -> 0 | V135: 0.01 | W135: 0 | X135: =+V135-W135 -> 0.01 | Y135: =IF(W135<0,IF(X135=0,0,IF(OR(W135=0,V135=0),"N.M.",IF(ABS(X135/W135)>=10,"N.M.",X135/(-W135)))),IF(X135=0,0,IF(OR(W135=0,V135=0),"N.M.",IF(ABS(X135/W135)>=10,"N.M.",X135/W135)))) -> N.M. | AA135: 0 | AC135: 0 | AD135: 0 | AE135: 0 | AF135: 0 | AG135: 0 | AH135: 0 | AI135: 0 | AJ135: 0 | AK135: 0.01 | AL135: 0 | AM135: 0 | AN135: 0 | AP135: 0 | AQ135: 0 | AR135: 0 | AS135: 0 | AT135: 0
A136: %,V8140000 | B136: 8140000 | C136: Underground Storage Expenses | F136: 0 | G136: 0 | H136: =+F136-G136 -> 0 | I136: =IF(G136<0,IF(H136=0,0,IF(OR(G136=0,F136=0),"N.M.",IF(ABS(H136/G136)>=10,"N.M.",H136/(-G136)))),IF(H136=0,0,IF(OR(G136=0,F136=0),"N.M.",IF(ABS(H136/G136)>=10,"N.M.",H136/G136)))) -> 0 | K136: 0 | L136: 0 | M136: =+K136-L136 -> 0 | N136: =IF(L136<0,IF(M136=0,0,IF(OR(L136=0,K136=0),"N.M.",IF(ABS(M136/L136)>=10,"N.M.",M136/(-L136)))),IF(M136=0,0,IF(OR(L136=0,K136=0),"N.M.",IF(ABS(M136/L136)>=10,"N.M.",M136/L136)))) -> 0 | Q136: 0 | R136: 0 | S136: =+Q136-R136 -> 0 | T136: =IF(R136<0,IF(S136=0,0,IF(OR(R136=0,Q136=0),"N.M.",IF(ABS(S136/R136)>=10,"N.M.",S136/(-R136)))),IF(S136=0,0,IF(OR(R136=0,Q136=0),"N.M.",IF(ABS(S136/R136)>=10,"N.M.",S136/R136)))) -> 0 | V136: 0 | W136: 0 | X136: =+V136-W136 -> 0 | Y136: =IF(W136<0,IF(X136=0,0,IF(OR(W136=0,V136=0),"N.M.",IF(ABS(X136/W136)>=10,"N.M.",X136/(-W136)))),IF(X136=0,0,IF(OR(W136=0,V136=0),"N.M.",IF(ABS(X136/W136)>=10,"N.M.",X136/W136)))) -> 0 | AA136: -1637.46 | AC136: 0 | AD136: 0 | AE136: 0 | AF136: 0 | AG136: 0 | AH136: 0 | AI136: 0 | AJ136: 0 | AK136: 0 | AL136: 0 | AM136: 0 | AN136: 0 | AP136: 0 | AQ136: 0 | AR136: 0 | AS136: 0 | AT136: 0
A137: %,FACCOUNT,TGL_FERC_ACCT,XDYYNNY01,N546-550 | C137: Other Power Operations | F137: 0 | G137: 0 | H137: =+F137-G137 -> 0 | I137: =IF(G137<0,IF(H137=0,0,IF(OR(G137=0,F137=0),"N.M.",IF(ABS(H137/G137)>=10,"N.M.",H137/(-G137)))),IF(H137=0,0,IF(OR(G137=0,F137=0),"N.M.",IF(ABS(H137/G137)>=10,"N.M.",H137/G137)))) -> 0 | K137: 0 | L137: 0 | M137: =+K137-L137 -> 0 | N137: =IF(L137<0,IF(M137=0,0,IF(OR(L137=0,K137=0),"N.M.",IF(ABS(M137/L137)>=10,"N.M.",M137/(-L137)))),IF(M137=0,0,IF(OR(L137=0,K137=0),"N.M.",IF(ABS(M137/L137)>=10,"N.M.",M137/L137)))) -> 0 | Q137: 0 | R137: 0 | S137: =+Q137-R137 -> 0 | T137: =IF(R137<0,IF(S137=0,0,IF(OR(R137=0,Q137=0),"N.M.",IF(ABS(S137/R137)>=10,"N.M.",S137/(-R137)))),IF(S137=0,0,IF(OR(R137=0,Q137=0),"N.M.",IF(ABS(S137/R137)>=10,"N.M.",S137/R137)))) -> 0 | V137: 0.01 | W137: 0 | X137: =+V137-W137 -> 0.01 | Y137: =IF(W137<0,IF(X137=0,0,IF(OR(W137=0,V137=0),"N.M.",IF(ABS(X137/W137)>=10,"N.M.",X137/(-W137)))),IF(X137=0,0,IF(OR(W137=0,V137=0),"N.M.",IF(ABS(X137/W137)>=10,"N.M.",X137/W137)))) -> N.M. | AA137: -1637.46 | AC137: 0 | AD137: 0 | AE137: 0 | AF137: 0 | AG137: 0 | AH137: 0 | AI137: 0 | AJ137: 0 | AK137: 0.01 | AL137: 0 | AM137: 0 | AN137: 0 | AP137: 0 | AQ137: 0 | AR137: 0 | AS137: 0 | AT137: 0
A139: %,V5550001 | B139: 5550001 | C139: Purch Pwr-NonTrading-Nonassoc | F139: 13896748.25 | G139: 10541889.76 | H139: =+F139-G139 -> 3354858.49 | I139: =IF(G139<0,IF(H139=0,0,IF(OR(G139=0,F139=0),"N.M.",IF(ABS(H139/G139)>=10,"N.M.",H139/(-G139)))),IF(H139=0,0,IF(OR(G139=0,F139=0),"N.M.",IF(ABS(H139/G139)>=10,"N.M.",H139/G139)))) -> 0.3182407108 | K139: 63498187.79 | L139: 61962438.34 | M139: =+K139-L139 -> 1535749.45 | N139: =IF(L139<0,IF(M139=0,0,IF(OR(L139=0,K139=0),"N.M.",IF(ABS(M139/L139)>=10,"N.M.",M139/(-L139)))),IF(M139=0,0,IF(OR(L139=0,K139=0),"N.M.",IF(ABS(M139/L139)>=10,"N.M.",M139/L139)))) -> 0.0247851681 | Q139: 35054034.59 | R139: 32248202.4 | S139: =+Q139-R139 -> 2805832.19 | T139: =IF(R139<0,IF(S139=0,0,IF(OR(R139=0,Q139=0),"N.M.",IF(ABS(S139/R139)>=10,"N.M.",S139/(-R139)))),IF(S139=0,0,IF(OR(R139=0,Q139=0),"N.M.",IF(ABS(S139/R139)>=10,"N.M.",S139/R139)))) -> 0.08700739828 | V139: 114572054.7 | W139: 108839392.4 | X139: =+V139-W139 -> 5732662.3 | Y139: =IF(W139<0,IF(X139=0,0,IF(OR(W139=0,V139=0),"N.M.",IF(ABS(X139/W139)>=10,"N.M.",X139/(-W139)))),IF(X139=0,0,IF(OR(W139=0,V139=0),"N.M.",IF(ABS(X139/W139)>=10,"N.M.",X139/W139)))) -> 0.05267084071 | AA139: 6910226.45 | AC139: 15205502.66 | AD139: 14508733.28 | AE139: 14301194.83 | AF139: 7405117.81 | AG139: 10541889.76 | AH139: 6715935.28 | AI139: 7717470.3 | AJ139: 3967199.65 | AK139: 10258070.89 | AL139: 8213710.37 | AM139: 5071677.35 | AN139: 9129803.07 | AP139: 20913772.49 | AQ139: 7530380.71 | AR139: 9179467.44 | AS139: 11977818.9 | AT139: 13896748.25
A140: %,V5550004 | B140: 5550004 | C140: Purchased Power-Pool Capacity | F140: 32143.24 | G140: 0 | H140: 32143.24 | I140: N.M. | K140: 158289.38 | L140: 0 | M140: 158289.38 | N140: N.M. | Q140: 96267.53 | R140: 0 | S140: 96267.53 | T140: N.M. | V140: 383250 | W140: 0 | X140: 383250 | Y140: N.M. | AA140: 0 | AC140: 0 | AD140: 0 | AE140: 0 | AF140: 0 | AG140: 0 | AH140: 0 | AI140: 64124.29 | AJ140: 32587.75 | AK140: 31536.54 | AL140: 32587.75 | AM140: 31536.54 | AN140: 32587.75 | AP140: 32587.75 | AQ140: 29434.1 | AR140: 32587.75 | AS140: 31536.54 | AT140: 32143.24
A141: %,V5550023 | B141: 5550023 | C141: Purch Power Capacity -NA | F141: 0 | G141: 1043329.69 | H141: -1043329.69 | I141: N.M. | K141: 0 | L141: 1849523.45 | M141: -1849523.45 | N141: N.M. | Q141: 0 | R141: 1446426.57 | S141: -1446426.57 | T141: N.M. | V141: 2629.24 | W141: 3268780.34 | X141: -3266151.1 | Y141: -0.9991956511 | AA141: 201548.44 | AC141: 201548.44 | AD141: 201548.44 | AE141: 201548.44 | AF141: 201548.44 | AG141: 1043329.69 | AH141: 483018.55 | AI141: 0 | AJ141: -448262.49 | AK141: 0 | AL141: -32126.82 | AM141: 0 | AN141: 0 | AP141: 0 | AQ141: 0 | AR141: 0 | AS141: 0 | AT141: 0
A142: %,V5550029 | B142: 5550029 | C142: Purch Power-Assoc-Trnsfr Price | F142: 0 | G142: 0 | H142: 0 | I142: 0 | K142: 0 | L142: 0 | M142: 0 | N142: 0 | Q142: 0 | R142: 0 | S142: 0 | T142: 0 | V142: 0 | W142: 0 | X142: 0 | Y142: 0 | AA142: 0 | AC142: 0 | AD142: 0 | AE142: 0 | AF142: 0 | AG142: 0 | AH142: 0 | AI142: 0 | AJ142: 0 | AK142: 0 | AL142: 0 | AM142: 0 | AN142: 0 | AP142: 0 | AQ142: 0 | AR142: 0 | AS142: 0 | AT142: 0
A143: %,V5550039 | B143: 5550039 | C143: PJM Inadvertent Mtr Res-OSS | F143: -1466.22 | G143: -806.03 | H143: -660.19 | I143: -0.8190638066 | K143: 3384.09 | L143: -2422.74 | M143: 5806.83 | N143: 2.396802794 | Q143: -749.95 | R143: -1732.23 | S143: 982.28 | T143: 0.5670609561 | V143: 2142.1 | W143: 2276.5 | X143: -134.4 | Y143: -0.05903799693 | AA143: -640.23 | AC143: -507.21 | AD143: -183.3 | AE143: -448.96 | AF143: -477.24 | AG143: -806.03 | AH143: 891.5 | AI143: -75.47 | AJ143: 666.12 | AK143: -278.4 | AL143: -993.12 | AM143: -55.37 | AN143: -1397.25 | AP143: 2698.59 | AQ143: 1435.45 | AR143: -643.59 | AS143: 1359.86 | AT143: -1466.22
A144: %,V5550040 | B144: 5550040 | C144: PJM Inadvertent Mtr Res-LSE | F144: 15118.59 | G144: -9252.3 | H144: 24370.89 | I144: 2.634035861 | K144: 99520.18 | L144: -34250.99 | M144: 133771.17 | N144: 3.905614699 | Q144: 51192.81 | R144: -24931.57 | S144: 76124.38 | T144: 3.053332782 | V144: 71062.14 | W144: 7604.93 | X144: 63457.21 | Y144: 8.344220131 | AA144: -4170.81 | AC144: -3524.71 | AD144: -5794.71 | AE144: -7222.49 | AF144: -8456.78 | AG144: -9252.3 | AH144: -4019.14 | AI144: -2432.77 | AJ144: 3370.29 | AK144: -4706.82 | AL144: -8561.5 | AM144: -5256.76 | AN144: -6851.34 | AP144: 23822.37 | AQ144: 24505 | AR144: 15560.65 | AS144: 20513.57 | AT144: 15118.59
A145: %,V5550074 | B145: 5550074 | C145: PJM Reactive-Charge | F145: 125371.56 | G145: 274383.7 | H145: -149012.14 | I145: -0.5430794176 | K145: 1133580.89 | L145: 1378201.66 | M145: -244620.77 | N145: -0.1774927263 | Q145: 624925 | R145: 818414.86 | S145: -193489.86 | T145: -0.2364202673 | V145: 2973181.11 | W145: 3419361.68 | X145: -446180.57 | Y145: -0.1304865094 | AA145: 290161.54 | AC145: 286667.43 | AD145: 273119.37 | AE145: 271025.49 | AF145: 273005.67 | AG145: 274383.7 | AH145: 271549.29 | AI145: 266154.98 | AJ145: 268149.33 | AK145: 266645.7 | AL145: 262768.6 | AM145: 244671.13 | AN145: 259661.19 | AP145: 253599.31 | AQ145: 255056.58 | AR145: 240002.75 | AS145: 259550.69 | AT145: 125371.56
A146: %,V5550075 | B146: 5550075 | C146: PJM Reactive-Credit | F146: -119573 | G146: -119573 | H146: 0 | I146: 0 | K146: -597865 | L146: -597865 | M146: 0 | N146: 0 | Q146: -358719 | R146: -358719 | S146: 0 | T146: 0 | V146: -1434876 | W146: -1434876 | X146: 0 | Y146: 0 | AA146: -119573 | AC146: -119573 | AD146: -119573 | AE146: -119573 | AF146: -119573 | AG146: -119573 | AH146: -119573 | AI146: -119573 | AJ146: -119573 | AK146: -119573 | AL146: -119573 | AM146: -119573 | AN146: -119573 | AP146: -119573 | AQ146: -119573 | AR146: -119573 | AS146: -119573 | AT146: -119573
A147: %,V5550076 | B147: 5550076 | C147: PJM Black Start-Charge | F147: 42232.02 | G147: 37522.05 | H147: 4709.97 | I147: 0.1255253911 | K147: 159497.4 | L147: 181772.42 | M147: -22275.02 | N147: -0.122543453 | Q147: 158186.2 | R147: 131593.64 | S147: 26592.56 | T147: 0.2020808908 | V147: 440957.6 | W147: 850438.87 | X147: -409481.27 | Y147: -0.4814940667 | AA147: 94990.6 | AC147: 3383.75 | AD147: 46795.03 | AE147: 47260.05 | AF147: 46811.54 | AG147: 37522.05 | AH147: 26888.6 | AI147: 26837.71 | AJ147: 58868.57 | AK147: 37065.79 | AL147: 46995.64 | AM147: 42721.44 | AN147: 42082.45 | AP147: -32622.09 | AQ147: 33933.29 | AR147: 73314.72 | AS147: 42639.46 | AT147: 42232.02
A148: %,V5550078 | B148: 5550078 | C148: PJM Regulation-Charge | F148: 103511.37 | G148: 47347.26 | H148: 56164.11 | I148: 1.186216689 | K148: 995892.17 | L148: 397264.96 | M148: 598627.21 | N148: 1.506871409 | Q148: -176321.21 | R148: 197078.92 | S148: -373400.13 | T148: -1.894673109 | V148: 1877862.91 | W148: 727866.91 | X148: 1149996 | Y148: 1.579953676 | AA148: 43038.27 | AC148: 127637.02 | AD148: 72549.02 | AE148: 76947.6 | AF148: 72784.06 | AG148: 47347.26 | AH148: 108302.07 | AI148: 74426.03 | AJ148: 49743.75 | AK148: 59902.75 | AL148: 395562.56 | AM148: -100532.22 | AN148: 294565.8 | AP148: 388317.6 | AQ148: 783895.78 | AR148: -360040.67 | AS148: 80208.09 | AT148: 103511.37
A149: %,V5550079 | B149: 5550079 | C149: PJM Regulation-Credit | F149: -498180.58 | G149: -585.84 | H149: -497594.74 | I149: N.M. | K149: -672264.95 | L149: 212057.63 | M149: -884322.58 | N149: -4.170199299 | Q149: 443762.72 | R149: -1883.39 | S149: 445646.11 | T149: N.M. | V149: -391040.3 | W149: -18534.95 | X149: -372505.35 | Y149: N.M. | AA149: -226210.47 | AC149: 215934.81 | AD149: -1993.79 | AE149: -1023.06 | AF149: -274.49 | AG149: -585.84 | AH149: -961.09 | AI149: -3196.69 | AJ149: -2761.37 | AK149: -1224.51 | AL149: -384669.63 | AM149: 842964.84 | AN149: -168926.9 | AP149: 28512.12 | AQ149: -1144539.79 | AR149: 953519.41 | AS149: -11576.11 | AT149: -498180.58
A150: %,V5550080 | B150: 5550080 | C150: PJM Hourly Net Purch.-FERC | F150: 754795.86 | G150: 754909.63 | H150: -113.77 | I150: -0.0001507067806 | K150: 7935149.2 | L150: 2878943.96 | M150: 5056205.24 | N150: 1.75627081 | Q150: 1564423.84 | R150: 1947550.52 | S150: -383126.68 | T150: -0.196722332 | V150: 24506171.59 | W150: 10878629.96 | X150: 13627541.63 | Y150: 1.252689142 | AA150: 715522.54 | AC150: 783482.6 | AD150: 147910.84 | AE150: 407887.99 | AF150: 784752.9 | AG150: 754909.63 | AH150: 3619595.03 | AI150: 1838939.89 | AJ150: 1322426.52 | AK150: 914313.81 | AL150: 2318897.42 | AM150: 4789574.69 | AN150: 1767275.03 | AP150: 4335957.95 | AQ150: 2034767.41 | AR150: 329304.39 | AS150: 480323.59 | AT150: 754795.86
A151: %,V5550083 | B151: 5550083 | C151: PJM Sync & Non Sync-Charge | F151: 47446.77 | G151: 63425.69 | H151: -15978.92 | I151: -0.2519313546 | K151: 490897.21 | L151: 449160.01 | M151: 41737.2 | N151: 0.09292278714 | Q151: 208063.07 | R151: 307997.11 | S151: -99934.04 | T151: -0.3244642133 | V151: 1111875.9 | W151: 753675.07 | X151: 358200.83 | Y151: 0.4752722284 | AA151: 22069.79 | AC151: 102438.71 | AD151: 38724.19 | AE151: 133141.66 | AF151: 111429.76 | AG151: 63425.69 | AH151: 95618.73 | AI151: 140539.29 | AJ151: 107907.97 | AK151: 54373.06 | AL151: 77606.97 | AM151: 43229.24 | AN151: 101703.43 | AP151: 113293.07 | AQ151: 169541.07 | AR151: 107860.49 | AS151: 52755.81 | AT151: 47446.77
A152: %,V5550084 | B152: 5550084 | C152: PJM Sync & Non Sync-Credit | F152: -3012.93 | G152: -21726.2 | H152: 18713.27 | I152: 0.8613227348 | K152: -39623.51 | L152: -93389.39 | M152: 53765.88 | N152: 0.5757172201 | Q152: -23731.93 | R152: -85306.79 | S152: 61574.86 | T152: 0.7218049114 | V152: -114859.27 | W152: -140560.09 | X152: 25700.82 | Y152: 0.182845785 | AA152: 3460 | AC152: -8869.23 | AD152: 786.63 | AE152: -34856.53 | AF152: -28724.06 | AG152: -21726.2 | AH152: -5237.44 | AI152: -13288.33 | AJ152: -9614.59 | AK152: -2078.36 | AL152: -27942.9 | AM152: 9214.05 | AN152: -26288.19 | AP152: 7668.69 | AQ152: -23560.27 | AR152: -20218.63 | AS152: -500.37 | AT152: -3012.93
A153: %,V5550123 | B153: 5550123 | C153: PJM OpRes-LSE-Charge | F153: 137347.35 | G153: 131393.69 | H153: 5953.66 | I153: 0.04531161276 | K153: 6538552.89 | L153: 3639492.74 | M153: 2899060.15 | N153: 0.7965561019 | Q153: 679485.45 | R153: 497998.32 | S153: 181487.13 | T153: 0.3644332174 | V153: 7487275.16 | W153: 4274138.17 | X153: 3213136.99 | Y153: 0.7517625454 | AA153: 122718.14 | AC153: 2956748.73 | AD153: 184745.69 | AE153: 171586 | AF153: 195018.63 | AG153: 131393.69 | AH153: 115041.68 | AI153: 165760.06 | AJ153: 79512.82 | AK153: 41149.68 | AL153: 229398.45 | AM153: 116805.13 | AN153: 201054.45 | AP153: 3625154.36 | AQ153: 2233913.08 | AR153: 406333.58 | AS153: 135804.52 | AT153: 137347.35
A154: %,V5550124 | B154: 5550124 | C154: PJM Implicit Congestion-LSE | F154: -1013170.4 | G154: -356477.75 | H154: -656692.65 | I154: -1.842170093 | K154: 11818245.14 | L154: 2746924.81 | M154: 9071320.33 | N154: 3.302354799 | Q154: 1039199.18 | R154: 953232.53 | S154: 85966.65 | T154: 0.09018434358 | V154: 14353855.24 | W154: 8029808.38 | X154: 6324046.86 | Y154: 0.7875713293 | AA154: 837583.09 | AC154: 1254434.87 | AD154: 539257.41 | AE154: 671542.15 | AF154: 638168.13 | AG154: -356477.75 | AH154: 652934.32 | AI154: -639690.3 | AJ154: 176273.08 | AK154: 507553.42 | AL154: 352130.73 | AM154: 477418.13 | AN154: 1008990.72 | AP154: 5230836.28 | AQ154: 5548209.68 | AR154: 1259188.35 | AS154: 793181.23 | AT154: -1013170.4
A155: %,V5550132 | B155: 5550132 | C155: PJM FTR Revenue-LSE | F155: -5673161.48 | G155: -647292.26 | H155: -5025869.22 | I155: -7.764451285 | K155: -22001723.79 | L155: -6042615.12 | M155: -15959108.67 | N155: -2.641093029 | Q155: -8073138.9 | R155: -1500920.78 | S155: -6572218.12 | T155: -4.378790811 | V155: -26106334.58 | W155: -10183132.71 | X155: -15923201.87 | Y155: -1.563684018 | AA155: -564350.74 | AC155: -4080094.46 | AD155: -461599.88 | AE155: -236460.55 | AF155: -617167.97 | AG155: -647292.26 | AH155: -77097.56 | AI155: -229459.49 | AJ155: 96096.39 | AK155: -640803.33 | AL155: -933982.99 | AM155: -792207.81 | AN155: -1527156 | AP155: -6706507.94 | AQ155: -7222076.95 | AR155: -1178950.01 | AS155: -1221027.41 | AT155: -5673161.48
A156: %,V5550137 | B156: 5550137 | C156: PJM OpRes-LSE-Credit | F156: 22547.33 | G156: -18184.94 | H156: 40732.27 | I156: 2.239890261 | K156: -113199.37 | L156: -36770.74 | M156: -76428.63 | N156: -2.078517593 | Q156: -116629.15 | R156: -23048.55 | S156: -93580.6 | T156: -4.060151289 | V156: -211631.66 | W156: -73067.96 | X156: -138563.7 | Y156: -1.896367437 | AA156: -4175.88 | AC156: -11216.43 | AD156: -2505.76 | AE156: -2365.08 | AF156: -2498.53 | AG156: -18184.94 | AH156: -356.27 | AI156: -12729.52 | AJ156: -9779.79 | AK156: -18699.27 | AL156: -53378.42 | AM156: 1335 | AN156: -4824.02 | AP156: 31446.44 | AQ156: -28016.66 | AR156: -25924.19 | AS156: -113252.29 | AT156: 22547.33
A157: %,V5550139 | B157: 5550139 | C157: Generation Deactivation expens | F157: 31572.45 | G157: 0 | H157: 31572.45 | I157: N.M. | K157: -64067.44 | L157: 0 | M157: -64067.44 | N157: N.M. | Q157: 5622.37 | R157: 0 | S157: 5622.37 | T157: N.M. | V157: 60934.63 | W157: 0 | X157: 60934.63 | Y157: N.M. | AA157: 0 | AC157: 0 | AD157: 0 | AE157: 0 | AF157: 0 | AG157: 0 | AH157: 0 | AI157: -285.27 | AJ157: 0 | AK157: 15770.18 | AL157: 48466.54 | AM157: 28569.17 | AN157: 32481.45 | AP157: 27919.09 | AQ157: -97608.9 | AR157: -56491.66 | AS157: 30541.58 | AT157: 31572.45
A158: %,V5550326 | B158: 5550326 | C158: PJM Transm Loss Charges - LSE | F158: -29672.12 | G158: 203143.94 | H158: -232816.06 | I158: -1.14606451 | K158: 4848730.69 | L158: 2976016.28 | M158: 1872714.41 | N158: 0.6292688728 | Q158: 267898.59 | R158: 797717.15 | S158: -529818.56 | T158: -0.6641684462 | V158: 8785098.41 | W158: 6377679.46 | X158: 2407418.95 | Y158: 0.3774756893 | AA158: 589842.22 | AC158: 1575293.84 | AD158: 603005.29 | AE158: 166161.61 | AF158: 428411.6 | AG158: 203143.94 | AH158: 547423.21 | AI158: 1107461.48 | AJ158: 794704.73 | AK158: 314638.01 | AL158: 169132.19 | AM158: 360837.89 | AN158: 642170.21 | AP158: 2954850.24 | AQ158: 1625981.86 | AR158: 243446.26 | AS158: 54124.45 | AT158: -29672.12
A159: %,V5550327 | B159: 5550327 | C159: PJM Transm Loss Credits-LSE | F159: -277919.1 | G159: -178636.44 | H159: -99282.66 | I159: -0.5557805563 | K159: -2959769.07 | L159: -1609962.71 | M159: -1349806.36 | N159: -0.8384084623 | Q159: -718570.53 | R159: -621745.11 | S159: -96825.42 | T159: -0.1557316953 | V159: -5092928.01 | W159: -3084113.49 | X159: -2008814.52 | Y159: -0.6513426067 | AA159: -294026.04 | AC159: -720312.77 | AD159: -267904.83 | AE159: -230131.31 | AF159: -212977.36 | AG159: -178636.44 | AH159: -279161.09 | AI159: -425874.15 | AJ159: -239304.5 | AK159: -198265.14 | AL159: -249617.73 | AM159: -245826.45 | AN159: -495109.88 | AP159: -1278350.7 | AQ159: -962847.84 | AR159: -211308.29 | AS159: -229343.14 | AT159: -277919.1
A160: %,V5550328 | B160: 5550328 | C160: PJM FC Penalty Credit | F160: -10120.1 | G160: 0 | H160: -10120.1 | I160: N.M. | K160: -10216.63 | L160: -1968.92 | M160: -8247.71 | N160: -4.188951303 | Q160: -10155.97 | R160: -614.62 | S160: -9541.35 | T160: N.M. | V160: -10968.48 | W160: -2415.76 | X160: -8552.72 | Y160: -3.540384806 | AA160: -12.81 | AC160: -934.65 | AD160: -419.65 | AE160: -242.85 | AF160: -371.77 | AG160: 0 | AH160: -288.03 | AI160: 0 | AJ160: 0 | AK160: -327.29 | AL160: 0 | AM160: -69.54 | AN160: -66.99 | AP160: 0 | AQ160: -60.66 | AR160: -35.87 | AS160: 0 | AT160: -10120.1
A161: %,V5550335 | B161: 5550335 | C161: Purchased Power-PPA Rider | F161: 299495.252 | G161: 0 | H161: 299495.252 | I161: N.M. | K161: -3820808.688 | L161: 0 | M161: -3820808.688 | N161: N.M. | Q161: -3820808.688 | R161: 0 | S161: -3820808.688 | T161: N.M. | V161: -3820808.688 | W161: 0 | X161: -3820808.688 | Y161: N.M. | AA161: 0 | AC161: 0 | AD161: 0 | AE161: 0 | AF161: 0 | AG161: 0 | AH161: 0 | AI161: 0 | AJ161: 0 | AK161: 0 | AL161: 0 | AM161: 0 | AN161: 0 | AP161: 0 | AQ161: 0 | AR161: 0 | AS161: -4120303.94 | AT161: 299495.252
A162: %,V5560000 | B162: 5560000 | C162: Sys Control & Load Dispatching | F162: 3928.09 | G162: 2782.06 | H162: 1146.03 | I162: 0.4119357598 | K162: 22352.07 | L162: 19978.52 | M162: 2373.55 | N162: 0.1188050967 | Q162: 12479.58 | R162: 10326.12 | S162: 2153.46 | T162: 0.2085449327 | V162: 56456.33 | W162: 63261.1 | X162: -6804.77 | Y162: -0.1075664192 | AA162: 6355.16 | AC162: 5359.34 | AD162: 4293.06 | AE162: 3576.8 | AF162: 3967.26 | AG162: 2782.06 | AH162: 3584.03 | AI162: 5757.33 | AJ162: 3313.8 | AK162: 4948.2 | AL162: 4293.59 | AM162: 4707.01 | AN162: 7500.3 | AP162: 5966.64 | AQ162: 3905.85 | AR162: 3680.21 | AS162: 4871.28 | AT162: 3928.09
A163: %,V5570000 | B163: 5570000 | C163: Other Expenses | F163: 76075.9 | G163: 62901.43 | H163: 13174.47 | I163: 0.2094462717 | K163: 359189.53 | L163: 315326.14 | M163: 43863.39 | N163: 0.1391048329 | Q163: 228351.73 | R163: 184928.2 | S163: 43423.53 | T163: 0.2348129166 | V163: 855049.5 | W163: 793360.1 | X163: 61689.4 | Y163: 0.07775712441 | AA163: 51339.46 | AC163: 65627.83 | AD163: 64770.11 | AE163: 62054.19 | AF163: 59972.58 | AG163: 62901.43 | AH163: 61090.1 | AI163: 82871.34 | AJ163: 64405.17 | AK163: 63767.86 | AL163: 68234.29 | AM163: 64761.3 | AN163: 90729.91 | AP163: 74162.02 | AQ163: 56675.78 | AR163: 56058.17 | AS163: 96217.66 | AT163: 76075.9
A164: %,V5570007 | B164: 5570007 | C164: Other Pwr Exp - Wholesale RECs | F164: 0 | G164: 0 | H164: 0 | I164: 0 | K164: 231.75 | L164: 243.15 | M164: -11.4 | N164: -0.04688463911 | Q164: 0 | R164: 0 | S164: 0 | T164: 0 | V164: 231.75 | W164: 243.15 | X164: -11.4 | Y164: -0.04688463911 | AA164: 0 | AC164: 243.15 | AD164: 0 | AE164: 0 | AF164: 0 | AG164: 0 | AH164: 0 | AI164: 0 | AJ164: 0 | AK164: 0 | AL164: 0 | AM164: 0 | AN164: 0 | AP164: 231.75 | AQ164: 0 | AR164: 0 | AS164: 0 | AT164: 0
A165: %,V5570010 | B165: 5570010 | C165: OH Auction Exp - Incremental | F165: 0 | G165: 0 | H165: 0 | I165: 0 | K165: 0 | L165: 0 | M165: 0 | N165: 0 | Q165: 0 | R165: 0 | S165: 0 | T165: 0 | V165: 0 | W165: 5.68 | X165: -5.68 | Y165: N.M. | AA165: 0 | AC165: 0 | AD165: 0 | AE165: 0 | AF165: 0 | AG165: 0 | AH165: 0 | AI165: 0 | AJ165: 0 | AK165: 0 | AL165: 0 | AM165: 0 | AN165: 0 | AP165: 0 | AQ165: 0 | AR165: 0 | AS165: 0 | AT165: 0
A166: %,V5570025 | B166: 5570025 | C166: MATL-SAFETY | F166: 0 | G166: 0 | H166: 0 | I166: 0 | K166: 0 | L166: 0.93 | M166: -0.93 | N166: N.M. | Q166: 0 | R166: 0.93 | S166: -0.93 | T166: N.M. | V166: 0 | W166: 0.93 | X166: -0.93 | Y166: N.M. | AA166: 0 | AC166: 0 | AD166: 0 | AE166: 0 | AF166: 0.93 | AG166: 0 | AH166: 0 | AI166: 0 | AJ166: 0 | AK166: 0 | AL166: 0 | AM166: 0 | AN166: 0 | AP166: 0 | AQ166: 0 | AR166: 0 | AS166: 0 | AT166: 0
A167: %,FACCOUNT,TGL_FERC_ACCT,XDYYNNY01,N555-557 | C167: Purchased Power | F167: 7962058.102 | G167: 11810494.14 | H167: -3848436.038 | I167: -0.3258488589 | K167: 67782161.93 | L167: 70588099.39 | M167: -2805937.458 | N167: -0.03975085719 | Q167: 27135067.33 | R167: 36922565.23 | S167: -9787497.898 | T167: -0.2650817417 | V167: 140356641.3 | W167: 133349822.7 | X167: 7006818.652 | Y167: 0.05254464169 | AA167: 8675695.72 | AC167: 17839270.72 | AD167: 15826263.44 | AE167: 15881602.98 | AF167: 9230468.11 | AG167: 11810494.14 | AH167: 12215178.77 | AI167: 10043737.71 | AJ167: 6195930.2 | AK167: 11583779.77 | AL167: 10408938.99 | AM167: 10866501.76 | AN167: 11260412.19 | AP167: 29913743.03 | AQ167: 10733351.57 | AR167: 10927138.26 | AS167: 8245870.97 | AT167: 7962058.102
A169: %,V5581000 | B169: 5581000 | C169: Oper Supervision & Engineering | F169: 87.33 | G169: 120.97 | H169: =+F169-G169 -> -33.64 | I169: =IF(G169<0,IF(H169=0,0,IF(OR(G169=0,F169=0),"N.M.",IF(ABS(H169/G169)>=10,"N.M.",H169/(-G169)))),IF(H169=0,0,IF(OR(G169=0,F169=0),"N.M.",IF(ABS(H169/G169)>=10,"N.M.",H169/G169)))) -> -0.2780854757 | K169: 771.81 | L169: 146.29 | M169: =+K169-L169 -> 625.52 | N169: =IF(L169<0,IF(M169=0,0,IF(OR(L169=0,K169=0),"N.M.",IF(ABS(M169/L169)>=10,"N.M.",M169/(-L169)))),IF(M169=0,0,IF(OR(L169=0,K169=0),"N.M.",IF(ABS(M169/L169)>=10,"N.M.",M169/L169)))) -> 4.275890355 | Q169: 531.98 | R169: 146.29 | S169: =+Q169-R169 -> 385.69 | V169: 2030.29 | W169: 146.29 | X169: =+V169-W169 -> 1884 | Y169: =IF(W169<0,IF(X169=0,0,IF(OR(W169=0,V169=0),"N.M.",IF(ABS(X169/W169)>=10,"N.M.",X169/(-W169)))),IF(X169=0,0,IF(OR(W169=0,V169=0),"N.M.",IF(ABS(X169/W169)>=10,"N.M.",X169/W169)))) -> N.M. | AA169: 0 | AC169: 0 | AD169: 0 | AE169: 0 | AF169: 25.32 | AG169: 120.97 | AH169: 78.59 | AI169: 243.12 | AJ169: 249.48 | AK169: 153.79 | AL169: 122.28 | AM169: 149.61 | AN169: 261.61 | AP169: 217.61 | AQ169: 22.22 | AR169: 61.42 | AS169: 383.23 | AT169: 87.33
A170: %,V5581300 | B170: 5581300 | C170: Oper Supervision & Engineering | F170: -2983.67 | G170: 2099.44 | H170: -5083.11 | I170: -2.421174218 | K170: 0 | L170: 2335.05 | M170: -2335.05 | N170: N.M. | Q170: -2008.27 | R170: 2180.64 | S170: -4188.91 | V170: 7178.18 | W170: 2335.05 | X170: 4843.13 | Y170: 2.074101197 | AA170: 0 | AC170: 0 | AD170: 154.41 | AE170: 217.33 | AF170: -136.13 | AG170: 2099.44 | AH170: 1636.25 | AI170: 775.81 | AJ170: 616.48 | AK170: 631.95 | AL170: 751.76 | AM170: 1007.55 | AN170: 1758.38 | AP170: 1360.79 | AQ170: 647.48 | AR170: 403.83 | AS170: 571.57 | AT170: -2983.67
A171: %,V5581400 | B171: 5581400 | C171: Wind Turb Gen&Oth Plnt Op-Mjr | F171: -605.65 | G171: -788.53 | H171: 182.88 | I171: 0.231925228 | K171: 0 | L171: 410.78 | M171: -410.78 | N171: N.M. | Q171: -529.61 | R171: 12.17 | S171: -541.78 | V171: 103.07 | W171: 410.78 | X171: -307.71 | Y171: -0.7490871026 | AA171: 0 | AC171: 412.87 | AD171: -14.26 | AE171: 633.47 | AF171: 167.23 | AG171: -788.53 | AH171: 103.28 | AI171: 81.96 | AJ171: 171.49 | AK171: 306.93 | AL171: -645.16 | AM171: -46.48 | AN171: 131.05 | AP171: 701.72 | AQ171: -172.11 | AR171: -187.2 | AS171: 263.24 | AT171: -605.65
A172: %,V5581601 | B172: 5581601 | C172: Wind - Variable Production Exp | F172: -45.71 | G172: 0 | H172: -45.71 | I172: N.M. | K172: 0 | L172: 0 | M172: 0 | N172: 0 | Q172: 1.93 | R172: 0 | S172: 1.93 | V172: 24.06 | W172: 0 | X172: 24.06 | Y172: N.M. | AA172: 0 | AC172: 0 | AD172: 0 | AE172: 0 | AF172: 0 | AG172: 0 | AH172: 53.61 | AI172: 53.07 | AJ172: -9.42 | AK172: 11.93 | AL172: -62.92 | AM172: -27.79 | AN172: 5.58 | AP172: 66.61 | AQ172: -68.54 | AR172: 62.7 | AS172: -15.06 | AT172: -45.71
A173: %,V5582000 | B173: 5582000 | C173: Solar Panel Gen&Oth Plt Op-Mjr | F173: 8.08 | G173: 0 | H173: 8.08 | I173: N.M. | K173: 12.79 | L173: 2.07 | M173: 10.72 | N173: 5.178743961 | Q173: 9.71 | R173: 0 | S173: 9.71 | V173: 12.79 | W173: 2.07 | X173: 10.72 | Y173: 5.178743961 | AA173: 0 | AC173: 0 | AD173: 2.07 | AE173: 8.32 | AF173: -8.32 | AG173: 0 | AH173: 0 | AI173: 0 | AJ173: 0 | AK173: 0 | AL173: 0 | AM173: 2.26 | AN173: -2.26 | AP173: 11.32 | AQ173: -8.24 | AR173: -3.08 | AS173: 4.71 | AT173: 8.08
A174: %,FACCOUNT,TGL_FERC_ACCT,XDYYNNY01,N5580 | C174: Solar and Wind Operations Expenses | F174: -3539.62 | G174: 1431.88 | H174: -4971.5 | I174: -3.472008828 | K174: 784.6 | L174: 2894.19 | M174: -2109.59 | N174: -0.7289051514 | Q174: -1994.26 | R174: 2339.1 | S174: -4333.36 | V174: 9348.39 | W174: 2894.19 | X174: 6454.2 | Y174: 2.230054005 | AA174: 0 | AC174: 412.87 | AD174: 142.22 | AE174: 859.12 | AF174: 48.1 | AG174: 1431.88 | AH174: 1871.73 | AI174: 1153.96 | AJ174: 1028.03 | AK174: 1104.6 | AL174: 165.96 | AM174: 1085.15 | AN174: 2154.36 | AP174: 2358.05 | AQ174: 420.81 | AR174: 337.67 | AS174: 1207.69 | AT174: -3539.62
A176: %,FACCOUNT,TGL_FERC_ACCT,XDYYNNY01,N5590 | C176: Other Renewables Operations Expense | F176: 0 | G176: 0 | H176: =+F176-G176 -> 0 | I176: =IF(G176<0,IF(H176=0,0,IF(OR(G176=0,F176=0),"N.M.",IF(ABS(H176/G176)>=10,"N.M.",H176/(-G176)))),IF(H176=0,0,IF(OR(G176=0,F176=0),"N.M.",IF(ABS(H176/G176)>=10,"N.M.",H176/G176)))) -> 0 | K176: 0 | L176: 0 | M176: =+K176-L176 -> 0 | N176: =IF(L176<0,IF(M176=0,0,IF(OR(L176=0,K176=0),"N.M.",IF(ABS(M176/L176)>=10,"N.M.",M176/(-L176)))),IF(M176=0,0,IF(OR(L176=0,K176=0),"N.M.",IF(ABS(M176/L176)>=10,"N.M.",M176/L176)))) -> 0 | Q176: 0 | R176: 0 | S176: =+Q176-R176 -> 0 | V176: 0 | W176: 0 | X176: =+V176-W176 -> 0 | Y176: =IF(W176<0,IF(X176=0,0,IF(OR(W176=0,V176=0),"N.M.",IF(ABS(X176/W176)>=10,"N.M.",X176/(-W176)))),IF(X176=0,0,IF(OR(W176=0,V176=0),"N.M.",IF(ABS(X176/W176)>=10,"N.M.",X176/W176)))) -> 0 | AA176: 0 | AC176: 0 | AD176: 0 | AE176: 0 | AF176: 0 | AG176: 0 | AH176: 0 | AI176: 0 | AJ176: 0 | AK176: 0 | AL176: 0 | AM176: 0 | AN176: 0 | AP176: 0 | AQ176: 0 | AR176: 0 | AS176: 0 | AT176: 0
A178: %,FACCOUNT,TGL_FERC_ACCT,XDYYNNY01,N401_OPERATION | C178: 401 Operation Expense | F178: 0 | G178: 0 | H178: =+F178-G178 -> 0 | I178: =IF(G178<0,IF(H178=0,0,IF(OR(G178=0,F178=0),"N.M.",IF(ABS(H178/G178)>=10,"N.M.",H178/(-G178)))),IF(H178=0,0,IF(OR(G178=0,F178=0),"N.M.",IF(ABS(H178/G178)>=10,"N.M.",H178/G178)))) -> 0 | K178: 0 | L178: 0 | M178: =+K178-L178 -> 0 | N178: =IF(L178<0,IF(M178=0,0,IF(OR(L178=0,K178=0),"N.M.",IF(ABS(M178/L178)>=10,"N.M.",M178/(-L178)))),IF(M178=0,0,IF(OR(L178=0,K178=0),"N.M.",IF(ABS(M178/L178)>=10,"N.M.",M178/L178)))) -> 0 | Q178: 0 | R178: 0 | S178: =+Q178-R178 -> 0 | T178: =IF(R178<0,IF(S178=0,0,IF(OR(R178=0,Q178=0),"N.M.",IF(ABS(S178/R178)>=10,"N.M.",S178/(-R178)))),IF(S178=0,0,IF(OR(R178=0,Q178=0),"N.M.",IF(ABS(S178/R178)>=10,"N.M.",S178/R178)))) -> 0 | V178: 0 | W178: 0 | X178: =+V178-W178 -> 0 | Y178: =IF(W178<0,IF(X178=0,0,IF(OR(W178=0,V178=0),"N.M.",IF(ABS(X178/W178)>=10,"N.M.",X178/(-W178)))),IF(X178=0,0,IF(OR(W178=0,V178=0),"N.M.",IF(ABS(X178/W178)>=10,"N.M.",X178/W178)))) -> 0 | AA178: 0 | AC178: 0 | AD178: 0 | AE178: 0 | AF178: 0 | AG178: 0 | AH178: 0 | AI178: 0 | AJ178: 0 | AK178: 0 | AL178: 0 | AM178: 0 | AN178: 0 | AP178: 0 | AQ178: 0 | AR178: 0 | AS178: 0 | AT178: 0
A180: %,V5600000 | B180: 5600000 | C180: Oper Supervision & Engineering | F180: 240322.8 | G180: 127650.46 | H180: =+F180-G180 -> 112672.34 | I180: =IF(G180<0,IF(H180=0,0,IF(OR(G180=0,F180=0),"N.M.",IF(ABS(H180/G180)>=10,"N.M.",H180/(-G180)))),IF(H180=0,0,IF(OR(G180=0,F180=0),"N.M.",IF(ABS(H180/G180)>=10,"N.M.",H180/G180)))) -> 0.8826630159 | K180: 1387067.5 | L180: 906623.38 | M180: =+K180-L180 -> 480444.12 | N180: =IF(L180<0,IF(M180=0,0,IF(OR(L180=0,K180=0),"N.M.",IF(ABS(M180/L180)>=10,"N.M.",M180/(-L180)))),IF(M180=0,0,IF(OR(L180=0,K180=0),"N.M.",IF(ABS(M180/L180)>=10,"N.M.",M180/L180)))) -> 0.5299269031 | Q180: 745318.62 | R180: 487585.55 | S180: =+Q180-R180 -> 257733.07 | T180: =IF(R180<0,IF(S180=0,0,IF(OR(R180=0,Q180=0),"N.M.",IF(ABS(S180/R180)>=10,"N.M.",S180/(-R180)))),IF(S180=0,0,IF(OR(R180=0,Q180=0),"N.M.",IF(ABS(S180/R180)>=10,"N.M.",S180/R180)))) -> 0.5285904597 | V180: 3025168.48 | W180: 2017555.06 | X180: =+V180-W180 -> 1007613.42 | Y180: =IF(W180<0,IF(X180=0,0,IF(OR(W180=0,V180=0),"N.M.",IF(ABS(X180/W180)>=10,"N.M.",X180/(-W180)))),IF(X180=0,0,IF(OR(W180=0,V180=0),"N.M.",IF(ABS(X180/W180)>=10,"N.M.",X180/W180)))) -> 0.4994230096 | AA180: 96098.04 | AC180: 228555.82 | AD180: 190482.01 | AE180: 174554.21 | AF180: 185380.88 | AG180: 127650.46 | AH180: 212175.87 | AI180: 258645.99 | AJ180: 189783.07 | AK180: 226452.98 | AL180: 201931.02 | AM180: 225901.82 | AN180: 323210.23 | AP180: 415603.13 | AQ180: 226145.75 | AR180: 234692.27 | AS180: 270303.55 | AT180: 240322.8
A181: %,V5612000 | B181: 5612000 | C181: Load Dispatch-Mntr&Op TransSys | F181: 76052.67 | G181: 48131.09 | H181: 27921.58 | I181: 0.5801152644 | K181: 389902.49 | L181: 260205.5 | M181: 129696.99 | N181: 0.4984406171 | Q181: 224206.05 | R181: 185269.44 | S181: 38936.61 | T181: 0.2101620753 | V181: 824767.91 | W181: 487528.19 | X181: 337239.72 | Y181: 0.6917337847 | AA181: 32795.81 | AC181: 39358.12 | AD181: 35577.94 | AE181: 33249.93 | AF181: 103888.42 | AG181: 48131.09 | AH181: 54208.05 | AI181: 64520.68 | AJ181: 55995.37 | AK181: 60235.59 | AL181: 63095.82 | AM181: 59808.9 | AN181: 77001.01 | AP181: 92709.75 | AQ181: 72986.69 | AR181: 70306.34 | AS181: 77847.04 | AT181: 76052.67
A182: %,V5613000 | B182: 5613000 | C182: Load Dispatch-Trans Srvc&Sched | F182: 8.27 | G182: -162.4 | H182: 170.67 | I182: 1.050923645 | K182: -12.59 | L182: -54.96 | M182: 42.37 | N182: 0.7709243086 | Q182: -69.91 | R182: -299.4 | S182: 229.49 | T182: 0.766499666 | V182: -66.82 | W182: 75.09 | X182: -141.91 | Y182: -1.889865495 | AA182: 130.05 | AC182: 192.28 | AD182: 52.16 | AE182: -70.1 | AF182: -66.9 | AG182: -162.4 | AH182: 80.16 | AI182: 79.49 | AJ182: 60.99 | AK182: 81.3 | AL182: -105.54 | AM182: -209.83 | AN182: -40.8 | AP182: 56.21 | AQ182: 1.11 | AR182: 12.19 | AS182: -90.37 | AT182: 8.27
A183: %,V5614000 | B183: 5614000 | C183: PJM Admin-SSC&DS-OSS | F183: 5038.89 | G183: 7077.3 | H183: -2038.41 | I183: -0.2880208554 | K183: 40514.22 | L183: 32190.25 | M183: 8323.97 | N183: 0.2585866839 | Q183: 17265.5 | R183: 18424.02 | S183: -1158.52 | T183: -0.06288095649 | V183: 121239.24 | W183: 83453.25 | X183: 37785.99 | Y183: 0.4527803291 | AA183: 9339.5 | AC183: 6581.16 | AD183: 7185.07 | AE183: 3995.46 | AF183: 7351.26 | AG183: 7077.3 | AH183: 12356.26 | AI183: 8280.97 | AJ183: 12482.78 | AK183: 5608.58 | AL183: 9864.81 | AM183: 7907.19 | AN183: 24224.43 | AP183: 10456.3 | AQ183: 12792.42 | AR183: 5633.44 | AS183: 6593.17 | AT183: 5038.89
A184: %,V5614001 | B184: 5614001 | C184: PJM Admin-SSC&DS-Internal | F184: 116850.46 | G184: 103893.98 | H184: 12956.48 | I184: 0.1247086694 | K184: 619341.83 | L184: 630672.79 | M184: -11330.96 | N184: -0.01796646404 | Q184: 339191.58 | R184: 352155.11 | S184: -12963.53 | T184: -0.0368119889 | V184: 1287025.39 | W184: 1326798.33 | X184: -39772.94 | Y184: -0.02997662802 | AA184: 110241.52 | AC184: 144999.86 | AD184: 133517.82 | AE184: 101289.53 | AF184: 146971.6 | AG184: 103893.98 | AH184: 101015.23 | AI184: 74683.55 | AJ184: 101237.23 | AK184: 86644.62 | AL184: 86514.87 | AM184: 104475.85 | AN184: 113112.21 | AP184: 139339.09 | AQ184: 140811.16 | AR184: 114815.3 | AS184: 107525.82 | AT184: 116850.46
A185: %,V5615000 | B185: 5615000 | C185: Reliability,Plng&Stds Develop | F185: 12970.03 | G185: 16125.02 | H185: -3154.99 | I185: -0.1956580519 | K185: 52194.24 | L185: 48270.06 | M185: 3924.18 | N185: 0.08129635637 | Q185: 43939.46 | R185: 37775.88 | S185: 6163.58 | T185: 0.1631617847 | V185: 111597.49 | W185: 96613.53 | X185: 14983.96 | Y185: 0.1550917351 | AA185: 4572.76 | AC185: 5237.07 | AD185: 5257.11 | AE185: 3852.76 | AF185: 17798.1 | AG185: 16125.02 | AH185: 2751.74 | AI185: 3325.84 | AJ185: 2540.7 | AK185: 3553.13 | AL185: 20632.64 | AM185: 10177.36 | AN185: 16421.84 | AP185: 5291.67 | AQ185: 2963.11 | AR185: 6143.57 | AS185: 24825.86 | AT185: 12970.03
A186: %,V5616000 | B186: 5616000 | C186: Transmission Service Studies | F186: 29 | G186: 0 | H186: 29 | I186: N.M. | K186: 29 | L186: 0 | M186: 29 | N186: N.M. | Q186: 29 | R186: 0 | S186: 29 | T186: N.M. | V186: 34.36 | W186: 0 | X186: 34.36 | Y186: N.M. | AA186: 0 | AC186: 0 | AD186: 0 | AE186: 0 | AF186: 0 | AG186: 0 | AH186: 0 | AI186: 0 | AJ186: 0 | AK186: 0 | AL186: 0 | AM186: 5.36 | AN186: 0 | AP186: 0 | AQ186: 0 | AR186: 0 | AS186: 0 | AT186: 29
A187: %,V5618000 | B187: 5618000 | C187: PJM Admin-RP&SDS-OSS | F187: 1078.81 | G187: 1108.19 | H187: -29.38 | I187: -0.02651169926 | K187: 10319.85 | L187: 9445.92 | M187: 873.93 | N187: 0.09251930992 | Q187: 2696.53 | R187: 3726.09 | S187: -1029.56 | T187: -0.2763110929 | V187: 33767.33 | W187: 25723.23 | X187: 8044.1 | Y187: 0.3127173376 | AA187: 2638.2 | AC187: 3336.66 | AD187: 2383.17 | AE187: 887.63 | AF187: 1730.27 | AG187: 1108.19 | AH187: 3382.46 | AI187: 953.49 | AJ187: 6494.27 | AK187: 1510.57 | AL187: 2987.97 | AM187: 2038.39 | AN187: 6080.33 | AP187: 3361.41 | AQ187: 4261.91 | AR187: 1154.43 | AS187: 463.29 | AT187: 1078.81
A188: %,V5618001 | B188: 5618001 | C188: PJM Admin-RP&SDS- Internal | F188: 26064.51 | G188: 14289.28 | H188: 11775.23 | I188: 0.8240604145 | K188: 194787.6 | L188: 176799.5 | M188: 17988.1 | N188: 0.1017429348 | Q188: 81872.37 | R188: 72677.32 | S188: 9195.05 | T188: 0.126518837 | V188: 393971.36 | W188: 393195.59 | X188: 775.77 | Y188: 0.00197298754 | AA188: 30769.11 | AC188: 59349.11 | AD188: 44773.07 | AE188: 24292.17 | AF188: 34095.87 | AG188: 14289.28 | AH188: 31652.36 | AI188: 7187.72 | AJ188: 55073.63 | AK188: 24232.84 | AL188: 26155.4 | AM188: 28725 | AN188: 26156.81 | AP188: 65575.24 | AQ188: 47339.99 | AR188: 27725.57 | AS188: 28082.29 | AT188: 26064.51
A189: %,V5620001 | B189: 5620001 | C189: Station Expenses - Nonassoc | F189: 40419.17 | G189: 28896.07 | H189: 11523.1 | I189: 0.3987774116 | K189: 148470.25 | L189: 131141.13 | M189: 17329.12 | N189: 0.1321409995 | Q189: 103774.75 | R189: 88594.22 | S189: 15180.53 | T189: 0.1713489887 | V189: 376620.83 | W189: 244494.76 | X189: 132126.07 | Y189: 0.540404506 | AA189: 141.55 | AC189: 25544.2 | AD189: 17002.71 | AE189: 28419.13 | AF189: 31279.02 | AG189: 28896.07 | AH189: 28263.51 | AI189: 30018.81 | AJ189: 25540.66 | AK189: 18115.65 | AL189: 29046.67 | AM189: 59458.43 | AN189: 37706.85 | AP189: 9289.94 | AQ189: 35405.56 | AR189: 32482.37 | AS189: 30873.21 | AT189: 40419.17
A190: %,V5630000 | B190: 5630000 | C190: Overhead Line Expenses | F190: 3210.56 | G190: 2268.44 | H190: 942.12 | I190: 0.4153162526 | K190: 8707.92 | L190: 6463.13 | M190: 2244.79 | N190: 0.3473224274 | Q190: 5186.33 | R190: 4865.98 | S190: 320.35 | T190: 0.06583463146 | V190: 33662.78 | W190: 21867.99 | X190: 11794.79 | Y190: 0.5393632428 | AA190: 680.9 | AC190: 864.88 | AD190: 732.27 | AE190: 1692.62 | AF190: 904.92 | AG190: 2268.44 | AH190: 3344.88 | AI190: 3243.07 | AJ190: 1857.34 | AK190: 3281.45 | AL190: 881.04 | AM190: 9156.21 | AN190: 3190.87 | AP190: 1323.13 | AQ190: 2198.46 | AR190: 286.05 | AS190: 1689.72 | AT190: 3210.56
A191: %,V5640000 | B191: 5640000 | C191: Underground Line Expenses | F191: 0 | G191: 0 | H191: 0 | I191: 0 | K191: 0 | L191: 0 | M191: 0 | N191: 0 | Q191: 0 | R191: 0 | S191: 0 | T191: 0 | V191: 0 | W191: 15.85 | X191: -15.85 | Y191: N.M. | AA191: 0 | AC191: 0 | AD191: 0 | AE191: 0 | AF191: 0 | AG191: 0 | AH191: 0 | AI191: 0 | AJ191: 0 | AK191: 0 | AL191: 0 | AM191: 0 | AN191: 0 | AP191: 0 | AQ191: 0 | AR191: 0 | AS191: 0 | AT191: 0
A192: %,V5650002 | B192: 5650002 | C192: Transmssn Elec by Others-NAC | F192: 7314 | G192: 6016.5 | H192: 1297.5 | I192: 0.2156569434 | K192: 46435.5 | L192: 44647.5 | M192: 1788 | N192: 0.04004703511 | Q192: 21903 | R192: 19797 | S192: 2106 | T192: 0.1063797545 | V192: 104694 | W192: 98580 | X192: 6114 | Y192: 0.06202069385 | AA192: 8956.5 | AC192: 15075 | AD192: 9775.5 | AE192: 7228.5 | AF192: 6552 | AG192: 6016.5 | AH192: 7993.5 | AI192: 9369 | AJ192: 8422.5 | AK192: 7107 | AL192: 6253.5 | AM192: 6985.5 | AN192: 12127.5 | AP192: 12823.5 | AQ192: 11709 | AR192: 6781.5 | AS192: 7807.5 | AT192: 7314
A193: %,V5650007 | B193: 5650007 | C193: Tran Elec by Oth-Aff-Trn Price | F193: 0 | G193: 0 | H193: 0 | I193: 0 | K193: 0 | L193: 0 | M193: 0 | N193: 0 | Q193: 0 | R193: 0 | S193: 0 | T193: 0 | V193: 0 | W193: 0 | X193: 0 | Y193: 0 | AA193: 0 | AC193: 0 | AD193: 0 | AE193: 0 | AF193: 0 | AG193: 0 | AH193: 0 | AI193: 0 | AJ193: 0 | AK193: 0 | AL193: 0 | AM193: 0 | AN193: 0 | AP193: 0 | AQ193: 0 | AR193: 0 | AS193: 0 | AT193: 0
A194: %,V5650012 | B194: 5650012 | C194: PJM Trans Enhancement Charge | F194: 232458.6 | G194: 173770.52 | H194: 58688.08 | I194: 0.3377332358 | K194: 1162682.37 | L194: 863222.59 | M194: 299459.78 | N194: 0.3469091095 | Q194: 697691.22 | R194: 516663.84 | S194: 181027.38 | T194: 0.3503774911 | V194: 2319409.32 | W194: 2056948.84 | X194: 262460.48 | Y194: 0.1275969897 | AA194: 170438.3 | AC194: 167900.46 | AD194: 178658.29 | AE194: 169087.17 | AF194: 173806.15 | AG194: 173770.52 | AH194: 173337.14 | AI194: 172514.6 | AJ194: 168427.8 | AK194: 172514.58 | AL194: 172514.55 | AM194: 117768.74 | AN194: 179649.54 | AP194: 232394.04 | AQ194: 232597.11 | AR194: 232712.6 | AS194: 232520.02 | AT194: 232458.6
A195: %,V5650015 | B195: 5650015 | C195: PJM TO Serv Exp - Aff | F195: 12523.8 | G195: 11519.97 | H195: 1003.83 | I195: 0.08713824776 | K195: 71147.03 | L195: 71092.57 | M195: 54.46 | N195: 0.0007660434839 | Q195: 37408.18 | R195: 37288.64 | S195: 119.54 | T195: 0.003205802089 | V195: 166140.1 | W195: 167304.17 | X195: -1164.07 | Y195: -0.006957806252 | AA195: 15917.14 | AC195: 19216.27 | AD195: 14587.66 | AE195: 13698.22 | AF195: 12070.45 | AG195: 11519.97 | AH195: 13654.09 | AI195: 15493.06 | AJ195: 13760.82 | AK195: 11522.91 | AL195: 11322.4 | AM195: 13050.18 | AN195: 16189.61 | AP195: 18125.51 | AQ195: 15613.34 | AR195: 13082.96 | AS195: 11801.42 | AT195: 12523.8
A196: %,V5650016 | B196: 5650016 | C196: PJM NITS Expense - Affiliated | F196: 6971809.39 | G196: 6501533.21 | H196: 470276.18 | I196: 0.07233311971 | K196: 33955793.34 | L196: 31664850.56 | M196: 2290942.78 | N196: 0.07234971078 | Q196: 20689614.77 | R196: 19293895.76 | S196: 1395719.01 | T196: 0.07233992696 | V196: 78835212.95 | W196: 75312915.23 | X196: 3522297.72 | Y196: 0.0467688405 | AA196: 6323263.11 | AC196: 6501533.21 | AD196: 5869421.59 | AE196: 6501533.21 | AF196: 6290829.34 | AG196: 6501533.21 | AH196: 6290829.34 | AI196: 6501533.21 | AJ196: 6501533.21 | AK196: 6290829.34 | AL196: 6501533.21 | AM196: 6291358.93 | AN196: 6501802.37 | AP196: 6971809.39 | AQ196: 6294369.18 | AR196: 6971809.39 | AS196: 6745995.99 | AT196: 6971809.39
A197: %,V5650019 | B197: 5650019 | C197: Affil PJM Trans Enhncement Exp | F197: 366366.23 | G197: 398850.65 | H197: -32484.42 | I197: -0.08144507223 | K197: 1831831.17 | L197: 1994253.25 | M197: -162422.08 | N197: -0.08144506221 | Q197: 1099098.7 | R197: 1196551.96 | S197: -97453.26 | T197: -0.08144507155 | V197: 4624211.45 | W197: 5201997.07 | X197: -577785.62 | Y197: -0.1110699626 | AA197: 458249.12 | AC197: 398850.65 | AD197: 398850.64 | AE197: 398850.66 | AF197: 398850.65 | AG197: 398850.65 | AH197: 398850.65 | AI197: 398850.65 | AJ197: 398850.65 | AK197: 398850.65 | AL197: 398850.65 | AM197: 398883.66 | AN197: 399243.37 | AP197: 366366.24 | AQ197: 366366.23 | AR197: 366366.23 | AS197: 366366.24 | AT197: 366366.23
A198: %,V5650020 | B198: 5650020 | C198: PROVISION RTO Affl Tran Expnse | F198: 18329 | G198: -117469 | H198: 135798 | I198: 1.156032655 | K198: -121520 | L198: -588510 | M198: 466990 | N198: 0.7935124297 | Q198: -9518 | R198: -354006 | S198: 344488 | T198: 0.9731134501 | V198: 7906269 | W198: -4690532 | X198: 12596801 | Y198: 2.685580442 | AA198: -1164502 | AC198: -147629 | AD198: -86875 | AE198: -119381 | AF198: -117156 | AG198: -117469 | AH198: 8170676 | AI198: 171641 | AJ198: 235247 | AK198: 306708 | AL198: 240243 | AM198: 243540 | AN198: -1340266 | AP198: -130194 | AQ198: 18192 | AR198: -44384 | AS198: 16537 | AT198: 18329
A199: %,V5650021 | B199: 5650021 | C199: PJM NITS Expense - Non-Affilia | F199: 88797.59 | G199: 91257.49 | H199: -2459.9 | I199: -0.02695559564 | K199: 442186.16 | L199: 468172.39 | M199: -25986.23 | N199: -0.0555056867 | Q199: 265942.4 | R199: 309177.67 | S199: -43235.27 | T199: -0.1398395622 | V199: 1079442.36 | W199: 980913.68 | X199: 98528.68 | Y199: 0.1004458211 | AA199: 78947.76 | AC199: 84543.12 | AD199: 74451.6 | AE199: 127048.53 | AF199: 90871.65 | AG199: 91257.49 | AH199: 90871.66 | AI199: 91257.45 | AJ199: 91143.26 | AK199: 90757.44 | AL199: 91200.32 | AM199: 90822.04 | AN199: 91204.03 | AP199: 88797.23 | AQ199: 87446.53 | AR199: 88797.56 | AS199: 88347.25 | AT199: 88797.59
A200: %,V5650023 | B200: 5650023 | C200: Amort of PROVISION RTO Expense | F200: 109942.26 | G200: 793952 | H200: -684009.74 | I200: -0.8615253063 | K200: 549711.3 | L200: 3969760 | M200: -3420048.7 | N200: -0.8615253063 | Q200: 329826.78 | R200: 2381856 | S200: -2052029.22 | T200: -0.8615253063 | V200: 4862753.3 | W200: 4001730.57 | X200: 861022.73 | Y200: 0.215162594 | AA200: 4565.51 | AC200: 793952 | AD200: 793952 | AE200: 793952 | AF200: 793952 | AG200: 793952 | AH200: 793952 | AI200: 586515 | AJ200: 586515 | AK200: 586515 | AL200: 586515 | AM200: 586515 | AN200: 586515 | AP200: 109942.26 | AQ200: 109942.26 | AR200: 109942.26 | AS200: 109942.26 | AT200: 109942.26
A201: %,V5650062 | B201: 5650062 | C201: Deferral of Provision RTO Exp | F201: 242484 | G201: 0 | H201: 242484 | I201: N.M. | K201: 3444744.18 | L201: 0 | M201: 3444744.18 | N201: N.M. | Q201: 1235768.8 | R201: 0 | S201: 1235768.8 | T201: N.M. | V201: -10407061.73 | W201: 0 | X201: -10407061.73 | Y201: N.M. | AA201: 0 | AC201: 0 | AD201: 0 | AE201: 0 | AF201: 0 | AG201: 0 | AH201: 0 | AI201: 0 | AJ201: 0 | AK201: -15726307 | AL201: 0 | AM201: 875308.06 | AN201: 999193.03 | AP201: 657992.89 | AQ201: 1550982.49 | AR201: 307967.8 | AS201: 685317 | AT201: 242484
A202: %,V5660000 | B202: 5660000 | C202: Misc Transmission Expenses | F202: 47279.78 | G202: 44850.23 | H202: 2429.55 | I202: 0.05417029077 | K202: 350219.2 | L202: 291489.88 | M202: 58729.32 | N202: 0.2014797907 | Q202: 270149.13 | R202: 179949.1 | S202: 90200.03 | T202: 0.501253021 | V202: 1174924.11 | W202: 1102636.5 | X202: 72287.61 | Y202: 0.06555887638 | AA202: 113415.74 | AC202: 43287.71 | AD202: 68253.07 | AE202: 58513.68 | AF202: 76585.19 | AG202: 44850.23 | AH202: 250785.13 | AI202: -52578.14 | AJ202: 104293.39 | AK202: 87683.25 | AL202: 93127.41 | AM202: 63225.14 | AN202: 278168.73 | AP202: -20804.61 | AQ202: 100874.68 | AR202: 158048.71 | AS202: 64820.64 | AT202: 47279.78
A203: %,V5660011 | B203: 5660011 | C203: Misc Transm Exp - Affiliate | F203: 265.84 | G203: 277.29 | H203: -11.45 | I203: -0.04129250965 | K203: 1376.36 | L203: 1464.52 | M203: -88.16 | N203: -0.06019719772 | Q203: 797.42 | R203: 832.66 | S203: -35.24 | T203: -0.04232219633 | V203: 3281.6 | W203: 3416.25 | X203: -134.65 | Y203: -0.03941456275 | AA203: 405.62 | AC203: 268.33 | AD203: 363.53 | AE203: 278.08 | AF203: 277.29 | AG203: 277.29 | AH203: 355.43 | AI203: 252.07 | AJ203: 257.31 | AK203: 251.06 | AL203: 264.04 | AM203: 276.21 | AN203: 249.12 | AP203: 259.5 | AQ203: 319.44 | AR203: 359.35 | AS203: 172.23 | AT203: 265.84
A204: %,V5670001 | B204: 5670001 | C204: Rents - Nonassociated | F204: 0 | G204: 0 | H204: 0 | I204: 0 | K204: 272.93 | L204: 250 | M204: 22.93 | N204: 0.09172 | Q204: 272.93 | R204: 250 | S204: 22.93 | T204: 0.09172 | V204: 2058.05 | W204: 250 | X204: 1808.05 | Y204: 7.2322 | AA204: 0 | AC204: 0 | AD204: 0 | AE204: 250 | AF204: 0 | AG204: 0 | AH204: 0 | AI204: 0 | AJ204: 0 | AK204: 1630.19 | AL204: 0 | AM204: 100 | AN204: 54.93 | AP204: 0 | AQ204: 0 | AR204: 272.93 | AS204: 0 | AT204: 0
A205: %,V5670002 | B205: 5670002 | C205: Rents - Associated | F205: 78536.65 | G205: 0 | H205: 78536.65 | I205: N.M. | K205: 157321.93 | L205: 0 | M205: 157321.93 | N205: N.M. | Q205: 157321.93 | R205: 0 | S205: 157321.93 | T205: N.M. | V205: 157321.93 | W205: 0 | X205: 157321.93 | Y205: N.M. | AA205: 0 | AC205: 0 | AD205: 0 | AE205: 0 | AF205: 0 | AG205: 0 | AH205: 0 | AI205: 0 | AJ205: 0 | AK205: 0 | AL205: 0 | AM205: 0 | AN205: 0 | AP205: 0 | AQ205: 0 | AR205: 0 | AS205: 78785.28 | AT205: 78536.65
A206: %,FACCOUNT,TGL_FERC_ACCT,XDYYNNY01,N560-567 | C206: Transmission Operations | F206: 8698152.31 | G206: 8253836.29 | H206: 444316.02 | I206: 0.05383145538 | K206: 44743523.78 | L206: 40982449.96 | M206: 3761073.82 | N206: 0.09177279113 | Q206: 26359687.54 | R206: 24833030.84 | S206: 1526656.7 | T206: 0.06147685757 | V206: 97036444.79 | W206: 88933481.18 | X206: 8102963.61 | Y206: 0.09111263275 | AA206: 6297064.24 | AC206: 8391016.91 | AD206: 7758402.21 | AE206: 8323222.39 | AF206: 8255972.16 | AG206: 8253836.29 | AH206: 16640535.46 | AI206: 8345787.51 | AJ206: 8559516.98 | AK206: -7342220.87 | AL206: 8542828.78 | AM206: 9195278.14 | AN206: 8351195.01 | AP206: 9050517.82 | AQ206: 9333318.42 | AR206: 8705008.82 | AS206: 8956526.41 | AT206: 8698152.31
A208: %,V5757000 | B208: 5757000 | C208: PJM Admin-MAM&SC- OSS | F208: 2414.5 | G208: 5431 | H208: =+F208-G208 -> -3016.5 | I208: =IF(G208<0,IF(H208=0,0,IF(OR(G208=0,F208=0),"N.M.",IF(ABS(H208/G208)>=10,"N.M.",H208/(-G208)))),IF(H208=0,0,IF(OR(G208=0,F208=0),"N.M.",IF(ABS(H208/G208)>=10,"N.M.",H208/G208)))) -> -0.5554225741 | K208: 25591.25 | L208: 25989.15 | M208: =+K208-L208 -> -397.9 | N208: =IF(L208<0,IF(M208=0,0,IF(OR(L208=0,K208=0),"N.M.",IF(ABS(M208/L208)>=10,"N.M.",M208/(-L208)))),IF(M208=0,0,IF(OR(L208=0,K208=0),"N.M.",IF(ABS(M208/L208)>=10,"N.M.",M208/L208)))) -> -0.01531023523 | Q208: 7729.04 | R208: 12153.53 | S208: =+Q208-R208 -> -4424.49 | T208: =IF(R208<0,IF(S208=0,0,IF(OR(R208=0,Q208=0),"N.M.",IF(ABS(S208/R208)>=10,"N.M.",S208/(-R208)))),IF(S208=0,0,IF(OR(R208=0,Q208=0),"N.M.",IF(ABS(S208/R208)>=10,"N.M.",S208/R208)))) -> -0.3640497864 | V208: 96391.74 | W208: 75523.92 | X208: =+V208-W208 -> 20867.82 | Y208: =IF(W208<0,IF(X208=0,0,IF(OR(W208=0,V208=0),"N.M.",IF(ABS(X208/W208)>=10,"N.M.",X208/(-W208)))),IF(X208=0,0,IF(OR(W208=0,V208=0),"N.M.",IF(ABS(X208/W208)>=10,"N.M.",X208/W208)))) -> 0.2763074268 | AA208: 7812.63 | AC208: 6761.19 | AD208: 7074.43 | AE208: 2192.08 | AF208: 4530.45 | AG208: 5431 | AH208: 7744.23 | AI208: 4983.45 | AJ208: 18902.24 | AK208: 5308.89 | AL208: 7096.63 | AM208: 6734.4 | AN208: 20030.65 | AP208: 9068.52 | AQ208: 8793.69 | AR208: 4006.76 | AS208: 1307.78 | AT208: 2414.5
A209: %,V5757001 | B209: 5757001 | C209: PJM Admin-MAM&SC- Internal | F209: 77569.92 | G209: 94620.05 | H209: =+F209-G209 -> -17050.13 | I209: =IF(G209<0,IF(H209=0,0,IF(OR(G209=0,F209=0),"N.M.",IF(ABS(H209/G209)>=10,"N.M.",H209/(-G209)))),IF(H209=0,0,IF(OR(G209=0,F209=0),"N.M.",IF(ABS(H209/G209)>=10,"N.M.",H209/G209)))) -> -0.1801957408 | K209: 523248.55 | L209: 585132.11 | M209: =+K209-L209 -> -61883.56 | N209: =IF(L209<0,IF(M209=0,0,IF(OR(L209=0,K209=0),"N.M.",IF(ABS(M209/L209)>=10,"N.M.",M209/(-L209)))),IF(M209=0,0,IF(OR(L209=0,K209=0),"N.M.",IF(ABS(M209/L209)>=10,"N.M.",M209/L209)))) -> -0.1057599796 | Q209: 253254.17 | R209: 277302.88 | S209: =+Q209-R209 -> -24048.71 | T209: =IF(R209<0,IF(S209=0,0,IF(OR(R209=0,Q209=0),"N.M.",IF(ABS(S209/R209)>=10,"N.M.",S209/(-R209)))),IF(S209=0,0,IF(OR(R209=0,Q209=0),"N.M.",IF(ABS(S209/R209)>=10,"N.M.",S209/R209)))) -> -0.08672362148 | V209: 1233746.01 | W209: 1323541.1 | X209: =+V209-W209 -> -89795.09 | Y209: =IF(W209<0,IF(X209=0,0,IF(OR(W209=0,V209=0),"N.M.",IF(ABS(X209/W209)>=10,"N.M.",X209/(-W209)))),IF(X209=0,0,IF(OR(W209=0,V209=0),"N.M.",IF(ABS(X209/W209)>=10,"N.M.",X209/W209)))) -> -0.06784457997 | AA209: 109004.36 | AC209: 158273.45 | AD209: 149555.78 | AE209: 80954.13 | AF209: 101728.7 | AG209: 94620.05 | AH209: 81406.89 | AI209: 53996.14 | AJ209: 162453.75 | AK209: 104306.15 | AL209: 77560.36 | AM209: 120547.96 | AN209: 110226.21 | AP209: 147592.13 | AQ209: 122402.25 | AR209: 99364.88 | AS209: 76319.37 | AT209: 77569.92
A210: %,FACCOUNT,TGL_FERC_ACCT,XDYYNNY01,N575-576 | C210: Regional Market Expense | F210: 79984.42 | G210: 100051.05 | H210: =+F210-G210 -> -20066.63 | I210: =IF(G210<0,IF(H210=0,0,IF(OR(G210=0,F210=0),"N.M.",IF(ABS(H210/G210)>=10,"N.M.",H210/(-G210)))),IF(H210=0,0,IF(OR(G210=0,F210=0),"N.M.",IF(ABS(H210/G210)>=10,"N.M.",H210/G210)))) -> -0.2005639121 | K210: 548839.8 | L210: 611121.26 | M210: =+K210-L210 -> -62281.46 | N210: =IF(L210<0,IF(M210=0,0,IF(OR(L210=0,K210=0),"N.M.",IF(ABS(M210/L210)>=10,"N.M.",M210/(-L210)))),IF(M210=0,0,IF(OR(L210=0,K210=0),"N.M.",IF(ABS(M210/L210)>=10,"N.M.",M210/L210)))) -> -0.1019134239 | Q210: 260983.21 | R210: 289456.41 | S210: =+Q210-R210 -> -28473.2 | T210: =IF(R210<0,IF(S210=0,0,IF(OR(R210=0,Q210=0),"N.M.",IF(ABS(S210/R210)>=10,"N.M.",S210/(-R210)))),IF(S210=0,0,IF(OR(R210=0,Q210=0),"N.M.",IF(ABS(S210/R210)>=10,"N.M.",S210/R210)))) -> -0.09836783369 | V210: 1330137.75 | W210: 1399065.02 | X210: =+V210-W210 -> -68927.27 | Y210: =IF(W210<0,IF(X210=0,0,IF(OR(W210=0,V210=0),"N.M.",IF(ABS(X210/W210)>=10,"N.M.",X210/(-W210)))),IF(X210=0,0,IF(OR(W210=0,V210=0),"N.M.",IF(ABS(X210/W210)>=10,"N.M.",X210/W210)))) -> -0.04926666668 | AA210: 116816.99 | AC210: 165034.64 | AD210: 156630.21 | AE210: 83146.21 | AF210: 106259.15 | AG210: 100051.05 | AH210: 89151.12 | AI210: 58979.59 | AJ210: 181355.99 | AK210: 109615.04 | AL210: 84656.99 | AM210: 127282.36 | AN210: 130256.86 | AP210: 156660.65 | AQ210: 131195.94 | AR210: 103371.64 | AS210: 77627.15 | AT210: 79984.42
A212: %,V5772000 | B212: 5772000 | C212: Oper-Energy Storage Eqp-Majr | F212: 0 | G212: 0 | H212: =+F212-G212 -> 0 | I212: =IF(G212<0,IF(H212=0,0,IF(OR(G212=0,F212=0),"N.M.",IF(ABS(H212/G212)>=10,"N.M.",H212/(-G212)))),IF(H212=0,0,IF(OR(G212=0,F212=0),"N.M.",IF(ABS(H212/G212)>=10,"N.M.",H212/G212)))) -> 0 | K212: 0 | L212: 0 | M212: =+K212-L212 -> 0 | N212: =IF(L212<0,IF(M212=0,0,IF(OR(L212=0,K212=0),"N.M.",IF(ABS(M212/L212)>=10,"N.M.",M212/(-L212)))),IF(M212=0,0,IF(OR(L212=0,K212=0),"N.M.",IF(ABS(M212/L212)>=10,"N.M.",M212/L212)))) -> 0 | Q212: 0 | R212: 0 | S212: =+Q212-R212 -> 0 | V212: 0 | W212: 0 | X212: =+V212-W212 -> 0 | Y212: =IF(W212<0,IF(X212=0,0,IF(OR(W212=0,V212=0),"N.M.",IF(ABS(X212/W212)>=10,"N.M.",X212/(-W212)))),IF(X212=0,0,IF(OR(W212=0,V212=0),"N.M.",IF(ABS(X212/W212)>=10,"N.M.",X212/W212)))) -> 0 | AA212: 0 | AC212: 0 | AD212: 0 | AE212: 0 | AF212: 0 | AG212: 0 | AH212: 0 | AI212: 0 | AJ212: 0 | AK212: 0 | AL212: 1.83 | AM212: -1.83 | AN212: 0 | AP212: 0 | AQ212: 0 | AR212: 0 | AS212: 0 | AT212: 0
A213: %,V5775000 | B213: 5775000 | C213: Oper Supplies and Expense NMjr | F213: 0 | G213: -12.84 | H213: =+F213-G213 -> 12.84 | I213: =IF(G213<0,IF(H213=0,0,IF(OR(G213=0,F213=0),"N.M.",IF(ABS(H213/G213)>=10,"N.M.",H213/(-G213)))),IF(H213=0,0,IF(OR(G213=0,F213=0),"N.M.",IF(ABS(H213/G213)>=10,"N.M.",H213/G213)))) -> N.M. | K213: 0 | L213: 0 | M213: =+K213-L213 -> 0 | N213: =IF(L213<0,IF(M213=0,0,IF(OR(L213=0,K213=0),"N.M.",IF(ABS(M213/L213)>=10,"N.M.",M213/(-L213)))),IF(M213=0,0,IF(OR(L213=0,K213=0),"N.M.",IF(ABS(M213/L213)>=10,"N.M.",M213/L213)))) -> 0 | Q213: 0 | R213: 0 | S213: =+Q213-R213 -> 0 | V213: 0 | W213: 0 | X213: =+V213-W213 -> 0 | Y213: =IF(W213<0,IF(X213=0,0,IF(OR(W213=0,V213=0),"N.M.",IF(ABS(X213/W213)>=10,"N.M.",X213/(-W213)))),IF(X213=0,0,IF(OR(W213=0,V213=0),"N.M.",IF(ABS(X213/W213)>=10,"N.M.",X213/W213)))) -> 0 | AA213: 0 | AC213: 0 | AD213: 0 | AE213: 0 | AF213: 12.84 | AG213: -12.84 | AH213: 3.77 | AI213: 0.33 | AJ213: -4.1 | AK213: 0 | AL213: 0 | AM213: 0 | AN213: 0 | AP213: 0 | AQ213: 0 | AR213: 0 | AS213: 0 | AT213: 0
A214: %,FACCOUNT,TGL_FERC_ACCT,XDYYNNY01,N5771-5775 | C214: Energy Storage Operation Expense | F214: 0 | G214: -12.84 | H214: =+F214-G214 -> 12.84 | I214: =IF(G214<0,IF(H214=0,0,IF(OR(G214=0,F214=0),"N.M.",IF(ABS(H214/G214)>=10,"N.M.",H214/(-G214)))),IF(H214=0,0,IF(OR(G214=0,F214=0),"N.M.",IF(ABS(H214/G214)>=10,"N.M.",H214/G214)))) -> N.M. | K214: 0 | L214: 0 | M214: =+K214-L214 -> 0 | N214: =IF(L214<0,IF(M214=0,0,IF(OR(L214=0,K214=0),"N.M.",IF(ABS(M214/L214)>=10,"N.M.",M214/(-L214)))),IF(M214=0,0,IF(OR(L214=0,K214=0),"N.M.",IF(ABS(M214/L214)>=10,"N.M.",M214/L214)))) -> 0 | Q214: 0 | R214: 0 | S214: =+Q214-R214 -> 0 | V214: 0 | W214: 0 | X214: =+V214-W214 -> 0 | Y214: =IF(W214<0,IF(X214=0,0,IF(OR(W214=0,V214=0),"N.M.",IF(ABS(X214/W214)>=10,"N.M.",X214/(-W214)))),IF(X214=0,0,IF(OR(W214=0,V214=0),"N.M.",IF(ABS(X214/W214)>=10,"N.M.",X214/W214)))) -> 0 | AA214: 0 | AC214: 0 | AD214: 0 | AE214: 0 | AF214: 12.84 | AG214: -12.84 | AH214: 3.77 | AI214: 0.33 | AJ214: -4.1 | AK214: 0 | AL214: 1.83 | AM214: -1.83 | AN214: 0 | AP214: 0 | AQ214: 0 | AR214: 0 | AS214: 0 | AT214: 0
A216: %,V5800000 | B216: 5800000 | C216: Oper Supervision & Engineering | F216: 259495.87 | G216: 204283.14 | H216: =+F216-G216 -> 55212.73 | I216: =IF(G216<0,IF(H216=0,0,IF(OR(G216=0,F216=0),"N.M.",IF(ABS(H216/G216)>=10,"N.M.",H216/(-G216)))),IF(H216=0,0,IF(OR(G216=0,F216=0),"N.M.",IF(ABS(H216/G216)>=10,"N.M.",H216/G216)))) -> 0.2702755107 | K216: 506295.94 | L216: 772385.99 | M216: =+K216-L216 -> -266090.05 | N216: =IF(L216<0,IF(M216=0,0,IF(OR(L216=0,K216=0),"N.M.",IF(ABS(M216/L216)>=10,"N.M.",M216/(-L216)))),IF(M216=0,0,IF(OR(L216=0,K216=0),"N.M.",IF(ABS(M216/L216)>=10,"N.M.",M216/L216)))) -> -0.344503983 | Q216: 483562.87 | R216: 540328.44 | S216: =+Q216-R216 -> -56765.57 | T216: =IF(R216<0,IF(S216=0,0,IF(OR(R216=0,Q216=0),"N.M.",IF(ABS(S216/R216)>=10,"N.M.",S216/(-R216)))),IF(S216=0,0,IF(OR(R216=0,Q216=0),"N.M.",IF(ABS(S216/R216)>=10,"N.M.",S216/R216)))) -> -0.1050575276 | V216: 168395.18 | W216: 1451741.18 | X216: =+V216-W216 -> -1283346 | Y216: =IF(W216<0,IF(X216=0,0,IF(OR(W216=0,V216=0),"N.M.",IF(ABS(X216/W216)>=10,"N.M.",X216/(-W216)))),IF(X216=0,0,IF(OR(W216=0,V216=0),"N.M.",IF(ABS(X216/W216)>=10,"N.M.",X216/W216)))) -> -0.8840046819 | AA216: 228073.75 | AC216: -27859.28 | AD216: 259916.83 | AE216: 250455.52 | AF216: 85589.78 | AG216: 204283.14 | AH216: 188720.03 | AI216: -153811.89 | AJ216: -4457.35 | AK216: -673.2 | AL216: -56595.32 | AM216: -389632.91 | AN216: 78549.88 | AP216: -21590.03 | AQ216: 44323.1 | AR216: 143349.85 | AS216: 80717.15 | AT216: 259495.87
A217: %,V5810000 | B217: 5810000 | C217: Load Dispatching | F217: 703.3 | G217: 1100.74 | H217: -397.44 | I217: -0.3610661918 | K217: 1096.77 | L217: 1827.02 | M217: -730.25 | N217: -0.3996945846 | Q217: 703.3 | R217: 1638.24 | S217: -934.94 | T217: -0.5706978221 | V217: 2023.14 | W217: 2863.72 | X217: -840.58 | Y217: -0.2935273002 | AA217: 51.59 | AC217: 78.67 | AD217: 110.11 | AE217: 117.53 | AF217: 419.97 | AG217: 1100.74 | AH217: 587.23 | AI217: 0 | AJ217: 0 | AK217: 120.89 | AL217: 108.7 | AM217: 43.98 | AN217: 65.57 | AP217: 0 | AQ217: 393.47 | AR217: 0 | AS217: 0 | AT217: 703.3
A218: %,V5820000 | B218: 5820000 | C218: Station Expenses | F218: 36659.52 | G218: 18002.68 | H218: 18656.84 | I218: 1.036336812 | K218: 129905.56 | L218: 131294.65 | M218: -1389.09 | N218: -0.01057994366 | Q218: 80776.52 | R218: 67922.9 | S218: 12853.62 | T218: 0.1892383865 | V218: 404381.23 | W218: 370025.66 | X218: 34355.57 | Y218: 0.09284645286 | AA218: 30332.27 | AC218: 19031.36 | AD218: 44340.39 | AE218: 17424.9 | AF218: 32495.32 | AG218: 18002.68 | AH218: 35364.84 | AI218: 27294.53 | AJ218: 40688.97 | AK218: 38868.21 | AL218: 44668.78 | AM218: 57941.77 | AN218: 29648.57 | AP218: 24667.69 | AQ218: 24461.35 | AR218: 15374.92 | AS218: 28742.08 | AT218: 36659.52
A219: %,V5830000 | B219: 5830000 | C219: Overhead Line Expenses | F219: 106472.56 | G219: 126467.99 | H219: -19995.43 | I219: -0.1581066482 | K219: 936749.21 | L219: 591466.03 | M219: 345283.18 | N219: 0.5837751663 | Q219: 496237.44 | R219: 372447.81 | S219: 123789.63 | T219: 0.3323677215 | V219: 1602631.64 | W219: 723606.94 | X219: 879024.7 | Y219: 1.21478202 | AA219: 14400.15 | AC219: 81851.87 | AD219: 137166.35 | AE219: 178697.1 | AF219: 67282.72 | AG219: 126467.99 | AH219: 74396.83 | AI219: 54720.32 | AJ219: 69487.3 | AK219: 103742.99 | AL219: 125719.3 | AM219: 152031.98 | AN219: 85783.71 | AP219: 115601.89 | AQ219: 324909.88 | AR219: 156848.62 | AS219: 232916.26 | AT219: 106472.56
... 416 more rows

Sheet Modification History (hidden)
A2: BU_Name | C2: Scope-based
A3: Contact Person | C3: Neal Hartley
A4: Department Owner | C4: Financial Reporting
A5: Account Tree | C5: GL_FERC_ACCT
A6: Business Unit Tree | C6: Scope-based
A7: Sunset Date
A8: Report Statement Type | C8: Reporting Package
A9: Report Description | C9: IS, BS, O&M, and Trial Bal
A10: Title (Builtin) | C10: FERC Comparative Statements
A11: Author (Builtin) | C11: Financial Reporting / Neal Hartley
A12: Comments (Builtin) | C12: Acct: GL_FERC_ACCT BU: Scope-based
A13: Subject (Builtin)
A14: Category (Builtin)
A15: Keywords (Builtin)
A18: 2016-08-01 | C18: Neal Hartley | E18: Created this new report from GLR3000V
A19: 2018-09-05 | C19: Neal Hartley | E19: Change Effective tax rate on lines 93 & 166 from 35% to 21%

Sheet O&M
A1: %,LACTUALS,SBAL | B1: %,ATF,FACCOUNT | C1: %,ATT,FDESCR,UDESCR | F1: %,LACTUALS,SPER | G1: %,LACTUALS,SPER-1YR | H1: %,C | I1: %,C | K1: %,LACTUALS,SYTD | L1: %,LACTUALS,SYTD-1YR | M1: %,C | N1: %,C | Q1: %,LACTUALS,SQTR | R1: %,LACTUALS,SQTR-1YR | S1: %,C | T1: %,C | V1: %,LACTUALS,SROLLING12 | W1: %,LACTUALS,SROLNG12-1Y | X1: %,C | Y1: %,C
C2: Kentucky Power Corp Consol | G2: Kentucky Power Corp Consol | L2: Kentucky Power Corp Consol | R2: Kentucky Power Corp Consol | W2: Kentucky Power Corp Consol
C3: May 2026 | G3: As of: May 2026 | L3: As of: May 2026 | R3: As of: May 2026 | W3: As of: May 2026
B4: Run Date: 06/11/2026 07:10 AM
B5: GLR6283P | C5: Rpt ID: FERC_IS1 Layout: FERC_IS1 | F5: ONE MONTH ENDED | H5: Variance | K5: YEAR TO DATE | M5: Variance | Q5: THREE MONTHS ENDED | S5: Variance | V5: TWELVE MONTHS ENDED | X5: Variance
B6: KYP_CORP_CONSOL | C6: V2099-01-01 Acct: GL_FERC_ACCT BU: GL_PRPT_CONS | F6: 2026 | G6: 2025 | H6: $ | I6: % | K6: 2026 | L6: 2025 | M6: $ | N6: % | O6: Explanation | Q6: 2026 | R6: 2025 | S6: $ | T6: % | V6: 2026 | W6: 2025 | X6: $ | Y6: %
C8: OPERATING AND MAINTENANCE DETAIL
C9: FERC Page 320
B10: Line 1 | C10: 1. POWER PRODUCTION EXPENSES
B11: Line 2 | C11: A. STEAM POWER GENERATION
B12: Line 3 | C12: Operation
A13: %,V5000000 | B13: 5000000 | C13: Oper Supervision & Engineering | F13: 388952.38 | G13: 304828.88 | H13: =+F13-G13 -> 84123.5 | I13: =IF(G13<0,IF(H13=0,0,IF(OR(G13=0,F13=0),"N.M.",IF(ABS(H13/G13)>=10,"N.M.",H13/(-G13)))),IF(H13=0,0,IF(OR(G13=0,F13=0),"N.M.",IF(ABS(H13/G13)>=10,"N.M.",H13/G13)))) -> 0.2759695866 | K13: 1916639.39 | L13: 1611238.89 | M13: =+K13-L13 -> 305400.5 | N13: =IF(L13<0,IF(M13=0,0,IF(OR(L13=0,K13=0),"N.M.",IF(ABS(M13/L13)>=10,"N.M.",M13/(-L13)))),IF(M13=0,0,IF(OR(L13=0,K13=0),"N.M.",IF(ABS(M13/L13)>=10,"N.M.",M13/L13)))) -> 0.1895438981 | Q13: 1143954.19 | R13: 930623.43 | S13: =+Q13-R13 -> 213330.76 | T13: =IF(R13<0,IF(S13=0,0,IF(OR(R13=0,Q13=0),"N.M.",IF(ABS(S13/R13)>=10,"N.M.",S13/(-R13)))),IF(S13=0,0,IF(OR(R13=0,Q13=0),"N.M.",IF(ABS(S13/R13)>=10,"N.M.",S13/R13)))) -> 0.2292342457 | V13: 4808473.09 | W13: 4075249.41 | X13: =+V13-W13 -> 733223.68 | Y13: =IF(W13<0,IF(X13=0,0,IF(OR(W13=0,V13=0),"N.M.",IF(ABS(X13/W13)>=10,"N.M.",X13/(-W13)))),IF(X13=0,0,IF(OR(W13=0,V13=0),"N.M.",IF(ABS(X13/W13)>=10,"N.M.",X13/W13)))) -> 0.1799211794
A14: %,V5000002 | B14: 5000002 | C14: Dresden Oper Supervision & Eng | F14: 0 | G14: 0 | H14: 0 | I14: 0 | K14: 0 | L14: 0 | M14: 0 | N14: 0 | Q14: 0 | R14: 0 | S14: 0 | T14: 0 | V14: -33.12 | W14: 0 | X14: -33.12 | Y14: N.M.
A15: %,V5000003 | B15: 5000003 | C15: Cnstr Srchrge Op Sup & Eng Exp | F15: 0 | G15: 0 | H15: 0 | I15: 0 | K15: 0 | L15: 0 | M15: 0 | N15: 0 | Q15: 0 | R15: 0 | S15: 0 | T15: 0 | V15: 64.34 | W15: 0 | X15: 64.34 | Y15: N.M.
A16: %,FACCOUNT,X,TGL_FERC_ACCT,N5000 | B16: Line 4 | C16: (500) Operation Supervision and Engineering | F16: 388952.38 | G16: 304828.88 | H16: 84123.5 | I16: 0.2759695866 | K16: 1916639.39 | L16: 1611238.89 | M16: 305400.5 | N16: 0.1895438981 | Q16: 1143954.19 | R16: 930623.43 | S16: 213330.76 | T16: 0.2292342457 | V16: 4808504.31 | W16: 4075249.41 | X16: 733254.9 | Y16: 0.1799288402
A17: %,V5010000 | B17: 5010000 | C17: Fuel | F17: 575988.92 | G17: 536336.11 | H17: 39652.81 | I17: 0.07393276205 | K17: 2607777.01 | L17: 3660843.31 | M17: -1053066.3 | N17: -0.2876567531 | Q17: 1575859.19 | R17: 2350285.85 | S17: -774426.66 | T17: -0.3295031794 | V17: 6697399.21 | W17: 7396104.18 | X17: -698704.97 | Y17: -0.09446932507
A18: %,V5010001 | B18: 5010001 | C18: Fuel Consumed | F18: 2925839.84 | G18: 1362557.52 | H18: 1563282.32 | I18: 1.147314735 | K18: 26040656.82 | L18: 23523786.85 | M18: 2516869.97 | N18: 0.1069925512 | Q18: 9366272.94 | R18: 7768972.06 | S18: 1597300.88 | T18: 0.2056000289 | V18: 76826609.91 | W18: 78036523.32 | X18: -1209913.41 | Y18: -0.01550445046
A19: %,V5010003 | B19: 5010003 | C19: Fuel - Procure Unload & Handle | F19: 181712.27 | G19: 80402.99 | H19: 101309.28 | I19: 1.260018813 | K19: 1403986.5 | L19: 1248281.58 | M19: 155704.92 | N19: 0.1247354143 | Q19: 550038.69 | R19: 454628.36 | S19: 95410.33 | T19: 0.2098644484 | V19: 4227337.05 | W19: 3772133.28 | X19: 455203.77 | Y19: 0.1206754206
A20: %,V5010005 | B20: 5010005 | C20: Fuel - Deferred | F20: 8714577 | G20: 4417871.505 | H20: 4296705.495 | I20: 0.9725736681 | K20: 424366.602 | L20: 4895937.22 | M20: -4471570.618 | N20: -0.9133227035 | Q20: 18735354.49 | R20: 7267788.389 | S20: 11467566.1 | T20: 1.577861859 | V20: 665576.215 | W20: -1066415.02 | X20: 1731991.235 | Y20: 1.624124944
A21: %,V5010012 | B21: 5010012 | C21: Ash Sales Proceeds | F21: 596.77 | G21: 1777.24 | H21: -1180.47 | I21: -0.6642153001 | K21: 2818.07 | L21: 3755.22 | M21: -937.15 | N21: -0.2495592801 | Q21: 1468.84 | R21: 679.75 | S21: 789.09 | T21: 1.160853255 | V21: 6337.79 | W21: 16131.1 | X21: -9793.31 | Y21: -0.6071073888
A22: %,V5010013 | B22: 5010013 | C22: Fuel Survey Activity | F22: 0 | G22: 0 | H22: 0 | I22: 0 | K22: 0 | L22: 0 | M22: 0 | N22: 0 | Q22: 0 | R22: 0 | S22: 0 | T22: 0 | V22: 3906533.13 | W22: 0 | X22: 3906533.13 | Y22: N.M.
A23: %,V5010019 | B23: 5010019 | C23: Fuel Oil Consumed | F23: 1049252.52 | G23: 160652.59 | H23: 888599.93 | I23: 5.531189569 | K23: 2178850.16 | L23: 1363298.14 | M23: 815552.02 | N23: 0.5982198582 | Q23: 1638256.05 | R23: 924231.05 | S23: 714025 | T23: 0.7725611469 | V23: 4953880.1 | W23: 3622215.17 | X23: 1331664.93 | Y23: 0.3676382731
A24: %,V5010020 | B24: 5010020 | C24: Nat Gas Consumed Steam | F24: 2065142.61 | G24: 2453953.33 | H24: -388810.72 | I24: -0.1584425895 | K24: 23911990.28 | L24: 17323341.94 | M24: 6588648.34 | N24: 0.3803335617 | Q24: 7809497.78 | R24: 7502596.7 | S24: 306901.08 | T24: 0.04090598126 | V24: 45464844.27 | W24: 30564445.2 | X24: 14900399.07 | Y24: 0.4875075917
A25: %,V5010021 | B25: 5010021 | C25: Transp Gas Consumed Steam | F25: 14646.32 | G25: 40535.42 | H25: -25889.1 | I25: -0.6386784693 | K25: 242956.13 | L25: 194033.35 | M25: 48922.78 | N25: 0.2521359344 | Q25: 124316.77 | R25: 126960.03 | S25: -2643.26 | T25: -0.02081962331 | V25: 549695.07 | W25: 322229.29 | X25: 227465.78 | Y25: 0.7059127989
A26: %,V5010027 | B26: 5010027 | C26: Gypsum handling/disposal costs | F26: 110742.75 | G26: 52426.61 | H26: 58316.14 | I26: 1.112338562 | K26: 673203.84 | L26: 526352.04 | M26: 146851.8 | N26: 0.2789992037 | Q26: 445612.25 | R26: 311362.32 | S26: 134249.93 | T26: 0.4311694813 | V26: 1539199.45 | W26: 1446384.37 | X26: 92815.08 | Y26: 0.06417041135
A27: %,V5010028 | B27: 5010028 | C27: Gypsum Sales Proceeds | F27: -44766.07 | G27: -96967.84 | H27: 52201.77 | I27: 0.5383410624 | K27: -472063.58 | L27: -551663.96 | M27: 79600.38 | N27: 0.144291427 | Q27: -312582.9 | R27: -188873.59 | S27: -123709.31 | T27: -0.6549846911 | V27: -1142841.79 | W27: -1239079.84 | X27: 96238.05 | Y27: 0.07766896603
A28: %,V5010033 | B28: 5010033 | C28: Coal Procurement Sales Net-NA | F28: 0 | G28: 0 | H28: 0 | I28: 0 | K28: 281689.3 | L28: 0 | M28: 281689.3 | N28: N.M. | Q28: 281689.3 | R28: 0 | S28: 281689.3 | T28: N.M. | V28: 281689.3 | W28: 0 | X28: 281689.3 | Y28: N.M.
A29: %,V5010034 | B29: 5010034 | C29: Gas Transp Res Fees-Steam | F29: 503359.2 | G29: 455968.8 | H29: 47390.4 | I29: 0.103933427 | K29: 2461826.88 | L29: 2609308.08 | M29: -147481.2 | N29: -0.05652119086 | Q29: 1496666.88 | R29: 1545919.2 | S29: -49252.32 | T29: -0.03185956937 | V29: 5955724.86 | W29: 6236172.2 | X29: -280447.34 | Y29: -0.04497107056
A30: %,V5010040 | B30: 5010040 | C30: Gas Procuremnt Sales Net | F30: -27144.89 | G30: 4182.54 | H30: -31327.43 | I30: -7.490049109 | K30: 123130.22 | L30: 237983.72 | M30: -114853.5 | N30: -0.4826107433 | Q30: 123130.38 | R30: -57286.739 | S30: 180417.119 | T30: 3.149369682 | V30: 509438.4 | W30: 1872076.34 | X30: -1362637.94 | Y30: -0.7278751998
A31: %,FACCOUNT,X,TGL_FERC_ACCT,N5010 | B31: Line 5 | C31: (501) Fuel | F31: 16069947.24 | G31: 9469696.815 | H31: 6600250.425 | I31: 0.6969864563 | K31: 59881188.23 | L31: 55035257.49 | M31: 4845930.742 | N31: 0.08805138675 | Q31: 41835580.66 | R31: 28007263.38 | S31: 13828317.28 | T31: 0.4937403949 | V31: 150441423 | W31: 130978919.6 | X31: 19462503.37 | Y31: 0.1485926395
A32: %,V5020000 | B32: 5020000 | C32: Steam Expenses | F32: 160829.83 | G32: 147448.07 | H32: 13381.76 | I32: 0.09075574879 | K32: 837911.26 | L32: 826504 | M32: 11407.26 | N32: 0.01380182068 | Q32: 496704.97 | R32: 463640.7 | S32: 33064.27 | T32: 0.07131442516 | V32: 2027844.59 | W32: 1661652.77 | X32: 366191.82 | Y32: 0.2203780637
A33: %,V5020002 | B33: 5020002 | C33: Urea Expense | F33: 631.06 | G33: 1813.2 | H33: -1182.14 | I33: -0.6519633797 | K33: 350585.89 | L33: 308078.47 | M33: 42507.42 | N33: 0.1379759514 | Q33: 105467.88 | R33: 88396.22 | S33: 17071.66 | T33: 0.1931265839 | V33: 956997 | W33: 1080273.36 | X33: -123276.36 | Y33: -0.1141158938
A34: %,V5020004 | B34: 5020004 | C34: Lime-Related Expenses | F34: 110417.97 | G34: 56715.14 | H34: 53702.83 | I34: 0.9468870217 | K34: 906134.63 | L34: 688300.93 | M34: 217833.7 | N34: 0.3164803221 | Q34: 341973.12 | R34: 286584.03 | S34: 55389.09 | T34: 0.1932734703 | V34: 2627867 | W34: 2386199.04 | X34: 241667.96 | Y34: 0.1012773687
A35: %,FACCOUNT,X,TGL_FERC_ACCT,N5020 | B35: Line 6 | C35: (502) Steam Expenses | F35: 271878.86 | G35: 205976.41 | H35: 65902.45 | I35: 0.3199514449 | K35: 2094631.78 | L35: 1822883.4 | M35: 271748.38 | N35: 0.1490761175 | Q35: 944145.97 | R35: 838620.95 | S35: 105525.02 | T35: 0.1258316049 | V35: 5612708.59 | W35: 5128125.17 | X35: 484583.42 | Y35: 0.09449524026
A36: %,FACCOUNT,X,TGL_FERC_ACCT,N5030 | B36: Line 7 | C36: (503) Steam from Other Sources | F36: 0 | G36: 0 | H36: 0 | I36: 0 | K36: 0 | L36: 0 | M36: 0 | N36: 0 | Q36: 0 | R36: 0 | S36: 0 | T36: 0 | V36: 0 | W36: 0 | X36: 0 | Y36: 0
A37: %,R,FACCOUNT,X,TGL_FERC_ACCT,N5040 | B37: Line 8 | C37: (Less) (504) Steam Transferred-Cr. | F37: 0 | G37: 0 | H37: 0 | I37: 0 | K37: 0 | L37: 0 | M37: 0 | N37: 0 | Q37: 0 | R37: 0 | S37: 0 | T37: 0 | V37: 0 | W37: 0 | X37: 0 | Y37: 0
A38: %,V5050000 | B38: 5050000 | C38: Electric Expenses | F38: 1459.57 | G38: 6537.93 | H38: -5078.36 | I38: -0.7767534984 | K38: 31033.54 | L38: 25928.75 | M38: 5104.79 | N38: 0.1968775973 | Q38: 23748.31 | R38: 24918.3 | S38: -1169.99 | T38: -0.04695304254 | V38: 80148.18 | W38: 58098.22 | X38: 22049.96 | Y38: 0.3795290114
A39: %,FACCOUNT,X,TGL_FERC_ACCT,N5050 | B39: Line 9 | C39: (505) Electric Expenses | F39: 1459.57 | G39: 6537.93 | H39: -5078.36 | I39: -0.7767534984 | K39: 31033.54 | L39: 25928.75 | M39: 5104.79 | N39: 0.1968775973 | Q39: 23748.31 | R39: 24918.3 | S39: -1169.99 | T39: -0.04695304254 | V39: 80148.18 | W39: 58098.22 | X39: 22049.96 | Y39: 0.3795290114
A40: %,V5060000 | B40: 5060000 | C40: Misc Steam Power Expenses | F40: 433600.52 | G40: 455065.62 | H40: -21465.1 | I40: -0.04716924122 | K40: 2452662.36 | L40: 1981030.696 | M40: 471631.664 | N40: 0.2380738799 | Q40: 1388114.16 | R40: 1210833.81 | S40: 177280.35 | T40: 0.1464117937 | V40: 5481303.09 | W40: 6024638.346 | X40: -543335.256 | Y40: -0.09018553891
A41: %,V5060002 | B41: 5060002 | C41: Misc Steam Power Exp-Assoc | F41: 4030.2 | G41: 3472.2 | H41: 558 | I41: 0.1607050285 | K41: 23594.22 | L41: 22518.63 | M41: 1075.59 | N41: 0.04776445103 | Q41: 13895.74 | R41: 12389.24 | S41: 1506.5 | T41: 0.1215974507 | V41: 49074.9 | W41: 53008.49 | X41: -3933.59 | Y41: -0.07420679216
A42: %,V5060011 | B42: 5060011 | C42: BSRR O/U Recovery-Oper Costs | F42: 1962.94 | G42: 0 | H42: 1962.94 | I42: N.M. | K42: 8120.08 | L42: 0 | M42: 8120.08 | N42: N.M. | Q42: 8120.08 | R42: 0 | S42: 8120.08 | T42: N.M. | V42: 8120.08 | W42: -1.1 | X42: 8121.18 | Y42: N.M.
A43: %,FACCOUNT,X,TGL_FERC_ACCT,N5060,N5080 | B43: Line 10 | C43: (506) Miscellaneous Steam Power Expenses | F43: 439593.66 | G43: 458537.82 | H43: -18944.16 | I43: -0.04131428025 | K43: 2484376.66 | L43: 2003549.326 | M43: 480827.334 | N43: 0.2399877696 | Q43: 1410129.98 | R43: 1223223.05 | S43: 186906.93 | T43: 0.1527987312 | V43: 5538498.07 | W43: 6077645.736 | X43: -539147.666 | Y43: -0.08870995274
A44: %,V5070006 | B44: 5070006 | C44: Rents - Associated | F44: 127.56 | G44: 193.17 | H44: -65.61 | I44: -0.3396490138 | K44: 637.79 | L44: 965.85 | M44: -328.06 | N44: -0.3396593674 | Q44: 383.71 | R44: 579.51 | S44: -195.8 | T44: -0.3378716502 | V44: 1989.98 | W44: 965.85 | X44: 1024.13 | Y44: 1.060340633
A45: %,FACCOUNT,X,TGL_FERC_ACCT,N5070 | B45: Line 11 | C45: (507) Rents | F45: 127.56 | G45: 193.17 | H45: =+F45-G45 -> -65.61 | I45: =IF(G45<0,IF(H45=0,0,IF(OR(G45=0,F45=0),"N.M.",IF(ABS(H45/G45)>=10,"N.M.",H45/(-G45)))),IF(H45=0,0,IF(OR(G45=0,F45=0),"N.M.",IF(ABS(H45/G45)>=10,"N.M.",H45/G45)))) -> -0.3396490138 | K45: 637.79 | L45: 965.85 | M45: =+K45-L45 -> -328.06 | N45: =IF(L45<0,IF(M45=0,0,IF(OR(L45=0,K45=0),"N.M.",IF(ABS(M45/L45)>=10,"N.M.",M45/(-L45)))),IF(M45=0,0,IF(OR(L45=0,K45=0),"N.M.",IF(ABS(M45/L45)>=10,"N.M.",M45/L45)))) -> -0.3396593674 | Q45: 383.71 | R45: 579.51 | S45: =+Q45-R45 -> -195.8 | T45: =IF(R45<0,IF(S45=0,0,IF(OR(R45=0,Q45=0),"N.M.",IF(ABS(S45/R45)>=10,"N.M.",S45/(-R45)))),IF(S45=0,0,IF(OR(R45=0,Q45=0),"N.M.",IF(ABS(S45/R45)>=10,"N.M.",S45/R45)))) -> -0.3378716502 | V45: 1989.98 | W45: 965.85 | X45: =+V45-W45 -> 1024.13 | Y45: =IF(W45<0,IF(X45=0,0,IF(OR(W45=0,V45=0),"N.M.",IF(ABS(X45/W45)>=10,"N.M.",X45/(-W45)))),IF(X45=0,0,IF(OR(W45=0,V45=0),"N.M.",IF(ABS(X45/W45)>=10,"N.M.",X45/W45)))) -> 1.060340633
A46: %,V5090000 | B46: 5090000 | C46: Allow Consum Title IV SO2 | F46: 1061.8 | G46: 339.9 | H46: 721.9 | I46: 2.123859959 | K46: 5913.02 | L46: 6539.09 | M46: -626.07 | N46: -0.09574267979 | Q46: 3149.98 | R46: 1510.67 | S46: 1639.31 | T46: 1.085154269 | V46: 16072.33 | W46: 36775.01 | X46: -20702.68 | Y46: -0.5629551154
A47: %,V5090001 | B47: 5090001 | C47: Allowance Consumption - NOx | F47: -15134.66 | G47: 0 | H47: -15134.66 | I47: N.M. | K47: -15134.66 | L47: 0 | M47: -15134.66 | N47: N.M. | Q47: -15134.66 | R47: 0 | S47: -15134.66 | T47: N.M. | V47: -172277.52 | W47: 42857.15 | X47: -215134.67 | Y47: -5.01980813
A48: %,V5090009 | B48: 5090009 | C48: Allow Consumpt CSAPR SO2 | F48: 5.21 | G48: 1.66 | H48: 3.55 | I48: 2.138554217 | K48: 29 | L48: 31.94 | M48: -2.94 | N48: -0.09204758923 | Q48: 15.45 | R48: 7.39 | S48: 8.06 | T48: 1.090663058 | V48: 78.08 | W48: 176.85 | X48: -98.77 | Y48: -0.5584959005
A49: %,FACCOUNT,X,TGL_FERC_ACCT,N5090 | B49: Line 12 | C49: (509) Allowances | F49: -14067.65 | G49: 341.56 | H49: -14409.21 | I49: N.M. | K49: -9192.64 | L49: 6571.03 | M49: -15763.67 | N49: -2.39896485 | Q49: -11969.23 | R49: 1518.06 | S49: -13487.29 | T49: -8.884556605 | V49: -156127.11 | W49: 79809.01 | X49: -235936.12 | Y49: -2.956259199
A50: %,V5000000 | B50: 5000000 | C50: Oper Supervision & Engineering | F50: 388952.38 | G50: 304828.88 | H50: 84123.5 | I50: 0.2759695866 | K50: 1916639.39 | L50: 1611238.89 | M50: 305400.5 | N50: 0.1895438981 | Q50: 1143954.19 | R50: 930623.43 | S50: 213330.76 | T50: 0.2292342457 | V50: 4808473.09 | W50: 4075249.41 | X50: 733223.68 | Y50: 0.1799211794
A51: %,V5000002 | B51: 5000002 | C51: Dresden Oper Supervision & Eng | F51: 0 | G51: 0 | H51: 0 | I51: 0 | K51: 0 | L51: 0 | M51: 0 | N51: 0 | Q51: 0 | R51: 0 | S51: 0 | T51: 0 | V51: -33.12 | W51: 0 | X51: -33.12 | Y51: N.M.
A52: %,V5000003 | B52: 5000003 | C52: Cnstr Srchrge Op Sup & Eng Exp | F52: 0 | G52: 0 | H52: 0 | I52: 0 | K52: 0 | L52: 0 | M52: 0 | N52: 0 | Q52: 0 | R52: 0 | S52: 0 | T52: 0 | V52: 64.34 | W52: 0 | X52: 64.34 | Y52: N.M.
A53: %,V5010000 | B53: 5010000 | C53: Fuel | F53: 575988.92 | G53: 536336.11 | H53: 39652.81 | I53: 0.07393276205 | K53: 2607777.01 | L53: 3660843.31 | M53: -1053066.3 | N53: -0.2876567531 | Q53: 1575859.19 | R53: 2350285.85 | S53: -774426.66 | T53: -0.3295031794 | V53: 6697399.21 | W53: 7396104.18 | X53: -698704.97 | Y53: -0.09446932507
A54: %,V5010001 | B54: 5010001 | C54: Fuel Consumed | F54: 2925839.84 | G54: 1362557.52 | H54: 1563282.32 | I54: 1.147314735 | K54: 26040656.82 | L54: 23523786.85 | M54: 2516869.97 | N54: 0.1069925512 | Q54: 9366272.94 | R54: 7768972.06 | S54: 1597300.88 | T54: 0.2056000289 | V54: 76826609.91 | W54: 78036523.32 | X54: -1209913.41 | Y54: -0.01550445046
A55: %,V5010003 | B55: 5010003 | C55: Fuel - Procure Unload & Handle | F55: 181712.27 | G55: 80402.99 | H55: 101309.28 | I55: 1.260018813 | K55: 1403986.5 | L55: 1248281.58 | M55: 155704.92 | N55: 0.1247354143 | Q55: 550038.69 | R55: 454628.36 | S55: 95410.33 | T55: 0.2098644484 | V55: 4227337.05 | W55: 3772133.28 | X55: 455203.77 | Y55: 0.1206754206
A56: %,V5010005 | B56: 5010005 | C56: Fuel - Deferred | F56: 8714577 | G56: 4417871.505 | H56: 4296705.495 | I56: 0.9725736681 | K56: 424366.602 | L56: 4895937.22 | M56: -4471570.618 | N56: -0.9133227035 | Q56: 18735354.49 | R56: 7267788.389 | S56: 11467566.1 | T56: 1.577861859 | V56: 665576.215 | W56: -1066415.02 | X56: 1731991.235 | Y56: 1.624124944
A57: %,V5010012 | B57: 5010012 | C57: Ash Sales Proceeds | F57: 596.77 | G57: 1777.24 | H57: -1180.47 | I57: -0.6642153001 | K57: 2818.07 | L57: 3755.22 | M57: -937.15 | N57: -0.2495592801 | Q57: 1468.84 | R57: 679.75 | S57: 789.09 | T57: 1.160853255 | V57: 6337.79 | W57: 16131.1 | X57: -9793.31 | Y57: -0.6071073888
A58: %,V5010013 | B58: 5010013 | C58: Fuel Survey Activity | F58: 0 | G58: 0 | H58: 0 | I58: 0 | K58: 0 | L58: 0 | M58: 0 | N58: 0 | Q58: 0 | R58: 0 | S58: 0 | T58: 0 | V58: 3906533.13 | W58: 0 | X58: 3906533.13 | Y58: N.M.
A59: %,V5010019 | B59: 5010019 | C59: Fuel Oil Consumed | F59: 1049252.52 | G59: 160652.59 | H59: 888599.93 | I59: 5.531189569 | K59: 2178850.16 | L59: 1363298.14 | M59: 815552.02 | N59: 0.5982198582 | Q59: 1638256.05 | R59: 924231.05 | S59: 714025 | T59: 0.7725611469 | V59: 4953880.1 | W59: 3622215.17 | X59: 1331664.93 | Y59: 0.3676382731
A60: %,V5010020 | B60: 5010020 | C60: Nat Gas Consumed Steam | F60: 2065142.61 | G60: 2453953.33 | H60: -388810.72 | I60: -0.1584425895 | K60: 23911990.28 | L60: 17323341.94 | M60: 6588648.34 | N60: 0.3803335617 | Q60: 7809497.78 | R60: 7502596.7 | S60: 306901.08 | T60: 0.04090598126 | V60: 45464844.27 | W60: 30564445.2 | X60: 14900399.07 | Y60: 0.4875075917
A61: %,V5010021 | B61: 5010021 | C61: Transp Gas Consumed Steam | F61: 14646.32 | G61: 40535.42 | H61: -25889.1 | I61: -0.6386784693 | K61: 242956.13 | L61: 194033.35 | M61: 48922.78 | N61: 0.2521359344 | Q61: 124316.77 | R61: 126960.03 | S61: -2643.26 | T61: -0.02081962331 | V61: 549695.07 | W61: 322229.29 | X61: 227465.78 | Y61: 0.7059127989
A62: %,V5010027 | B62: 5010027 | C62: Gypsum handling/disposal costs | F62: 110742.75 | G62: 52426.61 | H62: 58316.14 | I62: 1.112338562 | K62: 673203.84 | L62: 526352.04 | M62: 146851.8 | N62: 0.2789992037 | Q62: 445612.25 | R62: 311362.32 | S62: 134249.93 | T62: 0.4311694813 | V62: 1539199.45 | W62: 1446384.37 | X62: 92815.08 | Y62: 0.06417041135
A63: %,V5010028 | B63: 5010028 | C63: Gypsum Sales Proceeds | F63: -44766.07 | G63: -96967.84 | H63: 52201.77 | I63: 0.5383410624 | K63: -472063.58 | L63: -551663.96 | M63: 79600.38 | N63: 0.144291427 | Q63: -312582.9 | R63: -188873.59 | S63: -123709.31 | T63: -0.6549846911 | V63: -1142841.79 | W63: -1239079.84 | X63: 96238.05 | Y63: 0.07766896603
A64: %,V5010033 | B64: 5010033 | C64: Coal Procurement Sales Net-NA | F64: 0 | G64: 0 | H64: 0 | I64: 0 | K64: 281689.3 | L64: 0 | M64: 281689.3 | N64: N.M. | Q64: 281689.3 | R64: 0 | S64: 281689.3 | T64: N.M. | V64: 281689.3 | W64: 0 | X64: 281689.3 | Y64: N.M.
A65: %,V5010034 | B65: 5010034 | C65: Gas Transp Res Fees-Steam | F65: 503359.2 | G65: 455968.8 | H65: 47390.4 | I65: 0.103933427 | K65: 2461826.88 | L65: 2609308.08 | M65: -147481.2 | N65: -0.05652119086 | Q65: 1496666.88 | R65: 1545919.2 | S65: -49252.32 | T65: -0.03185956937 | V65: 5955724.86 | W65: 6236172.2 | X65: -280447.34 | Y65: -0.04497107056
A66: %,V5010040 | B66: 5010040 | C66: Gas Procuremnt Sales Net | F66: -27144.89 | G66: 4182.54 | H66: -31327.43 | I66: -7.490049109 | K66: 123130.22 | L66: 237983.72 | M66: -114853.5 | N66: -0.4826107433 | Q66: 123130.38 | R66: -57286.739 | S66: 180417.119 | T66: 3.149369682 | V66: 509438.4 | W66: 1872076.34 | X66: -1362637.94 | Y66: -0.7278751998
A67: %,V5020000 | B67: 5020000 | C67: Steam Expenses | F67: 160829.83 | G67: 147448.07 | H67: 13381.76 | I67: 0.09075574879 | K67: 837911.26 | L67: 826504 | M67: 11407.26 | N67: 0.01380182068 | Q67: 496704.97 | R67: 463640.7 | S67: 33064.27 | T67: 0.07131442516 | V67: 2027844.59 | W67: 1661652.77 | X67: 366191.82 | Y67: 0.2203780637
A68: %,V5020002 | B68: 5020002 | C68: Urea Expense | F68: 631.06 | G68: 1813.2 | H68: -1182.14 | I68: -0.6519633797 | K68: 350585.89 | L68: 308078.47 | M68: 42507.42 | N68: 0.1379759514 | Q68: 105467.88 | R68: 88396.22 | S68: 17071.66 | T68: 0.1931265839 | V68: 956997 | W68: 1080273.36 | X68: -123276.36 | Y68: -0.1141158938
A69: %,V5020004 | B69: 5020004 | C69: Lime-Related Expenses | F69: 110417.97 | G69: 56715.14 | H69: 53702.83 | I69: 0.9468870217 | K69: 906134.63 | L69: 688300.93 | M69: 217833.7 | N69: 0.3164803221 | Q69: 341973.12 | R69: 286584.03 | S69: 55389.09 | T69: 0.1932734703 | V69: 2627867 | W69: 2386199.04 | X69: 241667.96 | Y69: 0.1012773687
A70: %,V5050000 | B70: 5050000 | C70: Electric Expenses | F70: 1459.57 | G70: 6537.93 | H70: -5078.36 | I70: -0.7767534984 | K70: 31033.54 | L70: 25928.75 | M70: 5104.79 | N70: 0.1968775973 | Q70: 23748.31 | R70: 24918.3 | S70: -1169.99 | T70: -0.04695304254 | V70: 80148.18 | W70: 58098.22 | X70: 22049.96 | Y70: 0.3795290114
A71: %,V5060000 | B71: 5060000 | C71: Misc Steam Power Expenses | F71: 433600.52 | G71: 455065.62 | H71: -21465.1 | I71: -0.04716924122 | K71: 2452662.36 | L71: 1981030.696 | M71: 471631.664 | N71: 0.2380738799 | Q71: 1388114.16 | R71: 1210833.81 | S71: 177280.35 | T71: 0.1464117937 | V71: 5481303.09 | W71: 6024638.346 | X71: -543335.256 | Y71: -0.09018553891
A72: %,V5060002 | B72: 5060002 | C72: Misc Steam Power Exp-Assoc | F72: 4030.2 | G72: 3472.2 | H72: 558 | I72: 0.1607050285 | K72: 23594.22 | L72: 22518.63 | M72: 1075.59 | N72: 0.04776445103 | Q72: 13895.74 | R72: 12389.24 | S72: 1506.5 | T72: 0.1215974507 | V72: 49074.9 | W72: 53008.49 | X72: -3933.59 | Y72: -0.07420679216
A73: %,V5060011 | B73: 5060011 | C73: BSRR O/U Recovery-Oper Costs | F73: 1962.94 | G73: 0 | H73: 1962.94 | I73: N.M. | K73: 8120.08 | L73: 0 | M73: 8120.08 | N73: N.M. | Q73: 8120.08 | R73: 0 | S73: 8120.08 | T73: N.M. | V73: 8120.08 | W73: -1.1 | X73: 8121.18 | Y73: N.M.
A74: %,V5070006 | B74: 5070006 | C74: Rents - Associated | F74: 127.56 | G74: 193.17 | H74: -65.61 | I74: -0.3396490138 | K74: 637.79 | L74: 965.85 | M74: -328.06 | N74: -0.3396593674 | Q74: 383.71 | R74: 579.51 | S74: -195.8 | T74: -0.3378716502 | V74: 1989.98 | W74: 965.85 | X74: 1024.13 | Y74: 1.060340633
A75: %,V5090000 | B75: 5090000 | C75: Allow Consum Title IV SO2 | F75: 1061.8 | G75: 339.9 | H75: 721.9 | I75: 2.123859959 | K75: 5913.02 | L75: 6539.09 | M75: -626.07 | N75: -0.09574267979 | Q75: 3149.98 | R75: 1510.67 | S75: 1639.31 | T75: 1.085154269 | V75: 16072.33 | W75: 36775.01 | X75: -20702.68 | Y75: -0.5629551154
A76: %,V5090001 | B76: 5090001 | C76: Allowance Consumption - NOx | F76: -15134.66 | G76: 0 | H76: -15134.66 | I76: N.M. | K76: -15134.66 | L76: 0 | M76: -15134.66 | N76: N.M. | Q76: -15134.66 | R76: 0 | S76: -15134.66 | T76: N.M. | V76: -172277.52 | W76: 42857.15 | X76: -215134.67 | Y76: -5.01980813
A77: %,V5090009 | B77: 5090009 | C77: Allow Consumpt CSAPR SO2 | F77: 5.21 | G77: 1.66 | H77: =+F77-G77 -> 3.55 | I77: =IF(G77<0,IF(H77=0,0,IF(OR(G77=0,F77=0),"N.M.",IF(ABS(H77/G77)>=10,"N.M.",H77/(-G77)))),IF(H77=0,0,IF(OR(G77=0,F77=0),"N.M.",IF(ABS(H77/G77)>=10,"N.M.",H77/G77)))) -> 2.138554217 | K77: 29 | L77: 31.94 | M77: =+K77-L77 -> -2.94 | N77: =IF(L77<0,IF(M77=0,0,IF(OR(L77=0,K77=0),"N.M.",IF(ABS(M77/L77)>=10,"N.M.",M77/(-L77)))),IF(M77=0,0,IF(OR(L77=0,K77=0),"N.M.",IF(ABS(M77/L77)>=10,"N.M.",M77/L77)))) -> -0.09204758923 | Q77: 15.45 | R77: 7.39 | S77: =+Q77-R77 -> 8.06 | T77: =IF(R77<0,IF(S77=0,0,IF(OR(R77=0,Q77=0),"N.M.",IF(ABS(S77/R77)>=10,"N.M.",S77/(-R77)))),IF(S77=0,0,IF(OR(R77=0,Q77=0),"N.M.",IF(ABS(S77/R77)>=10,"N.M.",S77/R77)))) -> 1.090663058 | V77: 78.08 | W77: 176.85 | X77: =+V77-W77 -> -98.77 | Y77: =IF(W77<0,IF(X77=0,0,IF(OR(W77=0,V77=0),"N.M.",IF(ABS(X77/W77)>=10,"N.M.",X77/(-W77)))),IF(X77=0,0,IF(OR(W77=0,V77=0),"N.M.",IF(ABS(X77/W77)>=10,"N.M.",X77/W77)))) -> -0.5584959005
A78: %,FACCOUNT,X,TGL_FERC_ACCT,N500-509 | B78: Line 13 | C78: TOTAL Operation (Enter Total of Lines 4 thru 12) | D78: o | F78: 17157891.62 | G78: 10446112.58 | H78: 6711779.035 | I78: 0.6425145221 | K78: 66399314.75 | L78: 60506394.74 | M78: 5892920.016 | N78: 0.09739334234 | Q78: 45345973.59 | R78: 31026746.68 | S78: 14319226.91 | T78: 0.4615123544 | V78: 166327145 | W78: 146398813 | X78: 19928332 | Y78: 0.13612359
B79: Line 14 | C79: Maintenance
A80: %,V5100000 | B80: 5100000 | C80: Maint Supv & Engineering | F80: 88844.43 | G80: 97409 | H80: =+F80-G80 -> -8564.57 | I80: =IF(G80<0,IF(H80=0,0,IF(OR(G80=0,F80=0),"N.M.",IF(ABS(H80/G80)>=10,"N.M.",H80/(-G80)))),IF(H80=0,0,IF(OR(G80=0,F80=0),"N.M.",IF(ABS(H80/G80)>=10,"N.M.",H80/G80)))) -> -0.08792380581 | K80: 475758.91 | L80: 458818.29 | M80: =+K80-L80 -> 16940.62 | N80: =IF(L80<0,IF(M80=0,0,IF(OR(L80=0,K80=0),"N.M.",IF(ABS(M80/L80)>=10,"N.M.",M80/(-L80)))),IF(M80=0,0,IF(OR(L80=0,K80=0),"N.M.",IF(ABS(M80/L80)>=10,"N.M.",M80/L80)))) -> 0.03692228573 | Q80: 288075.82 | R80: 280984.47 | S80: =+Q80-R80 -> 7091.35 | T80: =IF(R80<0,IF(S80=0,0,IF(OR(R80=0,Q80=0),"N.M.",IF(ABS(S80/R80)>=10,"N.M.",S80/(-R80)))),IF(S80=0,0,IF(OR(R80=0,Q80=0),"N.M.",IF(ABS(S80/R80)>=10,"N.M.",S80/R80)))) -> 0.0252375158 | V80: 1008622.71 | W80: 1352873.19 | X80: =+V80-W80 -> -344250.48 | Y80: =IF(W80<0,IF(X80=0,0,IF(OR(W80=0,V80=0),"N.M.",IF(ABS(X80/W80)>=10,"N.M.",X80/(-W80)))),IF(X80=0,0,IF(OR(W80=0,V80=0),"N.M.",IF(ABS(X80/W80)>=10,"N.M.",X80/W80)))) -> -0.2544587937
A81: %,V5100001 | B81: 5100001 | C81: Dresden Maint Sup& Engineer | F81: 0 | G81: 0 | H81: 0 | I81: 0 | K81: -9.94 | L81: 0 | M81: -9.94 | N81: N.M. | Q81: 0 | R81: 0 | S81: 0 | T81: 0 | V81: 359.63 | W81: 0 | X81: 359.63 | Y81: N.M.
A82: %,FACCOUNT,X,TGL_FERC_ACCT,N5100 | B82: Line 15 | C82: (510) Maintenance Supervision and Engineering | F82: 88844.43 | G82: 97409 | H82: -8564.57 | I82: -0.08792380581 | K82: 475748.97 | L82: 458818.29 | M82: 16930.68 | N82: 0.03690062138 | Q82: 288075.82 | R82: 280984.47 | S82: 7091.35 | T82: 0.0252375158 | V82: 1008982.34 | W82: 1352873.19 | X82: -343890.85 | Y82: -0.2541929669
A83: %,V5110000 | B83: 5110000 | C83: Maintenance of Structures | F83: 94741.46 | G83: 150402.56 | H83: -55661.1 | I83: -0.3700808018 | K83: 870742.43 | L83: 733626.44 | M83: 137115.99 | N83: 0.1869016471 | Q83: 434037.63 | R83: 454944.75 | S83: -20907.12 | T83: -0.04595529457 | V83: 1829995.63 | W83: 1989377.41 | X83: -159381.78 | Y83: -0.0801164119
A84: %,FACCOUNT,X,TGL_FERC_ACCT,N5110 | B84: Line 16 | C84: (511) Maintenance of Structures | F84: 94741.46 | G84: 150402.56 | H84: -55661.1 | I84: -0.3700808018 | K84: 870742.43 | L84: 733626.44 | M84: 137115.99 | N84: 0.1869016471 | Q84: 434037.63 | R84: 454944.75 | S84: -20907.12 | T84: -0.04595529457 | V84: 1829995.63 | W84: 1989377.41 | X84: -159381.78 | Y84: -0.0801164119
A85: %,V5120000 | B85: 5120000 | C85: Maintenance of Boiler Plant | F85: 1207859.53 | G85: 1143269.7 | H85: 64589.83 | I85: 0.05649570701 | K85: 6163251.85 | L85: 7277692.95 | M85: -1114441.1 | N85: -0.1531310963 | Q85: 4401806.4 | R85: 4999366.9 | S85: -597560.5 | T85: -0.1195272345 | V85: 11432780.84 | W85: 15573903.48 | X85: -4141122.64 | Y85: -0.2659013937
A86: %,V5120034 | B86: 5120034 | C86: BSDR O/U Recovery - Maint Cost | F86: -4246.63 | G86: -285.65 | H86: -3960.98 | I86: N.M. | K86: -15907.44 | L86: -2681.46 | M86: -13225.98 | N86: -4.932380121 | Q86: -14005.01 | R86: -2223.95 | S86: -11781.06 | T86: -5.297358304 | V86: -21748.4 | W86: -7671.09 | X86: -14077.31 | Y86: -1.83511209
A87: %,V5120037 | B87: 5120037 | C87: KY Steam Maint O/U | F87: -58271.11 | G87: -58271.11 | H87: 0 | I87: 0 | K87: -291355.55 | L87: -291355.55 | M87: 0 | N87: 0 | Q87: -174813.33 | R87: -174813.33 | S87: 0 | T87: 0 | V87: -699253.32 | W87: -699253.32 | X87: 0 | Y87: 0
A88: %,FACCOUNT,X,TGL_FERC_ACCT,N5120 | B88: Line 17 | C88: (512) Maintenance of Boiler Plant | F88: 1145341.79 | G88: 1084712.94 | H88: 60628.85 | I88: 0.05589391236 | K88: 5855988.86 | L88: 6983655.94 | M88: -1127667.08 | N88: -0.1614723133 | Q88: 4212988.06 | R88: 4822329.62 | S88: -609341.56 | T88: -0.1263583388 | V88: 10711779.12 | W88: 14866979.07 | X88: -4155199.95 | Y88: -0.2794918813
A89: %,V5130000 | B89: 5130000 | C89: Maintenance of Electric Plant | F89: 824730.91 | G89: 275553.29 | H89: 549177.62 | I89: 1.992999684 | K89: 2751046.85 | L89: 2376001.05 | M89: 375045.8 | N89: 0.1578474892 | Q89: 2218352.04 | R89: 1517704.73 | S89: 700647.31 | T89: 0.4616492893 | V89: 6281159.3 | W89: 4352733.86 | X89: 1928425.44 | Y89: 0.4430377556
A90: %,FACCOUNT,X,TGL_FERC_ACCT,N5130 | B90: Line 18 | C90: (513) Maintenance of Electric Plant | F90: 824730.91 | G90: 275553.29 | H90: 549177.62 | I90: 1.992999684 | K90: 2751046.85 | L90: 2376001.05 | M90: 375045.8 | N90: 0.1578474892 | Q90: 2218352.04 | R90: 1517704.73 | S90: 700647.31 | T90: 0.4616492893 | V90: 6281159.3 | W90: 4352733.86 | X90: 1928425.44 | Y90: 0.4430377556
A91: %,FACCOUNT,X,TGL_FERC_ACCT,N5131 | B91: Line 18.1 | C91: (513.1) Maintenance of Computer Hardware | D91: m | F91: 0 | G91: 0 | H91: 0 | I91: 0 | K91: 0 | L91: 0 | M91: 0 | Q91: 0 | R91: 0 | S91: 0 | V91: 0 | W91: 0 | X91: 0 | Y91: 0
A92: %,V5132000 | B92: 5132000 | C92: Maint of Computer Software-Mjr | F92: 6188.9 | G92: 3917.3 | H92: 2271.6 | I92: 0.5798892094 | K92: 19263.1 | L92: 27069.95 | M92: -7806.85 | Q92: 18227.45 | R92: 25044.95 | S92: -6817.5 | V92: 47458.15 | W92: 27069.95 | X92: 20388.2 | Y92: 0.7531672574
A93: %,FACCOUNT,X,TGL_FERC_ACCT,N5132 | B93: Line 18.2 | C93: (513.2) Maintenance of Computer Software | D93: m | F93: 6188.9 | G93: 3917.3 | H93: 2271.6 | I93: 0.5798892094 | K93: 19263.1 | L93: 27069.95 | M93: -7806.85 | Q93: 18227.45 | R93: 25044.95 | S93: -6817.5 | V93: 47458.15 | W93: 27069.95 | X93: 20388.2 | Y93: 0.7531672574
A94: %,V5133000 | B94: 5133000 | C94: Maint of Comm Equipmt-Mjr | F94: 55.37 | G94: 483.76 | H94: -428.39 | I94: -0.8855424177 | K94: 3424.69 | L94: 1124.18 | M94: 2300.51 | Q94: 917.27 | R94: 813.91 | S94: 103.36 | V94: 7984.24 | W94: 1124.18 | X94: 6860.06 | Y94: 6.102278994
A95: %,FACCOUNT,X,TGL_FERC_ACCT,N5133 | B95: Line 18.3 | C95: (513.3) Maintenance of Communication Equipment | D95: m | F95: 55.37 | G95: 483.76 | H95: -428.39 | I95: -0.8855424177 | K95: 3424.69 | L95: 1124.18 | M95: 2300.51 | Q95: 917.27 | R95: 813.91 | S95: 103.36 | V95: 7984.24 | W95: 1124.18 | X95: 6860.06 | Y95: 6.102278994
A96: %,V5140000 | B96: 5140000 | C96: Maintenance of Misc Steam Plt | F96: 306951.71 | G96: -22487.8 | H96: 329439.51 | I96: N.M. | K96: 962668.17 | L96: 564594.94 | M96: 398073.23 | N96: =IF(L96<0,IF(M96=0,0,IF(OR(L96=0,K96=0),"N.M.",IF(ABS(M96/L96)>=10,"N.M.",M96/(-L96)))),IF(M96=0,0,IF(OR(L96=0,K96=0),"N.M.",IF(ABS(M96/L96)>=10,"N.M.",M96/L96)))) -> 0.7050598611 | Q96: 596422.4 | R96: 376998.26 | S96: 219424.14 | T96: =IF(R96<0,IF(S96=0,0,IF(OR(R96=0,Q96=0),"N.M.",IF(ABS(S96/R96)>=10,"N.M.",S96/(-R96)))),IF(S96=0,0,IF(OR(R96=0,Q96=0),"N.M.",IF(ABS(S96/R96)>=10,"N.M.",S96/R96)))) -> 0.5820295828 | V96: 1880615.86 | W96: 1406936.23 | X96: 473679.63 | Y96: 0.3366745556
A97: %,FACCOUNT,X,TGL_FERC_ACCT,N5140 | B97: Line 19 | C97: (514) Maintenance of Miscellaneous Steam Plant | F97: 306951.71 | G97: -22487.8 | H97: 329439.51 | I97: N.M. | K97: 962668.17 | L97: 564594.94 | M97: 398073.23 | N97: 0.7050598611 | Q97: 596422.4 | R97: 376998.26 | S97: 219424.14 | T97: 0.5820295828 | V97: 1880615.86 | W97: 1406936.23 | X97: 473679.63 | Y97: 0.3366745556
A98: %,V5100000 | B98: 5100000 | C98: Maint Supv & Engineering | F98: 88844.43 | G98: 97409 | H98: -8564.57 | I98: -0.08792380581 | K98: 475758.91 | L98: 458818.29 | M98: 16940.62 | N98: 0.03692228573 | Q98: 288075.82 | R98: 280984.47 | S98: 7091.35 | T98: 0.0252375158 | V98: 1008622.71 | W98: 1352873.19 | X98: -344250.48 | Y98: -0.2544587937
A99: %,V5100001 | B99: 5100001 | C99: Dresden Maint Sup& Engineer | F99: 0 | G99: 0 | H99: 0 | I99: 0 | K99: -9.94 | L99: 0 | M99: -9.94 | N99: N.M. | Q99: 0 | R99: 0 | S99: 0 | T99: 0 | V99: 359.63 | W99: 0 | X99: 359.63 | Y99: N.M.
A100: %,V5110000 | B100: 5110000 | C100: Maintenance of Structures | F100: 94741.46 | G100: 150402.56 | H100: -55661.1 | I100: -0.3700808018 | K100: 870742.43 | L100: 733626.44 | M100: 137115.99 | N100: 0.1869016471 | Q100: 434037.63 | R100: 454944.75 | S100: -20907.12 | T100: -0.04595529457 | V100: 1829995.63 | W100: 1989377.41 | X100: -159381.78 | Y100: -0.0801164119
A101: %,V5120000 | B101: 5120000 | C101: Maintenance of Boiler Plant | F101: 1207859.53 | G101: 1143269.7 | H101: 64589.83 | I101: 0.05649570701 | K101: 6163251.85 | L101: 7277692.95 | M101: -1114441.1 | N101: -0.1531310963 | Q101: 4401806.4 | R101: 4999366.9 | S101: -597560.5 | T101: -0.1195272345 | V101: 11432780.84 | W101: 15573903.48 | X101: -4141122.64 | Y101: -0.2659013937
A102: %,V5120034 | B102: 5120034 | C102: BSDR O/U Recovery - Maint Cost | F102: -4246.63 | G102: -285.65 | H102: -3960.98 | I102: N.M. | K102: -15907.44 | L102: -2681.46 | M102: -13225.98 | N102: -4.932380121 | Q102: -14005.01 | R102: -2223.95 | S102: -11781.06 | T102: -5.297358304 | V102: -21748.4 | W102: -7671.09 | X102: -14077.31 | Y102: -1.83511209
A103: %,V5120037 | B103: 5120037 | C103: KY Steam Maint O/U | F103: -58271.11 | G103: -58271.11 | H103: 0 | I103: 0 | K103: -291355.55 | L103: -291355.55 | M103: 0 | N103: 0 | Q103: -174813.33 | R103: -174813.33 | S103: 0 | T103: 0 | V103: -699253.32 | W103: -699253.32 | X103: 0 | Y103: 0
A104: %,V5130000 | B104: 5130000 | C104: Maintenance of Electric Plant | F104: 824730.91 | G104: 275553.29 | H104: 549177.62 | I104: 1.992999684 | K104: 2751046.85 | L104: 2376001.05 | M104: 375045.8 | N104: 0.1578474892 | Q104: 2218352.04 | R104: 1517704.73 | S104: 700647.31 | T104: 0.4616492893 | V104: 6281159.3 | W104: 4352733.86 | X104: 1928425.44 | Y104: 0.4430377556
A105: %,V5132000 | B105: 5132000 | C105: Maint of Computer Software-Mjr | F105: 6188.9 | G105: 3917.3 | H105: 2271.6 | I105: 0.5798892094 | K105: 19263.1 | L105: 27069.95 | M105: -7806.85 | N105: -0.2883954348 | Q105: 18227.45 | R105: 25044.95 | S105: -6817.5 | T105: -0.2722105654 | V105: 47458.15 | W105: 27069.95 | X105: 20388.2 | Y105: 0.7531672574
A106: %,V5133000 | B106: 5133000 | C106: Maint of Comm Equipmt-Mjr | F106: 55.37 | G106: 483.76 | H106: -428.39 | I106: -0.8855424177 | K106: 3424.69 | L106: 1124.18 | M106: 2300.51 | N106: 2.046389368 | Q106: 917.27 | R106: 813.91 | S106: 103.36 | T106: 0.1269919279 | V106: 7984.24 | W106: 1124.18 | X106: 6860.06 | Y106: 6.102278994
A107: %,V5140000 | B107: 5140000 | C107: Maintenance of Misc Steam Plt | F107: 306951.71 | G107: -22487.8 | H107: 329439.51 | I107: N.M. | K107: 962668.17 | L107: 564594.94 | M107: 398073.23 | N107: 0.7050598611 | Q107: 596422.4 | R107: 376998.26 | S107: 219424.14 | T107: 0.5820295828 | V107: 1880615.86 | W107: 1406936.23 | X107: 473679.63 | Y107: 0.3366745556
A108: %,FACCOUNT,X,TGL_FERC_ACCT,N510-515 | B108: Line 20 | C108: TOTAL Maintenance (Enter Total of lines 15 thru 19) | D108: m | F108: 2466854.57 | G108: 1589991.05 | H108: 876863.52 | I108: 0.5514895949 | K108: 10938883.07 | L108: 11144890.79 | M108: -206007.72 | N108: -0.01848449876 | Q108: 7769020.67 | R108: 7478820.69 | S108: 290199.98 | T108: 0.0388029065 | V108: 21767974.64 | W108: 23997093.89 | X108: -2229119.25 | Y108: -0.09289121675
A109: %,V5000000 | B109: 5000000 | C109: Oper Supervision & Engineering | F109: 388952.38 | G109: 304828.88 | H109: 84123.5 | I109: 0.2759695866 | K109: 1916639.39 | L109: 1611238.89 | M109: 305400.5 | N109: 0.1895438981 | Q109: 1143954.19 | R109: 930623.43 | S109: 213330.76 | T109: 0.2292342457 | V109: 4808473.09 | W109: 4075249.41 | X109: 733223.68 | Y109: 0.1799211794
A110: %,V5000002 | B110: 5000002 | C110: Dresden Oper Supervision & Eng | F110: 0 | G110: 0 | H110: 0 | I110: 0 | K110: 0 | L110: 0 | M110: 0 | N110: 0 | Q110: 0 | R110: 0 | S110: 0 | T110: 0 | V110: -33.12 | W110: 0 | X110: -33.12 | Y110: N.M.
A111: %,V5000003 | B111: 5000003 | C111: Cnstr Srchrge Op Sup & Eng Exp | F111: 0 | G111: 0 | H111: 0 | I111: 0 | K111: 0 | L111: 0 | M111: 0 | N111: 0 | Q111: 0 | R111: 0 | S111: 0 | T111: 0 | V111: 64.34 | W111: 0 | X111: 64.34 | Y111: N.M.
A112: %,V5010000 | B112: 5010000 | C112: Fuel | F112: 575988.92 | G112: 536336.11 | H112: 39652.81 | I112: 0.07393276205 | K112: 2607777.01 | L112: 3660843.31 | M112: =+K112-L112 -> -1053066.3 | N112: -0.2876567531 | Q112: 1575859.19 | R112: 2350285.85 | S112: =+Q112-R112 -> -774426.66 | T112: -0.3295031794 | V112: 6697399.21 | W112: 7396104.18 | X112: =+V112-W112 -> -698704.97 | Y112: =IF(W112<0,IF(X112=0,0,IF(OR(W112=0,V112=0),"N.M.",IF(ABS(X112/W112)>=10,"N.M.",X112/(-W112)))),IF(X112=0,0,IF(OR(W112=0,V112=0),"N.M.",IF(ABS(X112/W112)>=10,"N.M.",X112/W112)))) -> -0.09446932507
A113: %,V5010001 | B113: 5010001 | C113: Fuel Consumed | F113: 2925839.84 | G113: 1362557.52 | H113: 1563282.32 | I113: 1.147314735 | K113: 26040656.82 | L113: 23523786.85 | M113: 2516869.97 | N113: 0.1069925512 | Q113: 9366272.94 | R113: 7768972.06 | S113: 1597300.88 | T113: 0.2056000289 | V113: 76826609.91 | W113: 78036523.32 | X113: -1209913.41 | Y113: -0.01550445046
A114: %,V5010003 | B114: 5010003 | C114: Fuel - Procure Unload & Handle | F114: 181712.27 | G114: 80402.99 | H114: 101309.28 | I114: 1.260018813 | K114: 1403986.5 | L114: 1248281.58 | M114: 155704.92 | N114: 0.1247354143 | Q114: 550038.69 | R114: 454628.36 | S114: 95410.33 | T114: 0.2098644484 | V114: 4227337.05 | W114: 3772133.28 | X114: 455203.77 | Y114: 0.1206754206
A115: %,V5010005 | B115: 5010005 | C115: Fuel - Deferred | F115: 8714577 | G115: 4417871.505 | H115: 4296705.495 | I115: 0.9725736681 | K115: 424366.602 | L115: 4895937.22 | M115: -4471570.618 | N115: -0.9133227035 | Q115: 18735354.49 | R115: 7267788.389 | S115: 11467566.1 | T115: 1.577861859 | V115: 665576.215 | W115: -1066415.02 | X115: 1731991.235 | Y115: 1.624124944
A116: %,V5010012 | B116: 5010012 | C116: Ash Sales Proceeds | F116: 596.77 | G116: 1777.24 | H116: -1180.47 | I116: -0.6642153001 | K116: 2818.07 | L116: 3755.22 | M116: -937.15 | N116: -0.2495592801 | Q116: 1468.84 | R116: 679.75 | S116: 789.09 | T116: 1.160853255 | V116: 6337.79 | W116: 16131.1 | X116: -9793.31 | Y116: -0.6071073888
A117: %,V5010013 | B117: 5010013 | C117: Fuel Survey Activity | F117: 0 | G117: 0 | H117: 0 | I117: 0 | K117: 0 | L117: 0 | M117: 0 | N117: 0 | Q117: 0 | R117: 0 | S117: 0 | T117: 0 | V117: 3906533.13 | W117: 0 | X117: 3906533.13 | Y117: N.M.
A118: %,V5010019 | B118: 5010019 | C118: Fuel Oil Consumed | F118: 1049252.52 | G118: 160652.59 | H118: 888599.93 | I118: 5.531189569 | K118: 2178850.16 | L118: 1363298.14 | M118: 815552.02 | N118: 0.5982198582 | Q118: 1638256.05 | R118: 924231.05 | S118: 714025 | T118: 0.7725611469 | V118: 4953880.1 | W118: 3622215.17 | X118: 1331664.93 | Y118: 0.3676382731
A119: %,V5010020 | B119: 5010020 | C119: Nat Gas Consumed Steam | F119: 2065142.61 | G119: 2453953.33 | H119: -388810.72 | I119: -0.1584425895 | K119: 23911990.28 | L119: 17323341.94 | M119: 6588648.34 | N119: 0.3803335617 | Q119: 7809497.78 | R119: 7502596.7 | S119: 306901.08 | T119: 0.04090598126 | V119: 45464844.27 | W119: 30564445.2 | X119: 14900399.07 | Y119: 0.4875075917
A120: %,V5010021 | B120: 5010021 | C120: Transp Gas Consumed Steam | F120: 14646.32 | G120: 40535.42 | H120: -25889.1 | I120: -0.6386784693 | K120: 242956.13 | L120: 194033.35 | M120: 48922.78 | N120: 0.2521359344 | Q120: 124316.77 | R120: 126960.03 | S120: -2643.26 | T120: -0.02081962331 | V120: 549695.07 | W120: 322229.29 | X120: 227465.78 | Y120: 0.7059127989
A121: %,V5010027 | B121: 5010027 | C121: Gypsum handling/disposal costs | F121: 110742.75 | G121: 52426.61 | H121: 58316.14 | I121: 1.112338562 | K121: 673203.84 | L121: 526352.04 | M121: 146851.8 | N121: 0.2789992037 | Q121: 445612.25 | R121: 311362.32 | S121: 134249.93 | T121: 0.4311694813 | V121: 1539199.45 | W121: 1446384.37 | X121: 92815.08 | Y121: 0.06417041135
A122: %,V5010028 | B122: 5010028 | C122: Gypsum Sales Proceeds | F122: -44766.07 | G122: -96967.84 | H122: 52201.77 | I122: 0.5383410624 | K122: -472063.58 | L122: -551663.96 | M122: 79600.38 | N122: 0.144291427 | Q122: -312582.9 | R122: -188873.59 | S122: -123709.31 | T122: -0.6549846911 | V122: -1142841.79 | W122: -1239079.84 | X122: 96238.05 | Y122: 0.07766896603
A123: %,V5010033 | B123: 5010033 | C123: Coal Procurement Sales Net-NA | F123: 0 | G123: 0 | H123: 0 | I123: 0 | K123: 281689.3 | L123: 0 | M123: 281689.3 | N123: N.M. | Q123: 281689.3 | R123: 0 | S123: 281689.3 | T123: N.M. | V123: 281689.3 | W123: 0 | X123: 281689.3 | Y123: N.M.
A124: %,V5010034 | B124: 5010034 | C124: Gas Transp Res Fees-Steam | F124: 503359.2 | G124: 455968.8 | H124: 47390.4 | I124: 0.103933427 | K124: 2461826.88 | L124: 2609308.08 | M124: -147481.2 | N124: -0.05652119086 | Q124: 1496666.88 | R124: 1545919.2 | S124: -49252.32 | T124: -0.03185956937 | V124: 5955724.86 | W124: 6236172.2 | X124: -280447.34 | Y124: -0.04497107056
A125: %,V5010040 | B125: 5010040 | C125: Gas Procuremnt Sales Net | F125: -27144.89 | G125: 4182.54 | H125: -31327.43 | I125: -7.490049109 | K125: 123130.22 | L125: 237983.72 | M125: -114853.5 | N125: -0.4826107433 | Q125: 123130.38 | R125: -57286.739 | S125: 180417.119 | T125: 3.149369682 | V125: 509438.4 | W125: 1872076.34 | X125: -1362637.94 | Y125: -0.7278751998
A126: %,V5020000 | B126: 5020000 | C126: Steam Expenses | F126: 160829.83 | G126: 147448.07 | H126: 13381.76 | I126: 0.09075574879 | K126: 837911.26 | L126: 826504 | M126: 11407.26 | N126: 0.01380182068 | Q126: 496704.97 | R126: 463640.7 | S126: 33064.27 | T126: 0.07131442516 | V126: 2027844.59 | W126: 1661652.77 | X126: 366191.82 | Y126: 0.2203780637
A127: %,V5020002 | B127: 5020002 | C127: Urea Expense | F127: 631.06 | G127: 1813.2 | H127: -1182.14 | I127: -0.6519633797 | K127: 350585.89 | L127: 308078.47 | M127: 42507.42 | N127: 0.1379759514 | Q127: 105467.88 | R127: 88396.22 | S127: 17071.66 | T127: 0.1931265839 | V127: 956997 | W127: 1080273.36 | X127: -123276.36 | Y127: -0.1141158938
A128: %,V5020004 | B128: 5020004 | C128: Lime-Related Expenses | F128: 110417.97 | G128: 56715.14 | H128: 53702.83 | I128: 0.9468870217 | K128: 906134.63 | L128: 688300.93 | M128: 217833.7 | N128: =IF(L128<0,IF(M128=0,0,IF(OR(L128=0,K128=0),"N.M.",IF(ABS(M128/L128)>=10,"N.M.",M128/(-L128)))),IF(M128=0,0,IF(OR(L128=0,K128=0),"N.M.",IF(ABS(M128/L128)>=10,"N.M.",M128/L128)))) -> 0.3164803221 | Q128: 341973.12 | R128: 286584.03 | S128: 55389.09 | T128: =IF(R128<0,IF(S128=0,0,IF(OR(R128=0,Q128=0),"N.M.",IF(ABS(S128/R128)>=10,"N.M.",S128/(-R128)))),IF(S128=0,0,IF(OR(R128=0,Q128=0),"N.M.",IF(ABS(S128/R128)>=10,"N.M.",S128/R128)))) -> 0.1932734703 | V128: 2627867 | W128: 2386199.04 | X128: 241667.96 | Y128: 0.1012773687
A129: %,V5050000 | B129: 5050000 | C129: Electric Expenses | F129: 1459.57 | G129: 6537.93 | H129: -5078.36 | I129: -0.7767534984 | K129: 31033.54 | L129: 25928.75 | M129: 5104.79 | N129: 0.1968775973 | Q129: 23748.31 | R129: 24918.3 | S129: -1169.99 | T129: -0.04695304254 | V129: 80148.18 | W129: 58098.22 | X129: 22049.96 | Y129: 0.3795290114
A130: %,V5060000 | B130: 5060000 | C130: Misc Steam Power Expenses | F130: 433600.52 | G130: 455065.62 | H130: -21465.1 | I130: -0.04716924122 | K130: 2452662.36 | L130: 1981030.696 | M130: 471631.664 | N130: 0.2380738799 | Q130: 1388114.16 | R130: 1210833.81 | S130: 177280.35 | T130: 0.1464117937 | V130: 5481303.09 | W130: 6024638.346 | X130: -543335.256 | Y130: -0.09018553891
A131: %,V5060002 | B131: 5060002 | C131: Misc Steam Power Exp-Assoc | F131: 4030.2 | G131: 3472.2 | H131: 558 | I131: 0.1607050285 | K131: 23594.22 | L131: 22518.63 | M131: 1075.59 | N131: 0.04776445103 | Q131: 13895.74 | R131: 12389.24 | S131: 1506.5 | T131: 0.1215974507 | V131: 49074.9 | W131: 53008.49 | X131: -3933.59 | Y131: -0.07420679216
A132: %,V5060011 | B132: 5060011 | C132: BSRR O/U Recovery-Oper Costs | F132: 1962.94 | G132: 0 | H132: 1962.94 | I132: N.M. | K132: 8120.08 | L132: 0 | M132: 8120.08 | N132: N.M. | Q132: 8120.08 | R132: 0 | S132: 8120.08 | T132: N.M. | V132: 8120.08 | W132: -1.1 | X132: 8121.18 | Y132: N.M.
A133: %,V5070006 | B133: 5070006 | C133: Rents - Associated | F133: 127.56 | G133: 193.17 | H133: -65.61 | I133: -0.3396490138 | K133: 637.79 | L133: 965.85 | M133: -328.06 | N133: -0.3396593674 | Q133: 383.71 | R133: 579.51 | S133: -195.8 | T133: -0.3378716502 | V133: 1989.98 | W133: 965.85 | X133: 1024.13 | Y133: 1.060340633
A134: %,V5090000 | B134: 5090000 | C134: Allow Consum Title IV SO2 | F134: 1061.8 | G134: 339.9 | H134: 721.9 | I134: 2.123859959 | K134: 5913.02 | L134: 6539.09 | M134: -626.07 | N134: -0.09574267979 | Q134: 3149.98 | R134: 1510.67 | S134: 1639.31 | T134: 1.085154269 | V134: 16072.33 | W134: 36775.01 | X134: -20702.68 | Y134: -0.5629551154
A135: %,V5090001 | B135: 5090001 | C135: Allowance Consumption - NOx | F135: -15134.66 | G135: 0 | H135: -15134.66 | I135: N.M. | K135: -15134.66 | L135: 0 | M135: -15134.66 | N135: N.M. | Q135: -15134.66 | R135: 0 | S135: -15134.66 | T135: N.M. | V135: -172277.52 | W135: 42857.15 | X135: -215134.67 | Y135: -5.01980813
A136: %,V5090009 | B136: 5090009 | C136: Allow Consumpt CSAPR SO2 | F136: 5.21 | G136: 1.66 | H136: 3.55 | I136: 2.138554217 | K136: 29 | L136: 31.94 | M136: -2.94 | N136: -0.09204758923 | Q136: 15.45 | R136: 7.39 | S136: 8.06 | T136: 1.090663058 | V136: 78.08 | W136: 176.85 | X136: -98.77 | Y136: -0.5584959005
A137: %,V5100000 | B137: 5100000 | C137: Maint Supv & Engineering | F137: 88844.43 | G137: 97409 | H137: -8564.57 | I137: -0.08792380581 | K137: 475758.91 | L137: 458818.29 | M137: 16940.62 | N137: 0.03692228573 | Q137: 288075.82 | R137: 280984.47 | S137: 7091.35 | T137: 0.0252375158 | V137: 1008622.71 | W137: 1352873.19 | X137: -344250.48 | Y137: -0.2544587937
A138: %,V5100001 | B138: 5100001 | C138: Dresden Maint Sup& Engineer | F138: 0 | G138: 0 | H138: 0 | I138: 0 | K138: -9.94 | L138: 0 | M138: -9.94 | N138: N.M. | Q138: 0 | R138: 0 | S138: 0 | T138: 0 | V138: 359.63 | W138: 0 | X138: 359.63 | Y138: N.M.
A139: %,V5110000 | B139: 5110000 | C139: Maintenance of Structures | F139: 94741.46 | G139: 150402.56 | H139: -55661.1 | I139: -0.3700808018 | K139: 870742.43 | L139: 733626.44 | M139: 137115.99 | N139: 0.1869016471 | Q139: 434037.63 | R139: 454944.75 | S139: -20907.12 | T139: -0.04595529457 | V139: 1829995.63 | W139: 1989377.41 | X139: -159381.78 | Y139: -0.0801164119
A140: %,V5120000 | B140: 5120000 | C140: Maintenance of Boiler Plant | F140: 1207859.53 | G140: 1143269.7 | H140: 64589.83 | I140: 0.05649570701 | K140: 6163251.85 | L140: 7277692.95 | M140: -1114441.1 | N140: -0.1531310963 | Q140: 4401806.4 | R140: 4999366.9 | S140: -597560.5 | T140: -0.1195272345 | V140: 11432780.84 | W140: 15573903.48 | X140: -4141122.64 | Y140: -0.2659013937
A141: %,V5120034 | B141: 5120034 | C141: BSDR O/U Recovery - Maint Cost | F141: -4246.63 | G141: -285.65 | H141: -3960.98 | I141: N.M. | K141: -15907.44 | L141: -2681.46 | M141: -13225.98 | N141: -4.932380121 | Q141: -14005.01 | R141: -2223.95 | S141: -11781.06 | T141: -5.297358304 | V141: -21748.4 | W141: -7671.09 | X141: -14077.31 | Y141: -1.83511209
A142: %,V5120037 | B142: 5120037 | C142: KY Steam Maint O/U | F142: -58271.11 | G142: -58271.11 | H142: 0 | I142: 0 | K142: -291355.55 | L142: -291355.55 | M142: 0 | N142: 0 | Q142: -174813.33 | R142: -174813.33 | S142: 0 | T142: 0 | V142: -699253.32 | W142: -699253.32 | X142: 0 | Y142: 0
A143: %,V5130000 | B143: 5130000 | C143: Maintenance of Electric Plant | F143: 824730.91 | G143: 275553.29 | H143: 549177.62 | I143: 1.992999684 | K143: 2751046.85 | L143: 2376001.05 | M143: 375045.8 | N143: 0.1578474892 | Q143: 2218352.04 | R143: 1517704.73 | S143: 700647.31 | T143: 0.4616492893 | V143: 6281159.3 | W143: 4352733.86 | X143: 1928425.44 | Y143: 0.4430377556
A144: %,V5132000 | B144: 5132000 | C144: Maint of Computer Software-Mjr | F144: 6188.9 | G144: 3917.3 | H144: =+F144-G144 -> 2271.6 | I144: =IF(G144<0,IF(H144=0,0,IF(OR(G144=0,F144=0),"N.M.",IF(ABS(H144/G144)>=10,"N.M.",H144/(-G144)))),IF(H144=0,0,IF(OR(G144=0,F144=0),"N.M.",IF(ABS(H144/G144)>=10,"N.M.",H144/G144)))) -> 0.5798892094 | K144: 19263.1 | L144: 27069.95 | M144: =+K144-L144 -> -7806.85 | N144: -0.2883954348 | Q144: 18227.45 | R144: 25044.95 | S144: =+Q144-R144 -> -6817.5 | T144: -0.2722105654 | V144: 47458.15 | W144: 27069.95 | X144: =+V144-W144 -> 20388.2 | Y144: =IF(W144<0,IF(X144=0,0,IF(OR(W144=0,V144=0),"N.M.",IF(ABS(X144/W144)>=10,"N.M.",X144/(-W144)))),IF(X144=0,0,IF(OR(W144=0,V144=0),"N.M.",IF(ABS(X144/W144)>=10,"N.M.",X144/W144)))) -> 0.7531672574
A145: %,V5133000 | B145: 5133000 | C145: Maint of Comm Equipmt-Mjr | F145: 55.37 | G145: 483.76 | H145: -428.39 | I145: -0.8855424177 | K145: 3424.69 | L145: 1124.18 | M145: 2300.51 | N145: 2.046389368 | Q145: 917.27 | R145: 813.91 | S145: 103.36 | T145: 0.1269919279 | V145: 7984.24 | W145: 1124.18 | X145: 6860.06 | Y145: 6.102278994
A146: %,V5140000 | B146: 5140000 | C146: Maintenance of Misc Steam Plt | F146: 306951.71 | G146: -22487.8 | H146: 329439.51 | I146: N.M. | K146: 962668.17 | L146: 564594.94 | M146: 398073.23 | N146: 0.7050598611 | Q146: 596422.4 | R146: 376998.26 | S146: 219424.14 | T146: 0.5820295828 | V146: 1880615.86 | W146: 1406936.23 | X146: 473679.63 | Y146: 0.3366745556
A147: %,FACCOUNT,X,TGL_FERC_ACCT,N510-515,N500-509 | B147: Line 21 | C147: TOTAL Power Production Expenses-Steam Power (Entr Tot lines 13 & 20) | F147: 19624746.19 | G147: 12036103.63 | H147: 7588642.555 | I147: 0.6304899646 | K147: 77338197.82 | L147: 71651285.53 | M147: 5686912.296 | N147: 0.07936929888 | Q147: 53114994.26 | R147: 38505567.37 | S147: 14609426.89 | T147: 0.379410768 | V147: 188095119.6 | W147: 170395906.9 | X147: 17699212.75 | Y147: 0.1038711145
B148: Line 22 | C148: B. Nuclear Power Generation | H148: 0 | I148: 0 | M148: 0 | N148: 0 | S148: 0 | T148: 0 | X148: 0 | Y148: 0
B149: Line 23 | C149: Operation | H149: 0 | I149: 0 | M149: 0 | N149: 0 | S149: 0 | T149: 0 | X149: 0 | Y149: 0
A150: %,FACCOUNT,X,TGL_FERC_ACCT,N5170 | B150: Line 24 | C150: (517) Operation Supervision and Engineering | F150: 0 | G150: 0 | H150: 0 | I150: 0 | K150: 0 | L150: 0 | M150: 0 | N150: 0 | Q150: 0 | R150: 0 | S150: 0 | T150: 0 | V150: 0 | W150: 0 | X150: 0 | Y150: 0
A151: %,FACCOUNT,X,TGL_FERC_ACCT,N5180 | B151: Line 25 | C151: (518) Fuel | F151: 0 | G151: 0 | H151: 0 | I151: 0 | K151: 0 | L151: 0 | M151: 0 | N151: 0 | Q151: 0 | R151: 0 | S151: 0 | T151: 0 | V151: 0 | W151: 0 | X151: 0 | Y151: 0
A152: %,FACCOUNT,X,TGL_FERC_ACCT,N5190 | B152: Line 26 | C152: (519) Coolants and Water | F152: 0 | G152: 0 | H152: 0 | I152: 0 | K152: 0 | L152: 0 | M152: 0 | N152: 0 | Q152: 0 | R152: 0 | S152: 0 | T152: 0 | V152: 0 | W152: 0 | X152: 0 | Y152: 0
A153: %,FACCOUNT,X,TGL_FERC_ACCT,N5200 | B153: Line 27 | C153: (520) Steam Expenses | F153: 0 | G153: 0 | H153: 0 | I153: 0 | K153: 0 | L153: 0 | M153: 0 | N153: 0 | Q153: 0 | R153: 0 | S153: 0 | T153: 0 | V153: 0 | W153: 0 | X153: 0 | Y153: 0
A154: %,FACCOUNT,X,TGL_FERC_ACCT,N5210 | B154: Line 28 | C154: (521) Steam from Other Sources | F154: 0 | G154: 0 | H154: 0 | I154: 0 | K154: 0 | L154: 0 | M154: 0 | N154: 0 | Q154: 0 | R154: 0 | S154: 0 | T154: 0 | V154: 0 | W154: 0 | X154: 0 | Y154: 0
B155: Line 29 | C155: (Less) (522) Steam Transferred-Cr. | H155: 0 | I155: 0 | M155: 0 | N155: 0 | S155: 0 | T155: 0 | X155: 0 | Y155: 0
A156: %,FACCOUNT,X,TGL_FERC_ACCT,N5230 | B156: Line 30 | C156: (523) Electric Expenses | F156: 0 | G156: 0 | H156: 0 | I156: 0 | K156: 0 | L156: 0 | M156: 0 | N156: 0 | Q156: 0 | R156: 0 | S156: 0 | T156: 0 | V156: 0 | W156: 0 | X156: 0 | Y156: 0
A157: %,FACCOUNT,X,TGL_FERC_ACCT,N5240 | B157: Line 31 | C157: (524) Miscellaneous Nuclear Power Expenses | F157: 0 | G157: 0 | H157: 0 | I157: 0 | K157: 0 | L157: 0 | M157: 0 | N157: 0 | Q157: 0 | R157: 0 | S157: 0 | T157: 0 | V157: 0 | W157: 0 | X157: 0 | Y157: 0
A158: %,FACCOUNT,X,TGL_FERC_ACCT,N5250 | B158: Line 32 | C158: (525) Rents | F158: 0 | G158: 0 | H158: 0 | I158: 0 | K158: 0 | L158: 0 | M158: 0 | N158: 0 | Q158: 0 | R158: 0 | S158: 0 | T158: 0 | V158: 0 | W158: 0 | X158: 0 | Y158: 0
A159: %,FACCOUNT,X,TGL_FERC_ACCT,N517-525 | B159: Line 33 | C159: TOTAL Operation (Enter Total of Lines 24 thru 32) | D159: o | F159: 0 | G159: 0 | H159: 0 | I159: 0 | K159: 0 | L159: 0 | M159: 0 | N159: 0 | Q159: 0 | R159: 0 | S159: 0 | T159: 0 | V159: 0 | W159: 0 | X159: 0 | Y159: 0
B160: Line 34 | C160: Maintenance | H160: 0 | I160: 0 | M160: 0 | N160: =IF(L160<0,IF(M160=0,0,IF(OR(L160=0,K160=0),"N.M.",IF(ABS(M160/L160)>=10,"N.M.",M160/(-L160)))),IF(M160=0,0,IF(OR(L160=0,K160=0),"N.M.",IF(ABS(M160/L160)>=10,"N.M.",M160/L160)))) -> 0 | S160: 0 | T160: =IF(R160<0,IF(S160=0,0,IF(OR(R160=0,Q160=0),"N.M.",IF(ABS(S160/R160)>=10,"N.M.",S160/(-R160)))),IF(S160=0,0,IF(OR(R160=0,Q160=0),"N.M.",IF(ABS(S160/R160)>=10,"N.M.",S160/R160)))) -> 0 | X160: 0 | Y160: 0
A161: %,FACCOUNT,X,TGL_FERC_ACCT,N5280 | B161: Line 35 | C161: (528) Maintenance Supervision and Engineering | F161: 0 | G161: 0 | H161: 0 | I161: 0 | K161: 0 | L161: 0 | M161: 0 | N161: 0 | Q161: 0 | R161: 0 | S161: 0 | T161: 0 | V161: 0 | W161: 0 | X161: 0 | Y161: 0
A162: %,FACCOUNT,X,TGL_FERC_ACCT,N5290 | B162: Line 36 | C162: (529) Maintenance of Structures | F162: 0 | G162: 0 | H162: 0 | I162: 0 | K162: 0 | L162: 0 | M162: 0 | N162: 0 | Q162: 0 | R162: 0 | S162: 0 | T162: 0 | V162: 0 | W162: 0 | X162: 0 | Y162: 0
A163: %,FACCOUNT,X,TGL_FERC_ACCT,N5300 | B163: Line 37 | C163: (530) Maintenance of Reactor Plant Equipment | F163: 0 | G163: 0 | H163: 0 | I163: 0 | K163: 0 | L163: 0 | M163: 0 | N163: 0 | Q163: 0 | R163: 0 | S163: 0 | T163: 0 | V163: 0 | W163: 0 | X163: 0 | Y163: 0
A164: %,FACCOUNT,X,TGL_FERC_ACCT,N5310 | B164: Line 38 | C164: (531) Maintenance of Electric Plant | F164: 0 | G164: 0 | H164: 0 | I164: 0 | K164: 0 | L164: 0 | M164: 0 | N164: 0 | Q164: 0 | R164: 0 | S164: 0 | T164: 0 | V164: 0 | W164: 0 | X164: 0 | Y164: 0
A165: %,V5311000 | B165: 5311000 | C165: Maint of Computer Hardware | F165: 76.69 | G165: 0 | H165: 76.69 | I165: N.M. | K165: 0 | L165: 0 | Q165: 22.73 | R165: 0 | V165: 76.69 | W165: 0
A166: %,FACCOUNT,X,TGL_FERC_ACCT,N5311 | B166: Line 38.1 | C166: (531.1) Maintenance of Computer Hardware | D166: m | F166: 76.69 | G166: 0 | H166: 76.69 | I166: N.M. | K166: 0 | L166: 0 | Q166: 22.73 | R166: 0 | V166: 76.69 | W166: 0
A167: %,V5312000 | B167: 5312000 | C167: Maint of Computer Software | F167: 0 | G167: -14.63 | H167: 14.63 | I167: N.M. | K167: 0 | L167: 0 | Q167: 0 | R167: 0 | V167: 0.19 | W167: 0
A168: %,FACCOUNT,X,TGL_FERC_ACCT,N5312 | B168: Line 38.2 | C168: (531.2) Maintenance of Computer Software | D168: m | F168: 0 | G168: -14.63 | H168: 14.63 | I168: N.M. | K168: 0 | L168: 0 | Q168: 0 | R168: 0 | V168: 0.19 | W168: 0
A169: %,FACCOUNT,X,TGL_FERC_ACCT,N5313 | B169: Line 38.3 | C169: (531.3) Maintenance of Communication Equipment | D169: m | F169: 0 | G169: 0 | H169: 0 | I169: 0 | K169: 0 | L169: 0 | Q169: 0 | R169: 0 | V169: 0 | W169: 0
A170: %,FACCOUNT,X,TGL_FERC_ACCT,N5320 | B170: Line 39 | C170: (532) Maintenance of Miscellaneous Nuclear Plant | F170: 0 | G170: 0 | H170: 0 | I170: 0 | K170: 0 | L170: 0 | M170: =+K170-L170 -> 0 | N170: =IF(L170<0,IF(M170=0,0,IF(OR(L170=0,K170=0),"N.M.",IF(ABS(M170/L170)>=10,"N.M.",M170/(-L170)))),IF(M170=0,0,IF(OR(L170=0,K170=0),"N.M.",IF(ABS(M170/L170)>=10,"N.M.",M170/L170)))) -> 0 | Q170: 0 | R170: 0 | S170: =+Q170-R170 -> 0 | T170: =IF(R170<0,IF(S170=0,0,IF(OR(R170=0,Q170=0),"N.M.",IF(ABS(S170/R170)>=10,"N.M.",S170/(-R170)))),IF(S170=0,0,IF(OR(R170=0,Q170=0),"N.M.",IF(ABS(S170/R170)>=10,"N.M.",S170/R170)))) -> 0 | V170: 0 | W170: 0 | X170: =+V170-W170 -> 0 | Y170: =IF(W170<0,IF(X170=0,0,IF(OR(W170=0,V170=0),"N.M.",IF(ABS(X170/W170)>=10,"N.M.",X170/(-W170)))),IF(X170=0,0,IF(OR(W170=0,V170=0),"N.M.",IF(ABS(X170/W170)>=10,"N.M.",X170/W170)))) -> 0
A171: %,V5311000 | B171: 5311000 | C171: Maint of Computer Hardware | F171: 76.69 | G171: 0 | H171: 76.69 | I171: N.M. | K171: 0 | L171: 0 | M171: 0 | N171: 0 | Q171: 22.73 | R171: 0 | S171: 22.73 | T171: N.M. | V171: 76.69 | W171: 0 | X171: 76.69 | Y171: N.M.
A172: %,V5312000 | B172: 5312000 | C172: Maint of Computer Software | F172: 0 | G172: -14.63 | H172: 14.63 | I172: N.M. | K172: 0 | L172: 0 | M172: 0 | N172: 0 | Q172: 0 | R172: 0 | S172: 0 | T172: 0 | V172: 0.19 | W172: 0 | X172: 0.19 | Y172: N.M.
A173: %,FACCOUNT,X,TGL_FERC_ACCT,N528-533 | B173: Line 40 | C173: TOTAL Maintenance (Enter Total of lines 35 thru 39) | D173: m | F173: 76.69 | G173: -14.63 | H173: 91.32 | I173: 6.241968558 | K173: 0 | L173: 0 | M173: 0 | N173: 0 | Q173: 22.73 | R173: 0 | S173: 22.73 | T173: N.M. | V173: 76.88 | W173: 0 | X173: 76.88 | Y173: N.M.
A174: %,V5311000 | B174: 5311000 | C174: Maint of Computer Hardware | F174: 76.69 | G174: 0 | H174: 76.69 | I174: N.M. | K174: 0 | L174: 0 | M174: 0 | N174: 0 | Q174: 22.73 | R174: 0 | S174: 22.73 | T174: N.M. | V174: 76.69 | W174: 0 | X174: 76.69 | Y174: N.M.
A175: %,V5312000 | B175: 5312000 | C175: Maint of Computer Software | F175: 0 | G175: -14.63 | H175: 14.63 | I175: N.M. | K175: 0 | L175: 0 | M175: 0 | N175: 0 | Q175: 0 | R175: 0 | S175: 0 | T175: 0 | V175: 0.19 | W175: 0 | X175: 0.19 | Y175: N.M.
A176: %,FACCOUNT,X,TGL_FERC_ACCT,N517-533 | B176: Line 41 | C176: TOTAL Power Production Expenses-Nuc Power (Entr Tot lines 33 & 40) | F176: 76.69 | G176: -14.63 | H176: 91.32 | I176: 6.241968558 | K176: 0 | L176: 0 | M176: 0 | N176: 0 | Q176: 22.73 | R176: 0 | S176: 22.73 | T176: N.M. | V176: 76.88 | W176: 0 | X176: 76.88 | Y176: N.M.
B177: Line 42 | C177: C. Hydraulic Power Generation | H177: 0 | I177: 0 | M177: 0 | N177: 0 | S177: 0 | T177: 0 | X177: 0 | Y177: 0
B178: Line 43 | C178: Operation | H178: 0 | I178: 0 | M178: 0 | N178: 0 | S178: 0 | T178: 0 | X178: 0 | Y178: 0
A179: %,FACCOUNT,X,TGL_FERC_ACCT,N5350 | B179: Line 44 | C179: (535) Operation Supervision and Engineering | F179: 0 | G179: 0 | H179: 0 | I179: 0 | K179: 0 | L179: 0 | M179: 0 | N179: 0 | Q179: 0 | R179: 0 | S179: 0 | T179: 0 | V179: 0 | W179: 0 | X179: 0 | Y179: 0
A180: %,FACCOUNT,X,TGL_FERC_ACCT,N5360 | B180: Line 45 | C180: (536) Water for Power | F180: 0 | G180: 0 | H180: 0 | I180: 0 | K180: 0 | L180: 0 | M180: 0 | N180: 0 | Q180: 0 | R180: 0 | S180: 0 | T180: 0 | V180: 0 | W180: 0 | X180: 0 | Y180: 0
A181: %,FACCOUNT,X,TGL_FERC_ACCT,N5370 | B181: Line 46 | C181: (537) Hydraulic Expenses | F181: 0 | G181: 0 | H181: 0 | I181: 0 | K181: 0 | L181: 0 | M181: 0 | N181: 0 | Q181: 0 | R181: 0 | S181: 0 | T181: 0 | V181: 0 | W181: 0 | X181: 0 | Y181: 0
A182: %,FACCOUNT,X,TGL_FERC_ACCT,N5380 | B182: Line 47 | C182: (538) Electric Expenses | F182: 0 | G182: 0 | H182: 0 | I182: 0 | K182: 0 | L182: 0 | M182: 0 | N182: 0 | Q182: 0 | R182: 0 | S182: 0 | T182: 0 | V182: 0 | W182: 0 | X182: 0 | Y182: 0
A183: %,FACCOUNT,X,TGL_FERC_ACCT,N5390 | B183: Line 48 | C183: (539) Miscellaneous Hydraulic Power Generation Expenses | F183: 0 | G183: 0 | H183: 0 | I183: 0 | K183: 0 | L183: 0 | M183: 0 | N183: 0 | Q183: 0 | R183: 0 | S183: 0 | T183: 0 | V183: 0 | W183: 0 | X183: 0 | Y183: 0
A184: %,FACCOUNT,X,TGL_FERC_ACCT,N5400 | B184: Line 49 | C184: (540) Rents | F184: 0 | G184: 0 | H184: 0 | I184: 0 | K184: 0 | L184: 0 | M184: 0 | N184: 0 | Q184: 0 | R184: 0 | S184: 0 | T184: 0 | V184: 0 | W184: 0 | X184: 0 | Y184: 0
A185: %,FACCOUNT,X,TGL_FERC_ACCT,N535-540 | B185: Line 50 | C185: TOTAL Operation (Enter Total of Lines 44 thru 49) | D185: o | F185: 0 | G185: 0 | H185: 0 | I185: 0 | K185: 0 | L185: 0 | M185: 0 | N185: 0 | Q185: 0 | R185: 0 | S185: 0 | T185: 0 | V185: 0 | W185: 0 | X185: 0 | Y185: 0
B186: Line 51 | C186: C. Hydraulic Power Generation (Continued) | H186: 0 | I186: 0 | M186: 0 | N186: 0 | S186: 0 | T186: 0 | X186: 0 | Y186: 0
B187: Line 52 | C187: Maintenance | H187: 0 | I187: 0 | M187: 0 | N187: 0 | S187: 0 | T187: 0 | X187: 0 | Y187: 0
A188: %,FACCOUNT,X,TGL_FERC_ACCT,N5410 | B188: Line 53 | C188: (541) Maintenance Supervision and Engineering | F188: 0 | G188: 0 | H188: 0 | I188: 0 | K188: 0 | L188: 0 | M188: 0 | N188: 0 | Q188: 0 | R188: 0 | S188: 0 | T188: 0 | V188: 0 | W188: 0 | X188: 0 | Y188: 0
A189: %,FACCOUNT,X,TGL_FERC_ACCT,N5420 | B189: Line 54 | C189: (542) Maintenance of Structures | F189: 0 | G189: 0 | H189: 0 | I189: 0 | K189: 0 | L189: 0 | M189: 0 | N189: 0 | Q189: 0 | R189: 0 | S189: 0 | T189: 0 | V189: 0 | W189: 0 | X189: 0 | Y189: 0
A190: %,FACCOUNT,X,TGL_FERC_ACCT,N5430 | B190: Line 55 | C190: (543) Maintenance of Reservoirs, Dams, and Waterways | F190: 0 | G190: 0 | H190: 0 | I190: 0 | K190: 0 | L190: 0 | M190: 0 | N190: 0 | Q190: 0 | R190: 0 | S190: 0 | T190: 0 | V190: 0 | W190: 0 | X190: 0 | Y190: 0
A191: %,FACCOUNT,X,TGL_FERC_ACCT,N5440 | B191: Line 56 | C191: (544) Maintenance of Electric Plant | F191: 0 | G191: 0 | H191: 0 | I191: 0 | K191: 0 | L191: 0 | M191: 0 | N191: 0 | Q191: 0 | R191: 0 | S191: 0 | T191: 0 | V191: 0 | W191: 0 | X191: 0 | Y191: 0
A192: %,FACCOUNT,X,TGL_FERC_ACCT,N5441 | B192: Line 56.1 | C192: (544.1) Maintenance of Computer Hardware | D192: m | F192: 0 | G192: 0 | H192: 0 | I192: 0 | K192: 0 | L192: 0 | Q192: 0 | R192: 0 | V192: 0 | W192: 0
A193: %,FACCOUNT,X,TGL_FERC_ACCT,N5442 | B193: Line 56.2 | C193: (544.2) Maintenance of Computer Software | D193: m | F193: 0 | G193: 0 | H193: 0 | I193: 0 | K193: 0 | L193: 0 | Q193: 0 | R193: 0 | V193: 0 | W193: 0
A194: %,FACCOUNT,X,TGL_FERC_ACCT,N5443 | B194: Line 56.3 | C194: (544.3) Maintenance of Communication Equipment | D194: m | F194: 0 | G194: 0 | H194: 0 | I194: 0 | K194: 0 | L194: 0 | Q194: 0 | R194: 0 | V194: 0 | W194: 0
A195: %,FACCOUNT,X,TGL_FERC_ACCT,N5450 | B195: Line 57 | C195: (545) Maintenance of Miscellaneous Hydraulic Plant | F195: 0 | G195: 0 | H195: 0 | I195: 0 | K195: 0 | L195: 0 | M195: =+K195-L195 -> 0 | N195: =IF(L195<0,IF(M195=0,0,IF(OR(L195=0,K195=0),"N.M.",IF(ABS(M195/L195)>=10,"N.M.",M195/(-L195)))),IF(M195=0,0,IF(OR(L195=0,K195=0),"N.M.",IF(ABS(M195/L195)>=10,"N.M.",M195/L195)))) -> 0 | Q195: 0 | R195: 0 | S195: =+Q195-R195 -> 0 | T195: =IF(R195<0,IF(S195=0,0,IF(OR(R195=0,Q195=0),"N.M.",IF(ABS(S195/R195)>=10,"N.M.",S195/(-R195)))),IF(S195=0,0,IF(OR(R195=0,Q195=0),"N.M.",IF(ABS(S195/R195)>=10,"N.M.",S195/R195)))) -> 0 | V195: 0 | W195: 0 | X195: =+V195-W195 -> 0 | Y195: =IF(W195<0,IF(X195=0,0,IF(OR(W195=0,V195=0),"N.M.",IF(ABS(X195/W195)>=10,"N.M.",X195/(-W195)))),IF(X195=0,0,IF(OR(W195=0,V195=0),"N.M.",IF(ABS(X195/W195)>=10,"N.M.",X195/W195)))) -> 0
A196: %,FACCOUNT,X,TGL_FERC_ACCT,N541-545 | B196: Line 58 | C196: TOTAL Maintenance (Total of lines 53 thru 57) | D196: m | F196: 0 | G196: 0 | H196: 0 | I196: 0 | K196: 0 | L196: 0 | M196: 0 | N196: 0 | Q196: 0 | R196: 0 | S196: 0 | T196: 0 | V196: 0 | W196: 0 | X196: 0 | Y196: 0
A197: %,FACCOUNT,X,TGL_FERC_ACCT,N535-545 | B197: Line 59 | C197: TOTAL Power Production Expenses-Hydraulic Power (Tot lines 50 & 58) | F197: 0 | G197: 0 | H197: 0 | I197: 0 | K197: 0 | L197: 0 | M197: 0 | N197: 0 | Q197: 0 | R197: 0 | S197: 0 | T197: 0 | V197: 0 | W197: 0 | X197: 0 | Y197: 0
B198: Line 60 | C198: D. Other Power Generation | H198: 0 | I198: 0 | M198: 0 | N198: 0 | S198: 0 | T198: 0 | X198: 0 | Y198: 0
B199: Line 61 | C199: Operation | H199: 0 | I199: 0 | M199: 0 | N199: 0 | S199: 0 | T199: 0 | X199: 0 | Y199: 0
A200: %,FACCOUNT,X,TGL_FERC_ACCT,N5460 | B200: Line 62 | C200: (546) Operation Supervision and Engineering | F200: 0 | G200: 0 | H200: 0 | I200: 0 | K200: 0 | L200: 0 | M200: 0 | N200: 0 | Q200: 0 | R200: 0 | S200: 0 | T200: 0 | V200: 0 | W200: 0 | X200: 0 | Y200: 0
A201: %,FACCOUNT,X,TGL_FERC_ACCT,N5470 | B201: Line 63 | C201: (547) Fuel | F201: 0 | G201: 0 | H201: 0 | I201: 0 | K201: 0 | L201: 0 | M201: 0 | N201: 0 | Q201: 0 | R201: 0 | S201: 0 | T201: 0 | V201: 0 | W201: 0 | X201: 0 | Y201: 0
... 1490 more rows

Sheet O&M QRT
A1: %,LACTUALS,SBAL | B1: %,ATF,FACCOUNT | C1: %,ATT,FDESCR,UDESCR | F1: %,LACTUALS,SPER | G1: %,LACTUALS,SPER-1YR | H1: %,C | I1: %,C | K1: %,LACTUALS,SYTD | L1: %,LACTUALS,SYTD-1YR | M1: %,C | N1: %,C | Q1: %,LACTUALS,SQTR | R1: %,LACTUALS,SQTR-1YR | S1: %,C | T1: %,C | V1: %,LACTUALS,SROLLING12 | W1: %,LACTUALS,SROLNG12-1Y | X1: %,C | Y1: %,C
C2: Kentucky Power Corp Consol | G2: Kentucky Power Corp Consol | L2: Kentucky Power Corp Consol | R2: Kentucky Power Corp Consol | W2: Kentucky Power Corp Consol
C3: May 2026 | G3: As of: May 2026 | L3: As of: May 2026 | R3: As of: May 2026 | W3: As of: May 2026
B4: Run Date: 06/11/2026 07:10 AM
B5: GLR6283P | C5: Rpt ID: FERC_IS1 Layout: FERC_IS1 | F5: ONE MONTH ENDED | H5: Variance | K5: YEAR TO DATE | M5: Variance | Q5: THREE MONTHS ENDED | S5: Variance | V5: TWELVE MONTHS ENDED | X5: Variance
B6: KYP_CORP_CONSOL | C6: V2099-01-01 Acct: GL_FERC_ACCT BU: GL_PRPT_CONS | F6: 2026 | G6: 2025 | H6: $ | I6: % | K6: 2026 | L6: 2025 | M6: $ | N6: % | O6: Explanation | Q6: 2026 | R6: 2025 | S6: $ | T6: % | V6: 2026 | W6: 2025 | X6: $ | Y6: %
C8: OPERATING AND MAINTENANCE DETAIL
C9: FERC Page 320 QUARTERLY
B10: 1 | C10: 1. POWER PRODUCTION AND OTHER POWER SUPPLYEXPENSES
A11: %,V5000000 | B11: 5000000 | C11: Oper Supervision & Engineering | F11: 388952.38 | G11: 304828.88 | H11: =+F11-G11 -> 84123.5 | I11: =IF(AND(F11=0,G11=0),"",IF(OR(F11=0,G11=0),100%,(+H11/G11))) -> 0.2759695866 | K11: 1916639.39 | L11: 1611238.89 | M11: =+K11-L11 -> 305400.5 | N11: =IF(AND(K11=0,L11=0),"",IF(OR(K11=0,L11=0),100%,(+M11/L11))) -> 0.1895438981 | Q11: 1143954.19 | R11: 930623.43 | S11: =+Q11-R11 -> 213330.76 | T11: =IF(AND(Q11=0,R11=0),"",IF(OR(Q11=0,R11=0),100%,(+S11/R11))) -> 0.2292342457 | V11: 4808473.09 | W11: 4075249.41 | X11: =+V11-W11 -> 733223.68 | Y11: =IF(AND(V11=0,W11=0),"",IF(OR(V11=0,W11=0),100%,(+X11/W11))) -> 0.1799211794
A12: %,V5000002 | B12: 5000002 | C12: Dresden Oper Supervision & Eng | F12: 0 | G12: 0 | H12: 0 | K12: 0 | L12: 0 | M12: 0 | Q12: 0 | R12: 0 | S12: 0 | V12: -33.12 | W12: 0 | X12: -33.12 | Y12: 1
A13: %,V5000003 | B13: 5000003 | C13: Cnstr Srchrge Op Sup & Eng Exp | F13: 0 | G13: 0 | H13: 0 | K13: 0 | L13: 0 | M13: 0 | Q13: 0 | R13: 0 | S13: 0 | V13: 64.34 | W13: 0 | X13: 64.34 | Y13: 1
A14: %,V5010000 | B14: 5010000 | C14: Fuel | F14: 575988.92 | G14: 536336.11 | H14: 39652.81 | I14: 0.07393276205 | K14: 2607777.01 | L14: 3660843.31 | M14: -1053066.3 | N14: -0.2876567531 | Q14: 1575859.19 | R14: 2350285.85 | S14: -774426.66 | T14: -0.3295031794 | V14: 6697399.21 | W14: 7396104.18 | X14: -698704.97 | Y14: -0.09446932507
A15: %,V5010001 | B15: 5010001 | C15: Fuel Consumed | F15: 2925839.84 | G15: 1362557.52 | H15: 1563282.32 | I15: 1.147314735 | K15: 26040656.82 | L15: 23523786.85 | M15: 2516869.97 | N15: 0.1069925512 | Q15: 9366272.94 | R15: 7768972.06 | S15: 1597300.88 | T15: 0.2056000289 | V15: 76826609.91 | W15: 78036523.32 | X15: -1209913.41 | Y15: -0.01550445046
A16: %,V5010003 | B16: 5010003 | C16: Fuel - Procure Unload & Handle | F16: 181712.27 | G16: 80402.99 | H16: 101309.28 | I16: 1.260018813 | K16: 1403986.5 | L16: 1248281.58 | M16: 155704.92 | N16: 0.1247354143 | Q16: 550038.69 | R16: 454628.36 | S16: 95410.33 | T16: 0.2098644484 | V16: 4227337.05 | W16: 3772133.28 | X16: 455203.77 | Y16: 0.1206754206
A17: %,V5010005 | B17: 5010005 | C17: Fuel - Deferred | F17: 8714577 | G17: 4417871.505 | H17: 4296705.495 | I17: 0.9725736681 | K17: 424366.602 | L17: 4895937.22 | M17: -4471570.618 | N17: -0.9133227035 | Q17: 18735354.49 | R17: 7267788.389 | S17: 11467566.1 | T17: 1.577861859 | V17: 665576.215 | W17: -1066415.02 | X17: 1731991.235 | Y17: -1.624124944
A18: %,V5010012 | B18: 5010012 | C18: Ash Sales Proceeds | F18: 596.77 | G18: 1777.24 | H18: -1180.47 | I18: -0.6642153001 | K18: 2818.07 | L18: 3755.22 | M18: -937.15 | N18: -0.2495592801 | Q18: 1468.84 | R18: 679.75 | S18: 789.09 | T18: 1.160853255 | V18: 6337.79 | W18: 16131.1 | X18: -9793.31 | Y18: -0.6071073888
A19: %,V5010013 | B19: 5010013 | C19: Fuel Survey Activity | F19: 0 | G19: 0 | H19: 0 | K19: 0 | L19: 0 | M19: 0 | Q19: 0 | R19: 0 | S19: 0 | V19: 3906533.13 | W19: 0 | X19: 3906533.13 | Y19: 1
A20: %,V5010019 | B20: 5010019 | C20: Fuel Oil Consumed | F20: 1049252.52 | G20: 160652.59 | H20: 888599.93 | I20: 5.531189569 | K20: 2178850.16 | L20: 1363298.14 | M20: 815552.02 | N20: 0.5982198582 | Q20: 1638256.05 | R20: 924231.05 | S20: 714025 | T20: 0.7725611469 | V20: 4953880.1 | W20: 3622215.17 | X20: 1331664.93 | Y20: 0.3676382731
A21: %,V5010020 | B21: 5010020 | C21: Nat Gas Consumed Steam | F21: 2065142.61 | G21: 2453953.33 | H21: -388810.72 | I21: -0.1584425895 | K21: 23911990.28 | L21: 17323341.94 | M21: 6588648.34 | N21: 0.3803335617 | Q21: 7809497.78 | R21: 7502596.7 | S21: 306901.08 | T21: 0.04090598126 | V21: 45464844.27 | W21: 30564445.2 | X21: 14900399.07 | Y21: 0.4875075917
A22: %,V5010021 | B22: 5010021 | C22: Transp Gas Consumed Steam | F22: 14646.32 | G22: 40535.42 | H22: -25889.1 | I22: -0.6386784693 | K22: 242956.13 | L22: 194033.35 | M22: 48922.78 | N22: 0.2521359344 | Q22: 124316.77 | R22: 126960.03 | S22: -2643.26 | T22: -0.02081962331 | V22: 549695.07 | W22: 322229.29 | X22: 227465.78 | Y22: 0.7059127989
A23: %,V5010027 | B23: 5010027 | C23: Gypsum handling/disposal costs | F23: 110742.75 | G23: 52426.61 | H23: 58316.14 | I23: 1.112338562 | K23: 673203.84 | L23: 526352.04 | M23: 146851.8 | N23: 0.2789992037 | Q23: 445612.25 | R23: 311362.32 | S23: 134249.93 | T23: 0.4311694813 | V23: 1539199.45 | W23: 1446384.37 | X23: 92815.08 | Y23: 0.06417041135
A24: %,V5010028 | B24: 5010028 | C24: Gypsum Sales Proceeds | F24: -44766.07 | G24: -96967.84 | H24: 52201.77 | I24: -0.5383410624 | K24: -472063.58 | L24: -551663.96 | M24: 79600.38 | N24: -0.144291427 | Q24: -312582.9 | R24: -188873.59 | S24: -123709.31 | T24: 0.6549846911 | V24: -1142841.79 | W24: -1239079.84 | X24: 96238.05 | Y24: -0.07766896603
A25: %,V5010033 | B25: 5010033 | C25: Coal Procurement Sales Net-NA | F25: 0 | G25: 0 | H25: 0 | K25: 281689.3 | L25: 0 | M25: 281689.3 | N25: 1 | Q25: 281689.3 | R25: 0 | S25: 281689.3 | T25: 1 | V25: 281689.3 | W25: 0 | X25: 281689.3 | Y25: 1
A26: %,V5010034 | B26: 5010034 | C26: Gas Transp Res Fees-Steam | F26: 503359.2 | G26: 455968.8 | H26: 47390.4 | I26: 0.103933427 | K26: 2461826.88 | L26: 2609308.08 | M26: -147481.2 | N26: -0.05652119086 | Q26: 1496666.88 | R26: 1545919.2 | S26: -49252.32 | T26: -0.03185956937 | V26: 5955724.86 | W26: 6236172.2 | X26: -280447.34 | Y26: -0.04497107056
A27: %,V5010040 | B27: 5010040 | C27: Gas Procuremnt Sales Net | F27: -27144.89 | G27: 4182.54 | H27: -31327.43 | I27: -7.490049109 | K27: 123130.22 | L27: 237983.72 | M27: -114853.5 | N27: -0.4826107433 | Q27: 123130.38 | R27: -57286.739 | S27: 180417.119 | T27: -3.149369682 | V27: 509438.4 | W27: 1872076.34 | X27: -1362637.94 | Y27: -0.7278751998
A28: %,V5020000 | B28: 5020000 | C28: Steam Expenses | F28: 160829.83 | G28: 147448.07 | H28: 13381.76 | I28: 0.09075574879 | K28: 837911.26 | L28: 826504 | M28: 11407.26 | N28: 0.01380182068 | Q28: 496704.97 | R28: 463640.7 | S28: 33064.27 | T28: 0.07131442516 | V28: 2027844.59 | W28: 1661652.77 | X28: 366191.82 | Y28: 0.2203780637
A29: %,V5020002 | B29: 5020002 | C29: Urea Expense | F29: 631.06 | G29: 1813.2 | H29: -1182.14 | I29: -0.6519633797 | K29: 350585.89 | L29: 308078.47 | M29: 42507.42 | N29: 0.1379759514 | Q29: 105467.88 | R29: 88396.22 | S29: 17071.66 | T29: 0.1931265839 | V29: 956997 | W29: 1080273.36 | X29: -123276.36 | Y29: -0.1141158938
A30: %,V5020004 | B30: 5020004 | C30: Lime-Related Expenses | F30: 110417.97 | G30: 56715.14 | H30: 53702.83 | I30: 0.9468870217 | K30: 906134.63 | L30: 688300.93 | M30: 217833.7 | N30: 0.3164803221 | Q30: 341973.12 | R30: 286584.03 | S30: 55389.09 | T30: 0.1932734703 | V30: 2627867 | W30: 2386199.04 | X30: 241667.96 | Y30: 0.1012773687
A31: %,V5050000 | B31: 5050000 | C31: Electric Expenses | F31: 1459.57 | G31: 6537.93 | H31: -5078.36 | I31: -0.7767534984 | K31: 31033.54 | L31: 25928.75 | M31: 5104.79 | N31: 0.1968775973 | Q31: 23748.31 | R31: 24918.3 | S31: -1169.99 | T31: -0.04695304254 | V31: 80148.18 | W31: 58098.22 | X31: 22049.96 | Y31: 0.3795290114
A32: %,V5060000 | B32: 5060000 | C32: Misc Steam Power Expenses | F32: 433600.52 | G32: 455065.62 | H32: -21465.1 | I32: -0.04716924122 | K32: 2452662.36 | L32: 1981030.696 | M32: 471631.664 | N32: 0.2380738799 | Q32: 1388114.16 | R32: 1210833.81 | S32: 177280.35 | T32: 0.1464117937 | V32: 5481303.09 | W32: 6024638.346 | X32: -543335.256 | Y32: -0.09018553891
A33: %,V5060002 | B33: 5060002 | C33: Misc Steam Power Exp-Assoc | F33: 4030.2 | G33: 3472.2 | H33: 558 | I33: 0.1607050285 | K33: 23594.22 | L33: 22518.63 | M33: 1075.59 | N33: 0.04776445103 | Q33: 13895.74 | R33: 12389.24 | S33: 1506.5 | T33: 0.1215974507 | V33: 49074.9 | W33: 53008.49 | X33: -3933.59 | Y33: -0.07420679216
A34: %,V5060011 | B34: 5060011 | C34: BSRR O/U Recovery-Oper Costs | F34: 1962.94 | G34: 0 | H34: 1962.94 | I34: 1 | K34: 8120.08 | L34: 0 | M34: 8120.08 | N34: 1 | Q34: 8120.08 | R34: 0 | S34: 8120.08 | T34: 1 | V34: 8120.08 | W34: -1.1 | X34: 8121.18 | Y34: -7382.890909
A35: %,V5070006 | B35: 5070006 | C35: Rents - Associated | F35: 127.56 | G35: 193.17 | H35: -65.61 | I35: -0.3396490138 | K35: 637.79 | L35: 965.85 | M35: -328.06 | N35: -0.3396593674 | Q35: 383.71 | R35: 579.51 | S35: -195.8 | T35: -0.3378716502 | V35: 1989.98 | W35: 965.85 | X35: 1024.13 | Y35: 1.060340633
A36: %,V5090000 | B36: 5090000 | C36: Allow Consum Title IV SO2 | F36: 1061.8 | G36: 339.9 | H36: 721.9 | I36: 2.123859959 | K36: 5913.02 | L36: 6539.09 | M36: -626.07 | N36: -0.09574267979 | Q36: 3149.98 | R36: 1510.67 | S36: 1639.31 | T36: 1.085154269 | V36: 16072.33 | W36: 36775.01 | X36: -20702.68 | Y36: -0.5629551154
A37: %,V5090001 | B37: 5090001 | C37: Allowance Consumption - NOx | F37: -15134.66 | G37: 0 | H37: -15134.66 | I37: 1 | K37: -15134.66 | L37: 0 | M37: -15134.66 | N37: 1 | Q37: -15134.66 | R37: 0 | S37: -15134.66 | T37: 1 | V37: -172277.52 | W37: 42857.15 | X37: -215134.67 | Y37: -5.01980813
A38: %,V5090009 | B38: 5090009 | C38: Allow Consumpt CSAPR SO2 | F38: 5.21 | G38: 1.66 | H38: 3.55 | I38: 2.138554217 | K38: 29 | L38: 31.94 | M38: -2.94 | N38: -0.09204758923 | Q38: 15.45 | R38: 7.39 | S38: 8.06 | T38: 1.090663058 | V38: 78.08 | W38: 176.85 | X38: -98.77 | Y38: -0.5584959005
A39: %,FACCOUNT,X,TGL_FERC_ACCT,N500-509 | B39: 2 | C39: Steam Power Generation - Operation (500-509) | D39: o | F39: 17157891.62 | G39: 10446112.58 | H39: 6711779.035 | I39: 0.6425145221 | K39: 66399314.75 | L39: 60506394.74 | M39: 5892920.016 | N39: 0.09739334234 | Q39: 45345973.59 | R39: 31026746.68 | S39: 14319226.91 | T39: 0.4615123544 | V39: 166327145 | W39: 146398813 | X39: 19928332 | Y39: 0.13612359
A40: %,V5100000 | B40: 5100000 | C40: Maint Supv & Engineering | F40: 88844.43 | G40: 97409 | H40: -8564.57 | I40: -0.08792380581 | K40: 475758.91 | L40: 458818.29 | M40: 16940.62 | N40: 0.03692228573 | Q40: 288075.82 | R40: 280984.47 | S40: 7091.35 | T40: 0.0252375158 | V40: 1008622.71 | W40: 1352873.19 | X40: -344250.48 | Y40: -0.2544587937
A41: %,V5100001 | B41: 5100001 | C41: Dresden Maint Sup& Engineer | F41: 0 | G41: 0 | H41: 0 | K41: -9.94 | L41: 0 | M41: -9.94 | N41: 1 | Q41: 0 | R41: 0 | S41: 0 | V41: 359.63 | W41: 0 | X41: 359.63 | Y41: 1
A42: %,V5110000 | B42: 5110000 | C42: Maintenance of Structures | F42: 94741.46 | G42: 150402.56 | H42: -55661.1 | I42: -0.3700808018 | K42: 870742.43 | L42: 733626.44 | M42: 137115.99 | N42: 0.1869016471 | Q42: 434037.63 | R42: 454944.75 | S42: -20907.12 | T42: -0.04595529457 | V42: 1829995.63 | W42: 1989377.41 | X42: -159381.78 | Y42: -0.0801164119
A43: %,V5120000 | B43: 5120000 | C43: Maintenance of Boiler Plant | F43: 1207859.53 | G43: 1143269.7 | H43: =+F43-G43 -> 64589.83 | I43: =IF(AND(F43=0,G43=0),"",IF(OR(F43=0,G43=0),100%,(+H43/G43))) -> 0.05649570701 | K43: 6163251.85 | L43: 7277692.95 | M43: =+K43-L43 -> -1114441.1 | N43: =IF(AND(K43=0,L43=0),"",IF(OR(K43=0,L43=0),100%,(+M43/L43))) -> -0.1531310963 | Q43: 4401806.4 | R43: 4999366.9 | S43: =+Q43-R43 -> -597560.5 | T43: =IF(AND(Q43=0,R43=0),"",IF(OR(Q43=0,R43=0),100%,(+S43/R43))) -> -0.1195272345 | V43: 11432780.84 | W43: 15573903.48 | X43: =+V43-W43 -> -4141122.64 | Y43: =IF(AND(V43=0,W43=0),"",IF(OR(V43=0,W43=0),100%,(+X43/W43))) -> -0.2659013937
A44: %,V5120034 | B44: 5120034 | C44: BSDR O/U Recovery - Maint Cost | F44: -4246.63 | G44: -285.65 | H44: -3960.98 | I44: 13.86654997 | K44: -15907.44 | L44: -2681.46 | M44: -13225.98 | N44: 4.932380121 | Q44: -14005.01 | R44: -2223.95 | S44: -11781.06 | T44: 5.297358304 | V44: -21748.4 | W44: -7671.09 | X44: -14077.31 | Y44: 1.83511209
A45: %,V5120037 | B45: 5120037 | C45: KY Steam Maint O/U | F45: -58271.11 | G45: -58271.11 | H45: 0 | I45: 0 | K45: -291355.55 | L45: -291355.55 | M45: 0 | N45: 0 | Q45: -174813.33 | R45: -174813.33 | S45: 0 | T45: 0 | V45: -699253.32 | W45: -699253.32 | X45: 0 | Y45: 0
A46: %,V5130000 | B46: 5130000 | C46: Maintenance of Electric Plant | F46: 824730.91 | G46: 275553.29 | H46: 549177.62 | I46: 1.992999684 | K46: 2751046.85 | L46: 2376001.05 | M46: 375045.8 | N46: 0.1578474892 | Q46: 2218352.04 | R46: 1517704.73 | S46: 700647.31 | T46: 0.4616492893 | V46: 6281159.3 | W46: 4352733.86 | X46: 1928425.44 | Y46: 0.4430377556
A47: %,V5132000 | B47: 5132000 | C47: Maint of Computer Software-Mjr | F47: 6188.9 | G47: 3917.3 | H47: 2271.6 | I47: 0.5798892094 | K47: 19263.1 | L47: 27069.95 | M47: -7806.85 | N47: -0.2883954348 | Q47: 18227.45 | R47: 25044.95 | S47: -6817.5 | T47: -0.2722105654 | V47: 47458.15 | W47: 27069.95 | X47: 20388.2 | Y47: 0.7531672574
A48: %,V5133000 | B48: 5133000 | C48: Maint of Comm Equipmt-Mjr | F48: 55.37 | G48: 483.76 | H48: -428.39 | I48: -0.8855424177 | K48: 3424.69 | L48: 1124.18 | M48: 2300.51 | N48: 2.046389368 | Q48: 917.27 | R48: 813.91 | S48: 103.36 | T48: 0.1269919279 | V48: 7984.24 | W48: 1124.18 | X48: 6860.06 | Y48: 6.102278994
A49: %,V5140000 | B49: 5140000 | C49: Maintenance of Misc Steam Plt | F49: 306951.71 | G49: -22487.8 | H49: 329439.51 | I49: -14.64969939 | K49: 962668.17 | L49: 564594.94 | M49: 398073.23 | N49: 0.7050598611 | Q49: 596422.4 | R49: 376998.26 | S49: 219424.14 | T49: 0.5820295828 | V49: 1880615.86 | W49: 1406936.23 | X49: 473679.63 | Y49: 0.3366745556
A50: %,FACCOUNT,X,TGL_FERC_ACCT,N510-515 | B50: 3 | C50: Steam Power Generation - Maintenance (510-515) | D50: m | F50: 2466854.57 | G50: 1589991.05 | H50: 876863.52 | I50: 0.5514895949 | K50: 10938883.07 | L50: 11144890.79 | M50: -206007.72 | N50: -0.01848449876 | Q50: 7769020.67 | R50: 7478820.69 | S50: 290199.98 | T50: 0.0388029065 | V50: 21767974.64 | W50: 23997093.89 | X50: -2229119.25 | Y50: -0.09289121675
A51: %,V5000000 | B51: 5000000 | C51: Oper Supervision & Engineering | F51: 388952.38 | G51: 304828.88 | H51: 84123.5 | I51: 0.2759695866 | K51: 1916639.39 | L51: 1611238.89 | M51: 305400.5 | N51: 0.1895438981 | Q51: 1143954.19 | R51: 930623.43 | S51: 213330.76 | T51: 0.2292342457 | V51: 4808473.09 | W51: 4075249.41 | X51: 733223.68 | Y51: 0.1799211794
A52: %,V5000002 | B52: 5000002 | C52: Dresden Oper Supervision & Eng | F52: 0 | G52: 0 | H52: 0 | K52: 0 | L52: 0 | M52: 0 | Q52: 0 | R52: 0 | S52: 0 | V52: -33.12 | W52: 0 | X52: -33.12 | Y52: 1
A53: %,V5000003 | B53: 5000003 | C53: Cnstr Srchrge Op Sup & Eng Exp | F53: 0 | G53: 0 | H53: 0 | K53: 0 | L53: 0 | M53: 0 | Q53: 0 | R53: 0 | S53: 0 | V53: 64.34 | W53: 0 | X53: 64.34 | Y53: 1
A54: %,V5010000 | B54: 5010000 | C54: Fuel | F54: 575988.92 | G54: 536336.11 | H54: 39652.81 | I54: 0.07393276205 | K54: 2607777.01 | L54: 3660843.31 | M54: -1053066.3 | N54: -0.2876567531 | Q54: 1575859.19 | R54: 2350285.85 | S54: -774426.66 | T54: -0.3295031794 | V54: 6697399.21 | W54: 7396104.18 | X54: -698704.97 | Y54: -0.09446932507
A55: %,V5010001 | B55: 5010001 | C55: Fuel Consumed | F55: 2925839.84 | G55: 1362557.52 | H55: 1563282.32 | I55: 1.147314735 | K55: 26040656.82 | L55: 23523786.85 | M55: 2516869.97 | N55: 0.1069925512 | Q55: 9366272.94 | R55: 7768972.06 | S55: 1597300.88 | T55: 0.2056000289 | V55: 76826609.91 | W55: 78036523.32 | X55: -1209913.41 | Y55: -0.01550445046
A56: %,V5010003 | B56: 5010003 | C56: Fuel - Procure Unload & Handle | F56: 181712.27 | G56: 80402.99 | H56: 101309.28 | I56: 1.260018813 | K56: 1403986.5 | L56: 1248281.58 | M56: 155704.92 | N56: 0.1247354143 | Q56: 550038.69 | R56: 454628.36 | S56: 95410.33 | T56: 0.2098644484 | V56: 4227337.05 | W56: 3772133.28 | X56: 455203.77 | Y56: 0.1206754206
A57: %,V5010005 | B57: 5010005 | C57: Fuel - Deferred | F57: 8714577 | G57: 4417871.505 | H57: 4296705.495 | I57: 0.9725736681 | K57: 424366.602 | L57: 4895937.22 | M57: -4471570.618 | N57: -0.9133227035 | Q57: 18735354.49 | R57: 7267788.389 | S57: 11467566.1 | T57: 1.577861859 | V57: 665576.215 | W57: -1066415.02 | X57: 1731991.235 | Y57: -1.624124944
A58: %,V5010012 | B58: 5010012 | C58: Ash Sales Proceeds | F58: 596.77 | G58: 1777.24 | H58: -1180.47 | I58: -0.6642153001 | K58: 2818.07 | L58: 3755.22 | M58: -937.15 | N58: -0.2495592801 | Q58: 1468.84 | R58: 679.75 | S58: 789.09 | T58: 1.160853255 | V58: 6337.79 | W58: 16131.1 | X58: -9793.31 | Y58: -0.6071073888
A59: %,V5010013 | B59: 5010013 | C59: Fuel Survey Activity | F59: 0 | G59: 0 | H59: 0 | K59: 0 | L59: 0 | M59: 0 | Q59: 0 | R59: 0 | S59: 0 | V59: 3906533.13 | W59: 0 | X59: 3906533.13 | Y59: 1
A60: %,V5010019 | B60: 5010019 | C60: Fuel Oil Consumed | F60: 1049252.52 | G60: 160652.59 | H60: 888599.93 | I60: 5.531189569 | K60: 2178850.16 | L60: 1363298.14 | M60: 815552.02 | N60: 0.5982198582 | Q60: 1638256.05 | R60: 924231.05 | S60: 714025 | T60: 0.7725611469 | V60: 4953880.1 | W60: 3622215.17 | X60: 1331664.93 | Y60: 0.3676382731
A61: %,V5010020 | B61: 5010020 | C61: Nat Gas Consumed Steam | F61: 2065142.61 | G61: 2453953.33 | H61: -388810.72 | I61: -0.1584425895 | K61: 23911990.28 | L61: 17323341.94 | M61: 6588648.34 | N61: 0.3803335617 | Q61: 7809497.78 | R61: 7502596.7 | S61: 306901.08 | T61: 0.04090598126 | V61: 45464844.27 | W61: 30564445.2 | X61: 14900399.07 | Y61: 0.4875075917
A62: %,V5010021 | B62: 5010021 | C62: Transp Gas Consumed Steam | F62: 14646.32 | G62: 40535.42 | H62: -25889.1 | I62: -0.6386784693 | K62: 242956.13 | L62: 194033.35 | M62: 48922.78 | N62: 0.2521359344 | Q62: 124316.77 | R62: 126960.03 | S62: -2643.26 | T62: -0.02081962331 | V62: 549695.07 | W62: 322229.29 | X62: 227465.78 | Y62: 0.7059127989
A63: %,V5010027 | B63: 5010027 | C63: Gypsum handling/disposal costs | F63: 110742.75 | G63: 52426.61 | H63: 58316.14 | I63: 1.112338562 | K63: 673203.84 | L63: 526352.04 | M63: 146851.8 | N63: 0.2789992037 | Q63: 445612.25 | R63: 311362.32 | S63: 134249.93 | T63: 0.4311694813 | V63: 1539199.45 | W63: 1446384.37 | X63: 92815.08 | Y63: 0.06417041135
A64: %,V5010028 | B64: 5010028 | C64: Gypsum Sales Proceeds | F64: -44766.07 | G64: -96967.84 | H64: 52201.77 | I64: -0.5383410624 | K64: -472063.58 | L64: -551663.96 | M64: 79600.38 | N64: -0.144291427 | Q64: -312582.9 | R64: -188873.59 | S64: -123709.31 | T64: 0.6549846911 | V64: -1142841.79 | W64: -1239079.84 | X64: 96238.05 | Y64: -0.07766896603
A65: %,V5010033 | B65: 5010033 | C65: Coal Procurement Sales Net-NA | F65: 0 | G65: 0 | H65: 0 | K65: 281689.3 | L65: 0 | M65: 281689.3 | N65: 1 | Q65: 281689.3 | R65: 0 | S65: 281689.3 | T65: 1 | V65: 281689.3 | W65: 0 | X65: 281689.3 | Y65: 1
A66: %,V5010034 | B66: 5010034 | C66: Gas Transp Res Fees-Steam | F66: 503359.2 | G66: 455968.8 | H66: 47390.4 | I66: 0.103933427 | K66: 2461826.88 | L66: 2609308.08 | M66: -147481.2 | N66: -0.05652119086 | Q66: 1496666.88 | R66: 1545919.2 | S66: -49252.32 | T66: -0.03185956937 | V66: 5955724.86 | W66: 6236172.2 | X66: -280447.34 | Y66: -0.04497107056
A67: %,V5010040 | B67: 5010040 | C67: Gas Procuremnt Sales Net | F67: -27144.89 | G67: 4182.54 | H67: -31327.43 | I67: -7.490049109 | K67: 123130.22 | L67: 237983.72 | M67: -114853.5 | N67: -0.4826107433 | Q67: 123130.38 | R67: -57286.739 | S67: 180417.119 | T67: -3.149369682 | V67: 509438.4 | W67: 1872076.34 | X67: -1362637.94 | Y67: -0.7278751998
A68: %,V5020000 | B68: 5020000 | C68: Steam Expenses | F68: 160829.83 | G68: 147448.07 | H68: 13381.76 | I68: 0.09075574879 | K68: 837911.26 | L68: 826504 | M68: 11407.26 | N68: 0.01380182068 | Q68: 496704.97 | R68: 463640.7 | S68: 33064.27 | T68: 0.07131442516 | V68: 2027844.59 | W68: 1661652.77 | X68: 366191.82 | Y68: 0.2203780637
A69: %,V5020002 | B69: 5020002 | C69: Urea Expense | F69: 631.06 | G69: 1813.2 | H69: -1182.14 | I69: -0.6519633797 | K69: 350585.89 | L69: 308078.47 | M69: 42507.42 | N69: 0.1379759514 | Q69: 105467.88 | R69: 88396.22 | S69: 17071.66 | T69: 0.1931265839 | V69: 956997 | W69: 1080273.36 | X69: -123276.36 | Y69: -0.1141158938
A70: %,V5020004 | B70: 5020004 | C70: Lime-Related Expenses | F70: 110417.97 | G70: 56715.14 | H70: 53702.83 | I70: 0.9468870217 | K70: 906134.63 | L70: 688300.93 | M70: 217833.7 | N70: 0.3164803221 | Q70: 341973.12 | R70: 286584.03 | S70: 55389.09 | T70: 0.1932734703 | V70: 2627867 | W70: 2386199.04 | X70: 241667.96 | Y70: 0.1012773687
A71: %,V5050000 | B71: 5050000 | C71: Electric Expenses | F71: 1459.57 | G71: 6537.93 | H71: -5078.36 | I71: -0.7767534984 | K71: 31033.54 | L71: 25928.75 | M71: 5104.79 | N71: 0.1968775973 | Q71: 23748.31 | R71: 24918.3 | S71: -1169.99 | T71: -0.04695304254 | V71: 80148.18 | W71: 58098.22 | X71: 22049.96 | Y71: 0.3795290114
A72: %,V5060000 | B72: 5060000 | C72: Misc Steam Power Expenses | F72: 433600.52 | G72: 455065.62 | H72: -21465.1 | I72: -0.04716924122 | K72: 2452662.36 | L72: 1981030.696 | M72: 471631.664 | N72: 0.2380738799 | Q72: 1388114.16 | R72: 1210833.81 | S72: 177280.35 | T72: 0.1464117937 | V72: 5481303.09 | W72: 6024638.346 | X72: -543335.256 | Y72: -0.09018553891
A73: %,V5060002 | B73: 5060002 | C73: Misc Steam Power Exp-Assoc | F73: 4030.2 | G73: 3472.2 | H73: 558 | I73: 0.1607050285 | K73: 23594.22 | L73: 22518.63 | M73: 1075.59 | N73: 0.04776445103 | Q73: 13895.74 | R73: 12389.24 | S73: 1506.5 | T73: 0.1215974507 | V73: 49074.9 | W73: 53008.49 | X73: -3933.59 | Y73: -0.07420679216
A74: %,V5060011 | B74: 5060011 | C74: BSRR O/U Recovery-Oper Costs | F74: 1962.94 | G74: 0 | H74: 1962.94 | I74: 1 | K74: 8120.08 | L74: 0 | M74: 8120.08 | N74: 1 | Q74: 8120.08 | R74: 0 | S74: 8120.08 | T74: 1 | V74: 8120.08 | W74: -1.1 | X74: 8121.18 | Y74: -7382.890909
A75: %,V5070006 | B75: 5070006 | C75: Rents - Associated | F75: 127.56 | G75: 193.17 | H75: =+F75-G75 -> -65.61 | I75: =IF(AND(F75=0,G75=0),"",IF(OR(F75=0,G75=0),100%,(+H75/G75))) -> -0.3396490138 | K75: 637.79 | L75: 965.85 | M75: =+K75-L75 -> -328.06 | N75: =IF(AND(K75=0,L75=0),"",IF(OR(K75=0,L75=0),100%,(+M75/L75))) -> -0.3396593674 | Q75: 383.71 | R75: 579.51 | S75: =+Q75-R75 -> -195.8 | T75: =IF(AND(Q75=0,R75=0),"",IF(OR(Q75=0,R75=0),100%,(+S75/R75))) -> -0.3378716502 | V75: 1989.98 | W75: 965.85 | X75: =+V75-W75 -> 1024.13 | Y75: =IF(AND(V75=0,W75=0),"",IF(OR(V75=0,W75=0),100%,(+X75/W75))) -> 1.060340633
A76: %,V5090000 | B76: 5090000 | C76: Allow Consum Title IV SO2 | F76: 1061.8 | G76: 339.9 | H76: 721.9 | I76: 2.123859959 | K76: 5913.02 | L76: 6539.09 | M76: -626.07 | N76: -0.09574267979 | Q76: 3149.98 | R76: 1510.67 | S76: 1639.31 | T76: 1.085154269 | V76: 16072.33 | W76: 36775.01 | X76: -20702.68 | Y76: -0.5629551154
A77: %,V5090001 | B77: 5090001 | C77: Allowance Consumption - NOx | F77: -15134.66 | G77: 0 | H77: -15134.66 | I77: 1 | K77: -15134.66 | L77: 0 | M77: -15134.66 | N77: 1 | Q77: -15134.66 | R77: 0 | S77: -15134.66 | T77: 1 | V77: -172277.52 | W77: 42857.15 | X77: -215134.67 | Y77: -5.01980813
A78: %,V5090009 | B78: 5090009 | C78: Allow Consumpt CSAPR SO2 | F78: 5.21 | G78: 1.66 | H78: 3.55 | I78: 2.138554217 | K78: 29 | L78: 31.94 | M78: -2.94 | N78: -0.09204758923 | Q78: 15.45 | R78: 7.39 | S78: 8.06 | T78: 1.090663058 | V78: 78.08 | W78: 176.85 | X78: -98.77 | Y78: -0.5584959005
A79: %,V5100000 | B79: 5100000 | C79: Maint Supv & Engineering | F79: 88844.43 | G79: 97409 | H79: -8564.57 | I79: -0.08792380581 | K79: 475758.91 | L79: 458818.29 | M79: 16940.62 | N79: 0.03692228573 | Q79: 288075.82 | R79: 280984.47 | S79: 7091.35 | T79: 0.0252375158 | V79: 1008622.71 | W79: 1352873.19 | X79: -344250.48 | Y79: -0.2544587937
A80: %,V5100001 | B80: 5100001 | C80: Dresden Maint Sup& Engineer | F80: 0 | G80: 0 | H80: 0 | K80: -9.94 | L80: 0 | M80: -9.94 | N80: 1 | Q80: 0 | R80: 0 | S80: 0 | V80: 359.63 | W80: 0 | X80: 359.63 | Y80: 1
A81: %,V5110000 | B81: 5110000 | C81: Maintenance of Structures | F81: 94741.46 | G81: 150402.56 | H81: -55661.1 | I81: -0.3700808018 | K81: 870742.43 | L81: 733626.44 | M81: 137115.99 | N81: 0.1869016471 | Q81: 434037.63 | R81: 454944.75 | S81: -20907.12 | T81: -0.04595529457 | V81: 1829995.63 | W81: 1989377.41 | X81: -159381.78 | Y81: -0.0801164119
A82: %,V5120000 | B82: 5120000 | C82: Maintenance of Boiler Plant | F82: 1207859.53 | G82: 1143269.7 | H82: 64589.83 | I82: 0.05649570701 | K82: 6163251.85 | L82: 7277692.95 | M82: -1114441.1 | N82: -0.1531310963 | Q82: 4401806.4 | R82: 4999366.9 | S82: -597560.5 | T82: -0.1195272345 | V82: 11432780.84 | W82: 15573903.48 | X82: -4141122.64 | Y82: -0.2659013937
A83: %,V5120034 | B83: 5120034 | C83: BSDR O/U Recovery - Maint Cost | F83: -4246.63 | G83: -285.65 | H83: -3960.98 | I83: 13.86654997 | K83: -15907.44 | L83: -2681.46 | M83: -13225.98 | N83: 4.932380121 | Q83: -14005.01 | R83: -2223.95 | S83: -11781.06 | T83: 5.297358304 | V83: -21748.4 | W83: -7671.09 | X83: -14077.31 | Y83: 1.83511209
A84: %,V5120037 | B84: 5120037 | C84: KY Steam Maint O/U | F84: -58271.11 | G84: -58271.11 | H84: 0 | I84: 0 | K84: -291355.55 | L84: -291355.55 | M84: 0 | N84: 0 | Q84: -174813.33 | R84: -174813.33 | S84: 0 | T84: 0 | V84: -699253.32 | W84: -699253.32 | X84: 0 | Y84: 0
A85: %,V5130000 | B85: 5130000 | C85: Maintenance of Electric Plant | F85: 824730.91 | G85: 275553.29 | H85: 549177.62 | I85: 1.992999684 | K85: 2751046.85 | L85: 2376001.05 | M85: 375045.8 | N85: 0.1578474892 | Q85: 2218352.04 | R85: 1517704.73 | S85: 700647.31 | T85: 0.4616492893 | V85: 6281159.3 | W85: 4352733.86 | X85: 1928425.44 | Y85: 0.4430377556
A86: %,V5132000 | B86: 5132000 | C86: Maint of Computer Software-Mjr | F86: 6188.9 | G86: 3917.3 | H86: 2271.6 | I86: 0.5798892094 | K86: 19263.1 | L86: 27069.95 | M86: -7806.85 | N86: -0.2883954348 | Q86: 18227.45 | R86: 25044.95 | S86: -6817.5 | T86: -0.2722105654 | V86: 47458.15 | W86: 27069.95 | X86: 20388.2 | Y86: 0.7531672574
A87: %,V5133000 | B87: 5133000 | C87: Maint of Comm Equipmt-Mjr | F87: 55.37 | G87: 483.76 | H87: -428.39 | I87: -0.8855424177 | K87: 3424.69 | L87: 1124.18 | M87: 2300.51 | N87: 2.046389368 | Q87: 917.27 | R87: 813.91 | S87: 103.36 | T87: 0.1269919279 | V87: 7984.24 | W87: 1124.18 | X87: 6860.06 | Y87: 6.102278994
A88: %,V5140000 | B88: 5140000 | C88: Maintenance of Misc Steam Plt | F88: 306951.71 | G88: -22487.8 | H88: 329439.51 | I88: -14.64969939 | K88: 962668.17 | L88: 564594.94 | M88: 398073.23 | N88: 0.7050598611 | Q88: 596422.4 | R88: 376998.26 | S88: 219424.14 | T88: 0.5820295828 | V88: 1880615.86 | W88: 1406936.23 | X88: 473679.63 | Y88: 0.3366745556
A89: %,FACCOUNT,X,TGL_FERC_ACCT,N500-515 | B89: 4 | C89: Total Power Production Expenses - Steam Power | F89: 19624746.19 | G89: 12036103.63 | H89: 7588642.555 | I89: 0.6304899646 | K89: 77338197.82 | L89: 71651285.53 | M89: 5686912.296 | N89: 0.07936929888 | Q89: 53114994.26 | R89: 38505567.37 | S89: 14609426.89 | T89: 0.379410768 | V89: 188095119.6 | W89: 170395906.9 | X89: 17699212.75 | Y89: 0.1038711145
A90: %,FACCOUNT,X,TGL_FERC_ACCT,N517-525 | B90: 5 | C90: Nuclear Power Generation - Operation (517-525) | D90: o | F90: 0 | G90: 0 | H90: 0 | K90: 0 | L90: 0 | M90: 0 | Q90: 0 | R90: 0 | S90: 0 | V90: 0 | W90: 0 | X90: 0
A91: %,V5311000 | B91: 5311000 | C91: Maint of Computer Hardware | F91: 76.69 | G91: 0 | H91: 76.69 | I91: 1 | K91: 0 | L91: 0 | M91: 0 | Q91: 22.73 | R91: 0 | S91: 22.73 | T91: 1 | V91: 76.69 | W91: 0 | X91: 76.69 | Y91: 1
A92: %,V5312000 | B92: 5312000 | C92: Maint of Computer Software | F92: 0 | G92: -14.63 | H92: 14.63 | I92: 1 | K92: 0 | L92: 0 | M92: 0 | Q92: 0 | R92: 0 | S92: 0 | V92: 0.19 | W92: 0 | X92: 0.19 | Y92: 1
A93: %,FACCOUNT,X,TGL_FERC_ACCT,N528-533 | B93: 6 | C93: Nuclear Power Generation - Maintenance (528-532) | D93: m | F93: 76.69 | G93: -14.63 | H93: 91.32 | I93: -6.241968558 | K93: 0 | L93: 0 | M93: 0 | Q93: 22.73 | R93: 0 | S93: 22.73 | T93: 1 | V93: 76.88 | W93: 0 | X93: 76.88 | Y93: 1
A94: %,V5311000 | B94: 5311000 | C94: Maint of Computer Hardware | F94: 76.69 | G94: 0 | H94: 76.69 | I94: 1 | K94: 0 | L94: 0 | M94: 0 | Q94: 22.73 | R94: 0 | S94: 22.73 | T94: 1 | V94: 76.69 | W94: 0 | X94: 76.69 | Y94: 1
A95: %,V5312000 | B95: 5312000 | C95: Maint of Computer Software | F95: 0 | G95: -14.63 | H95: 14.63 | I95: 1 | K95: 0 | L95: 0 | M95: 0 | Q95: 0 | R95: 0 | S95: 0 | V95: 0.19 | W95: 0 | X95: 0.19 | Y95: 1
A96: %,FACCOUNT,X,TGL_FERC_ACCT,N517-533 | B96: 7 | C96: Total Power Production Expenses - Nuclear Power | F96: 76.69 | G96: -14.63 | H96: 91.32 | I96: -6.241968558 | K96: 0 | L96: 0 | M96: 0 | Q96: 22.73 | R96: 0 | S96: 22.73 | T96: 1 | V96: 76.88 | W96: 0 | X96: 76.88 | Y96: 1
A97: %,FACCOUNT,X,TGL_FERC_ACCT,N535-540 | B97: 8 | C97: Hydraulic Power Generation - Operation (535-540.1) | D97: o | F97: 0 | G97: 0 | H97: 0 | K97: 0 | L97: 0 | M97: 0 | Q97: 0 | R97: 0 | S97: 0 | V97: 0 | W97: 0 | X97: 0
A98: %,FACCOUNT,X,TGL_FERC_ACCT,N541-545 | B98: 9 | C98: Hydraulic Power Generation - Maintenance (541-545.1) | D98: m | F98: 0 | G98: 0 | H98: 0 | K98: 0 | L98: 0 | M98: 0 | Q98: 0 | R98: 0 | S98: 0 | V98: 0 | W98: 0 | X98: 0
A99: %,FACCOUNT,X,TGL_FERC_ACCT,N535-545 | B99: 10 | C99: Total Power Production Expenses - Hydraulic Power | F99: 0 | G99: 0 | H99: 0 | K99: 0 | L99: 0 | M99: 0 | Q99: 0 | R99: 0 | S99: 0 | V99: 0 | W99: 0 | X99: 0
A100: %,V5581000 | B100: 5581000 | C100: Oper Supervision & Engineering | F100: 87.33 | G100: 120.97 | K100: 771.81 | L100: 146.29 | Q100: 531.98 | R100: 146.29 | V100: 2030.29 | W100: 146.29
A101: %,V5582000 | B101: 5582000 | C101: Solar Panel Gen&Oth Plt Op-Mjr | F101: 8.08 | G101: 0 | K101: 12.79 | L101: 2.07 | Q101: 9.71 | R101: 0 | V101: 12.79 | W101: 2.07
A102: %,FACCOUNT,X,TGL_FERC_ACCT,N5581,N5582,N5584,N5585 | B102: 10.1 | C102: Solar Generation – Operation (558.1-558.5) | D102: o | F102: 95.41 | G102: 120.97 | K102: 784.6 | L102: 148.36 | Q102: 541.69 | R102: 146.29 | V102: 2043.08 | W102: 148.36
A103: %,V5587000 | B103: 5587000 | C103: Maint Solar Pnl Strct & Eq-Mjr | F103: -0.44 | G103: -4.79 | K103: 1.61 | L103: 3.51 | Q103: 4.68 | R103: 3.51 | V103: 1.17 | W103: 3.51
A104: %,FACCOUNT,X,TGL_FERC_ACCT,N5586,N5587,N5588,N5589,N55810,N55811,N55812 | B104: 10.2 | C104: Solar Generation – Maintenance (558.6-558.12) | D104: m | F104: -0.44 | G104: -4.79 | K104: 1.61 | L104: 3.51 | Q104: 4.68 | R104: 3.51 | V104: 1.17 | W104: 3.51
B105: 10.3 | C105: Total Power Production Expenses – Solar | F105: =F102+F104 -> 94.97
A106: %,V5581300 | B106: 5581300 | C106: Oper Supervision & Engineering | F106: -2983.67 | G106: 2099.44 | K106: 0 | L106: 2335.05 | Q106: -2008.27 | R106: 2180.64 | V106: 7178.18 | W106: 2335.05
A107: %,V5581400 | B107: 5581400 | C107: Wind Turb Gen&Oth Plnt Op-Mjr | F107: -605.65 | G107: -788.53 | K107: 0 | L107: 410.78 | Q107: -529.61 | R107: 12.17 | V107: 103.07 | W107: 410.78
A108: %,V5581601 | B108: 5581601 | C108: Wind - Variable Production Exp | F108: -45.71 | G108: 0 | K108: 0 | L108: 0 | Q108: 1.93 | R108: 0 | V108: 24.06 | W108: 0
A109: %,FACCOUNT,X,TGL_FERC_ACCT,N55813,N55814,N55816,N55817 | B109: 10.4 | C109: Wind Generation – Operation (558.13-558.17) | D109: o | F109: -3635.03 | G109: 1310.91 | K109: 0 | L109: 2745.83 | Q109: -2535.95 | R109: 2192.81 | V109: 7305.31 | W109: 2745.83
A110: %,V5581900 | B110: 5581900 | C110: Maint Wind Turb Struct&Eq-Mjr | F110: 0 | G110: 0 | K110: 0 | L110: 0 | Q110: 0 | R110: -3.59 | V110: 0 | W110: 0
A111: %,FACCOUNT,X,TGL_FERC_ACCT,N55818,N55819,N55820,N55821,N55822,N55823,N55824 | B111: 10.5 | C111: Wind Generation – Maintenance (558.18-558.24) | D111: m | F111: 0 | G111: 0 | K111: 0 | L111: 0 | Q111: 0 | R111: -3.59 | V111: 0 | W111: 0
B112: 10.6 | C112: Total Power Production Expenses – Wind | F112: =F109+F111 -> -3635.03
A113: %,FACCOUNT,X,TGL_FERC_ACCT,N5590 | B113: 10.7 | C113: Other Renewable Generation – Operation (559.1-559.5) | D113: o | F113: 0 | G113: 0 | K113: 0 | L113: 0 | Q113: 0 | R113: 0 | V113: 0 | W113: 0
A114: %,FACCOUNT,X,TGL_FERC_ACCT,N559 | B114: 10.8 | C114: Other Renewable Generation – Maintenance (559.6-559.16) | D114: m | F114: 0 | G114: 0 | K114: 0 | L114: 0 | Q114: 0 | R114: 0 | V114: 0 | W114: 0
B115: 10.9 | C115: Total Power Production Expenses – Other Renewable | F115: =F113+F114 -> 0
A116: %,V5490000 | B116: 5490000 | C116: Misc Other Pwer Generation Exp | F116: 0 | G116: 0 | H116: =+F116-G116 -> 0 | I116: =IF(AND(F116=0,G116=0),"",IF(OR(F116=0,G116=0),100%,(+H116/G116))) ->  | K116: 0 | L116: 0 | M116: =+K116-L116 -> 0 | N116: =IF(AND(K116=0,L116=0),"",IF(OR(K116=0,L116=0),100%,(+M116/L116))) ->  | Q116: 0 | R116: 0 | S116: =+Q116-R116 -> 0 | T116: =IF(AND(Q116=0,R116=0),"",IF(OR(Q116=0,R116=0),100%,(+S116/R116))) ->  | V116: 0.01 | W116: 0 | X116: =+V116-W116 -> 0.01 | Y116: =IF(AND(V116=0,W116=0),"",IF(OR(V116=0,W116=0),100%,(+X116/W116))) -> 1
A117: %,V8140000 | B117: 8140000 | C117: Underground Storage Expenses | F117: 0 | G117: 0 | H117: 0 | K117: 0 | L117: 0 | M117: 0 | Q117: 0 | R117: 0 | S117: 0 | V117: 0 | W117: 0 | X117: 0
A118: %,FACCOUNT,X,TGL_FERC_ACCT,N546-550 | B118: 11 | C118: Other Power Generation - Operation (546-550.1) | D118: o | F118: 0 | G118: 0 | H118: 0 | K118: 0 | L118: 0 | M118: 0 | Q118: 0 | R118: 0 | S118: 0 | V118: 0.01 | W118: 0 | X118: 0.01 | Y118: 1
A119: %,FACCOUNT,X,TGL_FERC_ACCT,N551-554 | B119: 12 | C119: Other Power Generation - Maintenance (551-554.1) | D119: m | F119: 0 | G119: 0 | H119: 0 | K119: 0 | L119: 0 | M119: 0 | Q119: 0 | R119: 0 | S119: 0 | V119: 0 | W119: 0 | X119: 0
A120: %,V5490000 | B120: 5490000 | C120: Misc Other Pwer Generation Exp | F120: 0 | G120: 0 | H120: 0 | K120: 0 | L120: 0 | M120: 0 | Q120: 0 | R120: 0 | S120: 0 | V120: 0.01 | W120: 0 | X120: 0.01 | Y120: 1
A121: %,V8140000 | B121: 8140000 | C121: Underground Storage Expenses | F121: 0 | G121: 0 | H121: 0 | K121: 0 | L121: 0 | M121: 0 | Q121: 0 | R121: 0 | S121: 0 | V121: 0 | W121: 0 | X121: 0
A122: %,FACCOUNT,X,TGL_FERC_ACCT,N546-554 | B122: 13 | C122: Total Power Production Expenses - Other Power | F122: 0 | G122: 0 | H122: 0 | K122: 0 | L122: 0 | M122: 0 | Q122: 0 | R122: 0 | S122: 0 | V122: 0.01 | W122: 0 | X122: 0.01 | Y122: 1
B123: 14 | C123: Other Power Supply Expenses | H123: 0 | M123: 0 | S123: 0 | X123: 0
A124: %,V5550001 | B124: 5550001 | C124: Purch Pwr-NonTrading-Nonassoc | F124: 13896748.25 | G124: 10541889.76 | H124: 3354858.49 | I124: 0.3182407108 | K124: 63498187.79 | L124: 61962438.34 | M124: 1535749.45 | N124: 0.0247851681 | Q124: 35054034.59 | R124: 32248202.4 | S124: 2805832.19 | T124: 0.08700739828 | V124: 114572054.7 | W124: 108839392.4 | X124: 5732662.3 | Y124: 0.05267084071
A125: %,V5550004 | B125: 5550004 | C125: Purchased Power-Pool Capacity | F125: 32143.24 | G125: 0 | H125: 32143.24 | I125: 1 | K125: 158289.38 | L125: 0 | M125: 158289.38 | N125: 1 | Q125: 96267.53 | R125: 0 | S125: 96267.53 | T125: 1 | V125: 383250 | W125: 0 | X125: 383250 | Y125: 1
A126: %,V5550023 | B126: 5550023 | C126: Purch Power Capacity -NA | F126: 0 | G126: 1043329.69 | H126: -1043329.69 | I126: 1 | K126: 0 | L126: 1849523.45 | M126: -1849523.45 | N126: 1 | Q126: 0 | R126: 1446426.57 | S126: -1446426.57 | T126: 1 | V126: 2629.24 | W126: 3268780.34 | X126: -3266151.1 | Y126: -0.9991956511
A127: %,V5550029 | B127: 5550029 | C127: Purch Power-Assoc-Trnsfr Price | F127: 0 | G127: 0 | H127: 0 | K127: 0 | L127: 0 | M127: 0 | Q127: 0 | R127: 0 | S127: 0 | V127: 0 | W127: 0 | X127: 0
A128: %,V5550039 | B128: 5550039 | C128: PJM Inadvertent Mtr Res-OSS | F128: -1466.22 | G128: -806.03 | H128: -660.19 | I128: 0.8190638066 | K128: 3384.09 | L128: -2422.74 | M128: 5806.83 | N128: -2.396802794 | Q128: -749.95 | R128: -1732.23 | S128: 982.28 | T128: -0.5670609561 | V128: 2142.1 | W128: 2276.5 | X128: -134.4 | Y128: -0.05903799693
A129: %,V5550040 | B129: 5550040 | C129: PJM Inadvertent Mtr Res-LSE | F129: 15118.59 | G129: -9252.3 | H129: 24370.89 | I129: -2.634035861 | K129: 99520.18 | L129: -34250.99 | M129: 133771.17 | N129: -3.905614699 | Q129: 51192.81 | R129: -24931.57 | S129: 76124.38 | T129: -3.053332782 | V129: 71062.14 | W129: 7604.93 | X129: 63457.21 | Y129: 8.344220131
A130: %,V5550074 | B130: 5550074 | C130: PJM Reactive-Charge | F130: 125371.56 | G130: 274383.7 | H130: -149012.14 | I130: -0.5430794176 | K130: 1133580.89 | L130: 1378201.66 | M130: -244620.77 | N130: -0.1774927263 | Q130: 624925 | R130: 818414.86 | S130: -193489.86 | T130: -0.2364202673 | V130: 2973181.11 | W130: 3419361.68 | X130: -446180.57 | Y130: -0.1304865094
A131: %,V5550075 | B131: 5550075 | C131: PJM Reactive-Credit | F131: -119573 | G131: -119573 | H131: 0 | I131: 0 | K131: -597865 | L131: -597865 | M131: 0 | N131: 0 | Q131: -358719 | R131: -358719 | S131: 0 | T131: 0 | V131: -1434876 | W131: -1434876 | X131: 0 | Y131: 0
A132: %,V5550076 | B132: 5550076 | C132: PJM Black Start-Charge | F132: 42232.02 | G132: 37522.05 | H132: 4709.97 | I132: 0.1255253911 | K132: 159497.4 | L132: 181772.42 | M132: -22275.02 | N132: -0.122543453 | Q132: 158186.2 | R132: 131593.64 | S132: 26592.56 | T132: 0.2020808908 | V132: 440957.6 | W132: 850438.87 | X132: -409481.27 | Y132: -0.4814940667
A133: %,V5550078 | B133: 5550078 | C133: PJM Regulation-Charge | F133: 103511.37 | G133: 47347.26 | H133: 56164.11 | I133: 1.186216689 | K133: 995892.17 | L133: 397264.96 | M133: 598627.21 | N133: 1.506871409 | Q133: -176321.21 | R133: 197078.92 | S133: -373400.13 | T133: -1.894673109 | V133: 1877862.91 | W133: 727866.91 | X133: 1149996 | Y133: 1.579953676
A134: %,V5550079 | B134: 5550079 | C134: PJM Regulation-Credit | F134: -498180.58 | G134: -585.84 | H134: -497594.74 | I134: 849.3696914 | K134: -672264.95 | L134: 212057.63 | M134: -884322.58 | N134: -4.170199299 | Q134: 443762.72 | R134: -1883.39 | S134: 445646.11 | T134: -236.6191336 | V134: -391040.3 | W134: -18534.95 | X134: -372505.35 | Y134: 20.09745643
A135: %,V5550080 | B135: 5550080 | C135: PJM Hourly Net Purch.-FERC | F135: 754795.86 | G135: 754909.63 | H135: -113.77 | I135: -0.0001507067806 | K135: 7935149.2 | L135: 2878943.96 | M135: 5056205.24 | N135: 1.75627081 | Q135: 1564423.84 | R135: 1947550.52 | S135: -383126.68 | T135: -0.196722332 | V135: 24506171.59 | W135: 10878629.96 | X135: 13627541.63 | Y135: 1.252689142
A136: %,V5550083 | B136: 5550083 | C136: PJM Sync & Non Sync-Charge | F136: 47446.77 | G136: 63425.69 | H136: -15978.92 | I136: -0.2519313546 | K136: 490897.21 | L136: 449160.01 | M136: 41737.2 | N136: 0.09292278714 | Q136: 208063.07 | R136: 307997.11 | S136: -99934.04 | T136: -0.3244642133 | V136: 1111875.9 | W136: 753675.07 | X136: 358200.83 | Y136: 0.4752722284
A137: %,V5550084 | B137: 5550084 | C137: PJM Sync & Non Sync-Credit | F137: -3012.93 | G137: -21726.2 | H137: 18713.27 | I137: -0.8613227348 | K137: -39623.51 | L137: -93389.39 | M137: 53765.88 | N137: -0.5757172201 | Q137: -23731.93 | R137: -85306.79 | S137: 61574.86 | T137: -0.7218049114 | V137: -114859.27 | W137: -140560.09 | X137: 25700.82 | Y137: -0.182845785
A138: %,V5550123 | B138: 5550123 | C138: PJM OpRes-LSE-Charge | F138: 137347.35 | G138: 131393.69 | H138: 5953.66 | I138: 0.04531161276 | K138: 6538552.89 | L138: 3639492.74 | M138: 2899060.15 | N138: 0.7965561019 | Q138: 679485.45 | R138: 497998.32 | S138: 181487.13 | T138: 0.3644332174 | V138: 7487275.16 | W138: 4274138.17 | X138: 3213136.99 | Y138: 0.7517625454
A139: %,V5550124 | B139: 5550124 | C139: PJM Implicit Congestion-LSE | F139: -1013170.4 | G139: -356477.75 | H139: -656692.65 | I139: 1.842170093 | K139: 11818245.14 | L139: 2746924.81 | M139: 9071320.33 | N139: 3.302354799 | Q139: 1039199.18 | R139: 953232.53 | S139: 85966.65 | T139: 0.09018434358 | V139: 14353855.24 | W139: 8029808.38 | X139: 6324046.86 | Y139: 0.7875713293
A140: %,V5550132 | B140: 5550132 | C140: PJM FTR Revenue-LSE | F140: -5673161.48 | G140: -647292.26 | H140: -5025869.22 | I140: 7.764451285 | K140: -22001723.79 | L140: -6042615.12 | M140: -15959108.67 | N140: 2.641093029 | Q140: -8073138.9 | R140: -1500920.78 | S140: -6572218.12 | T140: 4.378790811 | V140: -26106334.58 | W140: -10183132.71 | X140: -15923201.87 | Y140: 1.563684018
A141: %,V5550137 | B141: 5550137 | C141: PJM OpRes-LSE-Credit | F141: 22547.33 | G141: -18184.94 | H141: 40732.27 | I141: -2.239890261 | K141: -113199.37 | L141: -36770.74 | M141: -76428.63 | N141: 2.078517593 | Q141: -116629.15 | R141: -23048.55 | S141: -93580.6 | T141: 4.060151289 | V141: -211631.66 | W141: -73067.96 | X141: -138563.7 | Y141: 1.896367437
A142: %,V5550139 | B142: 5550139 | C142: Generation Deactivation expens | F142: 31572.45 | G142: 0 | H142: 31572.45 | I142: 1 | K142: -64067.44 | L142: 0 | M142: -64067.44 | N142: 1 | Q142: 5622.37 | R142: 0 | S142: 5622.37 | T142: 1 | V142: 60934.63 | W142: 0 | X142: 60934.63 | Y142: 1
A143: %,V5550326 | B143: 5550326 | C143: PJM Transm Loss Charges - LSE | F143: -29672.12 | G143: 203143.94 | H143: -232816.06 | I143: -1.14606451 | K143: 4848730.69 | L143: 2976016.28 | M143: 1872714.41 | N143: 0.6292688728 | Q143: 267898.59 | R143: 797717.15 | S143: -529818.56 | T143: -0.6641684462 | V143: 8785098.41 | W143: 6377679.46 | X143: 2407418.95 | Y143: 0.3774756893
A144: %,V5550327 | B144: 5550327 | C144: PJM Transm Loss Credits-LSE | F144: -277919.1 | G144: -178636.44 | H144: -99282.66 | I144: 0.5557805563 | K144: -2959769.07 | L144: -1609962.71 | M144: -1349806.36 | N144: 0.8384084623 | Q144: -718570.53 | R144: -621745.11 | S144: -96825.42 | T144: 0.1557316953 | V144: -5092928.01 | W144: -3084113.49 | X144: -2008814.52 | Y144: 0.6513426067
A145: %,V5550328 | B145: 5550328 | C145: PJM FC Penalty Credit | F145: -10120.1 | G145: 0 | H145: -10120.1 | I145: 1 | K145: -10216.63 | L145: -1968.92 | M145: -8247.71 | N145: 4.188951303 | Q145: -10155.97 | R145: -614.62 | S145: -9541.35 | T145: 15.5239823 | V145: -10968.48 | W145: -2415.76 | X145: -8552.72 | Y145: 3.540384806
A146: %,V5550335 | B146: 5550335 | C146: Purchased Power-PPA Rider | F146: 299495.252 | G146: 0 | H146: 299495.252 | I146: 1 | K146: -3820808.688 | L146: 0 | M146: -3820808.688 | N146: 1 | Q146: -3820808.688 | R146: 0 | S146: -3820808.688 | T146: 1 | V146: -3820808.688 | W146: 0 | X146: -3820808.688 | Y146: 1
A147: %,FACCOUNT,X,TGL_FERC_ACCT,N5550 | B147: 15 | C147: Purchased Power (555) | F147: 7882054.112 | G147: 11744810.65 | H147: -3862756.538 | I147: -0.3288904907 | K147: 67400388.58 | L147: 70252550.65 | M147: -2852162.068 | N147: -0.04059869772 | Q147: 26894236.02 | R147: 36727309.98 | S147: -9833073.958 | T147: -0.2677319402 | V147: 139444903.7 | W147: 132492951.7 | X147: 6951952.032 | Y147: 0.05247035365
B148: 15.1 | C148: Power Purchased for Storage Operations (555.1)
A149: %,FACCOUNT,X,TGL_FERC_ACCT,N5552 | B149: 15.2 | C149: Bundled Environmental Credits (555.2) | F149: 0 | G149: 0 | K149: 0 | L149: 0 | Q149: 0 | R149: 0 | V149: 0 | W149: 0
A150: %,FACCOUNT,X,TGL_FERC_ACCT,N5553 | B150: 15.3 | C150: Unbundled Environmental Credits (555.3) | F150: 0 | G150: 0 | K150: 0 | L150: 0 | Q150: 0 | R150: 0 | V150: 0 | W150: 0
A151: %,V5560000 | B151: 5560000 | C151: Sys Control & Load Dispatching | F151: 3928.09 | G151: 2782.06 | H151: =+F151-G151 -> 1146.03 | I151: =IF(AND(F151=0,G151=0),"",IF(OR(F151=0,G151=0),100%,(+H151/G151))) -> 0.4119357598 | K151: 22352.07 | L151: 19978.52 | M151: =+K151-L151 -> 2373.55 | N151: =IF(AND(K151=0,L151=0),"",IF(OR(K151=0,L151=0),100%,(+M151/L151))) -> 0.1188050967 | Q151: 12479.58 | R151: 10326.12 | S151: =+Q151-R151 -> 2153.46 | T151: =IF(AND(Q151=0,R151=0),"",IF(OR(Q151=0,R151=0),100%,(+S151/R151))) -> 0.2085449327 | V151: 56456.33 | W151: 63261.1 | X151: =+V151-W151 -> -6804.77 | Y151: =IF(AND(V151=0,W151=0),"",IF(OR(V151=0,W151=0),100%,(+X151/W151))) -> -0.1075664192
A152: %,FACCOUNT,X,TGL_FERC_ACCT,N5560 | B152: 16 | C152: System Control and Load Dispatching (556) | F152: 3928.09 | G152: 2782.06 | H152: 1146.03 | I152: 0.4119357598 | K152: 22352.07 | L152: 19978.52 | M152: 2373.55 | N152: 0.1188050967 | Q152: 12479.58 | R152: 10326.12 | S152: 2153.46 | T152: 0.2085449327 | V152: 56456.33 | W152: 63261.1 | X152: -6804.77 | Y152: -0.1075664192
A153: %,V5570000 | B153: 5570000 | C153: Other Expenses | F153: 76075.9 | G153: 62901.43 | H153: 13174.47 | I153: 0.2094462717 | K153: 359189.53 | L153: 315326.14 | M153: 43863.39 | N153: 0.1391048329 | Q153: 228351.73 | R153: 184928.2 | S153: 43423.53 | T153: 0.2348129166 | V153: 855049.5 | W153: 793360.1 | X153: 61689.4 | Y153: 0.07775712441
A154: %,V5570007 | B154: 5570007 | C154: Other Pwr Exp - Wholesale RECs | F154: 0 | G154: 0 | H154: 0 | K154: 231.75 | L154: 243.15 | M154: -11.4 | N154: -0.04688463911 | Q154: 0 | R154: 0 | S154: 0 | V154: 231.75 | W154: 243.15 | X154: -11.4 | Y154: -0.04688463911
A155: %,V5570010 | B155: 5570010 | C155: OH Auction Exp - Incremental | F155: 0 | G155: 0 | H155: 0 | K155: 0 | L155: 0 | M155: 0 | Q155: 0 | R155: 0 | S155: 0 | V155: 0 | W155: 5.68 | X155: -5.68 | Y155: 1
A156: %,V5570025 | B156: 5570025 | C156: MATL-SAFETY | F156: 0 | G156: 0 | H156: 0 | K156: 0 | L156: 0.93 | M156: -0.93 | N156: 1 | Q156: 0 | R156: 0.93 | S156: -0.93 | T156: 1 | V156: 0 | W156: 0.93 | X156: -0.93 | Y156: 1
A157: %,FACCOUNT,X,TGL_FERC_ACCT,N5570 | B157: 17 | C157: Other Expenses (557) | F157: 76075.9 | G157: 62901.43 | H157: 13174.47 | I157: 0.2094462717 | K157: 359421.28 | L157: 315570.22 | M157: 43851.06 | N157: 0.1389581691 | Q157: 228351.73 | R157: 184929.13 | S157: 43422.6 | T157: 0.2348067068 | V157: 855281.25 | W157: 793609.86 | X157: 61671.39 | Y157: 0.0777099594
A158: %,V5550001 | B158: 5550001 | C158: Purch Pwr-NonTrading-Nonassoc | F158: 13896748.25 | G158: 10541889.76 | H158: 3354858.49 | I158: 0.3182407108 | K158: 63498187.79 | L158: 61962438.34 | M158: 1535749.45 | N158: 0.0247851681 | Q158: 35054034.59 | R158: 32248202.4 | S158: 2805832.19 | T158: 0.08700739828 | V158: 114572054.7 | W158: 108839392.4 | X158: 5732662.3 | Y158: 0.05267084071
A159: %,V5550004 | B159: 5550004 | C159: Purchased Power-Pool Capacity | F159: 32143.24 | G159: 0 | H159: 32143.24 | I159: 1 | K159: 158289.38 | L159: 0 | M159: 158289.38 | N159: 1 | Q159: 96267.53 | R159: 0 | S159: 96267.53 | T159: 1 | V159: 383250 | W159: 0 | X159: 383250 | Y159: 1
A160: %,V5550023 | B160: 5550023 | C160: Purch Power Capacity -NA | F160: 0 | G160: 1043329.69 | H160: -1043329.69 | I160: 1 | K160: 0 | L160: 1849523.45 | M160: -1849523.45 | N160: 1 | Q160: 0 | R160: 1446426.57 | S160: -1446426.57 | T160: 1 | V160: 2629.24 | W160: 3268780.34 | X160: -3266151.1 | Y160: -0.9991956511
A161: %,V5550029 | B161: 5550029 | C161: Purch Power-Assoc-Trnsfr Price | F161: 0 | G161: 0 | H161: 0 | K161: 0 | L161: 0 | M161: 0 | Q161: 0 | R161: 0 | S161: 0 | V161: 0 | W161: 0 | X161: 0
A162: %,V5550039 | B162: 5550039 | C162: PJM Inadvertent Mtr Res-OSS | F162: -1466.22 | G162: -806.03 | H162: -660.19 | I162: 0.8190638066 | K162: 3384.09 | L162: -2422.74 | M162: 5806.83 | N162: -2.396802794 | Q162: -749.95 | R162: -1732.23 | S162: 982.28 | T162: -0.5670609561 | V162: 2142.1 | W162: 2276.5 | X162: -134.4 | Y162: -0.05903799693
A163: %,V5550040 | B163: 5550040 | C163: PJM Inadvertent Mtr Res-LSE | F163: 15118.59 | G163: -9252.3 | H163: 24370.89 | I163: -2.634035861 | K163: 99520.18 | L163: -34250.99 | M163: 133771.17 | N163: -3.905614699 | Q163: 51192.81 | R163: -24931.57 | S163: 76124.38 | T163: -3.053332782 | V163: 71062.14 | W163: 7604.93 | X163: 63457.21 | Y163: 8.344220131
A164: %,V5550074 | B164: 5550074 | C164: PJM Reactive-Charge | F164: 125371.56 | G164: 274383.7 | H164: -149012.14 | I164: -0.5430794176 | K164: 1133580.89 | L164: 1378201.66 | M164: -244620.77 | N164: -0.1774927263 | Q164: 624925 | R164: 818414.86 | S164: -193489.86 | T164: -0.2364202673 | V164: 2973181.11 | W164: 3419361.68 | X164: -446180.57 | Y164: -0.1304865094
A165: %,V5550075 | B165: 5550075 | C165: PJM Reactive-Credit | F165: -119573 | G165: -119573 | H165: 0 | I165: 0 | K165: -597865 | L165: -597865 | M165: 0 | N165: 0 | Q165: -358719 | R165: -358719 | S165: 0 | T165: 0 | V165: -1434876 | W165: -1434876 | X165: 0 | Y165: 0
A166: %,V5550076 | B166: 5550076 | C166: PJM Black Start-Charge | F166: 42232.02 | G166: 37522.05 | H166: 4709.97 | I166: 0.1255253911 | K166: 159497.4 | L166: 181772.42 | M166: -22275.02 | N166: -0.122543453 | Q166: 158186.2 | R166: 131593.64 | S166: 26592.56 | T166: 0.2020808908 | V166: 440957.6 | W166: 850438.87 | X166: -409481.27 | Y166: -0.4814940667
A167: %,V5550078 | B167: 5550078 | C167: PJM Regulation-Charge | F167: 103511.37 | G167: 47347.26 | H167: 56164.11 | I167: 1.186216689 | K167: 995892.17 | L167: 397264.96 | M167: 598627.21 | N167: 1.506871409 | Q167: -176321.21 | R167: 197078.92 | S167: -373400.13 | T167: -1.894673109 | V167: 1877862.91 | W167: 727866.91 | X167: 1149996 | Y167: 1.579953676
A168: %,V5550079 | B168: 5550079 | C168: PJM Regulation-Credit | F168: -498180.58 | G168: -585.84 | H168: -497594.74 | I168: 849.3696914 | K168: -672264.95 | L168: 212057.63 | M168: -884322.58 | N168: -4.170199299 | Q168: 443762.72 | R168: -1883.39 | S168: 445646.11 | T168: -236.6191336 | V168: -391040.3 | W168: -18534.95 | X168: -372505.35 | Y168: 20.09745643
A169: %,V5550080 | B169: 5550080 | C169: PJM Hourly Net Purch.-FERC | F169: 754795.86 | G169: 754909.63 | H169: -113.77 | I169: -0.0001507067806 | K169: 7935149.2 | L169: 2878943.96 | M169: 5056205.24 | N169: 1.75627081 | Q169: 1564423.84 | R169: 1947550.52 | S169: -383126.68 | T169: -0.196722332 | V169: 24506171.59 | W169: 10878629.96 | X169: 13627541.63 | Y169: 1.252689142
A170: %,V5550083 | B170: 5550083 | C170: PJM Sync & Non Sync-Charge | F170: 47446.77 | G170: 63425.69 | H170: -15978.92 | I170: -0.2519313546 | K170: 490897.21 | L170: 449160.01 | M170: 41737.2 | N170: 0.09292278714 | Q170: 208063.07 | R170: 307997.11 | S170: -99934.04 | T170: -0.3244642133 | V170: 1111875.9 | W170: 753675.07 | X170: 358200.83 | Y170: 0.4752722284
A171: %,V5550084 | B171: 5550084 | C171: PJM Sync & Non Sync-Credit | F171: -3012.93 | G171: -21726.2 | H171: 18713.27 | I171: -0.8613227348 | K171: -39623.51 | L171: -93389.39 | M171: 53765.88 | N171: -0.5757172201 | Q171: -23731.93 | R171: -85306.79 | S171: 61574.86 | T171: -0.7218049114 | V171: -114859.27 | W171: -140560.09 | X171: 25700.82 | Y171: -0.182845785
A172: %,V5550123 | B172: 5550123 | C172: PJM OpRes-LSE-Charge | F172: 137347.35 | G172: 131393.69 | H172: 5953.66 | I172: 0.04531161276 | K172: 6538552.89 | L172: 3639492.74 | M172: 2899060.15 | N172: 0.7965561019 | Q172: 679485.45 | R172: 497998.32 | S172: 181487.13 | T172: 0.3644332174 | V172: 7487275.16 | W172: 4274138.17 | X172: 3213136.99 | Y172: 0.7517625454
A173: %,V5550124 | B173: 5550124 | C173: PJM Implicit Congestion-LSE | F173: -1013170.4 | G173: -356477.75 | H173: -656692.65 | I173: 1.842170093 | K173: 11818245.14 | L173: 2746924.81 | M173: 9071320.33 | N173: 3.302354799 | Q173: 1039199.18 | R173: 953232.53 | S173: 85966.65 | T173: 0.09018434358 | V173: 14353855.24 | W173: 8029808.38 | X173: 6324046.86 | Y173: 0.7875713293
A174: %,V5550132 | B174: 5550132 | C174: PJM FTR Revenue-LSE | F174: -5673161.48 | G174: -647292.26 | H174: -5025869.22 | I174: 7.764451285 | K174: -22001723.79 | L174: -6042615.12 | M174: -15959108.67 | N174: 2.641093029 | Q174: -8073138.9 | R174: -1500920.78 | S174: -6572218.12 | T174: 4.378790811 | V174: -26106334.58 | W174: -10183132.71 | X174: -15923201.87 | Y174: 1.563684018
A175: %,V5550137 | B175: 5550137 | C175: PJM OpRes-LSE-Credit | F175: 22547.33 | G175: -18184.94 | H175: 40732.27 | I175: -2.239890261 | K175: -113199.37 | L175: -36770.74 | M175: -76428.63 | N175: 2.078517593 | Q175: -116629.15 | R175: -23048.55 | S175: -93580.6 | T175: 4.060151289 | V175: -211631.66 | W175: -73067.96 | X175: -138563.7 | Y175: 1.896367437
A176: %,V5550139 | B176: 5550139 | C176: Generation Deactivation expens | F176: 31572.45 | G176: 0 | H176: 31572.45 | I176: 1 | K176: -64067.44 | L176: 0 | M176: -64067.44 | N176: 1 | Q176: 5622.37 | R176: 0 | S176: 5622.37 | T176: 1 | V176: 60934.63 | W176: 0 | X176: 60934.63 | Y176: 1
A177: %,V5550326 | B177: 5550326 | C177: PJM Transm Loss Charges - LSE | F177: -29672.12 | G177: 203143.94 | H177: -232816.06 | I177: -1.14606451 | K177: 4848730.69 | L177: 2976016.28 | M177: 1872714.41 | N177: 0.6292688728 | Q177: 267898.59 | R177: 797717.15 | S177: -529818.56 | T177: -0.6641684462 | V177: 8785098.41 | W177: 6377679.46 | X177: 2407418.95 | Y177: 0.3774756893
A178: %,V5550327 | B178: 5550327 | C178: PJM Transm Loss Credits-LSE | F178: -277919.1 | G178: -178636.44 | H178: -99282.66 | I178: 0.5557805563 | K178: -2959769.07 | L178: -1609962.71 | M178: -1349806.36 | N178: 0.8384084623 | Q178: -718570.53 | R178: -621745.11 | S178: -96825.42 | T178: 0.1557316953 | V178: -5092928.01 | W178: -3084113.49 | X178: -2008814.52 | Y178: 0.6513426067
A179: %,V5550328 | B179: 5550328 | C179: PJM FC Penalty Credit | F179: -10120.1 | G179: 0 | H179: -10120.1 | I179: 1 | K179: -10216.63 | L179: -1968.92 | M179: -8247.71 | N179: 4.188951303 | Q179: -10155.97 | R179: -614.62 | S179: -9541.35 | T179: 15.5239823 | V179: -10968.48 | W179: -2415.76 | X179: -8552.72 | Y179: 3.540384806
A180: %,V5550335 | B180: 5550335 | C180: Purchased Power-PPA Rider | F180: 299495.252 | G180: 0 | H180: 299495.252 | I180: 1 | K180: -3820808.688 | L180: 0 | M180: -3820808.688 | N180: 1 | Q180: -3820808.688 | R180: 0 | S180: -3820808.688 | T180: 1 | V180: -3820808.688 | W180: 0 | X180: -3820808.688 | Y180: 1
A181: %,V5560000 | B181: 5560000 | C181: Sys Control & Load Dispatching | F181: 3928.09 | G181: 2782.06 | H181: 1146.03 | I181: 0.4119357598 | K181: 22352.07 | L181: 19978.52 | M181: 2373.55 | N181: 0.1188050967 | Q181: 12479.58 | R181: 10326.12 | S181: 2153.46 | T181: 0.2085449327 | V181: 56456.33 | W181: 63261.1 | X181: -6804.77 | Y181: -0.1075664192
A182: %,V5570000 | B182: 5570000 | C182: Other Expenses | F182: 76075.9 | G182: 62901.43 | H182: 13174.47 | I182: 0.2094462717 | K182: 359189.53 | L182: 315326.14 | M182: 43863.39 | N182: 0.1391048329 | Q182: 228351.73 | R182: 184928.2 | S182: 43423.53 | T182: 0.2348129166 | V182: 855049.5 | W182: 793360.1 | X182: 61689.4 | Y182: 0.07775712441
A183: %,V5570007 | B183: 5570007 | C183: Other Pwr Exp - Wholesale RECs | F183: 0 | G183: 0 | H183: =+F183-G183 -> 0 | I183: =IF(AND(F183=0,G183=0),"",IF(OR(F183=0,G183=0),100%,(+H183/G183))) ->  | K183: 231.75 | L183: 243.15 | M183: =+K183-L183 -> -11.4 | N183: =IF(AND(K183=0,L183=0),"",IF(OR(K183=0,L183=0),100%,(+M183/L183))) -> -0.04688463911 | Q183: 0 | R183: 0 | S183: =+Q183-R183 -> 0 | T183: =IF(AND(Q183=0,R183=0),"",IF(OR(Q183=0,R183=0),100%,(+S183/R183))) ->  | V183: 231.75 | W183: 243.15 | X183: =+V183-W183 -> -11.4 | Y183: =IF(AND(V183=0,W183=0),"",IF(OR(V183=0,W183=0),100%,(+X183/W183))) -> -0.04688463911
A184: %,V5570010 | B184: 5570010 | C184: OH Auction Exp - Incremental | F184: 0 | G184: 0 | H184: 0 | K184: 0 | L184: 0 | M184: 0 | Q184: 0 | R184: 0 | S184: 0 | V184: 0 | W184: 5.68 | X184: -5.68 | Y184: 1
A185: %,V5570025 | B185: 5570025 | C185: MATL-SAFETY | F185: 0 | G185: 0 | H185: 0 | K185: 0 | L185: 0.93 | M185: -0.93 | N185: 1 | Q185: 0 | R185: 0.93 | S185: -0.93 | T185: 1 | V185: 0 | W185: 0.93 | X185: -0.93 | Y185: 1
A186: %,FACCOUNT,X,TGL_FERC_ACCT,N555-557 | B186: 18 | C186: Total Other Power Supply Expenses (line 15-17) | D186: o | F186: 7962058.102 | G186: 11810494.14 | H186: -3848436.038 | I186: -0.3258488589 | K186: 67782161.93 | L186: 70588099.39 | M186: -2805937.458 | N186: -0.03975085719 | Q186: 27135067.33 | R186: 36922565.23 | S186: -9787497.898 | T186: -0.2650817417 | V186: 140356641.3 | W186: 133349822.7 | X186: 7006818.652 | Y186: 0.05254464169
A187: %,V5000000 | B187: 5000000 | C187: Oper Supervision & Engineering | F187: 388952.38 | G187: 304828.88 | H187: 84123.5 | I187: 0.2759695866 | K187: 1916639.39 | L187: 1611238.89 | M187: 305400.5 | N187: 0.1895438981 | Q187: 1143954.19 | R187: 930623.43 | S187: 213330.76 | T187: 0.2292342457 | V187: 4808473.09 | W187: 4075249.41 | X187: 733223.68 | Y187: 0.1799211794
A188: %,V5000002 | B188: 5000002 | C188: Dresden Oper Supervision & Eng | F188: 0 | G188: 0 | H188: 0 | K188: 0 | L188: 0 | M188: 0 | Q188: 0 | R188: 0 | S188: 0 | V188: -33.12 | W188: 0 | X188: -33.12 | Y188: 1
A189: %,V5000003 | B189: 5000003 | C189: Cnstr Srchrge Op Sup & Eng Exp | F189: 0 | G189: 0 | H189: 0 | K189: 0 | L189: 0 | M189: 0 | Q189: 0 | R189: 0 | S189: 0 | V189: 64.34 | W189: 0 | X189: 64.34 | Y189: 1
A190: %,V5010000 | B190: 5010000 | C190: Fuel | F190: 575988.92 | G190: 536336.11 | H190: 39652.81 | I190: 0.07393276205 | K190: 2607777.01 | L190: 3660843.31 | M190: -1053066.3 | N190: -0.2876567531 | Q190: 1575859.19 | R190: 2350285.85 | S190: -774426.66 | T190: -0.3295031794 | V190: 6697399.21 | W190: 7396104.18 | X190: -698704.97 | Y190: -0.09446932507
A191: %,V5010001 | B191: 5010001 | C191: Fuel Consumed | F191: 2925839.84 | G191: 1362557.52 | H191: 1563282.32 | I191: 1.147314735 | K191: 26040656.82 | L191: 23523786.85 | M191: 2516869.97 | N191: 0.1069925512 | Q191: 9366272.94 | R191: 7768972.06 | S191: 1597300.88 | T191: 0.2056000289 | V191: 76826609.91 | W191: 78036523.32 | X191: -1209913.41 | Y191: -0.01550445046
A192: %,V5010003 | B192: 5010003 | C192: Fuel - Procure Unload & Handle | F192: 181712.27 | G192: 80402.99 | H192: 101309.28 | I192: 1.260018813 | K192: 1403986.5 | L192: 1248281.58 | M192: 155704.92 | N192: 0.1247354143 | Q192: 550038.69 | R192: 454628.36 | S192: 95410.33 | T192: 0.2098644484 | V192: 4227337.05 | W192: 3772133.28 | X192: 455203.77 | Y192: 0.1206754206
A193: %,V5010005 | B193: 5010005 | C193: Fuel - Deferred | F193: 8714577 | G193: 4417871.505 | H193: 4296705.495 | I193: 0.9725736681 | K193: 424366.602 | L193: 4895937.22 | M193: -4471570.618 | N193: -0.9133227035 | Q193: 18735354.49 | R193: 7267788.389 | S193: 11467566.1 | T193: 1.577861859 | V193: 665576.215 | W193: -1066415.02 | X193: 1731991.235 | Y193: -1.624124944
A194: %,V5010012 | B194: 5010012 | C194: Ash Sales Proceeds | F194: 596.77 | G194: 1777.24 | H194: -1180.47 | I194: -0.6642153001 | K194: 2818.07 | L194: 3755.22 | M194: -937.15 | N194: -0.2495592801 | Q194: 1468.84 | R194: 679.75 | S194: 789.09 | T194: 1.160853255 | V194: 6337.79 | W194: 16131.1 | X194: -9793.31 | Y194: -0.6071073888
A195: %,V5010013 | B195: 5010013 | C195: Fuel Survey Activity | F195: 0 | G195: 0 | H195: 0 | K195: 0 | L195: 0 | M195: 0 | Q195: 0 | R195: 0 | S195: 0 | V195: 3906533.13 | W195: 0 | X195: 3906533.13 | Y195: 1
A196: %,V5010019 | B196: 5010019 | C196: Fuel Oil Consumed | F196: 1049252.52 | G196: 160652.59 | H196: 888599.93 | I196: 5.531189569 | K196: 2178850.16 | L196: 1363298.14 | M196: 815552.02 | N196: 0.5982198582 | Q196: 1638256.05 | R196: 924231.05 | S196: 714025 | T196: 0.7725611469 | V196: 4953880.1 | W196: 3622215.17 | X196: 1331664.93 | Y196: 0.3676382731
A197: %,V5010020 | B197: 5010020 | C197: Nat Gas Consumed Steam | F197: 2065142.61 | G197: 2453953.33 | H197: -388810.72 | I197: -0.1584425895 | K197: 23911990.28 | L197: 17323341.94 | M197: 6588648.34 | N197: 0.3803335617 | Q197: 7809497.78 | R197: 7502596.7 | S197: 306901.08 | T197: 0.04090598126 | V197: 45464844.27 | W197: 30564445.2 | X197: 14900399.07 | Y197: 0.4875075917
A198: %,V5010021 | B198: 5010021 | C198: Transp Gas Consumed Steam | F198: 14646.32 | G198: 40535.42 | H198: -25889.1 | I198: -0.6386784693 | K198: 242956.13 | L198: 194033.35 | M198: 48922.78 | N198: 0.2521359344 | Q198: 124316.77 | R198: 126960.03 | S198: -2643.26 | T198: -0.02081962331 | V198: 549695.07 | W198: 322229.29 | X198: 227465.78 | Y198: 0.7059127989
A199: %,V5010027 | B199: 5010027 | C199: Gypsum handling/disposal costs | F199: 110742.75 | G199: 52426.61 | H199: 58316.14 | I199: 1.112338562 | K199: 673203.84 | L199: 526352.04 | M199: 146851.8 | N199: 0.2789992037 | Q199: 445612.25 | R199: 311362.32 | S199: 134249.93 | T199: 0.4311694813 | V199: 1539199.45 | W199: 1446384.37 | X199: 92815.08 | Y199: 0.06417041135
A200: %,V5010028 | B200: 5010028 | C200: Gypsum Sales Proceeds | F200: -44766.07 | G200: -96967.84 | H200: 52201.77 | I200: -0.5383410624 | K200: -472063.58 | L200: -551663.96 | M200: 79600.38 | N200: -0.144291427 | Q200: -312582.9 | R200: -188873.59 | S200: -123709.31 | T200: 0.6549846911 | V200: -1142841.79 | W200: -1239079.84 | X200: 96238.05 | Y200: -0.07766896603
A201: %,V5010033 | B201: 5010033 | C201: Coal Procurement Sales Net-NA | F201: 0 | G201: 0 | H201: 0 | K201: 281689.3 | L201: 0 | M201: 281689.3 | N201: 1 | Q201: 281689.3 | R201: 0 | S201: 281689.3 | T201: 1 | V201: 281689.3 | W201: 0 | X201: 281689.3 | Y201: 1
... 650 more rows

Sheet KWH
A1: %,LACTUALS,SBAL | B1: %,ATF,FACCOUNT | C1: %,ATT,FDESCR,UDESCR | F1: %,LACTUALS,SPER,R | G1: %,LACTUALS,SPER-1YR,R | H1: %,C | I1: %,C | K1: %,LACTUALS,SPER,R,FCURRENCY_CD,V,FSTATISTICS_CODE,VKWH | L1: %,LACTUALS,SPER-1YR,R,FCURRENCY_CD,V,FSTATISTICS_CODE,VKWH | M1: %,C | N1: %,C | P1: %,LACTUALS,SPER,FCURRENCY_CD,V,FSTATISTICS_CODE,VCUS | Q1: %,LACTUALS,SPER-1YR,FCURRENCY_CD,V,FSTATISTICS_CODE,VCUS | R1: %,C | S1: %,C | T1: %,LACTUALS,SYTD,R | U1: %,LACTUALS,SYTD-1YR,R | V1: %,C | W1: %,C | Y1: %,LACTUALS,SYTD,R,FCURRENCY_CD,V,FSTATISTICS_CODE,VKWH | Z1: %,LACTUALS,SYTD-1YR,R,FCURRENCY_CD,V,FSTATISTICS_CODE,VKWH | AA1: %,C | AB1: %,C | AD1: %,C | AE1: %,LACTUALS,SYTD,FCURRENCY_CD,V,FSTATISTICS_CODE,VCUS | AF1: %,C | AG1: %,LACTUALS,SYTD-1YR,FCURRENCY_CD,V,FSTATISTICS_CODE,VCUS | AH1: %,C | AJ1: %,LACTUALS,SQTR,R | AK1: %,LACTUALS,SQTR-1YR,R | AL1: %,C | AM1: %,C | AO1: %,LACTUALS,SQTR,R,FCURRENCY_CD,V,FSTATISTICS_CODE,VKWH | AP1: %,LACTUALS,SQTR-1YR,R,FCURRENCY_CD,V,FSTATISTICS_CODE,VKWH | AQ1: %,C | AR1: %,C | AT1: %,C | AU1: %,LACTUALS,SQTR,FCURRENCY_CD,V,FSTATISTICS_CODE,VCUS | AV1: %,C | AW1: %,LACTUALS,SQTR-1YR,FCURRENCY_CD,V,FSTATISTICS_CODE,VCUS | AX1: %,C | AZ1: %,LACTUALS,SROLLING12,R | BA1: %,LACTUALS,SROLNG12-1Y,R | BB1: %,C | BC1: %,C | BE1: %,LACTUALS,SROLLING12,R,FCURRENCY_CD,V,FSTATISTICS_CODE,VKWH | BF1: %,LACTUALS,SROLNG12-1Y,R,FCURRENCY_CD,V,FSTATISTICS_CODE,VKWH | BG1: %,C | BH1: %,C | BJ1: %,C | BK1: %,LACTUALS,SROLLING12,FCURRENCY_CD,V,FSTATISTICS_CODE,VCUS | BL1: %,C | BM1: %,LACTUALS,SROLNG12-1Y,FCURRENCY_CD,V,FSTATISTICS_CODE,VCUS | BN1: %,C
C2: Kentucky Power Corp Consol
C3: May 2026 | F3: OPERATING REVENUES | K3: KILOWATT-HOUR SALES | P3: CUSTOMERS | T3: OPERATING REVENUES | Y3: KILOWATT-HOUR SALES | AD3: CUSTOMERS | AJ3: OPERATING REVENUES | AO3: KILOWATT-HOUR SALES | AT3: CUSTOMERS | AZ3: OPERATING REVENUES | BE3: KILOWATT-HOUR SALES | BJ3: CUSTOMERS
B4: Run Date: 06/11/2026 07:10 AM | F4: ONE MONTH ENDED | K4: ONE MONTH ENDED | P4: ONE MONTH ENDED | T4: YEAR TO DATE | Y4: YEAR TO DATE | AD4: YEAR TO DATE | AJ4: 3 Month Ending | AO4: 3 Month Ending | AT4: 3 Month Ending | AZ4: 12 Month Rolling | BE4: 12 Month Rolling | BJ4: 12 Month Rolling
B5: GLR6283P | C5: Rpt ID: FERC_IS1 Layout: FERC_IS1
B6: KYP_CORP_CONSOL | C6: V2099-01-01 Acct: GL_FERC_ACCT BU: GL_PRPT_CONS | F6: 2026 | G6: 2025 | H6: Variance | I6: % | K6: 2026 | L6: 2025 | M6: Variance | N6: % | P6: 2026 | Q6: 2025 | R6: Variance | T6: 2026 | U6: 2025 | V6: Variance | W6: % | Y6: 2026 | Z6: 2025 | AA6: Variance | AB6: % | AD6: 2026 | AF6: 2025 | AH6: Variance | AJ6: 2026 | AK6: 2025 | AL6: Variance | AM6: % | AO6: 2026 | AP6: 2025 | AQ6: Variance | AR6: % | AT6: 2026 | AV6: 2025 | AX6: Variance | AZ6: 2026 | BA6: 2025 | BB6: Variance | BC6: % | BE6: 2026 | BF6: 2025 | BG6: Variance | BH6: % | BJ6: 2026 | BL6: 2025 | BN6: Variance
B8: Page 300 | C8: SALES OF ELECTRICITY
A9: %,V4400001 | B9: 4400001 | C9: Residential Sales-W/Space Htg | F9: 12216287.05 | G9: 7731231.34 | H9: =+F9-G9 -> 4485055.71 | I9: =IF(AND(F9=0,G9=0),"",IF(OR(F9=0,G9=0),100%,(+H9/G9))) -> 0.580121783 | K9: 77979545 | L9: 58259958 | M9: =+K9-L9 -> 19719587 | N9: =IF(AND(K9=0,L9=0),"",IF(OR(K9=0,L9=0),100%,(+M9/L9))) -> 0.338475819 | P9: 81640 | Q9: 82418 | R9: =+P9-Q9 -> -778 | T9: 74378148.72 | U9: 71704894.49 | V9: =+T9-U9 -> 2673254.235 | W9: =IF(AND(T9=0,U9=0),"",IF(OR(T9=0,U9=0),100%,(+V9/U9))) -> 0.03728133559 | Y9: 600114337 | Z9: 620465055 | AA9: =+Y9-Z9 -> -20350718 | AB9: =IF(AND(Y9=0,Z9=0),"",IF(OR(Y9=0,Z9=0),100%,(+AA9/Z9))) -> -0.03279913645 | AD9: =ROUND(ABS(AE9)/MONTH(FERC_IS1!$C$696),0) -> 82016 | AE9: 410080 | AF9: =ROUND(ABS(AG9)/MONTH(FERC_IS1!$C$696),0) -> 82746 | AG9: 413732 | AH9: =+AD9-AF9 -> -730 | AJ9: 35834772.87 | AK9: 33121412.19 | AL9: =+AJ9-AK9 -> 2713360.679 | AM9: =IF(AND(AJ9=0,AK9=0),"",IF(OR(AJ9=0,AK9=0),100%,(+AL9/AK9))) -> 0.08192164825 | AO9: 250400084 | AP9: 266276166 | AQ9: =+AO9-AP9 -> -15876082 | AR9: =IF(AND(AO9=0,AP9=0),"",IF(OR(AO9=0,AP9=0),100%,(+AQ9/AP9))) -> -0.05962261752 | AT9: =ROUND(ABS(AU9)/3,0) -> 81865 | AU9: 245594 | AV9: =ROUND(ABS(AW9)/3,0) -> 82603 | AW9: 247808 | AX9: =+AT9-AV9 -> -738 | AZ9: 159523113.6 | BA9: 153257081.5 | BB9: =+AZ9-BA9 -> 6266032.081 | BC9: =IF(AND(AZ9=0,BA9=0),"",IF(OR(AZ9=0,BA9=0),100%,(+BB9/BA9))) -> 0.04088575888 | BE9: 1325704443 | BF9: 1313824162 | BG9: =+BE9-BF9 -> 11880281 | BH9: =IF(AND(BE9=0,BF9=0),"",IF(OR(BE9=0,BF9=0),100%,(+BG9/BF9))) -> 0.009042519801 | BJ9: =ROUND(ABS(BK9)/12,0) -> 82108 | BK9: 985297 | BL9: =ROUND(ABS(BM9)/12,0) -> 82818 | BM9: 993811 | BN9: =+BJ9-BL9 -> -710
A10: %,V4400002 | B10: 4400002 | C10: Residential Sales-W/O Space Ht | F10: 6712241.166 | G10: 3968953.45 | H10: 2743287.716 | I10: 0.6911866694 | K10: 38533965 | L10: 28879240 | M10: 9654725 | N10: 0.33431368 | P10: 47731 | Q10: 47851 | R10: -120 | T10: 31632103.87 | U10: 28302018.71 | V10: 3330085.162 | W10: 0.1176624606 | Y10: 231741363 | Z10: 232459221 | AA10: -717858 | AB10: -0.003088102924 | AD10: =ROUND(ABS(AE10)/MONTH(FERC_IS1!$C$696),0) -> 47919 | AE10: 239594 | AF10: =ROUND(ABS(AG10)/MONTH(FERC_IS1!$C$696),0) -> 47965 | AG10: 239825 | AH10: -46 | AJ10: 17730528.29 | AK10: 14641836.51 | AL10: 3088691.78 | AM10: 0.210949752 | AO10: 111906619 | AP10: 111355434 | AQ10: 551185 | AR10: 0.004949780897 | AT10: 47844 | AU10: 143531 | AV10: 47901 | AW10: 143703 | AX10: -57 | AZ10: 74986489.17 | BA10: 67434194.45 | BB10: 7552294.724 | BC10: 0.1119950314 | BE10: 584479978 | BF10: 569526210 | BG10: 14953768 | BH10: 0.02625650539 | BJ10: 47891 | BK10: 574689 | BL10: 47936 | BM10: 575234 | BN10: -45
A11: %,V4400005 | B11: 4400005 | C11: Residential Fuel Rev | F11: 5763924.38 | G11: 3153512.74 | H11: 2610411.64 | I11: 0.8277790056 | K11: 0 | L11: 0 | M11: 0 | P11: 0 | Q11: 0 | R11: 0 | T11: 35927995.01 | U11: 30986504.96 | V11: 4941490.05 | W11: 0.1594723269 | Y11: 0 | Z11: 0 | AA11: 0 | AD11: =ROUND(ABS(AE11)/MONTH(FERC_IS1!$C$696),0) -> 0 | AE11: 0 | AF11: =ROUND(ABS(AG11)/MONTH(FERC_IS1!$C$696),0) -> 0 | AG11: 0 | AH11: 0 | AJ11: 16634961.21 | AK11: 13461190.46 | AL11: 3173770.75 | AM11: 0.2357719222 | AO11: 0 | AP11: 0 | AQ11: 0 | AT11: 0 | AU11: 0 | AV11: 0 | AW11: 0 | AX11: 0 | AZ11: 84503796.36 | BA11: 69494343.98 | BB11: 15009452.38 | BC11: 0.2159809205 | BE11: 0 | BF11: 0 | BG11: 0 | BJ11: 0 | BK11: 0 | BL11: 0 | BM11: 0 | BN11: 0
A12: %,FACCOUNT,X,TGL_FERC_ACCT,N4400 | B12: Line 1 | C12: (440) Residential Sales | F12: 24692452.6 | G12: 14853697.53 | H12: 9838755.066 | I12: 0.662377502 | K12: 116513510 | L12: 87139198 | M12: 29374312 | N12: 0.3370964236 | P12: 129371 | Q12: 130269 | R12: -898 | T12: 141938247.6 | U12: 130993418.2 | V12: 10944829.45 | W12: 0.08355251432 | Y12: 831855700 | Z12: 852924276 | AA12: -21068576 | AB12: -0.02470157855 | AD12: =ROUND(ABS(AE12)/MONTH(FERC_IS1!$C$696),0) -> 129935 | AE12: 649674 | AF12: =ROUND(ABS(AG12)/MONTH(FERC_IS1!$C$696),0) -> 130711 | AG12: 653557 | AH12: -776 | AJ12: 70200262.37 | AK12: 61224439.16 | AL12: 8975823.209 | AM12: 0.1466052337 | AO12: 362306703 | AP12: 377631600 | AQ12: -15324897 | AR12: -0.04058160652 | AT12: 129708 | AU12: 389125 | AV12: 130504 | AW12: 391511 | AX12: -796 | AZ12: 319013399.1 | BA12: 290185620 | BB12: 28827779.18 | BC12: 0.09934254906 | BE12: 1910184421 | BF12: 1883350372 | BG12: 26834049 | BH12: 0.01424803871 | BJ12: 129999 | BK12: 1559986 | BL12: 130754 | BM12: 1569045 | BN12: -755
B13: Line 3 | C13: (442) Commercial and Industrial Sales | H13: 0 | M13: 0 | R13: 0 | V13: 0 | AA13: 0 | AD13: =ROUND(ABS(AE13)/MONTH(FERC_IS1!$C$696),0) -> 0 | AF13: =ROUND(ABS(AG13)/MONTH(FERC_IS1!$C$696),0) -> 0 | AH13: 0 | AL13: 0 | AQ13: 0 | AT13: 0 | AV13: 0 | AX13: 0 | BB13: 0 | BG13: 0 | BJ13: 0 | BL13: 0 | BN13: 0
A14: %,V4420001 | B14: 4420001 | C14: Commercial Sales | F14: 9741222.406 | G14: 6724174.25 | H14: 3017048.156 | I14: 0.4486867895 | K14: 86978812 | L14: 76748635 | M14: 10230177 | N14: 0.1332945791 | P14: 26247 | Q14: 26316 | R14: -69 | T14: 41927209.52 | U14: 41115238.2 | V14: 811971.32 | W14: 0.01974867119 | Y14: 431065445 | Z14: 441505690 | AA14: -10440245 | AB14: -0.02364690928 | AD14: =ROUND(ABS(AE14)/MONTH(FERC_IS1!$C$696),0) -> 26416 | AE14: 132081 | AF14: =ROUND(ABS(AG14)/MONTH(FERC_IS1!$C$696),0) -> 26344 | AG14: 131720 | AH14: 72 | AJ14: 26081966.21 | AK14: 23058507.84 | AL14: 3023458.372 | AM14: 0.1311211633 | AO14: 248849517 | AP14: 249436527 | AQ14: -587010 | AR14: -0.002353344184 | AT14: 26243 | AU14: 78728 | AV14: 26325 | AW14: 78974 | AX14: -82 | AZ14: 101591219.4 | BA14: 100812504.8 | BB14: 778714.661 | BC14: 0.007724385609 | BE14: 1091273964 | BF14: 1100599914 | BG14: -9325950 | BH14: -0.008473515109 | BJ14: 26315 | BK14: 315777 | BL14: 26386 | BM14: 316637 | BN14: -71
A15: %,V4420006 | B15: 4420006 | C15: Sales to Pub Auth - Schools | F15: 1552798.015 | G15: 1136607.26 | H15: 416190.755 | I15: 0.3661693618 | K15: 11106973 | L15: 8868541 | M15: 2238432 | N15: 0.2524013815 | P15: 693 | Q15: 691 | R15: 2 | T15: 6889542.135 | U15: 6958924.05 | V15: -69381.915 | W15: -0.009970207248 | Y15: 56197295 | Z15: 55900655 | AA15: 296640 | AB15: 0.005306556784 | AD15: =ROUND(ABS(AE15)/MONTH(FERC_IS1!$C$696),0) -> 702 | AE15: 3509 | AF15: =ROUND(ABS(AG15)/MONTH(FERC_IS1!$C$696),0) -> 697 | AG15: 3483 | AH15: 5 | AJ15: 4179745.191 | AK15: 3942034.54 | AL15: 237710.651 | AM15: 0.060301514 | AO15: 31009213 | AP15: 30738238 | AQ15: 270975 | AR15: 0.008815567112 | AT15: 695 | AU15: 2084 | AV15: 701 | AW15: 2102 | AX15: -6 | AZ15: 16284752.34 | BA15: 16116280.93 | BB15: 168471.413 | BC15: 0.01045349195 | BE15: 137009311 | BF15: 132391669 | BG15: 4617642 | BH15: 0.03487864482 | BJ15: 694 | BK15: 8327 | BL15: 695 | BM15: 8334 | BN15: -1
A16: %,V4420007 | B16: 4420007 | C16: Sales to Pub Auth - Ex Schools | F16: 1969405.22 | G16: 1332337.03 | H16: 637068.19 | I16: 0.4781584356 | K16: 15598195 | L16: 11934240 | M16: 3663955 | N16: 0.3070120091 | P16: 3358 | Q16: 3317 | R16: 41 | T16: 8500604.891 | U16: 8151240.64 | V16: 349364.251 | W16: 0.04286025483 | Y16: 74602029 | Z16: 71931269 | AA16: 2670760 | AB16: 0.03712933245 | AD16: =ROUND(ABS(AE16)/MONTH(FERC_IS1!$C$696),0) -> 3387 | AE16: 16933 | AF16: =ROUND(ABS(AG16)/MONTH(FERC_IS1!$C$696),0) -> 3330 | AG16: 16652 | AH16: 57 | AJ16: 5330802.226 | AK16: 4649115.01 | AL16: 681687.216 | AM16: 0.1466273075 | AO16: 43792311 | AP16: 40963338 | AQ16: 2828973 | AR16: 0.06906109556 | AT16: 3372 | AU16: 10115 | AV16: 3327 | AW16: 9982 | AX16: 45 | AZ16: 20180769.74 | BA16: 20095318.36 | BB16: 85451.377 | BC16: 0.004252302724 | BE16: 185879799 | BF16: 178053966 | BG16: 7825833 | BH16: 0.04395202857 | BJ16: 3351 | BK16: 40217 | BL16: 3319 | BM16: 39833 | BN16: 32
A17: %,V4420013 | B17: 4420013 | C17: Commercial Fuel Rev | F17: 5627019.79 | G17: 3670709.4 | H17: 1956310.39 | I17: 0.5329515842 | K17: 0 | L17: 0 | M17: 0 | P17: 0 | Q17: 0 | R17: 0 | T17: 25310233.1 | U17: 20906286.87 | V17: 4403946.23 | W17: 0.2106517651 | Y17: 0 | Z17: 0 | AA17: 0 | AD17: =ROUND(ABS(AE17)/MONTH(FERC_IS1!$C$696),0) -> 0 | AE17: 0 | AF17: =ROUND(ABS(AG17)/MONTH(FERC_IS1!$C$696),0) -> 0 | AG17: 0 | AH17: 0 | AJ17: 15237466.14 | AK17: 11745311.04 | AL17: 3492155.1 | AM17: 0.2973233393 | AO17: 0 | AP17: 0 | AQ17: 0 | AT17: 0 | AU17: 0 | AV17: 0 | AW17: 0 | AX17: 0 | AZ17: 63089077.93 | BA17: 52365225.33 | BB17: 10723852.6 | BC17: 0.2047895819 | BE17: 0 | BF17: 0 | BG17: 0 | BJ17: 0 | BK17: 0 | BL17: 0 | BM17: 0 | BN17: 0
A18: %,FACCOUNT,X,TGL_FERC_ACCT,N442_COMMERCIAL | B18: Line 4 | C18: (442) Small (or Commercial) | F18: 18890445.43 | G18: 12863827.94 | H18: 6026617.491 | I18: 0.4684933224 | K18: 113683980 | L18: 97551416 | M18: 16132564 | N18: 0.1653749854 | P18: 30298 | Q18: 30324 | R18: -26 | T18: 82627589.65 | U18: 77131689.76 | V18: 5495899.886 | W18: 0.07125346149 | Y18: 561864769 | Z18: 569337614 | AA18: -7472845 | AB18: -0.01312550728 | AD18: =ROUND(ABS(AE18)/MONTH(FERC_IS1!$C$696),0) -> 30505 | AE18: 152523 | AF18: =ROUND(ABS(AG18)/MONTH(FERC_IS1!$C$696),0) -> 30371 | AG18: 151855 | AH18: 134 | AJ18: 50829979.77 | AK18: 43394968.43 | AL18: 7435011.339 | AM18: 0.1713334888 | AO18: 323651041 | AP18: 321138103 | AQ18: 2512938 | AR18: 0.007825100717 | AT18: 30309 | AU18: 90927 | AV18: 30353 | AW18: 91058 | AX18: -44 | AZ18: 201145819.4 | BA18: 189389329.4 | BB18: 11756490.05 | BC18: 0.06207577845 | BE18: 1414163074 | BF18: 1411045549 | BG18: 3117525 | BH18: 0.002209372335 | BJ18: 30360 | BK18: 364321 | BL18: 30400 | BM18: 364804 | BN18: -40
A19: %,V4420002 | B19: 4420002 | C19: Industrial Sales (Excl Mines) | F19: 9628142.168 | G19: 6842201.07 | H19: 2785941.098 | I19: 0.4071703052 | K19: 160005437 | L19: 157142991 | M19: 2862446 | N19: 0.01821554994 | P19: 756 | Q19: 761 | R19: -5 | T19: 36057846.08 | U19: 32610380.22 | V19: 3447465.863 | W19: 0.1057168251 | Y19: 702669008 | Z19: 738334401 | AA19: -35665393 | AB19: -0.04830520283 | AD19: =ROUND(ABS(AE19)/MONTH(FERC_IS1!$C$696),0) -> 772 | AE19: 3862 | AF19: =ROUND(ABS(AG19)/MONTH(FERC_IS1!$C$696),0) -> 766 | AG19: 3828 | AH19: 6 | AJ19: 22053184.99 | AK19: 20598152.7 | AL19: 1455032.287 | AM19: 0.07063896982 | AO19: 442586804 | AP19: 444784611 | AQ19: -2197807 | AR19: -0.004941283816 | AT19: 766 | AU19: 2298 | AV19: 764 | AW19: 2293 | AX19: 2 | AZ19: 69397331.64 | BA19: 78934764.49 | BB19: -9537432.851 | BC19: -0.1208267727 | BE19: 1726968645 | BF19: 1817295651 | BG19: -90327006 | BH19: -0.04970407867 | BJ19: 768 | BK19: 9210 | BL19: 772 | BM19: 9262 | BN19: -4
A20: %,V4420004 | B20: 4420004 | C20: Ind Sales-NonAffil(Incl Mines) | F20: 1098147.344 | G20: 1131525.36 | H20: -33378.016 | I20: -0.02949824828 | K20: 10470087 | L20: 11901771 | M20: -1431684 | N20: -0.1202916776 | P20: 141 | Q20: 164 | R20: -23 | T20: 5565530.702 | U20: 6958388.99 | V20: -1392858.288 | W20: -0.2001696499 | Y20: 57294994 | Z20: 71654419 | AA20: -14359425 | AB20: -0.2003983174 | AD20: =ROUND(ABS(AE20)/MONTH(FERC_IS1!$C$696),0) -> 152 | AE20: 758 | AF20: =ROUND(ABS(AG20)/MONTH(FERC_IS1!$C$696),0) -> 168 | AG20: 839 | AH20: -16 | AJ20: 3399875.242 | AK20: 4008822.73 | AL20: -608947.488 | AM20: -0.1519018248 | AO20: 32700756 | AP20: 41965450 | AQ20: -9264694 | AR20: -0.2207695616 | AT20: 146 | AU20: 439 | AV20: 166 | AW20: 498 | AX20: -20 | AZ20: 13530223.17 | BA20: 16829833.15 | BB20: -3299609.984 | BC20: -0.1960572012 | BE20: 140029547 | BF20: 177213112 | BG20: -37183565 | BH20: -0.2098240056 | BJ20: 156 | BK20: 1871 | BL20: 172 | BM20: 2067 | BN20: -16
A21: %,V4420016 | B21: 4420016 | C21: Industrial Fuel Rev | F21: 8583384.15 | G21: 6534812.22 | H21: 2048571.93 | I21: 0.3134859673 | K21: 0 | L21: 0 | M21: 0 | P21: 0 | Q21: 0 | R21: 0 | T21: 30659622.41 | U21: 29506551.17 | V21: 1153071.24 | W21: 0.03907848238 | Y21: 0 | Z21: 0 | AA21: 0 | AD21: =ROUND(ABS(AE21)/MONTH(FERC_IS1!$C$696),0) -> 0 | AE21: 0 | AF21: =ROUND(ABS(AG21)/MONTH(FERC_IS1!$C$696),0) -> 0 | AG21: 0 | AH21: 0 | AJ21: 22662122.59 | AK21: 17642747.57 | AL21: 5019375.02 | AM21: 0.2845007559 | AO21: 0 | AP21: 0 | AQ21: 0 | AT21: 0 | AU21: 0 | AV21: 0 | AW21: 0 | AX21: 0 | AZ21: 82209515.03 | BA21: 73174017.56 | BB21: 9035497.47 | BC21: 0.123479587 | BE21: 0 | BF21: 0 | BG21: 0 | BJ21: 0 | BK21: 0 | BL21: 0 | BM21: 0 | BN21: 0
A22: %,FACCOUNT,X,TGL_FERC_ACCT,N442_INDUSTRIAL | B22: Line 5 | C22: (442) Large (or Industrial) | F22: 19309673.66 | G22: 14508538.65 | H22: 4801135.012 | I22: 0.330917891 | K22: 170475524 | L22: 169044762 | M22: 1430762 | N22: 0.008463805581 | P22: 897 | Q22: 925 | R22: -28 | T22: 72282999.19 | U22: 69075320.38 | V22: 3207678.815 | W22: 0.04643740771 | Y22: 759964002 | Z22: 809988820 | AA22: -50024818 | AB22: -0.06175988701 | AD22: =ROUND(ABS(AE22)/MONTH(FERC_IS1!$C$696),0) -> 924 | AE22: 4620 | AF22: =ROUND(ABS(AG22)/MONTH(FERC_IS1!$C$696),0) -> 933 | AG22: 4667 | AH22: -9 | AJ22: 48115182.82 | AK22: 42249723 | AL22: 5865459.819 | AM22: 0.1388283615 | AO22: 475287560 | AP22: 486750061 | AQ22: -11462501 | AR22: -0.02354904892 | AT22: 912 | AU22: 2737 | AV22: 930 | AW22: 2791 | AX22: -18 | AZ22: 165137069.8 | BA22: 168938615.2 | BB22: -3801545.365 | BC22: -0.02250252472 | BE22: 1866998192 | BF22: 1994508763 | BG22: -127510571 | BH22: -0.06393081513 | BJ22: 923 | BK22: 11081 | BL22: 944 | BM22: 11329 | BN22: -21
A23: %,V4440000 | B23: 4440000 | C23: Public Street/Highway Lighting | F23: 174565.391 | G23: 151371.38 | H23: 23194.011 | I23: 0.1532258674 | K23: 559006 | L23: 563082 | M23: -4076 | N23: -0.007238732547 | P23: 295 | Q23: 300 | R23: -5 | T23: 939602.04 | U23: 778852.04 | V23: 160750 | W23: 0.2063935019 | Y23: 4224130 | Z23: 3626351 | AA23: 597779 | AB23: 0.1648431164 | AD23: =ROUND(ABS(AE23)/MONTH(FERC_IS1!$C$696),0) -> 307 | AE23: 1534 | AF23: =ROUND(ABS(AG23)/MONTH(FERC_IS1!$C$696),0) -> 299 | AG23: 1496 | AH23: 8 | AJ23: 502718.603 | AK23: 459152.13 | AL23: 43566.473 | AM23: 0.09488461482 | AO23: 1882081 | AP23: 1963233 | AQ23: -81152 | AR23: -0.04133589849 | AT23: 296 | AU23: 888 | AV23: 299 | AW23: 898 | AX23: -3 | AZ23: 1872469.516 | BA23: 1833522.56 | BB23: 38946.956 | BC23: 0.02124160174 | BE23: 8290036 | BF23: 8658508 | BG23: -368472 | BH23: -0.04255606162 | BJ23: 297 | BK23: 3562 | BL23: 302 | BM23: 3620 | BN23: -5
A24: %,V4440002 | B24: 4440002 | C24: Public St & Hwy Light Fuel Rev | F24: 25773.85 | G24: 22593.3 | H24: 3180.55 | I24: 0.1407740348 | K24: 0 | L24: 0 | M24: 0 | P24: 0 | Q24: 0 | R24: 0 | T24: 169435.46 | U24: 129715.18 | V24: 39720.28 | W24: 0.3062115012 | Y24: 0 | Z24: 0 | AA24: 0 | AD24: =ROUND(ABS(AE24)/MONTH(FERC_IS1!$C$696),0) -> 0 | AE24: 0 | AF24: =ROUND(ABS(AG24)/MONTH(FERC_IS1!$C$696),0) -> 0 | AG24: 0 | AH24: 0 | AJ24: 88376.9 | AK24: 71763.52 | AL24: 16613.38 | AM24: 0.2315017435 | AO24: 0 | AP24: 0 | AQ24: 0 | AT24: 0 | AU24: 0 | AV24: 0 | AW24: 0 | AX24: 0 | AZ24: 356720.61 | BA24: 319256.87 | BB24: 37463.74 | BC24: 0.1173466995 | BE24: 0 | BF24: 0 | BG24: 0 | BJ24: 0 | BK24: 0 | BL24: 0 | BM24: 0 | BN24: 0
A25: %,FACCOUNT,X,TGL_FERC_ACCT,N4440 | B25: Line 6 | C25: (444) Public Street and Highway Lighting | F25: 200339.241 | G25: 173964.68 | H25: 26374.561 | I25: 0.1516087116 | K25: 559006 | L25: 563082 | M25: -4076 | N25: -0.007238732547 | P25: 295 | Q25: 300 | R25: -5 | T25: 1109037.5 | U25: 908567.22 | V25: 200470.28 | W25: 0.220644412 | Y25: 4224130 | Z25: 3626351 | AA25: 597779 | AB25: 0.1648431164 | AD25: =ROUND(ABS(AE25)/MONTH(FERC_IS1!$C$696),0) -> 307 | AE25: 1534 | AF25: =ROUND(ABS(AG25)/MONTH(FERC_IS1!$C$696),0) -> 299 | AG25: 1496 | AH25: 8 | AJ25: 591095.503 | AK25: 530915.65 | AL25: 60179.853 | AM25: 0.1133510625 | AO25: 1882081 | AP25: 1963233 | AQ25: -81152 | AR25: -0.04133589849 | AT25: 296 | AU25: 888 | AV25: 299 | AW25: 898 | AX25: -3 | AZ25: 2229190.126 | BA25: 2152779.43 | BB25: 76410.696 | BC25: 0.03549397348 | BE25: 8290036 | BF25: 8658508 | BG25: -368472 | BH25: -0.04255606162 | BJ25: 297 | BK25: 3562 | BL25: 302 | BM25: 3620 | BN25: -5
A26: %,FACCOUNT,X,TGL_FERC_ACCT,N4450 | B26: Line 7 | C26: (445) Other Sales to Public Authorities | F26: 0 | G26: 0 | H26: 0 | K26: 0 | L26: 0 | M26: 0 | P26: 0 | Q26: 0 | R26: 0 | T26: 0 | U26: 0 | V26: 0 | Y26: 0 | Z26: 0 | AA26: 0 | AD26: =ROUND(ABS(AE26)/MONTH(FERC_IS1!$C$696),0) -> 0 | AE26: 0 | AF26: =ROUND(ABS(AG26)/MONTH(FERC_IS1!$C$696),0) -> 0 | AG26: 0 | AH26: 0 | AJ26: 0 | AK26: 0 | AL26: 0 | AO26: 0 | AP26: 0 | AQ26: 0 | AT26: 0 | AU26: 0 | AV26: 0 | AW26: 0 | AX26: 0 | AZ26: 0 | BA26: 0 | BB26: 0 | BE26: 0 | BF26: 0 | BG26: 0 | BJ26: 0 | BK26: 0 | BL26: 0 | BM26: 0 | BN26: 0
A27: %,FACCOUNT,X,TGL_FERC_ACCT,N4460 | B27: Line 8 | C27: (446) Sales to Railroads and Railways | F27: 0 | G27: 0 | H27: 0 | K27: 0 | L27: 0 | M27: 0 | P27: 0 | Q27: 0 | R27: 0 | T27: 0 | U27: 0 | V27: 0 | Y27: 0 | Z27: 0 | AA27: 0 | AD27: =ROUND(ABS(AE27)/MONTH(FERC_IS1!$C$696),0) -> 0 | AE27: 0 | AF27: =ROUND(ABS(AG27)/MONTH(FERC_IS1!$C$696),0) -> 0 | AG27: 0 | AH27: 0 | AJ27: 0 | AK27: 0 | AL27: 0 | AO27: 0 | AP27: 0 | AQ27: 0 | AT27: 0 | AU27: 0 | AV27: 0 | AW27: 0 | AX27: 0 | AZ27: 0 | BA27: 0 | BB27: 0 | BE27: 0 | BF27: 0 | BG27: 0 | BJ27: 0 | BK27: 0 | BL27: 0 | BM27: 0 | BN27: 0
A28: %,FACCOUNT,X,TGL_FERC_ACCT,N4480 | B28: Line 9 | C28: (448) Interdepartmental Sales | F28: 0 | G28: 0 | H28: 0 | K28: 0 | L28: 0 | M28: 0 | P28: 0 | Q28: 0 | R28: 0 | T28: 0 | U28: 0 | V28: 0 | Y28: 0 | Z28: 0 | AA28: 0 | AD28: =ROUND(ABS(AE28)/MONTH(FERC_IS1!$C$696),0) -> 0 | AE28: 0 | AF28: =ROUND(ABS(AG28)/MONTH(FERC_IS1!$C$696),0) -> 0 | AG28: 0 | AH28: 0 | AJ28: 0 | AK28: 0 | AL28: 0 | AO28: 0 | AP28: 0 | AQ28: 0 | AT28: 0 | AU28: 0 | AV28: 0 | AW28: 0 | AX28: 0 | AZ28: 0 | BA28: 0 | BB28: 0 | BE28: 0 | BF28: 0 | BG28: 0 | BJ28: 0 | BK28: 0 | BL28: 0 | BM28: 0 | BN28: 0
A29: %,FACCOUNT,TGL_FERC_ACCT,NELEC_SALES_ULT_CUST | B29: Line 10 | C29: TOTAL Sales to Ultimate Customers | F29: 63092910.93 | G29: 42400028.8 | H29: 20692882.13 | I29: 0.4880393414 | K29: 401232020 | L29: 354298458 | M29: 46933562 | N29: 0.1324689988 | P29: 160861 | Q29: 161818 | R29: -957 | T29: 297957873.9 | U29: 278108995.5 | V29: 19848878.43 | W29: 0.07137086088 | Y29: 2157908601 | Z29: 2235877061 | AA29: -77968460 | AB29: -0.03487153268 | AD29: =ROUND(ABS(AE29)/MONTH(FERC_IS1!$C$696),0) -> 161670 | AE29: 808351 | AF29: =ROUND(ABS(AG29)/MONTH(FERC_IS1!$C$696),0) -> 162315 | AG29: 811575 | AH29: -645 | AJ29: 169736520.5 | AK29: 147400046.2 | AL29: 22336474.22 | AM29: 0.1515364126 | AO29: 1163127385 | AP29: 1187482997 | AQ29: -24355612 | AR29: -0.02051028273 | AT29: 161226 | AU29: 483677 | AV29: 162086 | AW29: 486258 | AX29: -860 | AZ29: 687525478.5 | BA29: 650666344 | BB29: 36859134.57 | BC29: 0.05664828819 | BE29: 5199635723 | BF29: 5297563192 | BG29: -97927469 | BH29: -0.01848538006 | BJ29: 161579 | BK29: 1938950 | BL29: 162400 | BM29: 1948798 | BN29: -821
A30: %,V4470006 | B30: 4470006 | C30: Sales for Resale-Bookout Sales | F30: 0 | G30: 0 | H30: 0 | K30: 0 | L30: 0 | M30: 0 | P30: 0 | Q30: 0 | R30: 0 | T30: 0 | U30: 0 | V30: 0 | Y30: 0 | Z30: 0 | AA30: 0 | AD30: =ROUND(ABS(AE30)/MONTH(FERC_IS1!$C$696),0) -> 0 | AE30: 0 | AF30: =ROUND(ABS(AG30)/MONTH(FERC_IS1!$C$696),0) -> 0 | AG30: 0 | AH30: 0 | AJ30: 0 | AK30: 0 | AL30: 0 | AO30: 0 | AP30: 0 | AQ30: 0 | AT30: 0 | AU30: 0 | AV30: 0 | AW30: 0 | AX30: 0 | AZ30: 0.2 | BA30: 0 | BB30: 0.2 | BC30: 1 | BE30: 0 | BF30: 0 | BG30: 0 | BJ30: 0 | BK30: 0 | BL30: 0 | BM30: 0 | BN30: 0
A31: %,V4470010 | B31: 4470010 | C31: Sales for Resale-Bookout Purch | F31: 0 | G31: 0 | H31: 0 | K31: 0 | L31: 0 | M31: 0 | P31: 0 | Q31: 0 | R31: 0 | T31: -12.02 | U31: 0 | V31: -12.02 | W31: 1 | Y31: 0 | Z31: 0 | AA31: 0 | AD31: =ROUND(ABS(AE31)/MONTH(FERC_IS1!$C$696),0) -> 0 | AE31: 0 | AF31: =ROUND(ABS(AG31)/MONTH(FERC_IS1!$C$696),0) -> 0 | AG31: 0 | AH31: 0 | AJ31: 0 | AK31: 0 | AL31: 0 | AO31: 0 | AP31: 0 | AQ31: 0 | AT31: 0 | AU31: 0 | AV31: 0 | AW31: 0 | AX31: 0 | AZ31: 34.63 | BA31: 0 | BB31: 34.63 | BC31: 1 | BE31: 0 | BF31: 0 | BG31: 0 | BJ31: 0 | BK31: 0 | BL31: 0 | BM31: 0 | BN31: 0
A32: %,V4470027 | B32: 4470027 | C32: Whsal/Muni/Pb Ath Fuel Rev | F32: 10166.21 | G32: 290721.96 | H32: -280555.75 | I32: -0.965031159 | K32: 0 | L32: 5172543 | M32: -5172543 | N32: 1 | P32: 0 | Q32: 0 | R32: 0 | T32: 10166.21 | U32: 1515111.43 | V32: -1504945.22 | W32: -0.9932901239 | Y32: 0 | Z32: 32117169 | AA32: -32117169 | AB32: 1 | AD32: =ROUND(ABS(AE32)/MONTH(FERC_IS1!$C$696),0) -> 0 | AE32: 0 | AF32: =ROUND(ABS(AG32)/MONTH(FERC_IS1!$C$696),0) -> 0 | AG32: 0 | AH32: 0 | AJ32: 10166.21 | AK32: 874454.25 | AL32: -864288.04 | AM32: -0.9883742231 | AO32: 0 | AP32: 16141244 | AQ32: -16141244 | AR32: 1 | AT32: 0 | AU32: 0 | AV32: 0 | AW32: 0 | AX32: 0 | AZ32: 56623.44 | BA32: 2956196.36 | BB32: -2899572.92 | BC32: -0.9808458461 | BE32: 24073 | BF32: 75431741 | BG32: -75407668 | BH32: -0.9996808638 | BJ32: 0 | BK32: 0 | BL32: 0 | BM32: 0 | BN32: 0
A33: %,V4470033 | B33: 4470033 | C33: Whsal/Muni/Pub Auth Base Rev | F33: 31333.83 | G33: 516121.55 | H33: -484787.72 | I33: -0.9392898243 | K33: 0 | L33: 0 | M33: 0 | P33: 0 | Q33: 0 | R33: 0 | T33: 31333.83 | U33: 1324922.26 | V33: -1293588.43 | W33: -0.9763504389 | Y33: 0 | Z33: 0 | AA33: 0 | AD33: =ROUND(ABS(AE33)/MONTH(FERC_IS1!$C$696),0) -> 0 | AE33: 0 | AF33: =ROUND(ABS(AG33)/MONTH(FERC_IS1!$C$696),0) -> 0 | AG33: 0 | AH33: 0 | AJ33: 31333.83 | AK33: 846098.96 | AL33: -814765.13 | AM33: -0.9629667078 | AO33: 0 | AP33: 0 | AQ33: 0 | AT33: 0 | AU33: 0 | AV33: 0 | AW33: 0 | AX33: 0 | AZ33: 31466.26 | BA33: 2569858.89 | BB33: -2538392.63 | BC33: -0.9877556468 | BE33: 0 | BF33: 0 | BG33: 0 | BJ33: 0 | BK33: 0 | BL33: 0 | BM33: 0 | BN33: 0
A34: %,V4470074 | B34: 4470074 | C34: Sale for Resale-Aff-Trnf Price | F34: 0 | G34: 0 | H34: 0 | K34: 0 | L34: 0 | M34: 0 | P34: 0 | Q34: 0 | R34: 0 | T34: 0 | U34: 0 | V34: 0 | Y34: 0 | Z34: 0 | AA34: 0 | AD34: =ROUND(ABS(AE34)/MONTH(FERC_IS1!$C$696),0) -> 0 | AE34: 0 | AF34: =ROUND(ABS(AG34)/MONTH(FERC_IS1!$C$696),0) -> 0 | AG34: 0 | AH34: 0 | AJ34: 0 | AK34: 0 | AL34: 0 | AO34: 0 | AP34: 0 | AQ34: 0 | AT34: 0 | AU34: 0 | AV34: 0 | AW34: 0 | AX34: 0 | AZ34: 0 | BA34: 0 | BB34: 0 | BE34: 0 | BF34: 0 | BG34: 0 | BJ34: 0 | BK34: 0 | BL34: 0 | BM34: 0 | BN34: 0
A35: %,V4470082 | B35: 4470082 | C35: Financial Electric Realized | F35: -231.28 | G35: -158.6 | H35: -72.68 | I35: 0.458259773 | K35: 0 | L35: 0 | M35: 0 | P35: 0 | Q35: 0 | R35: 0 | T35: -876.93 | U35: -2026.4 | V35: 1149.47 | W35: -0.5672473352 | Y35: 0 | Z35: 0 | AA35: 0 | AD35: =ROUND(ABS(AE35)/MONTH(FERC_IS1!$C$696),0) -> 0 | AE35: 0 | AF35: =ROUND(ABS(AG35)/MONTH(FERC_IS1!$C$696),0) -> 0 | AG35: 0 | AH35: 0 | AJ35: -499.75 | AK35: -869.39 | AL35: 369.64 | AM35: -0.4251716721 | AO35: 0 | AP35: 0 | AQ35: 0 | AT35: 0 | AU35: 0 | AV35: 0 | AW35: 0 | AX35: 0 | AZ35: -2555.88 | BA35: -6097.61 | BB35: 3541.73 | BC35: -0.5808390501 | BE35: 0 | BF35: 0 | BG35: 0 | BJ35: 0 | BK35: 0 | BL35: 0 | BM35: 0 | BN35: 0
A36: %,V4470089 | B36: 4470089 | C36: PJM Energy Sales Margin | F36: -103955.4 | G36: 81981.73 | H36: -185937.13 | I36: -2.268031304 | K36: 0 | L36: 0 | M36: 0 | P36: 0 | Q36: 0 | R36: 0 | T36: 1170435.64 | U36: 343834.37 | V36: 826601.27 | W36: 2.404068186 | Y36: 0 | Z36: 0 | AA36: 0 | AD36: =ROUND(ABS(AE36)/MONTH(FERC_IS1!$C$696),0) -> 0 | AE36: 0 | AF36: =ROUND(ABS(AG36)/MONTH(FERC_IS1!$C$696),0) -> 0 | AG36: 0 | AH36: 0 | AJ36: -712188.98 | AK36: -48533.37 | AL36: -663655.61 | AM36: 13.6742124 | AO36: 0 | AP36: 0 | AQ36: 0 | AT36: 0 | AU36: 0 | AV36: 0 | AW36: 0 | AX36: 0 | AZ36: 3266637.89 | BA36: 256959.65 | BB36: 3009678.24 | BC36: 11.7126492 | BE36: 0 | BF36: 0 | BG36: 0 | BJ36: 0 | BK36: 0 | BL36: 0 | BM36: 0 | BN36: 0
A37: %,V4470098 | B37: 4470098 | C37: PJM Oper.Reserve Rev-OSS | F37: 1120.06 | G37: -8662.52 | H37: 9782.58 | I37: -1.129299557 | K37: 0 | L37: 0 | M37: 0 | P37: 0 | Q37: 0 | R37: 0 | T37: -442095.53 | U37: -34578.02 | V37: -407517.51 | W37: 11.78544954 | Y37: 0 | Z37: 0 | AA37: 0 | AD37: =ROUND(ABS(AE37)/MONTH(FERC_IS1!$C$696),0) -> 0 | AE37: 0 | AF37: =ROUND(ABS(AG37)/MONTH(FERC_IS1!$C$696),0) -> 0 | AG37: 0 | AH37: 0 | AJ37: -23483.41 | AK37: -18712.77 | AL37: -4770.64 | AM37: 0.2549403429 | AO37: 0 | AP37: 0 | AQ37: 0 | AT37: 0 | AU37: 0 | AV37: 0 | AW37: 0 | AX37: 0 | AZ37: -506626.19 | BA37: -79130.04 | BB37: -427496.15 | BC37: 5.402450827 | BE37: 0 | BF37: 0 | BG37: 0 | BJ37: 0 | BK37: 0 | BL37: 0 | BM37: 0 | BN37: 0
A38: %,V4470099 | B38: 4470099 | C38: Capacity Cr. Net Sales | F38: 0 | G38: -10445.76 | H38: 10445.76 | I38: 1 | K38: 0 | L38: 0 | M38: 0 | P38: 0 | Q38: 0 | R38: 0 | T38: 0 | U38: -50880.99 | V38: 50880.99 | W38: 1 | Y38: 0 | Z38: 0 | AA38: 0 | AD38: =ROUND(ABS(AE38)/MONTH(FERC_IS1!$C$696),0) -> 0 | AE38: 0 | AF38: =ROUND(ABS(AG38)/MONTH(FERC_IS1!$C$696),0) -> 0 | AG38: 0 | AH38: 0 | AJ38: 0 | AK38: -31000.32 | AL38: 31000.32 | AM38: 1 | AO38: 0 | AP38: 0 | AQ38: 0 | AT38: 0 | AU38: 0 | AV38: 0 | AW38: 0 | AX38: 0 | AZ38: 0 | BA38: -122922.11 | BB38: 122922.11 | BC38: 1 | BE38: 0 | BF38: 0 | BG38: 0 | BJ38: 0 | BK38: 0 | BL38: 0 | BM38: 0 | BN38: 0
A39: %,V4470100 | B39: 4470100 | C39: PJM FTR Revenue-OSS | F39: 10414.83 | G39: 30678.54 | H39: -20263.71 | I39: -0.6605174171 | K39: 0 | L39: 0 | M39: 0 | P39: 0 | Q39: 0 | R39: 0 | T39: 311993.29 | U39: 77726.02 | V39: 234267.27 | W39: 3.014013454 | Y39: 0 | Z39: 0 | AA39: 0 | AD39: =ROUND(ABS(AE39)/MONTH(FERC_IS1!$C$696),0) -> 0 | AE39: 0 | AF39: =ROUND(ABS(AG39)/MONTH(FERC_IS1!$C$696),0) -> 0 | AG39: 0 | AH39: 0 | AJ39: 40845.44 | AK39: 40914.07 | AL39: -68.63 | AM39: -0.001677418062 | AO39: 0 | AP39: 0 | AQ39: 0 | AT39: 0 | AU39: 0 | AV39: 0 | AW39: 0 | AX39: 0 | AZ39: 455215.64 | BA39: 265086.08 | BB39: 190129.56 | BC39: 0.7172370575 | BE39: 0 | BF39: 0 | BG39: 0 | BJ39: 0 | BK39: 0 | BL39: 0 | BM39: 0 | BN39: 0
A40: %,V4470103 | B40: 4470103 | C40: PJM Energy Sales Cost | F40: 1056974.28 | G40: 879855.67 | H40: 177118.61 | I40: 0.2013041639 | K40: 20059267 | L40: 26745374 | M40: -6686107 | N40: -0.2499911573 | P40: 0 | Q40: 0 | R40: 0 | T40: 11813250.43 | U40: 4942738.64 | V40: 6870511.79 | W40: 1.39002126 | Y40: 171086664 | Z40: 119763832 | AA40: 51322832 | AB40: 0.4285336495 | AD40: =ROUND(ABS(AE40)/MONTH(FERC_IS1!$C$696),0) -> 0 | AE40: 0 | AF40: =ROUND(ABS(AG40)/MONTH(FERC_IS1!$C$696),0) -> 0 | AG40: 0 | AH40: 0 | AJ40: 3513262.67 | AK40: 2890377.72 | AL40: 622884.95 | AM40: 0.2155029586 | AO40: 70694115 | AP40: 74747655 | AQ40: -4053540 | AR40: -0.05422966112 | AT40: 0 | AU40: 0 | AV40: 0 | AW40: 0 | AX40: 0 | AZ40: 34562397.23 | BA40: 16811411.03 | BB40: 17750986.2 | BC40: 1.055889132 | BE40: 628646843 | BF40: 441722811 | BG40: 186924032 | BH40: 0.4231704303 | BJ40: 0 | BK40: 0 | BL40: 0 | BM40: 0 | BN40: 0
A41: %,V4470115 | B41: 4470115 | C41: PJM Meter Corrections-OSS | F41: 5501.18 | G41: 12.76 | H41: =+F41-G41 -> 5488.42 | I41: 430.1269592 | K41: 0 | L41: 0 | M41: =+K41-L41 -> 0 | N41: =IF(AND(K41=0,L41=0),"",IF(OR(K41=0,L41=0),100%,(+M41/L41))) ->  | P41: 0 | Q41: 0 | R41: =+P41-Q41 -> 0 | T41: 3185.09 | U41: -9956.93 | V41: =+T41-U41 -> 13142.02 | W41: =IF(AND(T41=0,U41=0),"",IF(OR(T41=0,U41=0),100%,(+V41/U41))) -> -1.319886752 | Y41: 0 | Z41: 0 | AA41: =+Y41-Z41 -> 0 | AB41: =IF(AND(Y41=0,Z41=0),"",IF(OR(Y41=0,Z41=0),100%,(+AA41/Z41))) ->  | AD41: =ROUND(ABS(AE41)/MONTH(FERC_IS1!$C$696),0) -> 0 | AE41: 0 | AF41: =ROUND(ABS(AG41)/MONTH(FERC_IS1!$C$696),0) -> 0 | AG41: 0 | AH41: =+AD41-AF41 -> 0 | AJ41: 5558.58 | AK41: -9387.5 | AL41: =+AJ41-AK41 -> 14946.08 | AM41: =IF(AND(AJ41=0,AK41=0),"",IF(OR(AJ41=0,AK41=0),100%,(+AL41/AK41))) -> -1.592125699 | AO41: 0 | AP41: 0 | AQ41: =+AO41-AP41 -> 0 | AR41: =IF(AND(AO41=0,AP41=0),"",IF(OR(AO41=0,AP41=0),100%,(+AQ41/AP41))) ->  | AT41: =ROUND(ABS(AU41)/3,0) -> 0 | AU41: 0 | AV41: =ROUND(ABS(AW41)/3,0) -> 0 | AW41: 0 | AX41: =+AT41-AV41 -> 0 | AZ41: -271060.34 | BA41: 37825.29 | BB41: =+AZ41-BA41 -> -308885.63 | BC41: =IF(AND(AZ41=0,BA41=0),"",IF(OR(AZ41=0,BA41=0),100%,(+BB41/BA41))) -> -8.166113994 | BE41: 0 | BF41: 0 | BG41: =+BE41-BF41 -> 0 | BH41: =IF(AND(BE41=0,BF41=0),"",IF(OR(BE41=0,BF41=0),100%,(+BG41/BF41))) ->  | BJ41: =ROUND(ABS(BK41)/12,0) -> 0 | BK41: 0 | BL41: =ROUND(ABS(BM41)/12,0) -> 0 | BM41: 0 | BN41: =+BJ41-BL41 -> 0
A42: %,V4470116 | B42: 4470116 | C42: PJM Meter Corrections-LSE | F42: -27783.77 | G42: 249.32 | H42: -28033.09 | I42: -112.4381919 | K42: 0 | L42: 0 | M42: 0 | P42: 0 | Q42: 0 | R42: 0 | T42: 74084.47 | U42: -166064 | V42: 240148.47 | W42: -1.44611999 | Y42: 0 | Z42: 0 | AA42: 0 | AD42: =ROUND(ABS(AE42)/MONTH(FERC_IS1!$C$696),0) -> 0 | AE42: 0 | AF42: =ROUND(ABS(AG42)/MONTH(FERC_IS1!$C$696),0) -> 0 | AG42: 0 | AH42: 0 | AJ42: 78910.19 | AK42: -170856.81 | AL42: 249767 | AM42: -1.461849838 | AO42: 0 | AP42: 0 | AQ42: 0 | AT42: 0 | AU42: 0 | AV42: 0 | AW42: 0 | AX42: 0 | AZ42: -1358248.48 | BA42: 264533.87 | BB42: -1622782.35 | BC42: -6.134497446 | BE42: 0 | BF42: 0 | BG42: 0 | BJ42: 0 | BK42: 0 | BL42: 0 | BM42: 0 | BN42: 0
A43: %,V4470126 | B43: 4470126 | C43: PJM Incremental Imp Cong-OSS | F43: -36105.02 | G43: -3811.11 | H43: -32293.91 | I43: 8.47362317 | K43: 0 | L43: 0 | M43: 0 | P43: 0 | Q43: 0 | R43: 0 | T43: -400324.87 | U43: -46315.81 | V43: -354009.06 | W43: 7.643374044 | Y43: 0 | Z43: 0 | AA43: 0 | AD43: =ROUND(ABS(AE43)/MONTH(FERC_IS1!$C$696),0) -> 0 | AE43: 0 | AF43: =ROUND(ABS(AG43)/MONTH(FERC_IS1!$C$696),0) -> 0 | AG43: 0 | AH43: 0 | AJ43: 14646.77 | AK43: -11064.13 | AL43: 25710.9 | AM43: -2.323806752 | AO43: 0 | AP43: 0 | AQ43: 0 | AT43: 0 | AU43: 0 | AV43: 0 | AW43: 0 | AX43: 0 | AZ43: -1002021.9 | BA43: -342789.3 | BB43: -659232.6 | BC43: 1.923142292 | BE43: 0 | BF43: 0 | BG43: 0 | BJ43: 0 | BK43: 0 | BL43: 0 | BM43: 0 | BN43: 0
A44: %,V4470150 | B44: 4470150 | C44: Transm. Rev.-Dedic. Whlsl/Muni | F44: -3815 | G44: -3175.94 | H44: -639.06 | I44: 0.2012191666 | K44: 0 | L44: 0 | M44: 0 | P44: 0 | Q44: 0 | R44: 0 | T44: -19074 | U44: -10140.28 | V44: -8933.72 | W44: 0.8810131476 | Y44: 0 | Z44: 0 | AA44: 0 | AD44: =ROUND(ABS(AE44)/MONTH(FERC_IS1!$C$696),0) -> 0 | AE44: 0 | AF44: =ROUND(ABS(AG44)/MONTH(FERC_IS1!$C$696),0) -> 0 | AG44: 0 | AH44: 0 | AJ44: -11445 | AK44: -4222.15 | AL44: -7222.85 | AM44: 1.710704262 | AO44: 0 | AP44: 0 | AQ44: 0 | AT44: 0 | AU44: 0 | AV44: 0 | AW44: 0 | AX44: 0 | AZ44: -65814.71 | BA44: 138820.29 | BB44: -204635 | BC44: -1.474100076 | BE44: 0 | BF44: 0 | BG44: 0 | BJ44: 0 | BK44: 0 | BL44: 0 | BM44: 0 | BN44: 0
A45: %,V4470175 | B45: 4470175 | C45: OSS Sharing Reclass - Retail | F45: -791342.91 | G45: 502089.86 | H45: -1293432.77 | I45: -2.576098171 | K45: 0 | L45: 0 | M45: 0 | P45: 0 | Q45: 0 | R45: 0 | T45: 1202308.98 | U45: 2672803.65 | V45: -1470494.67 | W45: -0.5501693587 | Y45: 0 | Z45: 0 | AA45: 0 | AD45: =ROUND(ABS(AE45)/MONTH(FERC_IS1!$C$696),0) -> 0 | AE45: 0 | AF45: =ROUND(ABS(AG45)/MONTH(FERC_IS1!$C$696),0) -> 0 | AG45: 0 | AH45: 0 | AJ45: 71628.87 | AK45: 1456313.64 | AL45: -1384684.77 | AM45: -0.9508149426 | AO45: 0 | AP45: 0 | AQ45: 0 | AT45: 0 | AU45: 0 | AV45: 0 | AW45: 0 | AX45: 0 | AZ45: 3977412.34 | BA45: 5468028.88 | BB45: -1490616.54 | BC45: -0.2726058279 | BE45: 0 | BF45: 0 | BG45: 0 | BJ45: 0 | BK45: 0 | BL45: 0 | BM45: 0 | BN45: 0
A46: %,V4470176 | B46: 4470176 | C46: OSS Sharing Reclass-Reduction | F46: 791342.91 | G46: -502089.86 | H46: 1293432.77 | I46: -2.576098171 | K46: 0 | L46: 0 | M46: 0 | P46: 0 | Q46: 0 | R46: 0 | T46: -1202308.98 | U46: -2672803.65 | V46: 1470494.67 | W46: -0.5501693587 | Y46: 0 | Z46: 0 | AA46: 0 | AD46: =ROUND(ABS(AE46)/MONTH(FERC_IS1!$C$696),0) -> 0 | AE46: 0 | AF46: =ROUND(ABS(AG46)/MONTH(FERC_IS1!$C$696),0) -> 0 | AG46: 0 | AH46: 0 | AJ46: -71628.87 | AK46: -1456313.64 | AL46: 1384684.77 | AM46: -0.9508149426 | AO46: 0 | AP46: 0 | AQ46: 0 | AT46: 0 | AU46: 0 | AV46: 0 | AW46: 0 | AX46: 0 | AZ46: -3977412.34 | BA46: -5468028.88 | BB46: 1490616.54 | BC46: -0.2726058279 | BE46: 0 | BF46: 0 | BG46: 0 | BJ46: 0 | BK46: 0 | BL46: 0 | BM46: 0 | BN46: 0
